Workbook

Sheet Accueil

Sheet Paramètres

Sheet Janvier

Sheet Février

Sheet Mars
C1: <| | D1: =Paramètres!D28 -> 22 | E1: =DATE(An_0,3,1) -> 41333 | F1: =E1+1 -> 41334 | G1: 41335 | H1: 41336 | I1: 41337 | J1: 41338 | K1: 41339 | L1: 41340 | M1: 41341 | N1: 41342 | O1: 41343 | P1: 41344 | Q1: 41345 | R1: 41346 | S1: 41347 | T1: 41348 | U1: 41349 | V1: 41350 | W1: 41351 | X1: 41352 | Y1: 41353 | Z1: 41354 | AA1: 41355 | AB1: 41356 | AC1: 41357 | AD1: 41358 | AE1: 41359 | AF1: 41360 | AG1: 41361 | AH1: 41362 | AI1: 41363 | AJ1: =D44 -> Garde | AK1: =D49 -> Formation Stagiaire | AL1: =D50 -> Formation formateur | AM1: =D51 -> Entrainement SD | AN1: =D52 -> Entrainement EPIM | AO1: =D53 -> Entrainement SAV | AP1: =D54 -> Décharge Syndicale | AQ1: =D55 -> Autorisation Syndicale | AR1: Total garde | AS1: Total heures mois | AT1: Hrs Th. À effectuer | AU1: Différence | AV1: Am + AT | AW1: =Paramètres!B58 -> GOC | AX1: =Paramètres!B59 -> Hydrant | AY1: =Paramètres!B61 -> Instance Paritaire
E2: =DATE(An_0,3,1) -> 41333 | F2: =E2+1 -> 41334 | G2: 41335 | H2: 41336 | I2: 41337 | J2: 41338 | K2: 41339 | L2: 41340 | M2: 41341 | N2: 41342 | O2: 41343 | P2: 41344 | Q2: 41345 | R2: 41346 | S2: 41347 | T2: 41348 | U2: 41349 | V2: 41350 | W2: 41351 | X2: 41352 | Y2: 41353 | Z2: 41354 | AA2: 41355 | AB2: 41356 | AC2: 41357 | AD2: 41358 | AE2: 41359 | AF2: 41360 | AG2: 41361 | AH2: 41362 | AI2: 41363 | AL2: =D50 -> Formation formateur
A3: =Paramètres!Q7 -> x | B3: =IF(A3="x",Paramètres!M7,"") -> -1771 | C3: Personnel | D3: =IF($A3="x",CONCATENATE(Paramètres!D7," ",Paramètres!C7," ",Paramètres!B7),"") -> Adc Jacques Agent_1 | AJ3: =COUNTIF($E3:$AI3,Paramètres!$C$43) -> 0 | AK3: =COUNTIF($E3:$AI3,Paramètres!$C$46) -> 0 | AL3: =COUNTIF($E3:$AI3,Paramètres!$C$47) -> 0 | AM3: =COUNTIF($E3:$AI3,Paramètres!$C$48) -> 0 | AN3: =COUNTIF($E3:$AI3,Paramètres!$C$49) -> 0 | AO3: =COUNTIF($E3:$AI3,Paramètres!$C$50) -> 0 | AP3: =COUNTIF($E3:$AI3,Paramètres!$C$56) -> 0 | AQ3: =COUNTIF($E3:$AI3,Paramètres!$C$57) -> 0 | AR3: =SUM(AJ3:AQ3) -> 0 | AS3: =($AJ3*VtyJ)+($AK3*VtyFs)+($AL3*VtyFf)+($AM3*VtySD)+($AN3*VtyPI)+($AO3*VtySA)+($AP3*VtyDsy)+($AQ3*VtyAsy)+($AW3*VtyGOC)+($AX3*VtyHy)+($AY3*VtyiPA)+(AV3*VtyAm) -> 0 | AT3: =($D$1-COUNTIF(E3:AI3,TyCo))*(CoAG1) -> 137.5652174 | AU3: =AS3-AT3 -> -137.5652174 | AV3: =COUNTIF(E3:AI3,TyAm)+COUNTIF(E3:AI3,TyAt) -> 0 | AW3: =COUNTIF($E3:$AI3,TyGOC) -> 0 | AX3: =COUNTIF($E3:$AI3,TyHy) -> 0 | AY3: =COUNTIF($E3:$AI3,TySy) -> 0
A4: =Paramètres!Q8 -> x | B4: =IF(A4="x",Paramètres!M8,"") -> -1582 | D4: =IF($A4="x",CONCATENATE(Paramètres!D8," ",Paramètres!C8," ",Paramètres!B8),"") -> Adj Christophe Agent_2 | AJ4: =COUNTIF($E4:$AI4,Paramètres!$C$43) -> 0 | AK4: =COUNTIF($E4:$AI4,Paramètres!$C$46) -> 0 | AL4: =COUNTIF($E4:$AI4,Paramètres!$C$47) -> 0 | AM4: =COUNTIF($E4:$AI4,Paramètres!$C$48) -> 0 | AN4: =COUNTIF($E4:$AI4,Paramètres!$C$49) -> 0 | AO4: =COUNTIF($E4:$AI4,Paramètres!$C$50) -> 0 | AP4: =COUNTIF($E4:$AI4,Paramètres!$C$56) -> 0 | AQ4: =COUNTIF($E4:$AI4,Paramètres!$C$57) -> 0 | AR4: 0 | AS4: 0 | AT4: =($D$1-COUNTIF(E4:AI4,Paramètres!$C$62))*(CoAG2) -> 137.5652174 | AU4: -137.5652174 | AV4: 0 | AW4: 0 | AX4: 0 | AY4: 0
A5: =Paramètres!Q9 -> x | B5: =IF(A5="x",Paramètres!M9,"") -> -1582 | D5: =IF($A5="x",CONCATENATE(Paramètres!D9," ",Paramètres!C9," ",Paramètres!B9),"") -> Adj Christophe Agent_3 | AJ5: =COUNTIF($E5:$AI5,Paramètres!$C$43) -> 0 | AK5: =COUNTIF($E5:$AI5,Paramètres!$C$46) -> 0 | AL5: =COUNTIF($E5:$AI5,Paramètres!$C$47) -> 0 | AM5: =COUNTIF($E5:$AI5,Paramètres!$C$48) -> 0 | AN5: =COUNTIF($E5:$AI5,Paramètres!$C$49) -> 0 | AO5: =COUNTIF($E5:$AI5,Paramètres!$C$50) -> 0 | AP5: =COUNTIF($E5:$AI5,Paramètres!$C$56) -> 0 | AQ5: =COUNTIF($E5:$AI5,Paramètres!$C$57) -> 0 | AR5: 0 | AS5: 0 | AT5: =($D$1-COUNTIF(E5:AI5,Paramètres!$C$62))*(CoAG3) -> 137.5652174 | AU5: -137.5652174 | AV5: 0 | AW5: 0 | AX5: 0 | AY5: 0
A6: =Paramètres!Q10 -> 0 | B6: =IF(A6="x",Paramètres!M10,"") ->  | D6: =IF($A6="x",CONCATENATE(Paramètres!D10," ",Paramètres!C10," ",Paramètres!B10),"") -> 
A7: =Paramètres!Q11 -> x | B7: =IF(A7="x",Paramètres!M11,"") -> -1582 | D7: =IF($A7="x",CONCATENATE(Paramètres!D11," ",Paramètres!C11," ",Paramètres!B11),"") -> Sch Ludovic Agent_5 | AJ7: =COUNTIF($E7:$AI7,Paramètres!$C$43) -> 0 | AK7: =COUNTIF($E7:$AI7,Paramètres!$C$46) -> 0 | AL7: =COUNTIF($E7:$AI7,Paramètres!$C$47) -> 0 | AM7: =COUNTIF($E7:$AI7,Paramètres!$C$48) -> 0 | AN7: =COUNTIF($E7:$AI7,Paramètres!$C$49) -> 0 | AO7: =COUNTIF($E7:$AI7,Paramètres!$C$50) -> 0 | AP7: =COUNTIF($E7:$AI7,Paramètres!$C$56) -> 0 | AQ7: =COUNTIF($E7:$AI7,Paramètres!$C$57) -> 0 | AR7: 0 | AS7: 0 | AT7: =($D$1-COUNTIF(E7:AI7,Paramètres!$C$62))*(CoAG4) ->  | AV7: 0 | AW7: 0 | AX7: 0 | AY7: 0
A8: =Paramètres!Q12 -> x | B8: =IF(A8="x",Paramètres!M12,"") -> -1582 | D8: =IF($A8="x",CONCATENATE(Paramètres!D12," ",Paramètres!C12," ",Paramètres!B12),"") -> Sch Franck Agent_6 | AJ8: =COUNTIF(E8:AI8,Paramètres!$C$43) -> 0 | AK8: =COUNTIF(F8:AJ8,Paramètres!$C$46) -> 0 | AL8: =COUNTIF(G8:AK8,Paramètres!$C$47) -> 0 | AM8: =COUNTIF($E8:$AI8,Paramètres!$C$48) -> 0 | AN8: =COUNTIF($E8:$AI8,Paramètres!$C$49) -> 0 | AO8: =COUNTIF($E8:$AI8,Paramètres!$C$50) -> 0 | AP8: =COUNTIF($E8:$AI8,Paramètres!$C$56) -> 0 | AQ8: =COUNTIF($E8:$AI8,Paramètres!$C$57) -> 0 | AR8: 0 | AS8: 0 | AT8: =($D$1-COUNTIF(E8:AI8,Paramètres!$C$62))*(CoAG5) -> 137.5652174 | AU8: -137.5652174 | AV8: 0 | AW8: 0 | AX8: 0 | AY8: 0
A9: =Paramètres!Q13 -> x | B9: =IF(A9="x",Paramètres!M13,"") -> -1265.6 | D9: =IF($A9="x",CONCATENATE(Paramètres!D13," ",Paramètres!C13," ",Paramètres!B13),"") -> Sch Delphine Agent_7 | AJ9: =COUNTIF(E9:AI9,Paramètres!$C$43) -> 0 | AK9: =COUNTIF(F9:AJ9,Paramètres!$C$46) -> 0 | AL9: =COUNTIF(G9:AK9,Paramètres!$C$47) -> 0 | AM9: =COUNTIF($E9:$AI9,Paramètres!$C$48) -> 0 | AN9: =COUNTIF($E9:$AI9,Paramètres!$C$49) -> 0 | AO9: =COUNTIF($E9:$AI9,Paramètres!$C$50) -> 0 | AP9: =COUNTIF($E9:$AI9,Paramètres!$C$56) -> 0 | AQ9: =COUNTIF($E9:$AI9,Paramètres!$C$57) -> 0 | AR9: 0 | AS9: 0 | AT9: =($D$1-COUNTIF(E9:AI9,Paramètres!$C$62))*(CoAG6) -> 137.5652174 | AU9: -137.5652174 | AV9: 0 | AW9: 0 | AX9: 0 | AY9: 0
A10: =Paramètres!Q14 -> x | B10: =IF(A10="x",Paramètres!M14,"") -> -1393 | D10: =IF($A10="x",CONCATENATE(Paramètres!D14," ",Paramètres!C14," ",Paramètres!B14),"") -> Sch Jean-Philippe Agent_8
A11: =Paramètres!Q15 -> 0 | B11: =IF(A11="x",Paramètres!M15,"") ->  | D11: =IF($A11="x",CONCATENATE(Paramètres!D15," ",Paramètres!C15," ",Paramètres!B15),"") ->  | AJ11: =COUNTIF(E11:AI11,Paramètres!$C$43) -> 0 | AK11: =COUNTIF(F11:AI11,Paramètres!$C$46) -> 0 | AL11: =COUNTIF(G11:AK11,Paramètres!$C$47) -> 0 | AM11: =COUNTIF($E11:$AI11,Paramètres!$C$48) -> 0 | AN11: =COUNTIF($E11:$AI11,Paramètres!$C$49) -> 0 | AO11: =COUNTIF($E11:$AI11,Paramètres!$C$50) -> 0 | AP11: =COUNTIF($E11:$AI11,Paramètres!$C$56) -> 0 | AQ11: =COUNTIF($E11:$AI11,Paramètres!$C$57) -> 0 | AR11: 0 | AS11: 0 | AT11: =($D$1-COUNTIF(E11:AI11,Paramètres!$C$62))*(CoAG7) -> 110.0521739 | AU11: -110.0521739 | AV11: 0 | AW11: 0 | AX11: 0 | AY11: 0
A12: =Paramètres!Q16 -> x | B12: =IF(A12="x",Paramètres!M16,"") -> -1582 | D12: =IF($A12="x",CONCATENATE(Paramètres!D16," ",Paramètres!C16," ",Paramètres!B16),"") -> Sgt Raymond Agent_10 | AJ12: =COUNTIF(E12:AI12,Paramètres!$C$43) -> 0 | AK12: =COUNTIF(F12:AJ12,Paramètres!$C$46) -> 0 | AL12: =COUNTIF(G12:AK12,Paramètres!$C$47) -> 0 | AM12: =COUNTIF($E12:$AI12,Paramètres!$C$48) -> 0 | AN12: =COUNTIF($E12:$AI12,Paramètres!$C$49) -> 0 | AO12: =COUNTIF($E12:$AI12,Paramètres!$C$50) -> 0 | AP12: =COUNTIF($E12:$AI12,Paramètres!$C$56) -> 0 | AQ12: =COUNTIF($E12:$AI12,Paramètres!$C$57) -> 0 | AR12: 0 | AS12: 0 | AT12: =($D$1-COUNTIF(E12:AI12,Paramètres!$C$62))*(CoAG8) -> 137.5652174 | AU12: -137.5652174 | AV12: 0 | AW12: 0 | AX12: 0 | AY12: 0
A13: =Paramètres!Q17 -> x | B13: =IF(A13="x",Paramètres!M17,"") -> -1582 | D13: =IF($A13="x",CONCATENATE(Paramètres!D17," ",Paramètres!C17," ",Paramètres!B17),"") -> Sgt Julien Agent_11 | AJ13: =COUNTIF(E13:AI13,Paramètres!$C$43) -> 0 | AK13: =COUNTIF(F13:AJ13,Paramètres!$C$46) -> 0 | AL13: =COUNTIF(G13:AK13,Paramètres!$C$47) -> 0 | AM13: =COUNTIF($E13:$AI13,Paramètres!$C$48) -> 0 | AN13: =COUNTIF($E13:$AI13,Paramètres!$C$49) -> 0 | AO13: =COUNTIF($E13:$AI13,Paramètres!$C$50) -> 0 | AP13: =COUNTIF($E13:$AI13,Paramètres!$C$56) -> 0 | AQ13: =COUNTIF($E13:$AI13,Paramètres!$C$57) -> 0 | AR13: 0 | AS13: 0 | AT13: =($D$1-COUNTIF(E13:AI13,Paramètres!$C$62))*(CoAG9) ->  | AV13: 0 | AW13: 0 | AX13: 0 | AY13: 0
A14: =Paramètres!Q18 -> x | B14: =IF(A14="x",Paramètres!M18,"") -> -1582 | D14: =IF($A14="x",CONCATENATE(Paramètres!D18," ",Paramètres!C18," ",Paramètres!B18),"") -> Cch Cyril Agent_12 | AJ14: =COUNTIF(E14:AI14,Paramètres!$C$43) -> 0 | AK14: =COUNTIF(F14:AJ14,Paramètres!$C$46) -> 0 | AL14: =COUNTIF(G14:AK14,Paramètres!$C$47) -> 0 | AM14: =COUNTIF($E14:$AI14,Paramètres!$C$48) -> 0 | AN14: =COUNTIF($E14:$AI14,Paramètres!$C$49) -> 0 | AO14: =COUNTIF($E14:$AI14,Paramètres!$C$50) -> 0 | AP14: =COUNTIF($E14:$AI14,Paramètres!$C$56) -> 0 | AQ14: =COUNTIF($E14:$AI14,Paramètres!$C$57) -> 0 | AR14: 0 | AS14: 0 | AT14: =($D$1-COUNTIF(E14:AI14,Paramètres!$C$62))*(CoAG1) -> 137.5652174 | AU14: -137.5652174 | AV14: 0 | AW14: 0 | AX14: 0 | AY14: 0
A15: =Paramètres!Q19 -> x | B15: =IF(A15="x",Paramètres!M19,"") -> -1582 | D15: =IF($A15="x",CONCATENATE(Paramètres!D19," ",Paramètres!C19," ",Paramètres!B19),"") -> Cpl Stéphane Agent_13 | AJ15: =COUNTIF(E15:AI15,Paramètres!$C$43) -> 0 | AK15: =COUNTIF(F15:AJ15,Paramètres!$C$46) -> 0 | AL15: =COUNTIF(G15:AK15,Paramètres!$C$47) -> 0 | AM15: =COUNTIF($E15:$AI15,Paramètres!$C$48) -> 0 | AN15: =COUNTIF($E15:$AI15,Paramètres!$C$49) -> 0 | AO15: =COUNTIF($E15:$AI15,Paramètres!$C$50) -> 0 | AP15: =COUNTIF($E15:$AI15,Paramètres!$C$56) -> 0 | AQ15: =COUNTIF($E15:$AI15,Paramètres!$C$57) -> 0 | AR15: 0 | AS15: 0 | AT15: =($D$1-COUNTIF(E15:AI15,Paramètres!$C$62))*(CoAG10) -> 137.5652174 | AU15: -137.5652174 | AV15: 0 | AW15: 0 | AX15: 0 | AY15: 0
A16: =Paramètres!Q20 -> x | B16: =IF(A16="x",Paramètres!M20,"") -> -1582 | D16: =IF($A16="x",CONCATENATE(Paramètres!D20," ",Paramètres!C20," ",Paramètres!B20),"") -> Sap 1cl Nicolas Agent_14
A17: =Paramètres!Q21 -> 0 | B17: =IF(A17="x",Paramètres!M21,"") ->  | D17: =IF($A17="x",CONCATENATE(Paramètres!D21," ",Paramètres!C21," ",Paramètres!B21),"") -> 
A18: =Paramètres!Q22 -> 0 | B18: =IF(A18="x",Paramètres!M22,"") ->  | D18: =IF($A18="x",CONCATENATE(Paramètres!D22," ",Paramètres!C22," ",Paramètres!B22),"") -> 
A19: =Paramètres!Q23 -> 0 | B19: =IF(A19="x",Paramètres!M23,"") ->  | D19: =IF($A19="x",CONCATENATE(Paramètres!D23," ",Paramètres!C23," ",Paramètres!B23),"") -> 
A20: =Paramètres!Q24 -> 0 | B20: =IF(A20="x",Paramètres!M24,"") ->  | D20: =IF($A20="x",CONCATENATE(Paramètres!D24," ",Paramètres!C24," ",Paramètres!B24),"") -> 
C21: Ast | D21: Adc Jean-Marc RICHIER
C22: Conv. | D22: Adc Yves GUIRAUD
D23: Cch Jean-Louis TOCHON
D24: Sgt Emile MONTERO
C25: Renfort | AJ25: =COUNTIF(E25:AI25,Paramètres!$C$43) -> 0
AJ26: =COUNTIF(E26:AI26,Paramètres!$C$43) -> 0
AJ27: =COUNTIF(E27:AI27,Paramètres!$C$43) -> 0
AJ28: =COUNTIF(E28:AI28,Paramètres!$C$43) -> 0
AJ29: =COUNTIF(E29:AI29,Paramètres!$C$43) -> 0
AJ30: =COUNTIF(E30:AI30,Paramètres!$C$43) -> 0
AJ31: =COUNTIF(E31:AI31,Paramètres!$C$43) -> 0
AJ32: =COUNTIF(E32:AI32,Paramètres!$C$43) -> 0
AJ33: =COUNTIF(E33:AI33,Paramètres!$C$43) -> 0
AJ35: =COUNTIF(E35:AI35,Paramètres!$C$43) -> 0
AJ36: =COUNTIF(E36:AI36,Paramètres!$C$43) -> 0
AJ37: =COUNTIF(E37:AI37,Paramètres!$C$43) -> 0
AJ38: =COUNTIF(E38:AI38,Paramètres!$C$43) -> 0
AJ39: =COUNTIF(E39:AI39,Paramètres!$C$43) -> 0
AJ40: =COUNTIF(E40:AI40,Paramètres!$C$43) -> 0
AJ43: =COUNTIF(E43:AI43,Paramètres!$C$43) -> 0
D44: =Paramètres!B43 -> Garde | E44: =(COUNTIF(E$3:E$43,Paramètres!$C$43))+(COUNTIF(E$3:E$43,Paramètres!$C$45))+E45 -> 0 | F44: =(COUNTIF(F$3:F$43,Paramètres!$C$43))+(COUNTIF(F$3:F$43,Paramètres!$C$45))+F45 -> 0 | G44: =(COUNTIF(G$3:G$43,Paramètres!$C$43))+(COUNTIF(G$3:G$43,Paramètres!$C$45))+G45 -> 0 | H44: =(COUNTIF(H$3:H$43,Paramètres!$C$43))+(COUNTIF(H$3:H$43,Paramètres!$C$45))+H45 -> 0 | I44: =(COUNTIF(I$3:I$43,Paramètres!$C$43))+(COUNTIF(I$3:I$43,Paramètres!$C$45))+I45 -> 0 | J44: =(COUNTIF(J$3:J$43,Paramètres!$C$43))+(COUNTIF(J$3:J$43,Paramètres!$C$45))+J45 -> 0 | K44: =(COUNTIF(K$3:K$43,Paramètres!$C$43))+(COUNTIF(K$3:K$43,Paramètres!$C$45))+K45 -> 0 | L44: =(COUNTIF(L$3:L$43,Paramètres!$C$43))+(COUNTIF(L$3:L$43,Paramètres!$C$45))+L45 -> 0 | M44: =(COUNTIF(M$3:M$43,Paramètres!$C$43))+(COUNTIF(M$3:M$43,Paramètres!$C$45))+M45 -> 0 | N44: =(COUNTIF(N$3:N$43,Paramètres!$C$43))+(COUNTIF(N$3:N$43,Paramètres!$C$45))+N45 -> 0 | O44: =(COUNTIF(O$3:O$43,Paramètres!$C$43))+(COUNTIF(O$3:O$43,Paramètres!$C$45))+O45 -> 0 | P44: =(COUNTIF(P$3:P$43,Paramètres!$C$43))+(COUNTIF(P$3:P$43,Paramètres!$C$45))+P45 -> 0 | Q44: =(COUNTIF(Q$3:Q$43,Paramètres!$C$43))+(COUNTIF(Q$3:Q$43,Paramètres!$C$45))+Q45 -> 0 | R44: =(COUNTIF(R$3:R$43,Paramètres!$C$43))+(COUNTIF(R$3:R$43,Paramètres!$C$45))+R45 -> 0 | S44: =(COUNTIF(S$3:S$43,Paramètres!$C$43))+(COUNTIF(S$3:S$43,Paramètres!$C$45))+S45 -> 0 | T44: =(COUNTIF(T$3:T$43,Paramètres!$C$43))+(COUNTIF(T$3:T$43,Paramètres!$C$45))+T45 -> 0 | U44: =(COUNTIF(U$3:U$43,Paramètres!$C$43))+(COUNTIF(U$3:U$43,Paramètres!$C$45))+U45 -> 0 | V44: =(COUNTIF(V$3:V$43,Paramètres!$C$43))+(COUNTIF(V$3:V$43,Paramètres!$C$45))+V45 -> 0 | W44: =(COUNTIF(W$3:W$43,Paramètres!$C$43))+(COUNTIF(W$3:W$43,Paramètres!$C$45))+W45 -> 0 | X44: =(COUNTIF(X$3:X$43,Paramètres!$C$43))+(COUNTIF(X$3:X$43,Paramètres!$C$45))+X45 -> 0 | Y44: =(COUNTIF(Y$3:Y$43,Paramètres!$C$43))+(COUNTIF(Y$3:Y$43,Paramètres!$C$45))+Y45 -> 0 | Z44: =(COUNTIF(Z$3:Z$43,Paramètres!$C$43))+(COUNTIF(Z$3:Z$43,Paramètres!$C$45))+Z45 -> 0 | AA44: =(COUNTIF(AA$3:AA$43,Paramètres!$C$43))+(COUNTIF(AA$3:AA$43,Paramètres!$C$45))+AA45 -> 0 | AB44: =(COUNTIF(AB$3:AB$43,Paramètres!$C$43))+(COUNTIF(AB$3:AB$43,Paramètres!$C$45))+AB45 -> 0 | AC44: =(COUNTIF(AC$3:AC$43,Paramètres!$C$43))+(COUNTIF(AC$3:AC$43,Paramètres!$C$45))+AC45 -> 0 | AD44: =(COUNTIF(AD$3:AD$43,Paramètres!$C$43))+(COUNTIF(AD$3:AD$43,Paramètres!$C$45))+AD45 -> 0 | AE44: =(COUNTIF(AE$3:AE$43,Paramètres!$C$43))+(COUNTIF(AE$3:AE$43,Paramètres!$C$45))+AE45 -> 0 | AF44: =(COUNTIF(AF$3:AF$43,Paramètres!$C$43))+(COUNTIF(AF$3:AF$43,Paramètres!$C$45))+AF45 -> 0 | AG44: =(COUNTIF(AG$3:AG$43,Paramètres!$C$43))+(COUNTIF(AG$3:AG$43,Paramètres!$C$45))+AG45 -> 0 | AH44: =(COUNTIF(AH$3:AH$43,Paramètres!$C$43))+(COUNTIF(AH$3:AH$43,Paramètres!$C$45))+AH45 -> 0 | AI44: =(COUNTIF(AI$3:AI$43,Paramètres!$C$43))+(COUNTIF(AI$3:AI$43,Paramètres!$C$45))+AI45 -> 0 | AJ44: =(COUNTIF(AJ$3:AJ$43,Paramètres!$C$43))+(COUNTIF(AJ$3:AJ$43,Paramètres!$C$45))+AJ45 -> 0 | AK44: =(COUNTIF(AK$3:AK$43,Paramètres!$C$43))+(COUNTIF(AK$3:AK$43,Paramètres!$C$45))+AK45 -> 0 | AL44: =(COUNTIF(AL$3:AL$43,Paramètres!$C$43))+(COUNTIF(AL$3:AL$43,Paramètres!$C$45))+AL45 -> 0 | AM44: =(COUNTIF(AM$3:AM$43,Paramètres!$C$43))+(COUNTIF(AM$3:AM$43,Paramètres!$C$45))+AM45 -> 0 | AN44: =(COUNTIF(AN$3:AN$43,Paramètres!$C$43))+(COUNTIF(AN$3:AN$43,Paramètres!$C$45))+AN45 -> 0 | AO44: =(COUNTIF(AO$3:AO$43,Paramètres!$C$43))+(COUNTIF(AO$3:AO$43,Paramètres!$C$45))+AO45 -> 0 | AP44: =(COUNTIF(AP$3:AP$43,Paramètres!$C$43))+(COUNTIF(AP$3:AP$43,Paramètres!$C$45))+AP45 -> 0 | AQ44: =(COUNTIF(AQ$3:AQ$43,Paramètres!$C$43))+(COUNTIF(AQ$3:AQ$43,Paramètres!$C$45))+AQ45 -> 0 | AR44: =(COUNTIF(AR$3:AR$43,Paramètres!$C$43))+(COUNTIF(AR$3:AR$43,Paramètres!$C$45))+AR45 -> 0 | AS44: =(COUNTIF(AS$3:AS$43,Paramètres!$C$43))+(COUNTIF(AS$3:AS$43,Paramètres!$C$45))+AS45 -> 0 | AT44: =(COUNTIF(AT$3:AT$43,Paramètres!$C$43))+(COUNTIF(AT$3:AT$43,Paramètres!$C$45))+AT45 -> 0 | AU44: =(COUNTIF(AU$3:AU$43,Paramètres!$C$43))+(COUNTIF(AU$3:AU$43,Paramètres!$C$45))+AU45 -> 0 | AV44: =(COUNTIF(AV$3:AV$43,Paramètres!$C$43))+(COUNTIF(AV$3:AV$43,Paramètres!$C$45))+AV45 -> 0 | AW44: =(COUNTIF(AW$3:AW$43,Paramètres!$C$43))+(COUNTIF(AW$3:AW$43,Paramètres!$C$45))+AW45 -> 0 | AX44: =(COUNTIF(AX$3:AX$43,Paramètres!$C$43))+(COUNTIF(AX$3:AX$43,Paramètres!$C$45))+AX45 -> 0 | AY44: =(COUNTIF(AY$3:AY$43,Paramètres!$C$43))+(COUNTIF(AY$3:AY$43,Paramètres!$C$45))+AY45 -> 0
D45: Chef de garde | E45: =COUNTIF(E$3:E$43,"Cdg") -> 0 | F45: 0 | G45: 0 | H45: 0 | I45: 0 | J45: 0 | K45: 0 | L45: 0 | M45: 0 | N45: 0 | O45: 0 | P45: 0 | Q45: 0 | R45: 0 | S45: 0 | T45: 0 | U45: 0 | V45: 0 | W45: 0 | X45: 0 | Y45: 0 | Z45: 0 | AA45: 0 | AB45: 0 | AC45: 0 | AD45: 0 | AE45: 0 | AF45: 0 | AG45: 0 | AH45: 0 | AI45: 0
D46: SPP | E46: =COUNTIF(E$3:E$30,Paramètres!$C$43) -> 0 | F46: =COUNTIF(F$3:F$30,Paramètres!$C$43) -> 0 | G46: =COUNTIF(G$3:G$30,Paramètres!$C$43) -> 0 | H46: =COUNTIF(H$3:H$30,Paramètres!$C$43) -> 0 | I46: =COUNTIF(I$3:I$30,Paramètres!$C$43) -> 0 | J46: =COUNTIF(J$3:J$30,Paramètres!$C$43) -> 0 | K46: =COUNTIF(K$3:K$30,Paramètres!$C$43) -> 0 | L46: =COUNTIF(L$3:L$30,Paramètres!$C$43) -> 0 | M46: =COUNTIF(M$3:M$30,Paramètres!$C$43) -> 0 | N46: =COUNTIF(N$3:N$30,Paramètres!$C$43) -> 0 | O46: =COUNTIF(O$3:O$30,Paramètres!$C$43) -> 0 | P46: =COUNTIF(P$3:P$30,Paramètres!$C$43) -> 0 | Q46: =COUNTIF(Q$3:Q$30,Paramètres!$C$43) -> 0 | R46: =COUNTIF(R$3:R$30,Paramètres!$C$43) -> 0 | S46: =COUNTIF(S$3:S$30,Paramètres!$C$43) -> 0 | T46: =COUNTIF(T$3:T$30,Paramètres!$C$43) -> 0 | U46: =COUNTIF(U$3:U$30,Paramètres!$C$43) -> 0 | V46: =COUNTIF(V$3:V$30,Paramètres!$C$43) -> 0 | W46: =COUNTIF(W$3:W$30,Paramètres!$C$43) -> 0 | X46: =COUNTIF(X$3:X$30,Paramètres!$C$43) -> 0 | Y46: =COUNTIF(Y$3:Y$30,Paramètres!$C$43) -> 0 | Z46: =COUNTIF(Z$3:Z$30,Paramètres!$C$43) -> 0 | AA46: =COUNTIF(AA$3:AA$30,Paramètres!$C$43) -> 0 | AB46: =COUNTIF(AB$3:AB$30,Paramètres!$C$43) -> 0 | AC46: =COUNTIF(AC$3:AC$30,Paramètres!$C$43) -> 0 | AD46: =COUNTIF(AD$3:AD$30,Paramètres!$C$43) -> 0 | AE46: =COUNTIF(AE$3:AE$30,Paramètres!$C$43) -> 0 | AF46: =COUNTIF(AF$3:AF$30,Paramètres!$C$43) -> 0 | AG46: =COUNTIF(AG$3:AG$30,Paramètres!$C$43) -> 0 | AH46: =COUNTIF(AH$3:AH$30,Paramètres!$C$43) -> 0 | AI46: =COUNTIF(AI$3:AI$30,Paramètres!$C$43) -> 0 | AJ46: =SUM(E46:AI46) -> 0
D47: SPV | E47: =COUNTIF(E$31:E$43,Paramètres!$C$43) -> 0 | F47: =COUNTIF(F$31:F$43,Paramètres!$C$43) -> 0 | G47: =COUNTIF(G$31:G$43,Paramètres!$C$43) -> 0 | H47: =COUNTIF(H$31:H$43,Paramètres!$C$43) -> 0 | I47: =COUNTIF(I$31:I$43,Paramètres!$C$43) -> 0 | J47: =COUNTIF(J$31:J$43,Paramètres!$C$43) -> 0 | K47: =COUNTIF(K$31:K$43,Paramètres!$C$43) -> 0 | L47: =COUNTIF(L$31:L$43,Paramètres!$C$43) -> 0 | M47: =COUNTIF(M$31:M$43,Paramètres!$C$43) -> 0 | N47: =COUNTIF(N$31:N$43,Paramètres!$C$43) -> 0 | O47: =COUNTIF(O$31:O$43,Paramètres!$C$43) -> 0 | P47: =COUNTIF(P$31:P$43,Paramètres!$C$43) -> 0 | Q47: =COUNTIF(Q$31:Q$43,Paramètres!$C$43) -> 0 | R47: =COUNTIF(R$31:R$43,Paramètres!$C$43) -> 0 | S47: =COUNTIF(S$31:S$43,Paramètres!$C$43) -> 0 | T47: =COUNTIF(T$31:T$43,Paramètres!$C$43) -> 0 | U47: =COUNTIF(U$31:U$43,Paramètres!$C$43) -> 0 | V47: =COUNTIF(V$31:V$43,Paramètres!$C$43) -> 0 | W47: =COUNTIF(W$31:W$43,Paramètres!$C$43) -> 0 | X47: =COUNTIF(X$31:X$43,Paramètres!$C$43) -> 0 | Y47: =COUNTIF(Y$31:Y$43,Paramètres!$C$43) -> 0 | Z47: =COUNTIF(Z$31:Z$43,Paramètres!$C$43) -> 0 | AA47: =COUNTIF(AA$31:AA$43,Paramètres!$C$43) -> 0 | AB47: =COUNTIF(AB$31:AB$43,Paramètres!$C$43) -> 0 | AC47: =COUNTIF(AC$31:AC$43,Paramètres!$C$43) -> 0 | AD47: =COUNTIF(AD$31:AD$43,Paramètres!$C$43) -> 0 | AE47: =COUNTIF(AE$31:AE$43,Paramètres!$C$43) -> 0 | AF47: =COUNTIF(AF$31:AF$43,Paramètres!$C$43) -> 0 | AG47: =COUNTIF(AG$31:AG$43,Paramètres!$C$43) -> 0 | AH47: =COUNTIF(AH$31:AH$43,Paramètres!$C$43) -> 0 | AI47: =COUNTIF(AI$31:AI$43,Paramètres!$C$43) -> 0 | AJ47: =SUM(E47:AI47) -> 0
D48: Chef de groupe
D49: =Paramètres!B46 -> Formation Stagiaire | E49: =COUNTIF(E$3:E$20,Paramètres!$C$46) -> 0 | F49: =COUNTIF(F$3:F$20,Paramètres!$C$46) -> 0 | G49: =COUNTIF(G$3:G$20,Paramètres!$C$46) -> 0 | H49: =COUNTIF(H$3:H$20,Paramètres!$C$46) -> 0 | I49: =COUNTIF(I$3:I$20,Paramètres!$C$46) -> 0 | J49: =COUNTIF(J$3:J$20,Paramètres!$C$46) -> 0 | K49: =COUNTIF(K$3:K$20,Paramètres!$C$46) -> 0 | L49: =COUNTIF(L$3:L$20,Paramètres!$C$46) -> 0 | M49: =COUNTIF(M$3:M$20,Paramètres!$C$46) -> 0 | N49: =COUNTIF(N$3:N$20,Paramètres!$C$46) -> 0 | O49: =COUNTIF(O$3:O$20,Paramètres!$C$46) -> 0 | P49: =COUNTIF(P$3:P$20,Paramètres!$C$46) -> 0 | Q49: =COUNTIF(Q$3:Q$20,Paramètres!$C$46) -> 0 | R49: =COUNTIF(R$3:R$20,Paramètres!$C$46) -> 0 | S49: =COUNTIF(S$3:S$20,Paramètres!$C$46) -> 0 | T49: =COUNTIF(T$3:T$20,Paramètres!$C$46) -> 0 | U49: =COUNTIF(U$3:U$20,Paramètres!$C$46) -> 0 | V49: =COUNTIF(V$3:V$20,Paramètres!$C$46) -> 0 | W49: =COUNTIF(W$3:W$20,Paramètres!$C$46) -> 0 | X49: =COUNTIF(X$3:X$20,Paramètres!$C$46) -> 0 | Y49: =COUNTIF(Y$3:Y$20,Paramètres!$C$46) -> 0 | Z49: =COUNTIF(Z$3:Z$20,Paramètres!$C$46) -> 0 | AA49: =COUNTIF(AA$3:AA$20,Paramètres!$C$46) -> 0 | AB49: =COUNTIF(AB$3:AB$20,Paramètres!$C$46) -> 0 | AC49: =COUNTIF(AC$3:AC$20,Paramètres!$C$46) -> 0 | AD49: =COUNTIF(AD$3:AD$20,Paramètres!$C$46) -> 0 | AE49: =COUNTIF(AE$3:AE$20,Paramètres!$C$46) -> 0 | AF49: =COUNTIF(AF$3:AF$20,Paramètres!$C$46) -> 0 | AG49: =COUNTIF(AG$3:AG$20,Paramètres!$C$46) -> 0 | AH49: =COUNTIF(AH$3:AH$20,Paramètres!$C$46) -> 0 | AI49: =COUNTIF(AI$3:AI$20,Paramètres!$C$46) -> 0 | AJ49: =SUM(E49:AI49) -> 0
D50: =Paramètres!B47 -> Formation formateur | E50: =COUNTIF(E$3:E$20,Paramètres!$C$47) -> 0 | F50: =COUNTIF(F$3:F$20,Paramètres!$C$47) -> 0 | G50: =COUNTIF(G$3:G$20,Paramètres!$C$47) -> 0 | H50: =COUNTIF(H$3:H$20,Paramètres!$C$47) -> 0 | I50: =COUNTIF(I$3:I$20,Paramètres!$C$47) -> 0 | J50: =COUNTIF(J$3:J$20,Paramètres!$C$47) -> 0 | K50: =COUNTIF(K$3:K$20,Paramètres!$C$47) -> 0 | L50: =COUNTIF(L$3:L$20,Paramètres!$C$47) -> 0 | M50: =COUNTIF(M$3:M$20,Paramètres!$C$47) -> 0 | N50: =COUNTIF(N$3:N$20,Paramètres!$C$47) -> 0 | O50: =COUNTIF(O$3:O$20,Paramètres!$C$47) -> 0 | P50: =COUNTIF(P$3:P$20,Paramètres!$C$47) -> 0 | Q50: =COUNTIF(Q$3:Q$20,Paramètres!$C$47) -> 0 | R50: =COUNTIF(R$3:R$20,Paramètres!$C$47) -> 0 | S50: =COUNTIF(S$3:S$20,Paramètres!$C$47) -> 0 | T50: =COUNTIF(T$3:T$20,Paramètres!$C$47) -> 0 | U50: =COUNTIF(U$3:U$20,Paramètres!$C$47) -> 0 | V50: =COUNTIF(V$3:V$20,Paramètres!$C$47) -> 0 | W50: =COUNTIF(W$3:W$20,Paramètres!$C$47) -> 0 | X50: =COUNTIF(X$3:X$20,Paramètres!$C$47) -> 0 | Y50: =COUNTIF(Y$3:Y$20,Paramètres!$C$47) -> 0 | Z50: =COUNTIF(Z$3:Z$20,Paramètres!$C$47) -> 0 | AA50: =COUNTIF(AA$3:AA$20,Paramètres!$C$47) -> 0 | AB50: =COUNTIF(AB$3:AB$20,Paramètres!$C$47) -> 0 | AC50: =COUNTIF(AC$3:AC$20,Paramètres!$C$47) -> 0 | AD50: =COUNTIF(AD$3:AD$20,Paramètres!$C$47) -> 0 | AE50: =COUNTIF(AE$3:AE$20,Paramètres!$C$47) -> 0 | AF50: =COUNTIF(AF$3:AF$20,Paramètres!$C$47) -> 0 | AG50: =COUNTIF(AG$3:AG$20,Paramètres!$C$47) -> 0 | AH50: =COUNTIF(AH$3:AH$20,Paramètres!$C$47) -> 0 | AI50: =COUNTIF(AI$3:AI$20,Paramètres!$C$47) -> 0 | AJ50: 0
D51: =Paramètres!B48 -> Entrainement SD | E51: =COUNTIF(E$3:E$20,Paramètres!$C$48) -> 0 | F51: =COUNTIF(F$3:F$20,Paramètres!$C$48) -> 0 | G51: =COUNTIF(G$3:G$20,Paramètres!$C$48) -> 0 | H51: =COUNTIF(H$3:H$20,Paramètres!$C$48) -> 0 | I51: =COUNTIF(I$3:I$20,Paramètres!$C$48) -> 0 | J51: =COUNTIF(J$3:J$20,Paramètres!$C$48) -> 0 | K51: =COUNTIF(K$3:K$20,Paramètres!$C$48) -> 0 | L51: =COUNTIF(L$3:L$20,Paramètres!$C$48) -> 0 | M51: =COUNTIF(M$3:M$20,Paramètres!$C$48) -> 0 | N51: =COUNTIF(N$3:N$20,Paramètres!$C$48) -> 0 | O51: =COUNTIF(O$3:O$20,Paramètres!$C$48) -> 0 | P51: =COUNTIF(P$3:P$20,Paramètres!$C$48) -> 0 | Q51: =COUNTIF(Q$3:Q$20,Paramètres!$C$48) -> 0 | R51: =COUNTIF(R$3:R$20,Paramètres!$C$48) -> 0 | S51: =COUNTIF(S$3:S$20,Paramètres!$C$48) -> 0 | T51: =COUNTIF(T$3:T$20,Paramètres!$C$48) -> 0 | U51: =COUNTIF(U$3:U$20,Paramètres!$C$48) -> 0 | V51: =COUNTIF(V$3:V$20,Paramètres!$C$48) -> 0 | W51: =COUNTIF(W$3:W$20,Paramètres!$C$48) -> 0 | X51: =COUNTIF(X$3:X$20,Paramètres!$C$48) -> 0 | Y51: =COUNTIF(Y$3:Y$20,Paramètres!$C$48) -> 0 | Z51: =COUNTIF(Z$3:Z$20,Paramètres!$C$48) -> 0 | AA51: =COUNTIF(AA$3:AA$20,Paramètres!$C$48) -> 0 | AB51: =COUNTIF(AB$3:AB$20,Paramètres!$C$48) -> 0 | AC51: =COUNTIF(AC$3:AC$20,Paramètres!$C$48) -> 0 | AD51: =COUNTIF(AD$3:AD$20,Paramètres!$C$48) -> 0 | AE51: =COUNTIF(AE$3:AE$20,Paramètres!$C$48) -> 0 | AF51: =COUNTIF(AF$3:AF$20,Paramètres!$C$48) -> 0 | AG51: =COUNTIF(AG$3:AG$20,Paramètres!$C$48) -> 0 | AH51: =COUNTIF(AH$3:AH$20,Paramètres!$C$48) -> 0 | AI51: =COUNTIF(AI$3:AI$20,Paramètres!$C$48) -> 0 | AJ51: 0
D52: =Paramètres!B49 -> Entrainement EPIM | E52: =COUNTIF(E$3:E$20,Paramètres!$C$49) -> 0 | F52: =COUNTIF(F$3:F$20,Paramètres!$C$49) -> 0 | G52: =COUNTIF(G$3:G$20,Paramètres!$C$49) -> 0 | H52: =COUNTIF(H$3:H$20,Paramètres!$C$49) -> 0 | I52: =COUNTIF(I$3:I$20,Paramètres!$C$49) -> 0 | J52: =COUNTIF(J$3:J$20,Paramètres!$C$49) -> 0 | K52: =COUNTIF(K$3:K$20,Paramètres!$C$49) -> 0 | L52: =COUNTIF(L$3:L$20,Paramètres!$C$49) -> 0 | M52: =COUNTIF(M$3:M$20,Paramètres!$C$49) -> 0 | N52: =COUNTIF(N$3:N$20,Paramètres!$C$49) -> 0 | O52: =COUNTIF(O$3:O$20,Paramètres!$C$49) -> 0 | P52: =COUNTIF(P$3:P$20,Paramètres!$C$49) -> 0 | Q52: =COUNTIF(Q$3:Q$20,Paramètres!$C$49) -> 0 | R52: =COUNTIF(R$3:R$20,Paramètres!$C$49) -> 0 | S52: =COUNTIF(S$3:S$20,Paramètres!$C$49) -> 0 | T52: =COUNTIF(T$3:T$20,Paramètres!$C$49) -> 0 | U52: =COUNTIF(U$3:U$20,Paramètres!$C$49) -> 0 | V52: =COUNTIF(V$3:V$20,Paramètres!$C$49) -> 0 | W52: =COUNTIF(W$3:W$20,Paramètres!$C$49) -> 0 | X52: =COUNTIF(X$3:X$20,Paramètres!$C$49) -> 0 | Y52: =COUNTIF(Y$3:Y$20,Paramètres!$C$49) -> 0 | Z52: =COUNTIF(Z$3:Z$20,Paramètres!$C$49) -> 0 | AA52: =COUNTIF(AA$3:AA$20,Paramètres!$C$49) -> 0 | AB52: =COUNTIF(AB$3:AB$20,Paramètres!$C$49) -> 0 | AC52: =COUNTIF(AC$3:AC$20,Paramètres!$C$49) -> 0 | AD52: =COUNTIF(AD$3:AD$20,Paramètres!$C$49) -> 0 | AE52: =COUNTIF(AE$3:AE$20,Paramètres!$C$49) -> 0 | AF52: =COUNTIF(AF$3:AF$20,Paramètres!$C$49) -> 0 | AG52: =COUNTIF(AG$3:AG$20,Paramètres!$C$49) -> 0 | AH52: =COUNTIF(AH$3:AH$20,Paramètres!$C$49) -> 0 | AI52: =COUNTIF(AI$3:AI$20,Paramètres!$C$49) -> 0 | AJ52: 0
D53: =Paramètres!B50 -> Entrainement SAV | E53: =COUNTIF(E$3:E$20,Paramètres!$C$50) -> 0 | F53: =COUNTIF(F$3:F$20,Paramètres!$C$50) -> 0 | G53: =COUNTIF(G$3:G$20,Paramètres!$C$50) -> 0 | H53: =COUNTIF(H$3:H$20,Paramètres!$C$50) -> 0 | I53: =COUNTIF(I$3:I$20,Paramètres!$C$50) -> 0 | J53: =COUNTIF(J$3:J$20,Paramètres!$C$50) -> 0 | K53: =COUNTIF(K$3:K$20,Paramètres!$C$50) -> 0 | L53: =COUNTIF(L$3:L$20,Paramètres!$C$50) -> 0 | M53: =COUNTIF(M$3:M$20,Paramètres!$C$50) -> 0 | N53: =COUNTIF(N$3:N$20,Paramètres!$C$50) -> 0 | O53: =COUNTIF(O$3:O$20,Paramètres!$C$50) -> 0 | P53: =COUNTIF(P$3:P$20,Paramètres!$C$50) -> 0 | Q53: =COUNTIF(Q$3:Q$20,Paramètres!$C$50) -> 0 | R53: =COUNTIF(R$3:R$20,Paramètres!$C$50) -> 0 | S53: =COUNTIF(S$3:S$20,Paramètres!$C$50) -> 0 | T53: =COUNTIF(T$3:T$20,Paramètres!$C$50) -> 0 | U53: =COUNTIF(U$3:U$20,Paramètres!$C$50) -> 0 | V53: =COUNTIF(V$3:V$20,Paramètres!$C$50) -> 0 | W53: =COUNTIF(W$3:W$20,Paramètres!$C$50) -> 0 | X53: =COUNTIF(X$3:X$20,Paramètres!$C$50) -> 0 | Y53: =COUNTIF(Y$3:Y$20,Paramètres!$C$50) -> 0 | Z53: =COUNTIF(Z$3:Z$20,Paramètres!$C$50) -> 0 | AA53: =COUNTIF(AA$3:AA$20,Paramètres!$C$50) -> 0 | AB53: =COUNTIF(AB$3:AB$20,Paramètres!$C$50) -> 0 | AC53: =COUNTIF(AC$3:AC$20,Paramètres!$C$50) -> 0 | AD53: =COUNTIF(AD$3:AD$20,Paramètres!$C$50) -> 0 | AE53: =COUNTIF(AE$3:AE$20,Paramètres!$C$50) -> 0 | AF53: =COUNTIF(AF$3:AF$20,Paramètres!$C$50) -> 0 | AG53: =COUNTIF(AG$3:AG$20,Paramètres!$C$50) -> 0 | AH53: =COUNTIF(AH$3:AH$20,Paramètres!$C$50) -> 0 | AI53: =COUNTIF(AI$3:AI$20,Paramètres!$C$50) -> 0 | AJ53: 0
D54: =Paramètres!B56 -> Décharge Syndicale | E54: =COUNTIF(E$3:E$20,Paramètres!$C$56) -> 0 | F54: =COUNTIF(F$3:F$20,Paramètres!$C$56) -> 0 | G54: =COUNTIF(G$3:G$20,Paramètres!$C$56) -> 0 | H54: =COUNTIF(H$3:H$20,Paramètres!$C$56) -> 0 | I54: =COUNTIF(I$3:I$20,Paramètres!$C$56) -> 0 | J54: =COUNTIF(J$3:J$20,Paramètres!$C$56) -> 0 | K54: =COUNTIF(K$3:K$20,Paramètres!$C$56) -> 0 | L54: =COUNTIF(L$3:L$20,Paramètres!$C$56) -> 0 | M54: =COUNTIF(M$3:M$20,Paramètres!$C$56) -> 0 | N54: =COUNTIF(N$3:N$20,Paramètres!$C$56) -> 0 | O54: =COUNTIF(O$3:O$20,Paramètres!$C$56) -> 0 | P54: =COUNTIF(P$3:P$20,Paramètres!$C$56) -> 0 | Q54: =COUNTIF(Q$3:Q$20,Paramètres!$C$56) -> 0 | R54: =COUNTIF(R$3:R$20,Paramètres!$C$56) -> 0 | S54: =COUNTIF(S$3:S$20,Paramètres!$C$56) -> 0 | T54: =COUNTIF(T$3:T$20,Paramètres!$C$56) -> 0 | U54: =COUNTIF(U$3:U$20,Paramètres!$C$56) -> 0 | V54: =COUNTIF(V$3:V$20,Paramètres!$C$56) -> 0 | W54: =COUNTIF(W$3:W$20,Paramètres!$C$56) -> 0 | X54: =COUNTIF(X$3:X$20,Paramètres!$C$56) -> 0 | Y54: =COUNTIF(Y$3:Y$20,Paramètres!$C$56) -> 0 | Z54: =COUNTIF(Z$3:Z$20,Paramètres!$C$56) -> 0 | AA54: =COUNTIF(AA$3:AA$20,Paramètres!$C$56) -> 0 | AB54: =COUNTIF(AB$3:AB$20,Paramètres!$C$56) -> 0 | AC54: =COUNTIF(AC$3:AC$20,Paramètres!$C$56) -> 0 | AD54: =COUNTIF(AD$3:AD$20,Paramètres!$C$56) -> 0 | AE54: =COUNTIF(AE$3:AE$20,Paramètres!$C$56) -> 0 | AF54: =COUNTIF(AF$3:AF$20,Paramètres!$C$56) -> 0 | AG54: =COUNTIF(AG$3:AG$20,Paramètres!$C$56) -> 0 | AH54: =COUNTIF(AH$3:AH$20,Paramètres!$C$56) -> 0 | AI54: =COUNTIF(AI$3:AI$20,Paramètres!$C$56) -> 0 | AJ54: 0
D55: =Paramètres!B57 -> Autorisation Syndicale | E55: =COUNTIF(E$3:E$20,Paramètres!$C$57) -> 0 | F55: =COUNTIF(F$3:F$20,Paramètres!$C$57) -> 0 | G55: =COUNTIF(G$3:G$20,Paramètres!$C$57) -> 0 | H55: =COUNTIF(H$3:H$20,Paramètres!$C$57) -> 0 | I55: =COUNTIF(I$3:I$20,Paramètres!$C$57) -> 0 | J55: =COUNTIF(J$3:J$20,Paramètres!$C$57) -> 0 | K55: =COUNTIF(K$3:K$20,Paramètres!$C$57) -> 0 | L55: =COUNTIF(L$3:L$20,Paramètres!$C$57) -> 0 | M55: =COUNTIF(M$3:M$20,Paramètres!$C$57) -> 0 | N55: =COUNTIF(N$3:N$20,Paramètres!$C$57) -> 0 | O55: =COUNTIF(O$3:O$20,Paramètres!$C$57) -> 0 | P55: =COUNTIF(P$3:P$20,Paramètres!$C$57) -> 0 | Q55: =COUNTIF(Q$3:Q$20,Paramètres!$C$57) -> 0 | R55: =COUNTIF(R$3:R$20,Paramètres!$C$57) -> 0 | S55: =COUNTIF(S$3:S$20,Paramètres!$C$57) -> 0 | T55: =COUNTIF(T$3:T$20,Paramètres!$C$57) -> 0 | U55: =COUNTIF(U$3:U$20,Paramètres!$C$57) -> 0 | V55: =COUNTIF(V$3:V$20,Paramètres!$C$57) -> 0 | W55: =COUNTIF(W$3:W$20,Paramètres!$C$57) -> 0 | X55: =COUNTIF(X$3:X$20,Paramètres!$C$57) -> 0 | Y55: =COUNTIF(Y$3:Y$20,Paramètres!$C$57) -> 0 | Z55: =COUNTIF(Z$3:Z$20,Paramètres!$C$57) -> 0 | AA55: =COUNTIF(AA$3:AA$20,Paramètres!$C$57) -> 0 | AB55: =COUNTIF(AB$3:AB$20,Paramètres!$C$57) -> 0 | AC55: =COUNTIF(AC$3:AC$20,Paramètres!$C$57) -> 0 | AD55: =COUNTIF(AD$3:AD$20,Paramètres!$C$57) -> 0 | AE55: =COUNTIF(AE$3:AE$20,Paramètres!$C$57) -> 0 | AF55: =COUNTIF(AF$3:AF$20,Paramètres!$C$57) -> 0 | AG55: =COUNTIF(AG$3:AG$20,Paramètres!$C$57) -> 0 | AH55: =COUNTIF(AH$3:AH$20,Paramètres!$C$57) -> 0 | AI55: =COUNTIF(AI$3:AI$20,Paramètres!$C$57) -> 0 | AJ55: 0
D56: =Paramètres!B58 -> GOC | E56: =COUNTIF(E$3:E$20,Paramètres!$C$58) -> 0 | F56: =COUNTIF(F$3:F$20,Paramètres!$C$58) -> 0 | G56: =COUNTIF(G$3:G$20,Paramètres!$C$58) -> 0 | H56: =COUNTIF(H$3:H$20,Paramètres!$C$58) -> 0 | I56: =COUNTIF(I$3:I$20,Paramètres!$C$58) -> 0 | J56: =COUNTIF(J$3:J$20,Paramètres!$C$58) -> 0 | K56: =COUNTIF(K$3:K$20,Paramètres!$C$58) -> 0 | L56: =COUNTIF(L$3:L$20,Paramètres!$C$58) -> 0 | M56: =COUNTIF(M$3:M$20,Paramètres!$C$58) -> 0 | N56: =COUNTIF(N$3:N$20,Paramètres!$C$58) -> 0 | O56: =COUNTIF(O$3:O$20,Paramètres!$C$58) -> 0 | P56: =COUNTIF(P$3:P$20,Paramètres!$C$58) -> 0 | Q56: =COUNTIF(Q$3:Q$20,Paramètres!$C$58) -> 0 | R56: =COUNTIF(R$3:R$20,Paramètres!$C$58) -> 0 | S56: =COUNTIF(S$3:S$20,Paramètres!$C$58) -> 0 | T56: =COUNTIF(T$3:T$20,Paramètres!$C$58) -> 0 | U56: =COUNTIF(U$3:U$20,Paramètres!$C$58) -> 0 | V56: =COUNTIF(V$3:V$20,Paramètres!$C$58) -> 0 | W56: =COUNTIF(W$3:W$20,Paramètres!$C$58) -> 0 | X56: =COUNTIF(X$3:X$20,Paramètres!$C$58) -> 0 | Y56: =COUNTIF(Y$3:Y$20,Paramètres!$C$58) -> 0 | Z56: =COUNTIF(Z$3:Z$20,Paramètres!$C$58) -> 0 | AA56: =COUNTIF(AA$3:AA$20,Paramètres!$C$58) -> 0 | AB56: =COUNTIF(AB$3:AB$20,Paramètres!$C$58) -> 0 | AC56: =COUNTIF(AC$3:AC$20,Paramètres!$C$58) -> 0 | AD56: =COUNTIF(AD$3:AD$20,Paramètres!$C$58) -> 0 | AE56: =COUNTIF(AE$3:AE$20,Paramètres!$C$58) -> 0 | AF56: =COUNTIF(AF$3:AF$20,Paramètres!$C$58) -> 0 | AG56: =COUNTIF(AG$3:AG$20,Paramètres!$C$58) -> 0 | AH56: =COUNTIF(AH$3:AH$20,Paramètres!$C$58) -> 0 | AI56: =COUNTIF(AI$3:AI$20,Paramètres!$C$58) -> 0 | AJ56: 0
D57: =Paramètres!B59 -> Hydrant | E57: =COUNTIF(E$3:E$20,Paramètres!$C$59) -> 0 | F57: =COUNTIF(F$3:F$20,Paramètres!$C$59) -> 0 | G57: =COUNTIF(G$3:G$20,Paramètres!$C$59) -> 0 | H57: =COUNTIF(H$3:H$20,Paramètres!$C$59) -> 0 | I57: =COUNTIF(I$3:I$20,Paramètres!$C$59) -> 0 | J57: =COUNTIF(J$3:J$20,Paramètres!$C$59) -> 0 | K57: =COUNTIF(K$3:K$20,Paramètres!$C$59) -> 0 | L57: =COUNTIF(L$3:L$20,Paramètres!$C$59) -> 0 | M57: =COUNTIF(M$3:M$20,Paramètres!$C$59) -> 0 | N57: =COUNTIF(N$3:N$20,Paramètres!$C$59) -> 0 | O57: =COUNTIF(O$3:O$20,Paramètres!$C$59) -> 0 | P57: =COUNTIF(P$3:P$20,Paramètres!$C$59) -> 0 | Q57: =COUNTIF(Q$3:Q$20,Paramètres!$C$59) -> 0 | R57: =COUNTIF(R$3:R$20,Paramètres!$C$59) -> 0 | S57: =COUNTIF(S$3:S$20,Paramètres!$C$59) -> 0 | T57: =COUNTIF(T$3:T$20,Paramètres!$C$59) -> 0 | U57: =COUNTIF(U$3:U$20,Paramètres!$C$59) -> 0 | V57: =COUNTIF(V$3:V$20,Paramètres!$C$59) -> 0 | W57: =COUNTIF(W$3:W$20,Paramètres!$C$59) -> 0 | X57: =COUNTIF(X$3:X$20,Paramètres!$C$59) -> 0 | Y57: =COUNTIF(Y$3:Y$20,Paramètres!$C$59) -> 0 | Z57: =COUNTIF(Z$3:Z$20,Paramètres!$C$59) -> 0 | AA57: =COUNTIF(AA$3:AA$20,Paramètres!$C$59) -> 0 | AB57: =COUNTIF(AB$3:AB$20,Paramètres!$C$59) -> 0 | AC57: =COUNTIF(AC$3:AC$20,Paramètres!$C$59) -> 0 | AD57: =COUNTIF(AD$3:AD$20,Paramètres!$C$59) -> 0 | AE57: =COUNTIF(AE$3:AE$20,Paramètres!$C$59) -> 0 | AF57: =COUNTIF(AF$3:AF$20,Paramètres!$C$59) -> 0 | AG57: =COUNTIF(AG$3:AG$20,Paramètres!$C$59) -> 0 | AH57: =COUNTIF(AH$3:AH$20,Paramètres!$C$59) -> 0 | AI57: =COUNTIF(AI$3:AI$20,Paramètres!$C$59) -> 0 | AJ57: 0
D58: =Paramètres!B60 -> Evênement Familial | E58: =COUNTIF(E$3:E$20,Paramètres!$C$60) -> 0 | F58: =COUNTIF(F$3:F$20,Paramètres!$C$60) -> 0 | G58: =COUNTIF(G$3:G$20,Paramètres!$C$60) -> 0 | H58: =COUNTIF(H$3:H$20,Paramètres!$C$60) -> 0 | I58: =COUNTIF(I$3:I$20,Paramètres!$C$60) -> 0 | J58: =COUNTIF(J$3:J$20,Paramètres!$C$60) -> 0 | K58: =COUNTIF(K$3:K$20,Paramètres!$C$60) -> 0 | L58: =COUNTIF(L$3:L$20,Paramètres!$C$60) -> 0 | M58: =COUNTIF(M$3:M$20,Paramètres!$C$60) -> 0 | N58: =COUNTIF(N$3:N$20,Paramètres!$C$60) -> 0 | O58: =COUNTIF(O$3:O$20,Paramètres!$C$60) -> 0 | P58: =COUNTIF(P$3:P$20,Paramètres!$C$60) -> 0 | Q58: =COUNTIF(Q$3:Q$20,Paramètres!$C$60) -> 0 | R58: =COUNTIF(R$3:R$20,Paramètres!$C$60) -> 0 | S58: =COUNTIF(S$3:S$20,Paramètres!$C$60) -> 0 | T58: =COUNTIF(T$3:T$20,Paramètres!$C$60) -> 0 | U58: =COUNTIF(U$3:U$20,Paramètres!$C$60) -> 0 | V58: =COUNTIF(V$3:V$20,Paramètres!$C$60) -> 0 | W58: =COUNTIF(W$3:W$20,Paramètres!$C$60) -> 0 | X58: =COUNTIF(X$3:X$20,Paramètres!$C$60) -> 0 | Y58: =COUNTIF(Y$3:Y$20,Paramètres!$C$60) -> 0 | Z58: =COUNTIF(Z$3:Z$20,Paramètres!$C$60) -> 0 | AA58: =COUNTIF(AA$3:AA$20,Paramètres!$C$60) -> 0 | AB58: =COUNTIF(AB$3:AB$20,Paramètres!$C$60) -> 0 | AC58: =COUNTIF(AC$3:AC$20,Paramètres!$C$60) -> 0 | AD58: =COUNTIF(AD$3:AD$20,Paramètres!$C$60) -> 0 | AE58: =COUNTIF(AE$3:AE$20,Paramètres!$C$60) -> 0 | AF58: =COUNTIF(AF$3:AF$20,Paramètres!$C$60) -> 0 | AG58: =COUNTIF(AG$3:AG$20,Paramètres!$C$60) -> 0 | AH58: =COUNTIF(AH$3:AH$20,Paramètres!$C$60) -> 0 | AI58: =COUNTIF(AI$3:AI$20,Paramètres!$C$60) -> 0 | AJ58: 0
D59: =Paramètres!B61 -> Instance Paritaire | E59: =COUNTIF(E$3:E$20,Paramètres!$C$61) -> 0 | F59: =COUNTIF(F$3:F$20,Paramètres!$C$61) -> 0 | G59: =COUNTIF(G$3:G$20,Paramètres!$C$61) -> 0 | H59: =COUNTIF(H$3:H$20,Paramètres!$C$61) -> 0 | I59: =COUNTIF(I$3:I$20,Paramètres!$C$61) -> 0 | J59: =COUNTIF(J$3:J$20,Paramètres!$C$61) -> 0 | K59: =COUNTIF(K$3:K$20,Paramètres!$C$61) -> 0 | L59: =COUNTIF(L$3:L$20,Paramètres!$C$61) -> 0 | M59: =COUNTIF(M$3:M$20,Paramètres!$C$61) -> 0 | N59: =COUNTIF(N$3:N$20,Paramètres!$C$61) -> 0 | O59: =COUNTIF(O$3:O$20,Paramètres!$C$61) -> 0 | P59: =COUNTIF(P$3:P$20,Paramètres!$C$61) -> 0 | Q59: =COUNTIF(Q$3:Q$20,Paramètres!$C$61) -> 0 | R59: =COUNTIF(R$3:R$20,Paramètres!$C$61) -> 0 | S59: =COUNTIF(S$3:S$20,Paramètres!$C$61) -> 0 | T59: =COUNTIF(T$3:T$20,Paramètres!$C$61) -> 0 | U59: =COUNTIF(U$3:U$20,Paramètres!$C$61) -> 0 | V59: =COUNTIF(V$3:V$20,Paramètres!$C$61) -> 0 | W59: =COUNTIF(W$3:W$20,Paramètres!$C$61) -> 0 | X59: =COUNTIF(X$3:X$20,Paramètres!$C$61) -> 0 | Y59: =COUNTIF(Y$3:Y$20,Paramètres!$C$61) -> 0 | Z59: =COUNTIF(Z$3:Z$20,Paramètres!$C$61) -> 0 | AA59: =COUNTIF(AA$3:AA$20,Paramètres!$C$61) -> 0 | AB59: =COUNTIF(AB$3:AB$20,Paramètres!$C$61) -> 0 | AC59: =COUNTIF(AC$3:AC$20,Paramètres!$C$61) -> 0 | AD59: =COUNTIF(AD$3:AD$20,Paramètres!$C$61) -> 0 | AE59: =COUNTIF(AE$3:AE$20,Paramètres!$C$61) -> 0 | AF59: =COUNTIF(AF$3:AF$20,Paramètres!$C$61) -> 0 | AG59: =COUNTIF(AG$3:AG$20,Paramètres!$C$61) -> 0 | AH59: =COUNTIF(AH$3:AH$20,Paramètres!$C$61) -> 0 | AI59: =COUNTIF(AI$3:AI$20,Paramètres!$C$61) -> 0 | AJ59: 0
D60: =Paramètres!B62 -> Congés | E60: =COUNTIF(E$3:E$20,Paramètres!$C$62) -> 0 | F60: =COUNTIF(F$3:F$20,Paramètres!$C$62) -> 0 | G60: =COUNTIF(G$3:G$20,Paramètres!$C$62) -> 0 | H60: =COUNTIF(H$3:H$20,Paramètres!$C$62) -> 0 | I60: =COUNTIF(I$3:I$20,Paramètres!$C$62) -> 0 | J60: =COUNTIF(J$3:J$20,Paramètres!$C$62) -> 0 | K60: =COUNTIF(K$3:K$20,Paramètres!$C$62) -> 0 | L60: =COUNTIF(L$3:L$20,Paramètres!$C$62) -> 0 | M60: =COUNTIF(M$3:M$20,Paramètres!$C$62) -> 0 | N60: =COUNTIF(N$3:N$20,Paramètres!$C$62) -> 0 | O60: =COUNTIF(O$3:O$20,Paramètres!$C$62) -> 0 | P60: =COUNTIF(P$3:P$20,Paramètres!$C$62) -> 0 | Q60: =COUNTIF(Q$3:Q$20,Paramètres!$C$62) -> 0 | R60: =COUNTIF(R$3:R$20,Paramètres!$C$62) -> 0 | S60: =COUNTIF(S$3:S$20,Paramètres!$C$62) -> 0 | T60: =COUNTIF(T$3:T$20,Paramètres!$C$62) -> 0 | U60: =COUNTIF(U$3:U$20,Paramètres!$C$62) -> 0 | V60: =COUNTIF(V$3:V$20,Paramètres!$C$62) -> 0 | W60: =COUNTIF(W$3:W$20,Paramètres!$C$62) -> 0 | X60: =COUNTIF(X$3:X$20,Paramètres!$C$62) -> 0 | Y60: =COUNTIF(Y$3:Y$20,Paramètres!$C$62) -> 0 | Z60: =COUNTIF(Z$3:Z$20,Paramètres!$C$62) -> 0 | AA60: =COUNTIF(AA$3:AA$20,Paramètres!$C$62) -> 0 | AB60: =COUNTIF(AB$3:AB$20,Paramètres!$C$62) -> 0 | AC60: =COUNTIF(AC$3:AC$20,Paramètres!$C$62) -> 0 | AD60: =COUNTIF(AD$3:AD$20,Paramètres!$C$62) -> 0 | AE60: =COUNTIF(AE$3:AE$20,Paramètres!$C$62) -> 0 | AF60: =COUNTIF(AF$3:AF$20,Paramètres!$C$62) -> 0 | AG60: =COUNTIF(AG$3:AG$20,Paramètres!$C$62) -> 0 | AH60: =COUNTIF(AH$3:AH$20,Paramètres!$C$62) -> 0 | AI60: =COUNTIF(AI$3:AI$20,Paramètres!$C$62) -> 0 | AJ60: 0

Sheet Avril

Sheet Mai

Sheet Juin
C1: <| | D1: =Paramètres!D28 -> 22 | E1: =DATE(An_0,6,1) -> 41425 | F1: =E1+1 -> 41426 | G1: 41427 | H1: 41428 | I1: 41429 | J1: 41430 | K1: 41431 | L1: 41432 | M1: 41433 | N1: 41434 | O1: 41435 | P1: 41436 | Q1: 41437 | R1: 41438 | S1: 41439 | T1: 41440 | U1: 41441 | V1: 41442 | W1: 41443 | X1: 41444 | Y1: 41445 | Z1: 41446 | AA1: 41447 | AB1: 41448 | AC1: 41449 | AD1: 41450 | AE1: 41451 | AF1: 41452 | AG1: 41453 | AH1: 41454 | AI1: =D44 -> Garde | AJ1: =D49 -> Formation Stagiaire | AK1: =D50 -> Formation formateur | AL1: =D51 -> Entrainement SD | AM1: =D52 -> Entrainement EPIM | AN1: =D53 -> Entrainement SAV | AO1: =D54 -> Décharge Syndicale | AP1: =D55 -> Autorisation Syndicale | AQ1: Total garde | AR1: Total heures mois | AS1: Hrs Th. À effectuer | AT1: Différence | AU1: Am + AT | AV1: =Paramètres!B58 -> GOC | AW1: =Paramètres!B59 -> Hydrant | AX1: =Paramètres!B61 -> Instance Paritaire
E2: =DATE(An_0,6,1) -> 41425 | F2: =E2+1 -> 41426 | G2: 41427 | H2: 41428 | I2: 41429 | J2: 41430 | K2: 41431 | L2: 41432 | M2: 41433 | N2: 41434 | O2: 41435 | P2: 41436 | Q2: 41437 | R2: 41438 | S2: 41439 | T2: 41440 | U2: 41441 | V2: 41442 | W2: 41443 | X2: 41444 | Y2: 41445 | Z2: 41446 | AA2: 41447 | AB2: 41448 | AC2: 41449 | AD2: 41450 | AE2: 41451 | AF2: 41452 | AG2: 41453 | AH2: 41454 | AK2: =D50 -> Formation formateur
A3: =Paramètres!T7 -> x | B3: =IF(A3="x",Paramètres!M7,"") -> -1771 | C3: Personnel | D3: =IF(A3="x",CONCATENATE(Paramètres!D7," ",Paramètres!C7," ",Paramètres!B7),"") -> Adc Jacques Agent_1 | AI3: =COUNTIF($E3:$AH3,Paramètres!$C$43) -> 0 | AJ3: =COUNTIF($E3:$AH3,Paramètres!$C$46) -> 0 | AK3: =COUNTIF($E3:$AH3,Paramètres!$C$47) -> 0 | AL3: =COUNTIF($E3:$AH3,Paramètres!$C$48) -> 0 | AM3: =COUNTIF($E3:$AH3,Paramètres!$C$49) -> 0 | AN3: =COUNTIF($E3:$AH3,Paramètres!$C$50) -> 0 | AO3: =COUNTIF($E3:$AH3,Paramètres!$C$56) -> 0 | AP3: =COUNTIF($E3:$AH3,Paramètres!$C$57) -> 0 | AQ3: =SUM(AI3:AP3) -> 0 | AR3: =($AI3*VtyJ)+($AJ3*VtyFs)+($AK3*VtyFf)+($AL3*VtySD)+($AM3*VtyPI)+($AN3*VtySA)+($AO3*VtyDsy)+($AP3*VtyAsy)+($AV3*VtyGOC)+($AW3*VtyHy)+($AX3*VtyiPA)+(AU3*VtyAm) -> 0 | AS3: =($D$1-COUNTIF(E3:AH3,TyCo))*(CoAG1) -> 137.5652174 | AT3: =AR3-AS3 -> -137.5652174 | AU3: =COUNTIF(E3:AH3,TyAm)+COUNTIF(E3:AH3,TyAt) -> 0 | AV3: =COUNTIF($E3:$AH3,TyGOC) -> 0 | AW3: =COUNTIF($E3:$AH3,TyHy) -> 0 | AX3: =COUNTIF($E3:$AH3,TySy) -> 0
A4: =Paramètres!T8 -> x | B4: =IF(A4="x",Paramètres!M8,"") -> -1582 | D4: =IF(A4="x",CONCATENATE(Paramètres!D8," ",Paramètres!C8," ",Paramètres!B8),"") -> Adj Christophe Agent_2 | AI4: =COUNTIF($E4:$AH4,Paramètres!$C$43) -> 0 | AJ4: =COUNTIF($E4:$AH4,Paramètres!$C$46) -> 0 | AK4: =COUNTIF($E4:$AH4,Paramètres!$C$47) -> 0 | AL4: =COUNTIF($E4:$AH4,Paramètres!$C$48) -> 0 | AM4: =COUNTIF($E4:$AH4,Paramètres!$C$49) -> 0 | AN4: =COUNTIF($E4:$AH4,Paramètres!$C$50) -> 0 | AO4: =COUNTIF($E4:$AH4,Paramètres!$C$56) -> 0 | AP4: =COUNTIF($E4:$AH4,Paramètres!$C$57) -> 0 | AQ4: 0 | AR4: 0 | AS4: =($D$1-COUNTIF(E4:AH4,Paramètres!$C$62))*(CoAG2) -> 137.5652174 | AT4: -137.5652174 | AU4: 0 | AV4: 0 | AW4: 0 | AX4: 0
A5: =Paramètres!T9 -> x | B5: =IF(A5="x",Paramètres!M9,"") -> -1582 | D5: =IF(A5="x",CONCATENATE(Paramètres!D9," ",Paramètres!C9," ",Paramètres!B9),"") -> Adj Christophe Agent_3 | AI5: =COUNTIF($E5:$AH5,Paramètres!$C$43) -> 0 | AJ5: =COUNTIF($E5:$AH5,Paramètres!$C$46) -> 0 | AK5: =COUNTIF($E5:$AH5,Paramètres!$C$47) -> 0 | AL5: =COUNTIF($E5:$AH5,Paramètres!$C$48) -> 0 | AM5: =COUNTIF($E5:$AH5,Paramètres!$C$49) -> 0 | AN5: =COUNTIF($E5:$AH5,Paramètres!$C$50) -> 0 | AO5: =COUNTIF($E5:$AH5,Paramètres!$C$56) -> 0 | AP5: =COUNTIF($E5:$AH5,Paramètres!$C$57) -> 0 | AQ5: 0 | AR5: 0 | AS5: =($D$1-COUNTIF(E5:AH5,Paramètres!$C$62))*(CoAG3) -> 137.5652174 | AT5: -137.5652174 | AU5: 0 | AV5: 0 | AW5: 0 | AX5: 0
A6: =Paramètres!T10 -> 0 | B6: =IF(A6="x",Paramètres!M10,"") ->  | D6: =IF(A6="x",CONCATENATE(Paramètres!D10," ",Paramètres!C10," ",Paramètres!B10),"") -> 
A7: =Paramètres!T11 -> x | B7: =IF(A7="x",Paramètres!M11,"") -> -1582 | D7: =IF(A7="x",CONCATENATE(Paramètres!D11," ",Paramètres!C11," ",Paramètres!B11),"") -> Sch Ludovic Agent_5 | AI7: =COUNTIF($E7:$AH7,Paramètres!$C$43) -> 0 | AJ7: =COUNTIF($E7:$AH7,Paramètres!$C$46) -> 0 | AK7: =COUNTIF($E7:$AH7,Paramètres!$C$47) -> 0 | AL7: =COUNTIF($E7:$AH7,Paramètres!$C$48) -> 0 | AM7: =COUNTIF($E7:$AH7,Paramètres!$C$49) -> 0 | AN7: =COUNTIF($E7:$AH7,Paramètres!$C$50) -> 0 | AO7: =COUNTIF($E7:$AH7,Paramètres!$C$56) -> 0 | AP7: =COUNTIF($E7:$AH7,Paramètres!$C$57) -> 0 | AQ7: 0 | AR7: 0 | AS7: =($D$1-COUNTIF(E7:AH7,Paramètres!$C$62))*(CoAG4) ->  | AU7: 0 | AV7: 0 | AW7: 0 | AX7: 0
A8: =Paramètres!T12 -> x | B8: =IF(A8="x",Paramètres!M12,"") -> -1582 | D8: =IF(A8="x",CONCATENATE(Paramètres!D12," ",Paramètres!C12," ",Paramètres!B12),"") -> Sch Franck Agent_6 | AI8: =COUNTIF(E8:AH8,Paramètres!$C$43) -> 0 | AJ8: =COUNTIF(F8:AI8,Paramètres!$C$46) -> 0 | AK8: =COUNTIF(G8:AJ8,Paramètres!$C$47) -> 0 | AL8: =COUNTIF($E8:$AH8,Paramètres!$C$48) -> 0 | AM8: =COUNTIF($E8:$AH8,Paramètres!$C$49) -> 0 | AN8: =COUNTIF($E8:$AH8,Paramètres!$C$50) -> 0 | AO8: =COUNTIF($E8:$AH8,Paramètres!$C$56) -> 0 | AP8: =COUNTIF($E8:$AH8,Paramètres!$C$57) -> 0 | AQ8: 0 | AR8: 0 | AS8: =($D$1-COUNTIF(E8:AH8,Paramètres!$C$62))*(CoAG5) -> 137.5652174 | AT8: -137.5652174 | AU8: 0 | AV8: 0 | AW8: 0 | AX8: 0
A9: =Paramètres!T13 -> x | B9: =IF(A9="x",Paramètres!M13,"") -> -1265.6 | D9: =IF(A9="x",CONCATENATE(Paramètres!D13," ",Paramètres!C13," ",Paramètres!B13),"") -> Sch Delphine Agent_7 | AI9: =COUNTIF(E9:AH9,Paramètres!$C$43) -> 0 | AJ9: =COUNTIF(F9:AI9,Paramètres!$C$46) -> 0 | AK9: =COUNTIF(G9:AJ9,Paramètres!$C$47) -> 0 | AL9: =COUNTIF($E9:$AH9,Paramètres!$C$48) -> 0 | AM9: =COUNTIF($E9:$AH9,Paramètres!$C$49) -> 0 | AN9: =COUNTIF($E9:$AH9,Paramètres!$C$50) -> 0 | AO9: =COUNTIF($E9:$AH9,Paramètres!$C$56) -> 0 | AP9: =COUNTIF($E9:$AH9,Paramètres!$C$57) -> 0 | AQ9: 0 | AR9: 0 | AS9: =($D$1-COUNTIF(E9:AH9,Paramètres!$C$62))*(CoAG6) -> 137.5652174 | AT9: -137.5652174 | AU9: 0 | AV9: 0 | AW9: 0 | AX9: 0
A10: =Paramètres!T14 -> x | B10: =IF(A10="x",Paramètres!M14,"") -> -1393 | D10: =IF(A10="x",CONCATENATE(Paramètres!D14," ",Paramètres!C14," ",Paramètres!B14),"") -> Sch Jean-Philippe Agent_8
A11: =Paramètres!T15 -> 0 | B11: =IF(A11="x",Paramètres!M15,"") ->  | D11: =IF(A11="x",CONCATENATE(Paramètres!D15," ",Paramètres!C15," ",Paramètres!B15),"") ->  | AI11: =COUNTIF(E11:AH11,Paramètres!$C$43) -> 0 | AJ11: =COUNTIF(F11:AH11,Paramètres!$C$46) -> 0 | AK11: =COUNTIF(G11:AJ11,Paramètres!$C$47) -> 0 | AL11: =COUNTIF($E11:$AH11,Paramètres!$C$48) -> 0 | AM11: =COUNTIF($E11:$AH11,Paramètres!$C$49) -> 0 | AN11: =COUNTIF($E11:$AH11,Paramètres!$C$50) -> 0 | AO11: =COUNTIF($E11:$AH11,Paramètres!$C$56) -> 0 | AP11: =COUNTIF($E11:$AH11,Paramètres!$C$57) -> 0 | AQ11: 0 | AR11: 0 | AS11: =($D$1-COUNTIF(E11:AH11,Paramètres!$C$62))*(CoAG7) -> 110.0521739 | AT11: -110.0521739 | AU11: 0 | AV11: 0 | AW11: 0 | AX11: 0
A12: =Paramètres!T16 -> x | B12: =IF(A12="x",Paramètres!M16,"") -> -1582 | D12: =IF(A12="x",CONCATENATE(Paramètres!D16," ",Paramètres!C16," ",Paramètres!B16),"") -> Sgt Raymond Agent_10 | AI12: =COUNTIF(E12:AH12,Paramètres!$C$43) -> 0 | AJ12: =COUNTIF(F12:AI12,Paramètres!$C$46) -> 0 | AK12: =COUNTIF(G12:AJ12,Paramètres!$C$47) -> 0 | AL12: =COUNTIF($E12:$AH12,Paramètres!$C$48) -> 0 | AM12: =COUNTIF($E12:$AH12,Paramètres!$C$49) -> 0 | AN12: =COUNTIF($E12:$AH12,Paramètres!$C$50) -> 0 | AO12: =COUNTIF($E12:$AH12,Paramètres!$C$56) -> 0 | AP12: =COUNTIF($E12:$AH12,Paramètres!$C$57) -> 0 | AQ12: 0 | AR12: 0 | AS12: =($D$1-COUNTIF(E12:AH12,Paramètres!$C$62))*(CoAG8) -> 137.5652174 | AT12: -137.5652174 | AU12: 0 | AV12: 0 | AW12: 0 | AX12: 0
A13: =Paramètres!T17 -> x | B13: =IF(A13="x",Paramètres!M17,"") -> -1582 | D13: =IF(A13="x",CONCATENATE(Paramètres!D17," ",Paramètres!C17," ",Paramètres!B17),"") -> Sgt Julien Agent_11 | AI13: =COUNTIF(E13:AH13,Paramètres!$C$43) -> 0 | AJ13: =COUNTIF(F13:AI13,Paramètres!$C$46) -> 0 | AK13: =COUNTIF(G13:AJ13,Paramètres!$C$47) -> 0 | AL13: =COUNTIF($E13:$AH13,Paramètres!$C$48) -> 0 | AM13: =COUNTIF($E13:$AH13,Paramètres!$C$49) -> 0 | AN13: =COUNTIF($E13:$AH13,Paramètres!$C$50) -> 0 | AO13: =COUNTIF($E13:$AH13,Paramètres!$C$56) -> 0 | AP13: =COUNTIF($E13:$AH13,Paramètres!$C$57) -> 0 | AQ13: 0 | AR13: 0 | AS13: =($D$1-COUNTIF(E13:AH13,Paramètres!$C$62))*(CoAG9) ->  | AU13: 0 | AV13: 0 | AW13: 0 | AX13: 0
A14: =Paramètres!T18 -> x | B14: =IF(A14="x",Paramètres!M18,"") -> -1582 | D14: =IF(A14="x",CONCATENATE(Paramètres!D18," ",Paramètres!C18," ",Paramètres!B18),"") -> Cch Cyril Agent_12 | AI14: =COUNTIF(E14:AH14,Paramètres!$C$43) -> 0 | AJ14: =COUNTIF(F14:AI14,Paramètres!$C$46) -> 0 | AK14: =COUNTIF(G14:AJ14,Paramètres!$C$47) -> 0 | AL14: =COUNTIF($E14:$AH14,Paramètres!$C$48) -> 0 | AM14: =COUNTIF($E14:$AH14,Paramètres!$C$49) -> 0 | AN14: =COUNTIF($E14:$AH14,Paramètres!$C$50) -> 0 | AO14: =COUNTIF($E14:$AH14,Paramètres!$C$56) -> 0 | AP14: =COUNTIF($E14:$AH14,Paramètres!$C$57) -> 0 | AQ14: 0 | AR14: 0 | AS14: =($D$1-COUNTIF(E14:AH14,Paramètres!$C$62))*(CoAG1) -> 137.5652174 | AT14: -137.5652174 | AU14: 0 | AV14: 0 | AW14: 0 | AX14: 0
A15: =Paramètres!T19 -> x | B15: =IF(A15="x",Paramètres!M19,"") -> -1582 | D15: =IF(A15="x",CONCATENATE(Paramètres!D19," ",Paramètres!C19," ",Paramètres!B19),"") -> Cpl Stéphane Agent_13 | AI15: =COUNTIF(E15:AH15,Paramètres!$C$43) -> 0 | AJ15: =COUNTIF(F15:AI15,Paramètres!$C$46) -> 0 | AK15: =COUNTIF(G15:AJ15,Paramètres!$C$47) -> 0 | AL15: =COUNTIF($E15:$AH15,Paramètres!$C$48) -> 0 | AM15: =COUNTIF($E15:$AH15,Paramètres!$C$49) -> 0 | AN15: =COUNTIF($E15:$AH15,Paramètres!$C$50) -> 0 | AO15: =COUNTIF($E15:$AH15,Paramètres!$C$56) -> 0 | AP15: =COUNTIF($E15:$AH15,Paramètres!$C$57) -> 0 | AQ15: 0 | AR15: 0 | AS15: =($D$1-COUNTIF(E15:AH15,Paramètres!$C$62))*(CoAG10) -> 137.5652174 | AT15: -137.5652174 | AU15: 0 | AV15: 0 | AW15: 0 | AX15: 0
A16: =Paramètres!T20 -> x | B16: =IF(A16="x",Paramètres!M20,"") -> -1582 | D16: =IF(A16="x",CONCATENATE(Paramètres!D20," ",Paramètres!C20," ",Paramètres!B20),"") -> Sap 1cl Nicolas Agent_14
A17: =Paramètres!T21 -> 0 | B17: =IF(A17="x",Paramètres!M21,"") ->  | D17: =IF(A17="x",CONCATENATE(Paramètres!D21," ",Paramètres!C21," ",Paramètres!B21),"") -> 
A18: =Paramètres!T22 -> 0 | B18: =IF(A18="x",Paramètres!M22,"") ->  | D18: =IF(A18="x",CONCATENATE(Paramètres!D22," ",Paramètres!C22," ",Paramètres!B22),"") -> 
A19: =Paramètres!T23 -> 0 | B19: =IF(A19="x",Paramètres!M23,"") ->  | D19: =IF(A19="x",CONCATENATE(Paramètres!D23," ",Paramètres!C23," ",Paramètres!B23),"") -> 
A20: =Paramètres!T24 -> 0 | B20: =IF(A20="x",Paramètres!M24,"") ->  | D20: =IF(A20="x",CONCATENATE(Paramètres!D24," ",Paramètres!C24," ",Paramètres!B24),"") -> 
C21: Ast | D21: Adc Jean-Marc RICHIER
C22: Conv. | D22: Adc Yves GUIRAUD
D23: Cch Jean-Louis TOCHON
D24: Sgt Emile MONTERO
C25: Renfort | AI25: =COUNTIF(E25:AH25,Paramètres!$C$43) -> 0
AI26: =COUNTIF(E26:AH26,Paramètres!$C$43) -> 0
AI27: =COUNTIF(E27:AH27,Paramètres!$C$43) -> 0
AI28: =COUNTIF(E28:AH28,Paramètres!$C$43) -> 0
AI29: =COUNTIF(E29:AH29,Paramètres!$C$43) -> 0
AI30: =COUNTIF(E30:AH30,Paramètres!$C$43) -> 0
AI31: =COUNTIF(E31:AH31,Paramètres!$C$43) -> 0
AI32: =COUNTIF(E32:AH32,Paramètres!$C$43) -> 0
AI33: =COUNTIF(E33:AH33,Paramètres!$C$43) -> 0
AI34: =COUNTIF(E34:AH34,Paramètres!$C$43) -> 0
AI38: =COUNTIF(E38:AH38,Paramètres!$C$43) -> 0
AI39: =COUNTIF(E39:AH39,Paramètres!$C$43) -> 0
AI40: =COUNTIF(E40:AH40,Paramètres!$C$43) -> 0
AI41: =COUNTIF(E41:AH41,Paramètres!$C$43) -> 0
AI42: =COUNTIF(E42:AH42,Paramètres!$C$43) -> 0
AI43: =COUNTIF(E43:AH43,Paramètres!$C$43) -> 0
D44: =Paramètres!B43 -> Garde | E44: =COUNTIF(E$3:E$43,Paramètres!$C$43)+E45+COUNTIF(E$3:E$43,Paramètres!$C$45) -> 0 | F44: =COUNTIF(F$3:F$43,Paramètres!$C$43)+F45+COUNTIF(F$3:F$43,Paramètres!$C$45) -> 0 | G44: =COUNTIF(G$3:G$43,Paramètres!$C$43)+G45+COUNTIF(G$3:G$43,Paramètres!$C$45) -> 0 | H44: =COUNTIF(H$3:H$43,Paramètres!$C$43)+H45+COUNTIF(H$3:H$43,Paramètres!$C$45) -> 0 | I44: =COUNTIF(I$3:I$43,Paramètres!$C$43)+I45+COUNTIF(I$3:I$43,Paramètres!$C$45) -> 0 | J44: =COUNTIF(J$3:J$43,Paramètres!$C$43)+J45+COUNTIF(J$3:J$43,Paramètres!$C$45) -> 0 | K44: =COUNTIF(K$3:K$43,Paramètres!$C$43)+K45+COUNTIF(K$3:K$43,Paramètres!$C$45) -> 0 | L44: =COUNTIF(L$3:L$43,Paramètres!$C$43)+L45+COUNTIF(L$3:L$43,Paramètres!$C$45) -> 0 | M44: =COUNTIF(M$3:M$43,Paramètres!$C$43)+M45+COUNTIF(M$3:M$43,Paramètres!$C$45) -> 0 | N44: =COUNTIF(N$3:N$43,Paramètres!$C$43)+N45+COUNTIF(N$3:N$43,Paramètres!$C$45) -> 0 | O44: =COUNTIF(O$3:O$43,Paramètres!$C$43)+O45+COUNTIF(O$3:O$43,Paramètres!$C$45) -> 0 | P44: =COUNTIF(P$3:P$43,Paramètres!$C$43)+P45+COUNTIF(P$3:P$43,Paramètres!$C$45) -> 0 | Q44: =COUNTIF(Q$3:Q$43,Paramètres!$C$43)+Q45+COUNTIF(Q$3:Q$43,Paramètres!$C$45) -> 0 | R44: =COUNTIF(R$3:R$43,Paramètres!$C$43)+R45+COUNTIF(R$3:R$43,Paramètres!$C$45) -> 0 | S44: =COUNTIF(S$3:S$43,Paramètres!$C$43)+S45+COUNTIF(S$3:S$43,Paramètres!$C$45) -> 0 | T44: =COUNTIF(T$3:T$43,Paramètres!$C$43)+T45+COUNTIF(T$3:T$43,Paramètres!$C$45) -> 0 | U44: =COUNTIF(U$3:U$43,Paramètres!$C$43)+U45+COUNTIF(U$3:U$43,Paramètres!$C$45) -> 0 | V44: =COUNTIF(V$3:V$43,Paramètres!$C$43)+V45+COUNTIF(V$3:V$43,Paramètres!$C$45) -> 0 | W44: =COUNTIF(W$3:W$43,Paramètres!$C$43)+W45+COUNTIF(W$3:W$43,Paramètres!$C$45) -> 0 | X44: =COUNTIF(X$3:X$43,Paramètres!$C$43)+X45+COUNTIF(X$3:X$43,Paramètres!$C$45) -> 0 | Y44: =COUNTIF(Y$3:Y$43,Paramètres!$C$43)+Y45+COUNTIF(Y$3:Y$43,Paramètres!$C$45) -> 0 | Z44: =COUNTIF(Z$3:Z$43,Paramètres!$C$43)+Z45+COUNTIF(Z$3:Z$43,Paramètres!$C$45) -> 0 | AA44: =COUNTIF(AA$3:AA$43,Paramètres!$C$43)+AA45+COUNTIF(AA$3:AA$43,Paramètres!$C$45) -> 0 | AB44: =COUNTIF(AB$3:AB$43,Paramètres!$C$43)+AB45+COUNTIF(AB$3:AB$43,Paramètres!$C$45) -> 0 | AC44: =COUNTIF(AC$3:AC$43,Paramètres!$C$43)+AC45+COUNTIF(AC$3:AC$43,Paramètres!$C$45) -> 0 | AD44: =COUNTIF(AD$3:AD$43,Paramètres!$C$43)+AD45+COUNTIF(AD$3:AD$43,Paramètres!$C$45) -> 0 | AE44: =COUNTIF(AE$3:AE$43,Paramètres!$C$43)+AE45+COUNTIF(AE$3:AE$43,Paramètres!$C$45) -> 0 | AF44: =COUNTIF(AF$3:AF$43,Paramètres!$C$43)+AF45+COUNTIF(AF$3:AF$43,Paramètres!$C$45) -> 0 | AG44: =COUNTIF(AG$3:AG$43,Paramètres!$C$43)+AG45+COUNTIF(AG$3:AG$43,Paramètres!$C$45) -> 0 | AH44: =COUNTIF(AH$3:AH$43,Paramètres!$C$43)+AH45+COUNTIF(AH$3:AH$43,Paramètres!$C$45) -> 0 | AI44: =SUM(E44:AH44) -> 0
D45: Chef de garde | E45: =COUNTIF(E$3:E$43,"Cdg") -> 0 | F45: 0 | G45: 0 | H45: 0 | I45: 0 | J45: 0 | K45: 0 | L45: 0 | M45: 0 | N45: 0 | O45: 0 | P45: 0 | Q45: 0 | R45: 0 | S45: 0 | T45: 0 | U45: 0 | V45: 0 | W45: 0 | X45: 0 | Y45: 0 | Z45: 0 | AA45: 0 | AB45: 0 | AC45: 0 | AD45: 0 | AE45: 0 | AF45: 0 | AG45: 0 | AH45: 0
D46: SPP | E46: =COUNTIF(E$3:E$30,Paramètres!$C$43) -> 0 | F46: =COUNTIF(F$3:F$30,Paramètres!$C$43) -> 0 | G46: =COUNTIF(G$3:G$30,Paramètres!$C$43) -> 0 | H46: =COUNTIF(H$3:H$30,Paramètres!$C$43) -> 0 | I46: =COUNTIF(I$3:I$30,Paramètres!$C$43) -> 0 | J46: =COUNTIF(J$3:J$30,Paramètres!$C$43) -> 0 | K46: =COUNTIF(K$3:K$30,Paramètres!$C$43) -> 0 | L46: =COUNTIF(L$3:L$30,Paramètres!$C$43) -> 0 | M46: =COUNTIF(M$3:M$30,Paramètres!$C$43) -> 0 | N46: =COUNTIF(N$3:N$30,Paramètres!$C$43) -> 0 | O46: =COUNTIF(O$3:O$30,Paramètres!$C$43) -> 0 | P46: =COUNTIF(P$3:P$30,Paramètres!$C$43) -> 0 | Q46: =COUNTIF(Q$3:Q$30,Paramètres!$C$43) -> 0 | R46: =COUNTIF(R$3:R$30,Paramètres!$C$43) -> 0 | S46: =COUNTIF(S$3:S$30,Paramètres!$C$43) -> 0 | T46: =COUNTIF(T$3:T$30,Paramètres!$C$43) -> 0 | U46: =COUNTIF(U$3:U$30,Paramètres!$C$43) -> 0 | V46: =COUNTIF(V$3:V$30,Paramètres!$C$43) -> 0 | W46: =COUNTIF(W$3:W$30,Paramètres!$C$43) -> 0 | X46: =COUNTIF(X$3:X$30,Paramètres!$C$43) -> 0 | Y46: =COUNTIF(Y$3:Y$30,Paramètres!$C$43) -> 0 | Z46: =COUNTIF(Z$3:Z$30,Paramètres!$C$43) -> 0 | AA46: =COUNTIF(AA$3:AA$30,Paramètres!$C$43) -> 0 | AB46: =COUNTIF(AB$3:AB$30,Paramètres!$C$43) -> 0 | AC46: =COUNTIF(AC$3:AC$30,Paramètres!$C$43) -> 0 | AD46: =COUNTIF(AD$3:AD$30,Paramètres!$C$43) -> 0 | AE46: =COUNTIF(AE$3:AE$30,Paramètres!$C$43) -> 0 | AF46: =COUNTIF(AF$3:AF$30,Paramètres!$C$43) -> 0 | AG46: =COUNTIF(AG$3:AG$30,Paramètres!$C$43) -> 0 | AH46: =COUNTIF(AH$3:AH$30,Paramètres!$C$43) -> 0 | AI46: =SUM(E46:AH46) -> 0
D47: SPV | E47: =COUNTIF(E$31:E$43,Paramètres!$C$43) -> 0 | F47: =COUNTIF(F$31:F$43,Paramètres!$C$43) -> 0 | G47: =COUNTIF(G$31:G$43,Paramètres!$C$43) -> 0 | H47: =COUNTIF(H$31:H$43,Paramètres!$C$43) -> 0 | I47: =COUNTIF(I$31:I$43,Paramètres!$C$43) -> 0 | J47: =COUNTIF(J$31:J$43,Paramètres!$C$43) -> 0 | K47: =COUNTIF(K$31:K$43,Paramètres!$C$43) -> 0 | L47: =COUNTIF(L$31:L$43,Paramètres!$C$43) -> 0 | M47: =COUNTIF(M$31:M$43,Paramètres!$C$43) -> 0 | N47: =COUNTIF(N$31:N$43,Paramètres!$C$43) -> 0 | O47: =COUNTIF(O$31:O$43,Paramètres!$C$43) -> 0 | P47: =COUNTIF(P$31:P$43,Paramètres!$C$43) -> 0 | Q47: =COUNTIF(Q$31:Q$43,Paramètres!$C$43) -> 0 | R47: =COUNTIF(R$31:R$43,Paramètres!$C$43) -> 0 | S47: =COUNTIF(S$31:S$43,Paramètres!$C$43) -> 0 | T47: =COUNTIF(T$31:T$43,Paramètres!$C$43) -> 0 | U47: =COUNTIF(U$31:U$43,Paramètres!$C$43) -> 0 | V47: =COUNTIF(V$31:V$43,Paramètres!$C$43) -> 0 | W47: =COUNTIF(W$31:W$43,Paramètres!$C$43) -> 0 | X47: =COUNTIF(X$31:X$43,Paramètres!$C$43) -> 0 | Y47: =COUNTIF(Y$31:Y$43,Paramètres!$C$43) -> 0 | Z47: =COUNTIF(Z$31:Z$43,Paramètres!$C$43) -> 0 | AA47: =COUNTIF(AA$31:AA$43,Paramètres!$C$43) -> 0 | AB47: =COUNTIF(AB$31:AB$43,Paramètres!$C$43) -> 0 | AC47: =COUNTIF(AC$31:AC$43,Paramètres!$C$43) -> 0 | AD47: =COUNTIF(AD$31:AD$43,Paramètres!$C$43) -> 0 | AE47: =COUNTIF(AE$31:AE$43,Paramètres!$C$43) -> 0 | AF47: =COUNTIF(AF$31:AF$43,Paramètres!$C$43) -> 0 | AG47: =COUNTIF(AG$31:AG$43,Paramètres!$C$43) -> 0 | AH47: =COUNTIF(AH$31:AH$43,Paramètres!$C$43) -> 0 | AI47: =SUM(E47:AH47) -> 0
D48: Chef de groupe
D49: =Paramètres!B46 -> Formation Stagiaire | E49: =COUNTIF(E$3:E$20,Paramètres!$C$46) -> 0 | F49: =COUNTIF(F$3:F$20,Paramètres!$C$46) -> 0 | G49: =COUNTIF(G$3:G$20,Paramètres!$C$46) -> 0 | H49: =COUNTIF(H$3:H$20,Paramètres!$C$46) -> 0 | I49: =COUNTIF(I$3:I$20,Paramètres!$C$46) -> 0 | J49: =COUNTIF(J$3:J$20,Paramètres!$C$46) -> 0 | K49: =COUNTIF(K$3:K$20,Paramètres!$C$46) -> 0 | L49: =COUNTIF(L$3:L$20,Paramètres!$C$46) -> 0 | M49: =COUNTIF(M$3:M$20,Paramètres!$C$46) -> 0 | N49: =COUNTIF(N$3:N$20,Paramètres!$C$46) -> 0 | O49: =COUNTIF(O$3:O$20,Paramètres!$C$46) -> 0 | P49: =COUNTIF(P$3:P$20,Paramètres!$C$46) -> 0 | Q49: =COUNTIF(Q$3:Q$20,Paramètres!$C$46) -> 0 | R49: =COUNTIF(R$3:R$20,Paramètres!$C$46) -> 0 | S49: =COUNTIF(S$3:S$20,Paramètres!$C$46) -> 0 | T49: =COUNTIF(T$3:T$20,Paramètres!$C$46) -> 0 | U49: =COUNTIF(U$3:U$20,Paramètres!$C$46) -> 0 | V49: =COUNTIF(V$3:V$20,Paramètres!$C$46) -> 0 | W49: =COUNTIF(W$3:W$20,Paramètres!$C$46) -> 0 | X49: =COUNTIF(X$3:X$20,Paramètres!$C$46) -> 0 | Y49: =COUNTIF(Y$3:Y$20,Paramètres!$C$46) -> 0 | Z49: =COUNTIF(Z$3:Z$20,Paramètres!$C$46) -> 0 | AA49: =COUNTIF(AA$3:AA$20,Paramètres!$C$46) -> 0 | AB49: =COUNTIF(AB$3:AB$20,Paramètres!$C$46) -> 0 | AC49: =COUNTIF(AC$3:AC$20,Paramètres!$C$46) -> 0 | AD49: =COUNTIF(AD$3:AD$20,Paramètres!$C$46) -> 0 | AE49: =COUNTIF(AE$3:AE$20,Paramètres!$C$46) -> 0 | AF49: =COUNTIF(AF$3:AF$20,Paramètres!$C$46) -> 0 | AG49: =COUNTIF(AG$3:AG$20,Paramètres!$C$46) -> 0 | AH49: =COUNTIF(AH$3:AH$20,Paramètres!$C$46) -> 0 | AI49: =SUM(E49:AH49) -> 0
D50: =Paramètres!B47 -> Formation formateur | E50: =COUNTIF(E$3:E$20,Paramètres!$C$47) -> 0 | F50: =COUNTIF(F$3:F$20,Paramètres!$C$47) -> 0 | G50: =COUNTIF(G$3:G$20,Paramètres!$C$47) -> 0 | H50: =COUNTIF(H$3:H$20,Paramètres!$C$47) -> 0 | I50: =COUNTIF(I$3:I$20,Paramètres!$C$47) -> 0 | J50: =COUNTIF(J$3:J$20,Paramètres!$C$47) -> 0 | K50: =COUNTIF(K$3:K$20,Paramètres!$C$47) -> 0 | L50: =COUNTIF(L$3:L$20,Paramètres!$C$47) -> 0 | M50: =COUNTIF(M$3:M$20,Paramètres!$C$47) -> 0 | N50: =COUNTIF(N$3:N$20,Paramètres!$C$47) -> 0 | O50: =COUNTIF(O$3:O$20,Paramètres!$C$47) -> 0 | P50: =COUNTIF(P$3:P$20,Paramètres!$C$47) -> 0 | Q50: =COUNTIF(Q$3:Q$20,Paramètres!$C$47) -> 0 | R50: =COUNTIF(R$3:R$20,Paramètres!$C$47) -> 0 | S50: =COUNTIF(S$3:S$20,Paramètres!$C$47) -> 0 | T50: =COUNTIF(T$3:T$20,Paramètres!$C$47) -> 0 | U50: =COUNTIF(U$3:U$20,Paramètres!$C$47) -> 0 | V50: =COUNTIF(V$3:V$20,Paramètres!$C$47) -> 0 | W50: =COUNTIF(W$3:W$20,Paramètres!$C$47) -> 0 | X50: =COUNTIF(X$3:X$20,Paramètres!$C$47) -> 0 | Y50: =COUNTIF(Y$3:Y$20,Paramètres!$C$47) -> 0 | Z50: =COUNTIF(Z$3:Z$20,Paramètres!$C$47) -> 0 | AA50: =COUNTIF(AA$3:AA$20,Paramètres!$C$47) -> 0 | AB50: =COUNTIF(AB$3:AB$20,Paramètres!$C$47) -> 0 | AC50: =COUNTIF(AC$3:AC$20,Paramètres!$C$47) -> 0 | AD50: =COUNTIF(AD$3:AD$20,Paramètres!$C$47) -> 0 | AE50: =COUNTIF(AE$3:AE$20,Paramètres!$C$47) -> 0 | AF50: =COUNTIF(AF$3:AF$20,Paramètres!$C$47) -> 0 | AG50: =COUNTIF(AG$3:AG$20,Paramètres!$C$47) -> 0 | AH50: =COUNTIF(AH$3:AH$20,Paramètres!$C$47) -> 0 | AI50: 0
D51: =Paramètres!B48 -> Entrainement SD | E51: =COUNTIF(E$3:E$20,Paramètres!$C$48) -> 0 | F51: =COUNTIF(F$3:F$20,Paramètres!$C$48) -> 0 | G51: =COUNTIF(G$3:G$20,Paramètres!$C$48) -> 0 | H51: =COUNTIF(H$3:H$20,Paramètres!$C$48) -> 0 | I51: =COUNTIF(I$3:I$20,Paramètres!$C$48) -> 0 | J51: =COUNTIF(J$3:J$20,Paramètres!$C$48) -> 0 | K51: =COUNTIF(K$3:K$20,Paramètres!$C$48) -> 0 | L51: =COUNTIF(L$3:L$20,Paramètres!$C$48) -> 0 | M51: =COUNTIF(M$3:M$20,Paramètres!$C$48) -> 0 | N51: =COUNTIF(N$3:N$20,Paramètres!$C$48) -> 0 | O51: =COUNTIF(O$3:O$20,Paramètres!$C$48) -> 0 | P51: =COUNTIF(P$3:P$20,Paramètres!$C$48) -> 0 | Q51: =COUNTIF(Q$3:Q$20,Paramètres!$C$48) -> 0 | R51: =COUNTIF(R$3:R$20,Paramètres!$C$48) -> 0 | S51: =COUNTIF(S$3:S$20,Paramètres!$C$48) -> 0 | T51: =COUNTIF(T$3:T$20,Paramètres!$C$48) -> 0 | U51: =COUNTIF(U$3:U$20,Paramètres!$C$48) -> 0 | V51: =COUNTIF(V$3:V$20,Paramètres!$C$48) -> 0 | W51: =COUNTIF(W$3:W$20,Paramètres!$C$48) -> 0 | X51: =COUNTIF(X$3:X$20,Paramètres!$C$48) -> 0 | Y51: =COUNTIF(Y$3:Y$20,Paramètres!$C$48) -> 0 | Z51: =COUNTIF(Z$3:Z$20,Paramètres!$C$48) -> 0 | AA51: =COUNTIF(AA$3:AA$20,Paramètres!$C$48) -> 0 | AB51: =COUNTIF(AB$3:AB$20,Paramètres!$C$48) -> 0 | AC51: =COUNTIF(AC$3:AC$20,Paramètres!$C$48) -> 0 | AD51: =COUNTIF(AD$3:AD$20,Paramètres!$C$48) -> 0 | AE51: =COUNTIF(AE$3:AE$20,Paramètres!$C$48) -> 0 | AF51: =COUNTIF(AF$3:AF$20,Paramètres!$C$48) -> 0 | AG51: =COUNTIF(AG$3:AG$20,Paramètres!$C$48) -> 0 | AH51: =COUNTIF(AH$3:AH$20,Paramètres!$C$48) -> 0 | AI51: 0
D52: =Paramètres!B49 -> Entrainement EPIM | E52: =COUNTIF(E$3:E$20,Paramètres!$C$49) -> 0 | F52: =COUNTIF(F$3:F$20,Paramètres!$C$49) -> 0 | G52: =COUNTIF(G$3:G$20,Paramètres!$C$49) -> 0 | H52: =COUNTIF(H$3:H$20,Paramètres!$C$49) -> 0 | I52: =COUNTIF(I$3:I$20,Paramètres!$C$49) -> 0 | J52: =COUNTIF(J$3:J$20,Paramètres!$C$49) -> 0 | K52: =COUNTIF(K$3:K$20,Paramètres!$C$49) -> 0 | L52: =COUNTIF(L$3:L$20,Paramètres!$C$49) -> 0 | M52: =COUNTIF(M$3:M$20,Paramètres!$C$49) -> 0 | N52: =COUNTIF(N$3:N$20,Paramètres!$C$49) -> 0 | O52: =COUNTIF(O$3:O$20,Paramètres!$C$49) -> 0 | P52: =COUNTIF(P$3:P$20,Paramètres!$C$49) -> 0 | Q52: =COUNTIF(Q$3:Q$20,Paramètres!$C$49) -> 0 | R52: =COUNTIF(R$3:R$20,Paramètres!$C$49) -> 0 | S52: =COUNTIF(S$3:S$20,Paramètres!$C$49) -> 0 | T52: =COUNTIF(T$3:T$20,Paramètres!$C$49) -> 0 | U52: =COUNTIF(U$3:U$20,Paramètres!$C$49) -> 0 | V52: =COUNTIF(V$3:V$20,Paramètres!$C$49) -> 0 | W52: =COUNTIF(W$3:W$20,Paramètres!$C$49) -> 0 | X52: =COUNTIF(X$3:X$20,Paramètres!$C$49) -> 0 | Y52: =COUNTIF(Y$3:Y$20,Paramètres!$C$49) -> 0 | Z52: =COUNTIF(Z$3:Z$20,Paramètres!$C$49) -> 0 | AA52: =COUNTIF(AA$3:AA$20,Paramètres!$C$49) -> 0 | AB52: =COUNTIF(AB$3:AB$20,Paramètres!$C$49) -> 0 | AC52: =COUNTIF(AC$3:AC$20,Paramètres!$C$49) -> 0 | AD52: =COUNTIF(AD$3:AD$20,Paramètres!$C$49) -> 0 | AE52: =COUNTIF(AE$3:AE$20,Paramètres!$C$49) -> 0 | AF52: =COUNTIF(AF$3:AF$20,Paramètres!$C$49) -> 0 | AG52: =COUNTIF(AG$3:AG$20,Paramètres!$C$49) -> 0 | AH52: =COUNTIF(AH$3:AH$20,Paramètres!$C$49) -> 0 | AI52: 0
D53: =Paramètres!B50 -> Entrainement SAV | E53: =COUNTIF(E$3:E$20,Paramètres!$C$50) -> 0 | F53: =COUNTIF(F$3:F$20,Paramètres!$C$50) -> 0 | G53: =COUNTIF(G$3:G$20,Paramètres!$C$50) -> 0 | H53: =COUNTIF(H$3:H$20,Paramètres!$C$50) -> 0 | I53: =COUNTIF(I$3:I$20,Paramètres!$C$50) -> 0 | J53: =COUNTIF(J$3:J$20,Paramètres!$C$50) -> 0 | K53: =COUNTIF(K$3:K$20,Paramètres!$C$50) -> 0 | L53: =COUNTIF(L$3:L$20,Paramètres!$C$50) -> 0 | M53: =COUNTIF(M$3:M$20,Paramètres!$C$50) -> 0 | N53: =COUNTIF(N$3:N$20,Paramètres!$C$50) -> 0 | O53: =COUNTIF(O$3:O$20,Paramètres!$C$50) -> 0 | P53: =COUNTIF(P$3:P$20,Paramètres!$C$50) -> 0 | Q53: =COUNTIF(Q$3:Q$20,Paramètres!$C$50) -> 0 | R53: =COUNTIF(R$3:R$20,Paramètres!$C$50) -> 0 | S53: =COUNTIF(S$3:S$20,Paramètres!$C$50) -> 0 | T53: =COUNTIF(T$3:T$20,Paramètres!$C$50) -> 0 | U53: =COUNTIF(U$3:U$20,Paramètres!$C$50) -> 0 | V53: =COUNTIF(V$3:V$20,Paramètres!$C$50) -> 0 | W53: =COUNTIF(W$3:W$20,Paramètres!$C$50) -> 0 | X53: =COUNTIF(X$3:X$20,Paramètres!$C$50) -> 0 | Y53: =COUNTIF(Y$3:Y$20,Paramètres!$C$50) -> 0 | Z53: =COUNTIF(Z$3:Z$20,Paramètres!$C$50) -> 0 | AA53: =COUNTIF(AA$3:AA$20,Paramètres!$C$50) -> 0 | AB53: =COUNTIF(AB$3:AB$20,Paramètres!$C$50) -> 0 | AC53: =COUNTIF(AC$3:AC$20,Paramètres!$C$50) -> 0 | AD53: =COUNTIF(AD$3:AD$20,Paramètres!$C$50) -> 0 | AE53: =COUNTIF(AE$3:AE$20,Paramètres!$C$50) -> 0 | AF53: =COUNTIF(AF$3:AF$20,Paramètres!$C$50) -> 0 | AG53: =COUNTIF(AG$3:AG$20,Paramètres!$C$50) -> 0 | AH53: =COUNTIF(AH$3:AH$20,Paramètres!$C$50) -> 0 | AI53: 0
D54: =Paramètres!B56 -> Décharge Syndicale | E54: =COUNTIF(E$3:E$20,Paramètres!$C$56) -> 0 | F54: =COUNTIF(F$3:F$20,Paramètres!$C$56) -> 0 | G54: =COUNTIF(G$3:G$20,Paramètres!$C$56) -> 0 | H54: =COUNTIF(H$3:H$20,Paramètres!$C$56) -> 0 | I54: =COUNTIF(I$3:I$20,Paramètres!$C$56) -> 0 | J54: =COUNTIF(J$3:J$20,Paramètres!$C$56) -> 0 | K54: =COUNTIF(K$3:K$20,Paramètres!$C$56) -> 0 | L54: =COUNTIF(L$3:L$20,Paramètres!$C$56) -> 0 | M54: =COUNTIF(M$3:M$20,Paramètres!$C$56) -> 0 | N54: =COUNTIF(N$3:N$20,Paramètres!$C$56) -> 0 | O54: =COUNTIF(O$3:O$20,Paramètres!$C$56) -> 0 | P54: =COUNTIF(P$3:P$20,Paramètres!$C$56) -> 0 | Q54: =COUNTIF(Q$3:Q$20,Paramètres!$C$56) -> 0 | R54: =COUNTIF(R$3:R$20,Paramètres!$C$56) -> 0 | S54: =COUNTIF(S$3:S$20,Paramètres!$C$56) -> 0 | T54: =COUNTIF(T$3:T$20,Paramètres!$C$56) -> 0 | U54: =COUNTIF(U$3:U$20,Paramètres!$C$56) -> 0 | V54: =COUNTIF(V$3:V$20,Paramètres!$C$56) -> 0 | W54: =COUNTIF(W$3:W$20,Paramètres!$C$56) -> 0 | X54: =COUNTIF(X$3:X$20,Paramètres!$C$56) -> 0 | Y54: =COUNTIF(Y$3:Y$20,Paramètres!$C$56) -> 0 | Z54: =COUNTIF(Z$3:Z$20,Paramètres!$C$56) -> 0 | AA54: =COUNTIF(AA$3:AA$20,Paramètres!$C$56) -> 0 | AB54: =COUNTIF(AB$3:AB$20,Paramètres!$C$56) -> 0 | AC54: =COUNTIF(AC$3:AC$20,Paramètres!$C$56) -> 0 | AD54: =COUNTIF(AD$3:AD$20,Paramètres!$C$56) -> 0 | AE54: =COUNTIF(AE$3:AE$20,Paramètres!$C$56) -> 0 | AF54: =COUNTIF(AF$3:AF$20,Paramètres!$C$56) -> 0 | AG54: =COUNTIF(AG$3:AG$20,Paramètres!$C$56) -> 0 | AH54: =COUNTIF(AH$3:AH$20,Paramètres!$C$56) -> 0 | AI54: 0
D55: =Paramètres!B57 -> Autorisation Syndicale | E55: =COUNTIF(E$3:E$20,Paramètres!$C$57) -> 0 | F55: =COUNTIF(F$3:F$20,Paramètres!$C$57) -> 0 | G55: =COUNTIF(G$3:G$20,Paramètres!$C$57) -> 0 | H55: =COUNTIF(H$3:H$20,Paramètres!$C$57) -> 0 | I55: =COUNTIF(I$3:I$20,Paramètres!$C$57) -> 0 | J55: =COUNTIF(J$3:J$20,Paramètres!$C$57) -> 0 | K55: =COUNTIF(K$3:K$20,Paramètres!$C$57) -> 0 | L55: =COUNTIF(L$3:L$20,Paramètres!$C$57) -> 0 | M55: =COUNTIF(M$3:M$20,Paramètres!$C$57) -> 0 | N55: =COUNTIF(N$3:N$20,Paramètres!$C$57) -> 0 | O55: =COUNTIF(O$3:O$20,Paramètres!$C$57) -> 0 | P55: =COUNTIF(P$3:P$20,Paramètres!$C$57) -> 0 | Q55: =COUNTIF(Q$3:Q$20,Paramètres!$C$57) -> 0 | R55: =COUNTIF(R$3:R$20,Paramètres!$C$57) -> 0 | S55: =COUNTIF(S$3:S$20,Paramètres!$C$57) -> 0 | T55: =COUNTIF(T$3:T$20,Paramètres!$C$57) -> 0 | U55: =COUNTIF(U$3:U$20,Paramètres!$C$57) -> 0 | V55: =COUNTIF(V$3:V$20,Paramètres!$C$57) -> 0 | W55: =COUNTIF(W$3:W$20,Paramètres!$C$57) -> 0 | X55: =COUNTIF(X$3:X$20,Paramètres!$C$57) -> 0 | Y55: =COUNTIF(Y$3:Y$20,Paramètres!$C$57) -> 0 | Z55: =COUNTIF(Z$3:Z$20,Paramètres!$C$57) -> 0 | AA55: =COUNTIF(AA$3:AA$20,Paramètres!$C$57) -> 0 | AB55: =COUNTIF(AB$3:AB$20,Paramètres!$C$57) -> 0 | AC55: =COUNTIF(AC$3:AC$20,Paramètres!$C$57) -> 0 | AD55: =COUNTIF(AD$3:AD$20,Paramètres!$C$57) -> 0 | AE55: =COUNTIF(AE$3:AE$20,Paramètres!$C$57) -> 0 | AF55: =COUNTIF(AF$3:AF$20,Paramètres!$C$57) -> 0 | AG55: =COUNTIF(AG$3:AG$20,Paramètres!$C$57) -> 0 | AH55: =COUNTIF(AH$3:AH$20,Paramètres!$C$57) -> 0 | AI55: 0
D56: =Paramètres!B58 -> GOC | E56: =COUNTIF(E$3:E$20,Paramètres!$C$58) -> 0 | F56: =COUNTIF(F$3:F$20,Paramètres!$C$58) -> 0 | G56: =COUNTIF(G$3:G$20,Paramètres!$C$58) -> 0 | H56: =COUNTIF(H$3:H$20,Paramètres!$C$58) -> 0 | I56: =COUNTIF(I$3:I$20,Paramètres!$C$58) -> 0 | J56: =COUNTIF(J$3:J$20,Paramètres!$C$58) -> 0 | K56: =COUNTIF(K$3:K$20,Paramètres!$C$58) -> 0 | L56: =COUNTIF(L$3:L$20,Paramètres!$C$58) -> 0 | M56: =COUNTIF(M$3:M$20,Paramètres!$C$58) -> 0 | N56: =COUNTIF(N$3:N$20,Paramètres!$C$58) -> 0 | O56: =COUNTIF(O$3:O$20,Paramètres!$C$58) -> 0 | P56: =COUNTIF(P$3:P$20,Paramètres!$C$58) -> 0 | Q56: =COUNTIF(Q$3:Q$20,Paramètres!$C$58) -> 0 | R56: =COUNTIF(R$3:R$20,Paramètres!$C$58) -> 0 | S56: =COUNTIF(S$3:S$20,Paramètres!$C$58) -> 0 | T56: =COUNTIF(T$3:T$20,Paramètres!$C$58) -> 0 | U56: =COUNTIF(U$3:U$20,Paramètres!$C$58) -> 0 | V56: =COUNTIF(V$3:V$20,Paramètres!$C$58) -> 0 | W56: =COUNTIF(W$3:W$20,Paramètres!$C$58) -> 0 | X56: =COUNTIF(X$3:X$20,Paramètres!$C$58) -> 0 | Y56: =COUNTIF(Y$3:Y$20,Paramètres!$C$58) -> 0 | Z56: =COUNTIF(Z$3:Z$20,Paramètres!$C$58) -> 0 | AA56: =COUNTIF(AA$3:AA$20,Paramètres!$C$58) -> 0 | AB56: =COUNTIF(AB$3:AB$20,Paramètres!$C$58) -> 0 | AC56: =COUNTIF(AC$3:AC$20,Paramètres!$C$58) -> 0 | AD56: =COUNTIF(AD$3:AD$20,Paramètres!$C$58) -> 0 | AE56: =COUNTIF(AE$3:AE$20,Paramètres!$C$58) -> 0 | AF56: =COUNTIF(AF$3:AF$20,Paramètres!$C$58) -> 0 | AG56: =COUNTIF(AG$3:AG$20,Paramètres!$C$58) -> 0 | AH56: =COUNTIF(AH$3:AH$20,Paramètres!$C$58) -> 0 | AI56: 0
D57: =Paramètres!B59 -> Hydrant | E57: =COUNTIF(E$3:E$20,Paramètres!$C$59) -> 0 | F57: =COUNTIF(F$3:F$20,Paramètres!$C$59) -> 0 | G57: =COUNTIF(G$3:G$20,Paramètres!$C$59) -> 0 | H57: =COUNTIF(H$3:H$20,Paramètres!$C$59) -> 0 | I57: =COUNTIF(I$3:I$20,Paramètres!$C$59) -> 0 | J57: =COUNTIF(J$3:J$20,Paramètres!$C$59) -> 0 | K57: =COUNTIF(K$3:K$20,Paramètres!$C$59) -> 0 | L57: =COUNTIF(L$3:L$20,Paramètres!$C$59) -> 0 | M57: =COUNTIF(M$3:M$20,Paramètres!$C$59) -> 0 | N57: =COUNTIF(N$3:N$20,Paramètres!$C$59) -> 0 | O57: =COUNTIF(O$3:O$20,Paramètres!$C$59) -> 0 | P57: =COUNTIF(P$3:P$20,Paramètres!$C$59) -> 0 | Q57: =COUNTIF(Q$3:Q$20,Paramètres!$C$59) -> 0 | R57: =COUNTIF(R$3:R$20,Paramètres!$C$59) -> 0 | S57: =COUNTIF(S$3:S$20,Paramètres!$C$59) -> 0 | T57: =COUNTIF(T$3:T$20,Paramètres!$C$59) -> 0 | U57: =COUNTIF(U$3:U$20,Paramètres!$C$59) -> 0 | V57: =COUNTIF(V$3:V$20,Paramètres!$C$59) -> 0 | W57: =COUNTIF(W$3:W$20,Paramètres!$C$59) -> 0 | X57: =COUNTIF(X$3:X$20,Paramètres!$C$59) -> 0 | Y57: =COUNTIF(Y$3:Y$20,Paramètres!$C$59) -> 0 | Z57: =COUNTIF(Z$3:Z$20,Paramètres!$C$59) -> 0 | AA57: =COUNTIF(AA$3:AA$20,Paramètres!$C$59) -> 0 | AB57: =COUNTIF(AB$3:AB$20,Paramètres!$C$59) -> 0 | AC57: =COUNTIF(AC$3:AC$20,Paramètres!$C$59) -> 0 | AD57: =COUNTIF(AD$3:AD$20,Paramètres!$C$59) -> 0 | AE57: =COUNTIF(AE$3:AE$20,Paramètres!$C$59) -> 0 | AF57: =COUNTIF(AF$3:AF$20,Paramètres!$C$59) -> 0 | AG57: =COUNTIF(AG$3:AG$20,Paramètres!$C$59) -> 0 | AH57: =COUNTIF(AH$3:AH$20,Paramètres!$C$59) -> 0 | AI57: 0
D58: =Paramètres!B60 -> Evênement Familial | E58: =COUNTIF(E$3:E$20,Paramètres!$C$60) -> 0 | F58: =COUNTIF(F$3:F$20,Paramètres!$C$60) -> 0 | G58: =COUNTIF(G$3:G$20,Paramètres!$C$60) -> 0 | H58: =COUNTIF(H$3:H$20,Paramètres!$C$60) -> 0 | I58: =COUNTIF(I$3:I$20,Paramètres!$C$60) -> 0 | J58: =COUNTIF(J$3:J$20,Paramètres!$C$60) -> 0 | K58: =COUNTIF(K$3:K$20,Paramètres!$C$60) -> 0 | L58: =COUNTIF(L$3:L$20,Paramètres!$C$60) -> 0 | M58: =COUNTIF(M$3:M$20,Paramètres!$C$60) -> 0 | N58: =COUNTIF(N$3:N$20,Paramètres!$C$60) -> 0 | O58: =COUNTIF(O$3:O$20,Paramètres!$C$60) -> 0 | P58: =COUNTIF(P$3:P$20,Paramètres!$C$60) -> 0 | Q58: =COUNTIF(Q$3:Q$20,Paramètres!$C$60) -> 0 | R58: =COUNTIF(R$3:R$20,Paramètres!$C$60) -> 0 | S58: =COUNTIF(S$3:S$20,Paramètres!$C$60) -> 0 | T58: =COUNTIF(T$3:T$20,Paramètres!$C$60) -> 0 | U58: =COUNTIF(U$3:U$20,Paramètres!$C$60) -> 0 | V58: =COUNTIF(V$3:V$20,Paramètres!$C$60) -> 0 | W58: =COUNTIF(W$3:W$20,Paramètres!$C$60) -> 0 | X58: =COUNTIF(X$3:X$20,Paramètres!$C$60) -> 0 | Y58: =COUNTIF(Y$3:Y$20,Paramètres!$C$60) -> 0 | Z58: =COUNTIF(Z$3:Z$20,Paramètres!$C$60) -> 0 | AA58: =COUNTIF(AA$3:AA$20,Paramètres!$C$60) -> 0 | AB58: =COUNTIF(AB$3:AB$20,Paramètres!$C$60) -> 0 | AC58: =COUNTIF(AC$3:AC$20,Paramètres!$C$60) -> 0 | AD58: =COUNTIF(AD$3:AD$20,Paramètres!$C$60) -> 0 | AE58: =COUNTIF(AE$3:AE$20,Paramètres!$C$60) -> 0 | AF58: =COUNTIF(AF$3:AF$20,Paramètres!$C$60) -> 0 | AG58: =COUNTIF(AG$3:AG$20,Paramètres!$C$60) -> 0 | AH58: =COUNTIF(AH$3:AH$20,Paramètres!$C$60) -> 0 | AI58: 0
D59: =Paramètres!B61 -> Instance Paritaire | E59: =COUNTIF(E$3:E$20,Paramètres!$C$61) -> 0 | F59: =COUNTIF(F$3:F$20,Paramètres!$C$61) -> 0 | G59: =COUNTIF(G$3:G$20,Paramètres!$C$61) -> 0 | H59: =COUNTIF(H$3:H$20,Paramètres!$C$61) -> 0 | I59: =COUNTIF(I$3:I$20,Paramètres!$C$61) -> 0 | J59: =COUNTIF(J$3:J$20,Paramètres!$C$61) -> 0 | K59: =COUNTIF(K$3:K$20,Paramètres!$C$61) -> 0 | L59: =COUNTIF(L$3:L$20,Paramètres!$C$61) -> 0 | M59: =COUNTIF(M$3:M$20,Paramètres!$C$61) -> 0 | N59: =COUNTIF(N$3:N$20,Paramètres!$C$61) -> 0 | O59: =COUNTIF(O$3:O$20,Paramètres!$C$61) -> 0 | P59: =COUNTIF(P$3:P$20,Paramètres!$C$61) -> 0 | Q59: =COUNTIF(Q$3:Q$20,Paramètres!$C$61) -> 0 | R59: =COUNTIF(R$3:R$20,Paramètres!$C$61) -> 0 | S59: =COUNTIF(S$3:S$20,Paramètres!$C$61) -> 0 | T59: =COUNTIF(T$3:T$20,Paramètres!$C$61) -> 0 | U59: =COUNTIF(U$3:U$20,Paramètres!$C$61) -> 0 | V59: =COUNTIF(V$3:V$20,Paramètres!$C$61) -> 0 | W59: =COUNTIF(W$3:W$20,Paramètres!$C$61) -> 0 | X59: =COUNTIF(X$3:X$20,Paramètres!$C$61) -> 0 | Y59: =COUNTIF(Y$3:Y$20,Paramètres!$C$61) -> 0 | Z59: =COUNTIF(Z$3:Z$20,Paramètres!$C$61) -> 0 | AA59: =COUNTIF(AA$3:AA$20,Paramètres!$C$61) -> 0 | AB59: =COUNTIF(AB$3:AB$20,Paramètres!$C$61) -> 0 | AC59: =COUNTIF(AC$3:AC$20,Paramètres!$C$61) -> 0 | AD59: =COUNTIF(AD$3:AD$20,Paramètres!$C$61) -> 0 | AE59: =COUNTIF(AE$3:AE$20,Paramètres!$C$61) -> 0 | AF59: =COUNTIF(AF$3:AF$20,Paramètres!$C$61) -> 0 | AG59: =COUNTIF(AG$3:AG$20,Paramètres!$C$61) -> 0 | AH59: =COUNTIF(AH$3:AH$20,Paramètres!$C$61) -> 0 | AI59: 0
D60: =Paramètres!B62 -> Congés | E60: =COUNTIF(E$3:E$20,Paramètres!$C$62) -> 0 | F60: =COUNTIF(F$3:F$20,Paramètres!$C$62) -> 0 | G60: =COUNTIF(G$3:G$20,Paramètres!$C$62) -> 0 | H60: =COUNTIF(H$3:H$20,Paramètres!$C$62) -> 0 | I60: =COUNTIF(I$3:I$20,Paramètres!$C$62) -> 0 | J60: =COUNTIF(J$3:J$20,Paramètres!$C$62) -> 0 | K60: =COUNTIF(K$3:K$20,Paramètres!$C$62) -> 0 | L60: =COUNTIF(L$3:L$20,Paramètres!$C$62) -> 0 | M60: =COUNTIF(M$3:M$20,Paramètres!$C$62) -> 0 | N60: =COUNTIF(N$3:N$20,Paramètres!$C$62) -> 0 | O60: =COUNTIF(O$3:O$20,Paramètres!$C$62) -> 0 | P60: =COUNTIF(P$3:P$20,Paramètres!$C$62) -> 0 | Q60: =COUNTIF(Q$3:Q$20,Paramètres!$C$62) -> 0 | R60: =COUNTIF(R$3:R$20,Paramètres!$C$62) -> 0 | S60: =COUNTIF(S$3:S$20,Paramètres!$C$62) -> 0 | T60: =COUNTIF(T$3:T$20,Paramètres!$C$62) -> 0 | U60: =COUNTIF(U$3:U$20,Paramètres!$C$62) -> 0 | V60: =COUNTIF(V$3:V$20,Paramètres!$C$62) -> 0 | W60: =COUNTIF(W$3:W$20,Paramètres!$C$62) -> 0 | X60: =COUNTIF(X$3:X$20,Paramètres!$C$62) -> 0 | Y60: =COUNTIF(Y$3:Y$20,Paramètres!$C$62) -> 0 | Z60: =COUNTIF(Z$3:Z$20,Paramètres!$C$62) -> 0 | AA60: =COUNTIF(AA$3:AA$20,Paramètres!$C$62) -> 0 | AB60: =COUNTIF(AB$3:AB$20,Paramètres!$C$62) -> 0 | AC60: =COUNTIF(AC$3:AC$20,Paramètres!$C$62) -> 0 | AD60: =COUNTIF(AD$3:AD$20,Paramètres!$C$62) -> 0 | AE60: =COUNTIF(AE$3:AE$20,Paramètres!$C$62) -> 0 | AF60: =COUNTIF(AF$3:AF$20,Paramètres!$C$62) -> 0 | AG60: =COUNTIF(AG$3:AG$20,Paramètres!$C$62) -> 0 | AH60: =COUNTIF(AH$3:AH$20,Paramètres!$C$62) -> 0 | AI60: 0

Sheet Juillet
C1: <| | D1: =Paramètres!D28 -> 22 | E1: =DATE(An_0,7,1) -> 41455 | F1: =E1+1 -> 41456 | G1: 41457 | H1: 41458 | I1: 41459 | J1: 41460 | K1: 41461 | L1: 41462 | M1: 41463 | N1: 41464 | O1: 41465 | P1: 41466 | Q1: 41467 | R1: 41468 | S1: 41469 | T1: 41470 | U1: 41471 | V1: 41472 | W1: 41473 | X1: 41474 | Y1: 41475 | Z1: 41476 | AA1: 41477 | AB1: 41478 | AC1: 41479 | AD1: 41480 | AE1: 41481 | AF1: 41482 | AG1: 41483 | AH1: 41484 | AI1: 41485 | AJ1: =D44 -> Garde | AK1: =D49 -> Formation Stagiaire | AL1: =D50 -> Formation formateur | AM1: =D51 -> Entrainement SD | AN1: =D52 -> Entrainement EPIM | AO1: =D53 -> Entrainement SAV | AP1: =D54 -> Décharge Syndicale | AQ1: =D55 -> Autorisation Syndicale | AR1: Total garde | AS1: Total heures mois | AT1: Hrs Th. À effectuer | AU1: Différence | AV1: Am + AT | AW1: =Paramètres!B58 -> GOC | AX1: =Paramètres!B59 -> Hydrant | AY1: =Paramètres!B61 -> Instance Paritaire
E2: =DATE(An_0,7,1) -> 41455 | F2: =E2+1 -> 41456 | G2: 41457 | H2: 41458 | I2: 41459 | J2: 41460 | K2: 41461 | L2: 41462 | M2: 41463 | N2: 41464 | O2: 41465 | P2: 41466 | Q2: 41467 | R2: 41468 | S2: 41469 | T2: 41470 | U2: 41471 | V2: 41472 | W2: 41473 | X2: 41474 | Y2: 41475 | Z2: 41476 | AA2: 41477 | AB2: 41478 | AC2: 41479 | AD2: 41480 | AE2: 41481 | AF2: 41482 | AG2: 41483 | AH2: 41484 | AI2: 41485 | AL2: =D50 -> Formation formateur
A3: =Paramètres!U7 -> x | B3: =IF(A3="x",Paramètres!M7,"") -> -1771 | C3: Personnel | D3: =IF(A3="x",CONCATENATE(Paramètres!D7," ",Paramètres!C7," ",Paramètres!B7),"") -> Adc Jacques Agent_1 | AJ3: =COUNTIF($E3:$AI3,Paramètres!$C$43) -> 0 | AK3: =COUNTIF($E3:$AI3,Paramètres!$C$46) -> 0 | AL3: =COUNTIF($E3:$AI3,Paramètres!$C$47) -> 0 | AM3: =COUNTIF($E3:$AI3,Paramètres!$C$48) -> 0 | AN3: =COUNTIF($E3:$AI3,Paramètres!$C$49) -> 0 | AO3: =COUNTIF($E3:$AI3,Paramètres!$C$50) -> 0 | AP3: =COUNTIF($E3:$AI3,Paramètres!$C$56) -> 0 | AQ3: =COUNTIF($E3:$AI3,Paramètres!$C$57) -> 0 | AR3: =SUM(AJ3:AQ3) -> 0 | AS3: =($AJ3*VtyJ)+($AK3*VtyFs)+($AL3*VtyFf)+($AM3*VtySD)+($AN3*VtyPI)+($AO3*VtySA)+($AP3*VtyDsy)+($AQ3*VtyAsy)+($AW3*VtyGOC)+($AX3*VtyHy)+($AY3*VtyiPA)+(AV3*VtyAm) -> 0 | AT3: =($D$1-COUNTIF(E3:AI3,TyCo))*(CoAG1) -> 137.5652174 | AU3: =AS3-AT3 -> -137.5652174 | AV3: =COUNTIF(E3:AI3,TyAm)+COUNTIF(E3:AI3,TyAt) -> 0 | AW3: =COUNTIF($E3:$AI3,TyGOC) -> 0 | AX3: =COUNTIF($E3:$AI3,TyHy) -> 0 | AY3: =COUNTIF($E3:$AI3,TySy) -> 0
A4: =Paramètres!U8 -> x | B4: =IF(A4="x",Paramètres!M8,"") -> -1582 | D4: =IF(A4="x",CONCATENATE(Paramètres!D8," ",Paramètres!C8," ",Paramètres!B8),"") -> Adj Christophe Agent_2 | AJ4: =COUNTIF($E4:$AI4,Paramètres!$C$43) -> 0 | AK4: =COUNTIF($E4:$AI4,Paramètres!$C$46) -> 0 | AL4: =COUNTIF($E4:$AI4,Paramètres!$C$47) -> 0 | AM4: =COUNTIF($E4:$AI4,Paramètres!$C$48) -> 0 | AN4: =COUNTIF($E4:$AI4,Paramètres!$C$49) -> 0 | AO4: =COUNTIF($E4:$AI4,Paramètres!$C$50) -> 0 | AP4: =COUNTIF($E4:$AI4,Paramètres!$C$56) -> 0 | AQ4: =COUNTIF($E4:$AI4,Paramètres!$C$57) -> 0 | AR4: 0 | AS4: 0 | AT4: =($D$1-COUNTIF(E4:AI4,Paramètres!$C$62))*(CoAG2) -> 137.5652174 | AU4: -137.5652174 | AV4: 0 | AW4: 0 | AX4: 0 | AY4: 0
A5: =Paramètres!U9 -> x | B5: =IF(A5="x",Paramètres!M9,"") -> -1582 | D5: =IF(A5="x",CONCATENATE(Paramètres!D9," ",Paramètres!C9," ",Paramètres!B9),"") -> Adj Christophe Agent_3 | AJ5: =COUNTIF($E5:$AI5,Paramètres!$C$43) -> 0 | AK5: =COUNTIF($E5:$AI5,Paramètres!$C$46) -> 0 | AL5: =COUNTIF($E5:$AI5,Paramètres!$C$47) -> 0 | AM5: =COUNTIF($E5:$AI5,Paramètres!$C$48) -> 0 | AN5: =COUNTIF($E5:$AI5,Paramètres!$C$49) -> 0 | AO5: =COUNTIF($E5:$AI5,Paramètres!$C$50) -> 0 | AP5: =COUNTIF($E5:$AI5,Paramètres!$C$56) -> 0 | AQ5: =COUNTIF($E5:$AI5,Paramètres!$C$57) -> 0 | AR5: 0 | AS5: 0 | AT5: =($D$1-COUNTIF(E5:AI5,Paramètres!$C$62))*(CoAG3) -> 137.5652174 | AU5: -137.5652174 | AV5: 0 | AW5: 0 | AX5: 0 | AY5: 0
A6: =Paramètres!U10 -> 0 | B6: =IF(A6="x",Paramètres!M10,"") ->  | D6: =IF(A6="x",CONCATENATE(Paramètres!D10," ",Paramètres!C10," ",Paramètres!B10),"") -> 
A7: =Paramètres!U11 -> x | B7: =IF(A7="x",Paramètres!M11,"") -> -1582 | D7: =IF(A7="x",CONCATENATE(Paramètres!D11," ",Paramètres!C11," ",Paramètres!B11),"") -> Sch Ludovic Agent_5 | AJ7: =COUNTIF($E7:$AI7,Paramètres!$C$43) -> 0 | AK7: =COUNTIF($E7:$AI7,Paramètres!$C$46) -> 0 | AL7: =COUNTIF($E7:$AI7,Paramètres!$C$47) -> 0 | AM7: =COUNTIF($E7:$AI7,Paramètres!$C$48) -> 0 | AN7: =COUNTIF($E7:$AI7,Paramètres!$C$49) -> 0 | AO7: =COUNTIF($E7:$AI7,Paramètres!$C$50) -> 0 | AP7: =COUNTIF($E7:$AI7,Paramètres!$C$56) -> 0 | AQ7: =COUNTIF($E7:$AI7,Paramètres!$C$57) -> 0 | AR7: 0 | AS7: 0 | AT7: =($D$1-COUNTIF(E7:AI7,Paramètres!$C$62))*(CoAG4) ->  | AV7: 0 | AW7: 0 | AX7: 0 | AY7: 0
A8: =Paramètres!U12 -> x | B8: =IF(A8="x",Paramètres!M12,"") -> -1582 | D8: =IF(A8="x",CONCATENATE(Paramètres!D12," ",Paramètres!C12," ",Paramètres!B12),"") -> Sch Franck Agent_6 | AJ8: =COUNTIF(E8:AI8,Paramètres!$C$43) -> 0 | AK8: =COUNTIF(F8:AJ8,Paramètres!$C$46) -> 0 | AL8: =COUNTIF(G8:AK8,Paramètres!$C$47) -> 0 | AM8: =COUNTIF($E8:$AI8,Paramètres!$C$48) -> 0 | AN8: =COUNTIF($E8:$AI8,Paramètres!$C$49) -> 0 | AO8: =COUNTIF($E8:$AI8,Paramètres!$C$50) -> 0 | AP8: =COUNTIF($E8:$AI8,Paramètres!$C$56) -> 0 | AQ8: =COUNTIF($E8:$AI8,Paramètres!$C$57) -> 0 | AR8: 0 | AS8: 0 | AT8: =($D$1-COUNTIF(E8:AI8,Paramètres!$C$62))*(CoAG5) -> 137.5652174 | AU8: -137.5652174 | AV8: 0 | AW8: 0 | AX8: 0 | AY8: 0
A9: =Paramètres!U13 -> x | B9: =IF(A9="x",Paramètres!M13,"") -> -1265.6 | D9: =IF(A9="x",CONCATENATE(Paramètres!D13," ",Paramètres!C13," ",Paramètres!B13),"") -> Sch Delphine Agent_7 | AJ9: =COUNTIF(E9:AI9,Paramètres!$C$43) -> 0 | AK9: =COUNTIF(F9:AJ9,Paramètres!$C$46) -> 0 | AL9: =COUNTIF(G9:AK9,Paramètres!$C$47) -> 0 | AM9: =COUNTIF($E9:$AI9,Paramètres!$C$48) -> 0 | AN9: =COUNTIF($E9:$AI9,Paramètres!$C$49) -> 0 | AO9: =COUNTIF($E9:$AI9,Paramètres!$C$50) -> 0 | AP9: =COUNTIF($E9:$AI9,Paramètres!$C$56) -> 0 | AQ9: =COUNTIF($E9:$AI9,Paramètres!$C$57) -> 0 | AR9: 0 | AS9: 0 | AT9: =($D$1-COUNTIF(E9:AI9,Paramètres!$C$62))*(CoAG6) -> 137.5652174 | AU9: -137.5652174 | AV9: 0 | AW9: 0 | AX9: 0 | AY9: 0
A10: =Paramètres!U14 -> x | B10: =IF(A10="x",Paramètres!M14,"") -> -1393 | D10: =IF(A10="x",CONCATENATE(Paramètres!D14," ",Paramètres!C14," ",Paramètres!B14),"") -> Sch Jean-Philippe Agent_8
A11: =Paramètres!U15 -> 0 | B11: =IF(A11="x",Paramètres!M15,"") ->  | D11: =IF(A11="x",CONCATENATE(Paramètres!D15," ",Paramètres!C15," ",Paramètres!B15),"") ->  | AJ11: =COUNTIF(E11:AI11,Paramètres!$C$43) -> 0 | AK11: =COUNTIF(F11:AI11,Paramètres!$C$46) -> 0 | AL11: =COUNTIF(G11:AK11,Paramètres!$C$47) -> 0 | AM11: =COUNTIF($E11:$AI11,Paramètres!$C$48) -> 0 | AN11: =COUNTIF($E11:$AI11,Paramètres!$C$49) -> 0 | AO11: =COUNTIF($E11:$AI11,Paramètres!$C$50) -> 0 | AP11: =COUNTIF($E11:$AI11,Paramètres!$C$56) -> 0 | AQ11: =COUNTIF($E11:$AI11,Paramètres!$C$57) -> 0 | AR11: 0 | AS11: 0 | AT11: =($D$1-COUNTIF(E11:AI11,Paramètres!$C$62))*(CoAG7) -> 110.0521739 | AU11: -110.0521739 | AV11: 0 | AW11: 0 | AX11: 0 | AY11: 0
A12: =Paramètres!U16 -> x | B12: =IF(A12="x",Paramètres!M16,"") -> -1582 | D12: =IF(A12="x",CONCATENATE(Paramètres!D16," ",Paramètres!C16," ",Paramètres!B16),"") -> Sgt Raymond Agent_10 | AJ12: =COUNTIF(E12:AI12,Paramètres!$C$43) -> 0 | AK12: =COUNTIF(F12:AJ12,Paramètres!$C$46) -> 0 | AL12: =COUNTIF(G12:AK12,Paramètres!$C$47) -> 0 | AM12: =COUNTIF($E12:$AI12,Paramètres!$C$48) -> 0 | AN12: =COUNTIF($E12:$AI12,Paramètres!$C$49) -> 0 | AO12: =COUNTIF($E12:$AI12,Paramètres!$C$50) -> 0 | AP12: =COUNTIF($E12:$AI12,Paramètres!$C$56) -> 0 | AQ12: =COUNTIF($E12:$AI12,Paramètres!$C$57) -> 0 | AR12: 0 | AS12: 0 | AT12: =($D$1-COUNTIF(E12:AI12,Paramètres!$C$62))*(CoAG8) -> 137.5652174 | AU12: -137.5652174 | AV12: 0 | AW12: 0 | AX12: 0 | AY12: 0
A13: =Paramètres!U17 -> x | B13: =IF(A13="x",Paramètres!M17,"") -> -1582 | D13: =IF(A13="x",CONCATENATE(Paramètres!D17," ",Paramètres!C17," ",Paramètres!B17),"") -> Sgt Julien Agent_11 | AJ13: =COUNTIF(E13:AI13,Paramètres!$C$43) -> 0 | AK13: =COUNTIF(F13:AJ13,Paramètres!$C$46) -> 0 | AL13: =COUNTIF(G13:AK13,Paramètres!$C$47) -> 0 | AM13: =COUNTIF($E13:$AI13,Paramètres!$C$48) -> 0 | AN13: =COUNTIF($E13:$AI13,Paramètres!$C$49) -> 0 | AO13: =COUNTIF($E13:$AI13,Paramètres!$C$50) -> 0 | AP13: =COUNTIF($E13:$AI13,Paramètres!$C$56) -> 0 | AQ13: =COUNTIF($E13:$AI13,Paramètres!$C$57) -> 0 | AR13: 0 | AS13: 0 | AT13: =($D$1-COUNTIF(E13:AI13,Paramètres!$C$62))*(CoAG9) ->  | AV13: 0 | AW13: 0 | AX13: 0 | AY13: 0
A14: =Paramètres!U18 -> x | B14: =IF(A14="x",Paramètres!M18,"") -> -1582 | D14: =IF(A14="x",CONCATENATE(Paramètres!D18," ",Paramètres!C18," ",Paramètres!B18),"") -> Cch Cyril Agent_12 | AJ14: =COUNTIF(E14:AI14,Paramètres!$C$43) -> 0 | AK14: =COUNTIF(F14:AJ14,Paramètres!$C$46) -> 0 | AL14: =COUNTIF(G14:AK14,Paramètres!$C$47) -> 0 | AM14: =COUNTIF($E14:$AI14,Paramètres!$C$48) -> 0 | AN14: =COUNTIF($E14:$AI14,Paramètres!$C$49) -> 0 | AO14: =COUNTIF($E14:$AI14,Paramètres!$C$50) -> 0 | AP14: =COUNTIF($E14:$AI14,Paramètres!$C$56) -> 0 | AQ14: =COUNTIF($E14:$AI14,Paramètres!$C$57) -> 0 | AR14: 0 | AS14: 0 | AT14: =($D$1-COUNTIF(E14:AI14,Paramètres!$C$62))*(CoAG1) -> 137.5652174 | AU14: -137.5652174 | AV14: 0 | AW14: 0 | AX14: 0 | AY14: 0
A15: =Paramètres!U19 -> x | B15: =IF(A15="x",Paramètres!M19,"") -> -1582 | D15: =IF(A15="x",CONCATENATE(Paramètres!D19," ",Paramètres!C19," ",Paramètres!B19),"") -> Cpl Stéphane Agent_13 | AJ15: =COUNTIF(E15:AI15,Paramètres!$C$43) -> 0 | AK15: =COUNTIF(F15:AJ15,Paramètres!$C$46) -> 0 | AL15: =COUNTIF(G15:AK15,Paramètres!$C$47) -> 0 | AM15: =COUNTIF($E15:$AI15,Paramètres!$C$48) -> 0 | AN15: =COUNTIF($E15:$AI15,Paramètres!$C$49) -> 0 | AO15: =COUNTIF($E15:$AI15,Paramètres!$C$50) -> 0 | AP15: =COUNTIF($E15:$AI15,Paramètres!$C$56) -> 0 | AQ15: =COUNTIF($E15:$AI15,Paramètres!$C$57) -> 0 | AR15: 0 | AS15: 0 | AT15: =($D$1-COUNTIF(E15:AI15,Paramètres!$C$62))*(CoAG10) -> 137.5652174 | AU15: -137.5652174 | AV15: 0 | AW15: 0 | AX15: 0 | AY15: 0
A16: =Paramètres!U20 -> x | B16: =IF(A16="x",Paramètres!M20,"") -> -1582 | D16: =IF(A16="x",CONCATENATE(Paramètres!D20," ",Paramètres!C20," ",Paramètres!B20),"") -> Sap 1cl Nicolas Agent_14
A17: =Paramètres!U21 -> 0 | B17: =IF(A17="x",Paramètres!M21,"") ->  | D17: =IF(A17="x",CONCATENATE(Paramètres!D21," ",Paramètres!C21," ",Paramètres!B21),"") -> 
A18: =Paramètres!U22 -> 0 | B18: =IF(A18="x",Paramètres!M22,"") ->  | D18: =IF(A18="x",CONCATENATE(Paramètres!D22," ",Paramètres!C22," ",Paramètres!B22),"") -> 
A19: =Paramètres!U23 -> 0 | B19: =IF(A19="x",Paramètres!M23,"") ->  | D19: =IF(A19="x",CONCATENATE(Paramètres!D23," ",Paramètres!C23," ",Paramètres!B23),"") -> 
A20: =Paramètres!U24 -> 0 | B20: =IF(A20="x",Paramètres!M24,"") ->  | D20: =IF(A20="x",CONCATENATE(Paramètres!D24," ",Paramètres!C24," ",Paramètres!B24),"") -> 
C21: Ast | D21: Adc Jean-Marc RICHIER
C22: Conv. | D22: Adc Yves GUIRAUD
D23: Cch Jean-Louis TOCHON
D24: Sgt Emile MONTERO
C25: Renfort | AJ25: =COUNTIF(E25:AI25,Paramètres!$C$43) -> 0
AJ26: =COUNTIF(E26:AI26,Paramètres!$C$43) -> 0
AJ27: =COUNTIF(E27:AI27,Paramètres!$C$43) -> 0
AJ28: =COUNTIF(E28:AI28,Paramètres!$C$43) -> 0
AJ29: =COUNTIF(E29:AI29,Paramètres!$C$43) -> 0
AJ30: =COUNTIF(E30:AI30,Paramètres!$C$43) -> 0
AJ31: =COUNTIF(E31:AI31,Paramètres!$C$43) -> 0
AJ32: =COUNTIF(E32:AI32,Paramètres!$C$43) -> 0
AJ33: =COUNTIF(E33:AI33,Paramètres!$C$43) -> 0
AJ34: =COUNTIF(E34:AI34,Paramètres!$C$43) -> 0
AJ35: =COUNTIF(E35:AI35,Paramètres!$C$43) -> 0
AJ39: =COUNTIF(E39:AI39,Paramètres!$C$43) -> 0
AJ40: =COUNTIF(E40:AI40,Paramètres!$C$43) -> 0
AJ41: =COUNTIF(E41:AI41,Paramètres!$C$43) -> 0
AJ42: =COUNTIF(E42:AI42,Paramètres!$C$43) -> 0
AJ43: =COUNTIF(E43:AI43,Paramètres!$C$43) -> 0
D44: =Paramètres!B43 -> Garde | E44: =COUNTIF(E$3:E$43,"J*")+E45+COUNTIF(E$3:E$43,Paramètres!$C$45) -> 0 | F44: =COUNTIF(F$3:F$43,"J*")+F45+COUNTIF(F$3:F$43,Paramètres!$C$45) -> 0 | G44: =COUNTIF(G$3:G$43,"J*")+G45+COUNTIF(G$3:G$43,Paramètres!$C$45) -> 0 | H44: =COUNTIF(H$3:H$43,"J*")+H45+COUNTIF(H$3:H$43,Paramètres!$C$45) -> 0 | I44: =COUNTIF(I$3:I$43,"J*")+I45+COUNTIF(I$3:I$43,Paramètres!$C$45) -> 0 | J44: =COUNTIF(J$3:J$43,"J*")+J45+COUNTIF(J$3:J$43,Paramètres!$C$45) -> 0 | K44: =COUNTIF(K$3:K$43,"J*")+K45+COUNTIF(K$3:K$43,Paramètres!$C$45) -> 0 | L44: =COUNTIF(L$3:L$43,"J*")+L45+COUNTIF(L$3:L$43,Paramètres!$C$45) -> 0 | M44: =COUNTIF(M$3:M$43,"J*")+M45+COUNTIF(M$3:M$43,Paramètres!$C$45) -> 0 | N44: =COUNTIF(N$3:N$43,"J*")+N45+COUNTIF(N$3:N$43,Paramètres!$C$45) -> 0 | O44: =COUNTIF(O$3:O$43,"J*")+O45+COUNTIF(O$3:O$43,Paramètres!$C$45) -> 0 | P44: =COUNTIF(P$3:P$43,"J*")+P45+COUNTIF(P$3:P$43,Paramètres!$C$45) -> 0 | Q44: =COUNTIF(Q$3:Q$43,"J*")+Q45+COUNTIF(Q$3:Q$43,Paramètres!$C$45) -> 0 | R44: =COUNTIF(R$3:R$43,"J*")+R45+COUNTIF(R$3:R$43,Paramètres!$C$45) -> 0 | S44: =COUNTIF(S$3:S$43,"J*")+S45+COUNTIF(S$3:S$43,Paramètres!$C$45) -> 0 | T44: =COUNTIF(T$3:T$43,"J*")+T45+COUNTIF(T$3:T$43,Paramètres!$C$45) -> 0 | U44: =COUNTIF(U$3:U$43,"J*")+U45+COUNTIF(U$3:U$43,Paramètres!$C$45) -> 0 | V44: =COUNTIF(V$3:V$43,"J*")+V45+COUNTIF(V$3:V$43,Paramètres!$C$45) -> 0 | W44: =COUNTIF(W$3:W$43,"J*")+W45+COUNTIF(W$3:W$43,Paramètres!$C$45) -> 0 | X44: =COUNTIF(X$3:X$43,"J*")+X45+COUNTIF(X$3:X$43,Paramètres!$C$45) -> 0 | Y44: =COUNTIF(Y$3:Y$43,"J*")+Y45+COUNTIF(Y$3:Y$43,Paramètres!$C$45) -> 0 | Z44: =COUNTIF(Z$3:Z$43,"J*")+Z45+COUNTIF(Z$3:Z$43,Paramètres!$C$45) -> 0 | AA44: =COUNTIF(AA$3:AA$43,"J*")+AA45+COUNTIF(AA$3:AA$43,Paramètres!$C$45) -> 0 | AB44: =COUNTIF(AB$3:AB$43,"J*")+AB45+COUNTIF(AB$3:AB$43,Paramètres!$C$45) -> 0 | AC44: =COUNTIF(AC$3:AC$43,"J*")+AC45+COUNTIF(AC$3:AC$43,Paramètres!$C$45) -> 0 | AD44: =COUNTIF(AD$3:AD$43,"J*")+AD45+COUNTIF(AD$3:AD$43,Paramètres!$C$45) -> 0 | AE44: =COUNTIF(AE$3:AE$43,"J*")+AE45+COUNTIF(AE$3:AE$43,Paramètres!$C$45) -> 0 | AF44: =COUNTIF(AF$3:AF$43,"J*")+AF45+COUNTIF(AF$3:AF$43,Paramètres!$C$45) -> 0 | AG44: =COUNTIF(AG$3:AG$43,"J*")+AG45+COUNTIF(AG$3:AG$43,Paramètres!$C$45) -> 0 | AH44: =COUNTIF(AH$3:AH$43,"J*")+AH45+COUNTIF(AH$3:AH$43,Paramètres!$C$45) -> 0 | AI44: =COUNTIF(AI$3:AI$43,"J*")+AI45+COUNTIF(AI$3:AI$43,Paramètres!$C$45) -> 0 | AJ44: =SUM(E44:AI44) -> 0
D45: Chef de garde | E45: =COUNTIF(E$3:E$43,"Cdg") -> 0 | F45: 0 | G45: 0 | H45: 0 | I45: 0 | J45: 0 | K45: 0 | L45: 0 | M45: 0 | N45: 0 | O45: 0 | P45: 0 | Q45: 0 | R45: 0 | S45: 0 | T45: 0 | U45: 0 | V45: 0 | W45: 0 | X45: 0 | Y45: 0 | Z45: 0 | AA45: 0 | AB45: 0 | AC45: 0 | AD45: 0 | AE45: 0 | AF45: 0 | AG45: 0 | AH45: 0 | AI45: 0
D46: SPP | E46: =COUNTIF(E$3:E$30,Paramètres!$C$43) -> 0 | F46: =COUNTIF(F$3:F$30,Paramètres!$C$43) -> 0 | G46: =COUNTIF(G$3:G$30,Paramètres!$C$43) -> 0 | H46: =COUNTIF(H$3:H$30,Paramètres!$C$43) -> 0 | I46: =COUNTIF(I$3:I$30,Paramètres!$C$43) -> 0 | J46: =COUNTIF(J$3:J$30,Paramètres!$C$43) -> 0 | K46: =COUNTIF(K$3:K$30,Paramètres!$C$43) -> 0 | L46: =COUNTIF(L$3:L$30,Paramètres!$C$43) -> 0 | M46: =COUNTIF(M$3:M$30,Paramètres!$C$43) -> 0 | N46: =COUNTIF(N$3:N$30,Paramètres!$C$43) -> 0 | O46: =COUNTIF(O$3:O$30,Paramètres!$C$43) -> 0 | P46: =COUNTIF(P$3:P$30,Paramètres!$C$43) -> 0 | Q46: =COUNTIF(Q$3:Q$30,Paramètres!$C$43) -> 0 | R46: =COUNTIF(R$3:R$30,Paramètres!$C$43) -> 0 | S46: =COUNTIF(S$3:S$30,Paramètres!$C$43) -> 0 | T46: =COUNTIF(T$3:T$30,Paramètres!$C$43) -> 0 | U46: =COUNTIF(U$3:U$30,Paramètres!$C$43) -> 0 | V46: =COUNTIF(V$3:V$30,Paramètres!$C$43) -> 0 | W46: =COUNTIF(W$3:W$30,Paramètres!$C$43) -> 0 | X46: =COUNTIF(X$3:X$30,Paramètres!$C$43) -> 0 | Y46: =COUNTIF(Y$3:Y$30,Paramètres!$C$43) -> 0 | Z46: =COUNTIF(Z$3:Z$30,Paramètres!$C$43) -> 0 | AA46: =COUNTIF(AA$3:AA$30,Paramètres!$C$43) -> 0 | AB46: =COUNTIF(AB$3:AB$30,Paramètres!$C$43) -> 0 | AC46: =COUNTIF(AC$3:AC$30,Paramètres!$C$43) -> 0 | AD46: =COUNTIF(AD$3:AD$30,Paramètres!$C$43) -> 0 | AE46: =COUNTIF(AE$3:AE$30,Paramètres!$C$43) -> 0 | AF46: =COUNTIF(AF$3:AF$30,Paramètres!$C$43) -> 0 | AG46: =COUNTIF(AG$3:AG$30,Paramètres!$C$43) -> 0 | AH46: =COUNTIF(AH$3:AH$30,Paramètres!$C$43) -> 0 | AI46: =COUNTIF(AI$3:AI$30,Paramètres!$C$43) -> 0 | AJ46: =SUM(E46:AI46) -> 0
D47: SPV | E47: =COUNTIF(E$31:E$43,Paramètres!$C$43) -> 0 | F47: =COUNTIF(F$31:F$43,Paramètres!$C$43) -> 0 | G47: =COUNTIF(G$31:G$43,Paramètres!$C$43) -> 0 | H47: =COUNTIF(H$31:H$43,Paramètres!$C$43) -> 0 | I47: =COUNTIF(I$31:I$43,Paramètres!$C$43) -> 0 | J47: =COUNTIF(J$31:J$43,Paramètres!$C$43) -> 0 | K47: =COUNTIF(K$31:K$43,Paramètres!$C$43) -> 0 | L47: =COUNTIF(L$31:L$43,Paramètres!$C$43) -> 0 | M47: =COUNTIF(M$31:M$43,Paramètres!$C$43) -> 0 | N47: =COUNTIF(N$31:N$43,Paramètres!$C$43) -> 0 | O47: =COUNTIF(O$31:O$43,Paramètres!$C$43) -> 0 | P47: =COUNTIF(P$31:P$43,Paramètres!$C$43) -> 0 | Q47: =COUNTIF(Q$31:Q$43,Paramètres!$C$43) -> 0 | R47: =COUNTIF(R$31:R$43,Paramètres!$C$43) -> 0 | S47: =COUNTIF(S$31:S$43,Paramètres!$C$43) -> 0 | T47: =COUNTIF(T$31:T$43,Paramètres!$C$43) -> 0 | U47: =COUNTIF(U$31:U$43,Paramètres!$C$43) -> 0 | V47: =COUNTIF(V$31:V$43,Paramètres!$C$43) -> 0 | W47: =COUNTIF(W$31:W$43,Paramètres!$C$43) -> 0 | X47: =COUNTIF(X$31:X$43,Paramètres!$C$43) -> 0 | Y47: =COUNTIF(Y$31:Y$43,Paramètres!$C$43) -> 0 | Z47: =COUNTIF(Z$31:Z$43,Paramètres!$C$43) -> 0 | AA47: =COUNTIF(AA$31:AA$43,Paramètres!$C$43) -> 0 | AB47: =COUNTIF(AB$31:AB$43,Paramètres!$C$43) -> 0 | AC47: =COUNTIF(AC$31:AC$43,Paramètres!$C$43) -> 0 | AD47: =COUNTIF(AD$31:AD$43,Paramètres!$C$43) -> 0 | AE47: =COUNTIF(AE$31:AE$43,Paramètres!$C$43) -> 0 | AF47: =COUNTIF(AF$31:AF$43,Paramètres!$C$43) -> 0 | AG47: =COUNTIF(AG$31:AG$43,Paramètres!$C$43) -> 0 | AH47: =COUNTIF(AH$31:AH$43,Paramètres!$C$43) -> 0 | AI47: =COUNTIF(AI$31:AI$43,Paramètres!$C$43) -> 0 | AJ47: =SUM(E47:AI47) -> 0
D48: Chef de groupe
D49: =Paramètres!B46 -> Formation Stagiaire | E49: =COUNTIF(E$3:E$20,Paramètres!$C$46) -> 0 | F49: =COUNTIF(F$3:F$20,Paramètres!$C$46) -> 0 | G49: =COUNTIF(G$3:G$20,Paramètres!$C$46) -> 0 | H49: =COUNTIF(H$3:H$20,Paramètres!$C$46) -> 0 | I49: =COUNTIF(I$3:I$20,Paramètres!$C$46) -> 0 | J49: =COUNTIF(J$3:J$20,Paramètres!$C$46) -> 0 | K49: =COUNTIF(K$3:K$20,Paramètres!$C$46) -> 0 | L49: =COUNTIF(L$3:L$20,Paramètres!$C$46) -> 0 | M49: =COUNTIF(M$3:M$20,Paramètres!$C$46) -> 0 | N49: =COUNTIF(N$3:N$20,Paramètres!$C$46) -> 0 | O49: =COUNTIF(O$3:O$20,Paramètres!$C$46) -> 0 | P49: =COUNTIF(P$3:P$20,Paramètres!$C$46) -> 0 | Q49: =COUNTIF(Q$3:Q$20,Paramètres!$C$46) -> 0 | R49: =COUNTIF(R$3:R$20,Paramètres!$C$46) -> 0 | S49: =COUNTIF(S$3:S$20,Paramètres!$C$46) -> 0 | T49: =COUNTIF(T$3:T$20,Paramètres!$C$46) -> 0 | U49: =COUNTIF(U$3:U$20,Paramètres!$C$46) -> 0 | V49: =COUNTIF(V$3:V$20,Paramètres!$C$46) -> 0 | W49: =COUNTIF(W$3:W$20,Paramètres!$C$46) -> 0 | X49: =COUNTIF(X$3:X$20,Paramètres!$C$46) -> 0 | Y49: =COUNTIF(Y$3:Y$20,Paramètres!$C$46) -> 0 | Z49: =COUNTIF(Z$3:Z$20,Paramètres!$C$46) -> 0 | AA49: =COUNTIF(AA$3:AA$20,Paramètres!$C$46) -> 0 | AB49: =COUNTIF(AB$3:AB$20,Paramètres!$C$46) -> 0 | AC49: =COUNTIF(AC$3:AC$20,Paramètres!$C$46) -> 0 | AD49: =COUNTIF(AD$3:AD$20,Paramètres!$C$46) -> 0 | AE49: =COUNTIF(AE$3:AE$20,Paramètres!$C$46) -> 0 | AF49: =COUNTIF(AF$3:AF$20,Paramètres!$C$46) -> 0 | AG49: =COUNTIF(AG$3:AG$20,Paramètres!$C$46) -> 0 | AH49: =COUNTIF(AH$3:AH$20,Paramètres!$C$46) -> 0 | AI49: =COUNTIF(AI$3:AI$20,Paramètres!$C$46) -> 0 | AJ49: =SUM(E49:AI49) -> 0
D50: =Paramètres!B47 -> Formation formateur | E50: =COUNTIF(E$3:E$20,Paramètres!$C$47) -> 0 | F50: =COUNTIF(F$3:F$20,Paramètres!$C$47) -> 0 | G50: =COUNTIF(G$3:G$20,Paramètres!$C$47) -> 0 | H50: =COUNTIF(H$3:H$20,Paramètres!$C$47) -> 0 | I50: =COUNTIF(I$3:I$20,Paramètres!$C$47) -> 0 | J50: =COUNTIF(J$3:J$20,Paramètres!$C$47) -> 0 | K50: =COUNTIF(K$3:K$20,Paramètres!$C$47) -> 0 | L50: =COUNTIF(L$3:L$20,Paramètres!$C$47) -> 0 | M50: =COUNTIF(M$3:M$20,Paramètres!$C$47) -> 0 | N50: =COUNTIF(N$3:N$20,Paramètres!$C$47) -> 0 | O50: =COUNTIF(O$3:O$20,Paramètres!$C$47) -> 0 | P50: =COUNTIF(P$3:P$20,Paramètres!$C$47) -> 0 | Q50: =COUNTIF(Q$3:Q$20,Paramètres!$C$47) -> 0 | R50: =COUNTIF(R$3:R$20,Paramètres!$C$47) -> 0 | S50: =COUNTIF(S$3:S$20,Paramètres!$C$47) -> 0 | T50: =COUNTIF(T$3:T$20,Paramètres!$C$47) -> 0 | U50: =COUNTIF(U$3:U$20,Paramètres!$C$47) -> 0 | V50: =COUNTIF(V$3:V$20,Paramètres!$C$47) -> 0 | W50: =COUNTIF(W$3:W$20,Paramètres!$C$47) -> 0 | X50: =COUNTIF(X$3:X$20,Paramètres!$C$47) -> 0 | Y50: =COUNTIF(Y$3:Y$20,Paramètres!$C$47) -> 0 | Z50: =COUNTIF(Z$3:Z$20,Paramètres!$C$47) -> 0 | AA50: =COUNTIF(AA$3:AA$20,Paramètres!$C$47) -> 0 | AB50: =COUNTIF(AB$3:AB$20,Paramètres!$C$47) -> 0 | AC50: =COUNTIF(AC$3:AC$20,Paramètres!$C$47) -> 0 | AD50: =COUNTIF(AD$3:AD$20,Paramètres!$C$47) -> 0 | AE50: =COUNTIF(AE$3:AE$20,Paramètres!$C$47) -> 0 | AF50: =COUNTIF(AF$3:AF$20,Paramètres!$C$47) -> 0 | AG50: =COUNTIF(AG$3:AG$20,Paramètres!$C$47) -> 0 | AH50: =COUNTIF(AH$3:AH$20,Paramètres!$C$47) -> 0 | AI50: =COUNTIF(AI$3:AI$20,Paramètres!$C$47) -> 0 | AJ50: 0
D51: =Paramètres!B48 -> Entrainement SD | E51: =COUNTIF(E$3:E$20,Paramètres!$C$48) -> 0 | F51: =COUNTIF(F$3:F$20,Paramètres!$C$48) -> 0 | G51: =COUNTIF(G$3:G$20,Paramètres!$C$48) -> 0 | H51: =COUNTIF(H$3:H$20,Paramètres!$C$48) -> 0 | I51: =COUNTIF(I$3:I$20,Paramètres!$C$48) -> 0 | J51: =COUNTIF(J$3:J$20,Paramètres!$C$48) -> 0 | K51: =COUNTIF(K$3:K$20,Paramètres!$C$48) -> 0 | L51: =COUNTIF(L$3:L$20,Paramètres!$C$48) -> 0 | M51: =COUNTIF(M$3:M$20,Paramètres!$C$48) -> 0 | N51: =COUNTIF(N$3:N$20,Paramètres!$C$48) -> 0 | O51: =COUNTIF(O$3:O$20,Paramètres!$C$48) -> 0 | P51: =COUNTIF(P$3:P$20,Paramètres!$C$48) -> 0 | Q51: =COUNTIF(Q$3:Q$20,Paramètres!$C$48) -> 0 | R51: =COUNTIF(R$3:R$20,Paramètres!$C$48) -> 0 | S51: =COUNTIF(S$3:S$20,Paramètres!$C$48) -> 0 | T51: =COUNTIF(T$3:T$20,Paramètres!$C$48) -> 0 | U51: =COUNTIF(U$3:U$20,Paramètres!$C$48) -> 0 | V51: =COUNTIF(V$3:V$20,Paramètres!$C$48) -> 0 | W51: =COUNTIF(W$3:W$20,Paramètres!$C$48) -> 0 | X51: =COUNTIF(X$3:X$20,Paramètres!$C$48) -> 0 | Y51: =COUNTIF(Y$3:Y$20,Paramètres!$C$48) -> 0 | Z51: =COUNTIF(Z$3:Z$20,Paramètres!$C$48) -> 0 | AA51: =COUNTIF(AA$3:AA$20,Paramètres!$C$48) -> 0 | AB51: =COUNTIF(AB$3:AB$20,Paramètres!$C$48) -> 0 | AC51: =COUNTIF(AC$3:AC$20,Paramètres!$C$48) -> 0 | AD51: =COUNTIF(AD$3:AD$20,Paramètres!$C$48) -> 0 | AE51: =COUNTIF(AE$3:AE$20,Paramètres!$C$48) -> 0 | AF51: =COUNTIF(AF$3:AF$20,Paramètres!$C$48) -> 0 | AG51: =COUNTIF(AG$3:AG$20,Paramètres!$C$48) -> 0 | AH51: =COUNTIF(AH$3:AH$20,Paramètres!$C$48) -> 0 | AI51: =COUNTIF(AI$3:AI$20,Paramètres!$C$48) -> 0 | AJ51: 0
D52: =Paramètres!B49 -> Entrainement EPIM | E52: =COUNTIF(E$3:E$20,Paramètres!$C$49) -> 0 | F52: =COUNTIF(F$3:F$20,Paramètres!$C$49) -> 0 | G52: =COUNTIF(G$3:G$20,Paramètres!$C$49) -> 0 | H52: =COUNTIF(H$3:H$20,Paramètres!$C$49) -> 0 | I52: =COUNTIF(I$3:I$20,Paramètres!$C$49) -> 0 | J52: =COUNTIF(J$3:J$20,Paramètres!$C$49) -> 0 | K52: =COUNTIF(K$3:K$20,Paramètres!$C$49) -> 0 | L52: =COUNTIF(L$3:L$20,Paramètres!$C$49) -> 0 | M52: =COUNTIF(M$3:M$20,Paramètres!$C$49) -> 0 | N52: =COUNTIF(N$3:N$20,Paramètres!$C$49) -> 0 | O52: =COUNTIF(O$3:O$20,Paramètres!$C$49) -> 0 | P52: =COUNTIF(P$3:P$20,Paramètres!$C$49) -> 0 | Q52: =COUNTIF(Q$3:Q$20,Paramètres!$C$49) -> 0 | R52: =COUNTIF(R$3:R$20,Paramètres!$C$49) -> 0 | S52: =COUNTIF(S$3:S$20,Paramètres!$C$49) -> 0 | T52: =COUNTIF(T$3:T$20,Paramètres!$C$49) -> 0 | U52: =COUNTIF(U$3:U$20,Paramètres!$C$49) -> 0 | V52: =COUNTIF(V$3:V$20,Paramètres!$C$49) -> 0 | W52: =COUNTIF(W$3:W$20,Paramètres!$C$49) -> 0 | X52: =COUNTIF(X$3:X$20,Paramètres!$C$49) -> 0 | Y52: =COUNTIF(Y$3:Y$20,Paramètres!$C$49) -> 0 | Z52: =COUNTIF(Z$3:Z$20,Paramètres!$C$49) -> 0 | AA52: =COUNTIF(AA$3:AA$20,Paramètres!$C$49) -> 0 | AB52: =COUNTIF(AB$3:AB$20,Paramètres!$C$49) -> 0 | AC52: =COUNTIF(AC$3:AC$20,Paramètres!$C$49) -> 0 | AD52: =COUNTIF(AD$3:AD$20,Paramètres!$C$49) -> 0 | AE52: =COUNTIF(AE$3:AE$20,Paramètres!$C$49) -> 0 | AF52: =COUNTIF(AF$3:AF$20,Paramètres!$C$49) -> 0 | AG52: =COUNTIF(AG$3:AG$20,Paramètres!$C$49) -> 0 | AH52: =COUNTIF(AH$3:AH$20,Paramètres!$C$49) -> 0 | AI52: =COUNTIF(AI$3:AI$20,Paramètres!$C$49) -> 0 | AJ52: 0
D53: =Paramètres!B50 -> Entrainement SAV | E53: =COUNTIF(E$3:E$20,Paramètres!$C$50) -> 0 | F53: =COUNTIF(F$3:F$20,Paramètres!$C$50) -> 0 | G53: =COUNTIF(G$3:G$20,Paramètres!$C$50) -> 0 | H53: =COUNTIF(H$3:H$20,Paramètres!$C$50) -> 0 | I53: =COUNTIF(I$3:I$20,Paramètres!$C$50) -> 0 | J53: =COUNTIF(J$3:J$20,Paramètres!$C$50) -> 0 | K53: =COUNTIF(K$3:K$20,Paramètres!$C$50) -> 0 | L53: =COUNTIF(L$3:L$20,Paramètres!$C$50) -> 0 | M53: =COUNTIF(M$3:M$20,Paramètres!$C$50) -> 0 | N53: =COUNTIF(N$3:N$20,Paramètres!$C$50) -> 0 | O53: =COUNTIF(O$3:O$20,Paramètres!$C$50) -> 0 | P53: =COUNTIF(P$3:P$20,Paramètres!$C$50) -> 0 | Q53: =COUNTIF(Q$3:Q$20,Paramètres!$C$50) -> 0 | R53: =COUNTIF(R$3:R$20,Paramètres!$C$50) -> 0 | S53: =COUNTIF(S$3:S$20,Paramètres!$C$50) -> 0 | T53: =COUNTIF(T$3:T$20,Paramètres!$C$50) -> 0 | U53: =COUNTIF(U$3:U$20,Paramètres!$C$50) -> 0 | V53: =COUNTIF(V$3:V$20,Paramètres!$C$50) -> 0 | W53: =COUNTIF(W$3:W$20,Paramètres!$C$50) -> 0 | X53: =COUNTIF(X$3:X$20,Paramètres!$C$50) -> 0 | Y53: =COUNTIF(Y$3:Y$20,Paramètres!$C$50) -> 0 | Z53: =COUNTIF(Z$3:Z$20,Paramètres!$C$50) -> 0 | AA53: =COUNTIF(AA$3:AA$20,Paramètres!$C$50) -> 0 | AB53: =COUNTIF(AB$3:AB$20,Paramètres!$C$50) -> 0 | AC53: =COUNTIF(AC$3:AC$20,Paramètres!$C$50) -> 0 | AD53: =COUNTIF(AD$3:AD$20,Paramètres!$C$50) -> 0 | AE53: =COUNTIF(AE$3:AE$20,Paramètres!$C$50) -> 0 | AF53: =COUNTIF(AF$3:AF$20,Paramètres!$C$50) -> 0 | AG53: =COUNTIF(AG$3:AG$20,Paramètres!$C$50) -> 0 | AH53: =COUNTIF(AH$3:AH$20,Paramètres!$C$50) -> 0 | AI53: =COUNTIF(AI$3:AI$20,Paramètres!$C$50) -> 0 | AJ53: 0
D54: =Paramètres!B56 -> Décharge Syndicale | E54: =COUNTIF(E$3:E$20,Paramètres!$C$56) -> 0 | F54: =COUNTIF(F$3:F$20,Paramètres!$C$56) -> 0 | G54: =COUNTIF(G$3:G$20,Paramètres!$C$56) -> 0 | H54: =COUNTIF(H$3:H$20,Paramètres!$C$56) -> 0 | I54: =COUNTIF(I$3:I$20,Paramètres!$C$56) -> 0 | J54: =COUNTIF(J$3:J$20,Paramètres!$C$56) -> 0 | K54: =COUNTIF(K$3:K$20,Paramètres!$C$56) -> 0 | L54: =COUNTIF(L$3:L$20,Paramètres!$C$56) -> 0 | M54: =COUNTIF(M$3:M$20,Paramètres!$C$56) -> 0 | N54: =COUNTIF(N$3:N$20,Paramètres!$C$56) -> 0 | O54: =COUNTIF(O$3:O$20,Paramètres!$C$56) -> 0 | P54: =COUNTIF(P$3:P$20,Paramètres!$C$56) -> 0 | Q54: =COUNTIF(Q$3:Q$20,Paramètres!$C$56) -> 0 | R54: =COUNTIF(R$3:R$20,Paramètres!$C$56) -> 0 | S54: =COUNTIF(S$3:S$20,Paramètres!$C$56) -> 0 | T54: =COUNTIF(T$3:T$20,Paramètres!$C$56) -> 0 | U54: =COUNTIF(U$3:U$20,Paramètres!$C$56) -> 0 | V54: =COUNTIF(V$3:V$20,Paramètres!$C$56) -> 0 | W54: =COUNTIF(W$3:W$20,Paramètres!$C$56) -> 0 | X54: =COUNTIF(X$3:X$20,Paramètres!$C$56) -> 0 | Y54: =COUNTIF(Y$3:Y$20,Paramètres!$C$56) -> 0 | Z54: =COUNTIF(Z$3:Z$20,Paramètres!$C$56) -> 0 | AA54: =COUNTIF(AA$3:AA$20,Paramètres!$C$56) -> 0 | AB54: =COUNTIF(AB$3:AB$20,Paramètres!$C$56) -> 0 | AC54: =COUNTIF(AC$3:AC$20,Paramètres!$C$56) -> 0 | AD54: =COUNTIF(AD$3:AD$20,Paramètres!$C$56) -> 0 | AE54: =COUNTIF(AE$3:AE$20,Paramètres!$C$56) -> 0 | AF54: =COUNTIF(AF$3:AF$20,Paramètres!$C$56) -> 0 | AG54: =COUNTIF(AG$3:AG$20,Paramètres!$C$56) -> 0 | AH54: =COUNTIF(AH$3:AH$20,Paramètres!$C$56) -> 0 | AI54: =COUNTIF(AI$3:AI$20,Paramètres!$C$56) -> 0 | AJ54: 0
D55: =Paramètres!B57 -> Autorisation Syndicale | E55: =COUNTIF(E$3:E$20,Paramètres!$C$57) -> 0 | F55: =COUNTIF(F$3:F$20,Paramètres!$C$57) -> 0 | G55: =COUNTIF(G$3:G$20,Paramètres!$C$57) -> 0 | H55: =COUNTIF(H$3:H$20,Paramètres!$C$57) -> 0 | I55: =COUNTIF(I$3:I$20,Paramètres!$C$57) -> 0 | J55: =COUNTIF(J$3:J$20,Paramètres!$C$57) -> 0 | K55: =COUNTIF(K$3:K$20,Paramètres!$C$57) -> 0 | L55: =COUNTIF(L$3:L$20,Paramètres!$C$57) -> 0 | M55: =COUNTIF(M$3:M$20,Paramètres!$C$57) -> 0 | N55: =COUNTIF(N$3:N$20,Paramètres!$C$57) -> 0 | O55: =COUNTIF(O$3:O$20,Paramètres!$C$57) -> 0 | P55: =COUNTIF(P$3:P$20,Paramètres!$C$57) -> 0 | Q55: =COUNTIF(Q$3:Q$20,Paramètres!$C$57) -> 0 | R55: =COUNTIF(R$3:R$20,Paramètres!$C$57) -> 0 | S55: =COUNTIF(S$3:S$20,Paramètres!$C$57) -> 0 | T55: =COUNTIF(T$3:T$20,Paramètres!$C$57) -> 0 | U55: =COUNTIF(U$3:U$20,Paramètres!$C$57) -> 0 | V55: =COUNTIF(V$3:V$20,Paramètres!$C$57) -> 0 | W55: =COUNTIF(W$3:W$20,Paramètres!$C$57) -> 0 | X55: =COUNTIF(X$3:X$20,Paramètres!$C$57) -> 0 | Y55: =COUNTIF(Y$3:Y$20,Paramètres!$C$57) -> 0 | Z55: =COUNTIF(Z$3:Z$20,Paramètres!$C$57) -> 0 | AA55: =COUNTIF(AA$3:AA$20,Paramètres!$C$57) -> 0 | AB55: =COUNTIF(AB$3:AB$20,Paramètres!$C$57) -> 0 | AC55: =COUNTIF(AC$3:AC$20,Paramètres!$C$57) -> 0 | AD55: =COUNTIF(AD$3:AD$20,Paramètres!$C$57) -> 0 | AE55: =COUNTIF(AE$3:AE$20,Paramètres!$C$57) -> 0 | AF55: =COUNTIF(AF$3:AF$20,Paramètres!$C$57) -> 0 | AG55: =COUNTIF(AG$3:AG$20,Paramètres!$C$57) -> 0 | AH55: =COUNTIF(AH$3:AH$20,Paramètres!$C$57) -> 0 | AI55: =COUNTIF(AI$3:AI$20,Paramètres!$C$57) -> 0 | AJ55: 0
D56: =Paramètres!B58 -> GOC | E56: =COUNTIF(E$3:E$20,Paramètres!$C$58) -> 0 | F56: =COUNTIF(F$3:F$20,Paramètres!$C$58) -> 0 | G56: =COUNTIF(G$3:G$20,Paramètres!$C$58) -> 0 | H56: =COUNTIF(H$3:H$20,Paramètres!$C$58) -> 0 | I56: =COUNTIF(I$3:I$20,Paramètres!$C$58) -> 0 | J56: =COUNTIF(J$3:J$20,Paramètres!$C$58) -> 0 | K56: =COUNTIF(K$3:K$20,Paramètres!$C$58) -> 0 | L56: =COUNTIF(L$3:L$20,Paramètres!$C$58) -> 0 | M56: =COUNTIF(M$3:M$20,Paramètres!$C$58) -> 0 | N56: =COUNTIF(N$3:N$20,Paramètres!$C$58) -> 0 | O56: =COUNTIF(O$3:O$20,Paramètres!$C$58) -> 0 | P56: =COUNTIF(P$3:P$20,Paramètres!$C$58) -> 0 | Q56: =COUNTIF(Q$3:Q$20,Paramètres!$C$58) -> 0 | R56: =COUNTIF(R$3:R$20,Paramètres!$C$58) -> 0 | S56: =COUNTIF(S$3:S$20,Paramètres!$C$58) -> 0 | T56: =COUNTIF(T$3:T$20,Paramètres!$C$58) -> 0 | U56: =COUNTIF(U$3:U$20,Paramètres!$C$58) -> 0 | V56: =COUNTIF(V$3:V$20,Paramètres!$C$58) -> 0 | W56: =COUNTIF(W$3:W$20,Paramètres!$C$58) -> 0 | X56: =COUNTIF(X$3:X$20,Paramètres!$C$58) -> 0 | Y56: =COUNTIF(Y$3:Y$20,Paramètres!$C$58) -> 0 | Z56: =COUNTIF(Z$3:Z$20,Paramètres!$C$58) -> 0 | AA56: =COUNTIF(AA$3:AA$20,Paramètres!$C$58) -> 0 | AB56: =COUNTIF(AB$3:AB$20,Paramètres!$C$58) -> 0 | AC56: =COUNTIF(AC$3:AC$20,Paramètres!$C$58) -> 0 | AD56: =COUNTIF(AD$3:AD$20,Paramètres!$C$58) -> 0 | AE56: =COUNTIF(AE$3:AE$20,Paramètres!$C$58) -> 0 | AF56: =COUNTIF(AF$3:AF$20,Paramètres!$C$58) -> 0 | AG56: =COUNTIF(AG$3:AG$20,Paramètres!$C$58) -> 0 | AH56: =COUNTIF(AH$3:AH$20,Paramètres!$C$58) -> 0 | AI56: =COUNTIF(AI$3:AI$20,Paramètres!$C$58) -> 0 | AJ56: 0
D57: =Paramètres!B59 -> Hydrant | E57: =COUNTIF(E$3:E$20,Paramètres!$C$59) -> 0 | F57: =COUNTIF(F$3:F$20,Paramètres!$C$59) -> 0 | G57: =COUNTIF(G$3:G$20,Paramètres!$C$59) -> 0 | H57: =COUNTIF(H$3:H$20,Paramètres!$C$59) -> 0 | I57: =COUNTIF(I$3:I$20,Paramètres!$C$59) -> 0 | J57: =COUNTIF(J$3:J$20,Paramètres!$C$59) -> 0 | K57: =COUNTIF(K$3:K$20,Paramètres!$C$59) -> 0 | L57: =COUNTIF(L$3:L$20,Paramètres!$C$59) -> 0 | M57: =COUNTIF(M$3:M$20,Paramètres!$C$59) -> 0 | N57: =COUNTIF(N$3:N$20,Paramètres!$C$59) -> 0 | O57: =COUNTIF(O$3:O$20,Paramètres!$C$59) -> 0 | P57: =COUNTIF(P$3:P$20,Paramètres!$C$59) -> 0 | Q57: =COUNTIF(Q$3:Q$20,Paramètres!$C$59) -> 0 | R57: =COUNTIF(R$3:R$20,Paramètres!$C$59) -> 0 | S57: =COUNTIF(S$3:S$20,Paramètres!$C$59) -> 0 | T57: =COUNTIF(T$3:T$20,Paramètres!$C$59) -> 0 | U57: =COUNTIF(U$3:U$20,Paramètres!$C$59) -> 0 | V57: =COUNTIF(V$3:V$20,Paramètres!$C$59) -> 0 | W57: =COUNTIF(W$3:W$20,Paramètres!$C$59) -> 0 | X57: =COUNTIF(X$3:X$20,Paramètres!$C$59) -> 0 | Y57: =COUNTIF(Y$3:Y$20,Paramètres!$C$59) -> 0 | Z57: =COUNTIF(Z$3:Z$20,Paramètres!$C$59) -> 0 | AA57: =COUNTIF(AA$3:AA$20,Paramètres!$C$59) -> 0 | AB57: =COUNTIF(AB$3:AB$20,Paramètres!$C$59) -> 0 | AC57: =COUNTIF(AC$3:AC$20,Paramètres!$C$59) -> 0 | AD57: =COUNTIF(AD$3:AD$20,Paramètres!$C$59) -> 0 | AE57: =COUNTIF(AE$3:AE$20,Paramètres!$C$59) -> 0 | AF57: =COUNTIF(AF$3:AF$20,Paramètres!$C$59) -> 0 | AG57: =COUNTIF(AG$3:AG$20,Paramètres!$C$59) -> 0 | AH57: =COUNTIF(AH$3:AH$20,Paramètres!$C$59) -> 0 | AI57: =COUNTIF(AI$3:AI$20,Paramètres!$C$59) -> 0 | AJ57: 0
D58: =Paramètres!B60 -> Evênement Familial | E58: =COUNTIF(E$3:E$20,Paramètres!$C$60) -> 0 | F58: =COUNTIF(F$3:F$20,Paramètres!$C$60) -> 0 | G58: =COUNTIF(G$3:G$20,Paramètres!$C$60) -> 0 | H58: =COUNTIF(H$3:H$20,Paramètres!$C$60) -> 0 | I58: =COUNTIF(I$3:I$20,Paramètres!$C$60) -> 0 | J58: =COUNTIF(J$3:J$20,Paramètres!$C$60) -> 0 | K58: =COUNTIF(K$3:K$20,Paramètres!$C$60) -> 0 | L58: =COUNTIF(L$3:L$20,Paramètres!$C$60) -> 0 | M58: =COUNTIF(M$3:M$20,Paramètres!$C$60) -> 0 | N58: =COUNTIF(N$3:N$20,Paramètres!$C$60) -> 0 | O58: =COUNTIF(O$3:O$20,Paramètres!$C$60) -> 0 | P58: =COUNTIF(P$3:P$20,Paramètres!$C$60) -> 0 | Q58: =COUNTIF(Q$3:Q$20,Paramètres!$C$60) -> 0 | R58: =COUNTIF(R$3:R$20,Paramètres!$C$60) -> 0 | S58: =COUNTIF(S$3:S$20,Paramètres!$C$60) -> 0 | T58: =COUNTIF(T$3:T$20,Paramètres!$C$60) -> 0 | U58: =COUNTIF(U$3:U$20,Paramètres!$C$60) -> 0 | V58: =COUNTIF(V$3:V$20,Paramètres!$C$60) -> 0 | W58: =COUNTIF(W$3:W$20,Paramètres!$C$60) -> 0 | X58: =COUNTIF(X$3:X$20,Paramètres!$C$60) -> 0 | Y58: =COUNTIF(Y$3:Y$20,Paramètres!$C$60) -> 0 | Z58: =COUNTIF(Z$3:Z$20,Paramètres!$C$60) -> 0 | AA58: =COUNTIF(AA$3:AA$20,Paramètres!$C$60) -> 0 | AB58: =COUNTIF(AB$3:AB$20,Paramètres!$C$60) -> 0 | AC58: =COUNTIF(AC$3:AC$20,Paramètres!$C$60) -> 0 | AD58: =COUNTIF(AD$3:AD$20,Paramètres!$C$60) -> 0 | AE58: =COUNTIF(AE$3:AE$20,Paramètres!$C$60) -> 0 | AF58: =COUNTIF(AF$3:AF$20,Paramètres!$C$60) -> 0 | AG58: =COUNTIF(AG$3:AG$20,Paramètres!$C$60) -> 0 | AH58: =COUNTIF(AH$3:AH$20,Paramètres!$C$60) -> 0 | AI58: =COUNTIF(AI$3:AI$20,Paramètres!$C$60) -> 0 | AJ58: 0
D59: =Paramètres!B61 -> Instance Paritaire | E59: =COUNTIF(E$3:E$20,Paramètres!$C$61) -> 0 | F59: =COUNTIF(F$3:F$20,Paramètres!$C$61) -> 0 | G59: =COUNTIF(G$3:G$20,Paramètres!$C$61) -> 0 | H59: =COUNTIF(H$3:H$20,Paramètres!$C$61) -> 0 | I59: =COUNTIF(I$3:I$20,Paramètres!$C$61) -> 0 | J59: =COUNTIF(J$3:J$20,Paramètres!$C$61) -> 0 | K59: =COUNTIF(K$3:K$20,Paramètres!$C$61) -> 0 | L59: =COUNTIF(L$3:L$20,Paramètres!$C$61) -> 0 | M59: =COUNTIF(M$3:M$20,Paramètres!$C$61) -> 0 | N59: =COUNTIF(N$3:N$20,Paramètres!$C$61) -> 0 | O59: =COUNTIF(O$3:O$20,Paramètres!$C$61) -> 0 | P59: =COUNTIF(P$3:P$20,Paramètres!$C$61) -> 0 | Q59: =COUNTIF(Q$3:Q$20,Paramètres!$C$61) -> 0 | R59: =COUNTIF(R$3:R$20,Paramètres!$C$61) -> 0 | S59: =COUNTIF(S$3:S$20,Paramètres!$C$61) -> 0 | T59: =COUNTIF(T$3:T$20,Paramètres!$C$61) -> 0 | U59: =COUNTIF(U$3:U$20,Paramètres!$C$61) -> 0 | V59: =COUNTIF(V$3:V$20,Paramètres!$C$61) -> 0 | W59: =COUNTIF(W$3:W$20,Paramètres!$C$61) -> 0 | X59: =COUNTIF(X$3:X$20,Paramètres!$C$61) -> 0 | Y59: =COUNTIF(Y$3:Y$20,Paramètres!$C$61) -> 0 | Z59: =COUNTIF(Z$3:Z$20,Paramètres!$C$61) -> 0 | AA59: =COUNTIF(AA$3:AA$20,Paramètres!$C$61) -> 0 | AB59: =COUNTIF(AB$3:AB$20,Paramètres!$C$61) -> 0 | AC59: =COUNTIF(AC$3:AC$20,Paramètres!$C$61) -> 0 | AD59: =COUNTIF(AD$3:AD$20,Paramètres!$C$61) -> 0 | AE59: =COUNTIF(AE$3:AE$20,Paramètres!$C$61) -> 0 | AF59: =COUNTIF(AF$3:AF$20,Paramètres!$C$61) -> 0 | AG59: =COUNTIF(AG$3:AG$20,Paramètres!$C$61) -> 0 | AH59: =COUNTIF(AH$3:AH$20,Paramètres!$C$61) -> 0 | AI59: =COUNTIF(AI$3:AI$20,Paramètres!$C$61) -> 0 | AJ59: 0
D60: =Paramètres!B62 -> Congés | E60: =COUNTIF(E$3:E$20,Paramètres!$C$62) -> 0 | F60: =COUNTIF(F$3:F$20,Paramètres!$C$62) -> 0 | G60: =COUNTIF(G$3:G$20,Paramètres!$C$62) -> 0 | H60: =COUNTIF(H$3:H$20,Paramètres!$C$62) -> 0 | I60: =COUNTIF(I$3:I$20,Paramètres!$C$62) -> 0 | J60: =COUNTIF(J$3:J$20,Paramètres!$C$62) -> 0 | K60: =COUNTIF(K$3:K$20,Paramètres!$C$62) -> 0 | L60: =COUNTIF(L$3:L$20,Paramètres!$C$62) -> 0 | M60: =COUNTIF(M$3:M$20,Paramètres!$C$62) -> 0 | N60: =COUNTIF(N$3:N$20,Paramètres!$C$62) -> 0 | O60: =COUNTIF(O$3:O$20,Paramètres!$C$62) -> 0 | P60: =COUNTIF(P$3:P$20,Paramètres!$C$62) -> 0 | Q60: =COUNTIF(Q$3:Q$20,Paramètres!$C$62) -> 0 | R60: =COUNTIF(R$3:R$20,Paramètres!$C$62) -> 0 | S60: =COUNTIF(S$3:S$20,Paramètres!$C$62) -> 0 | T60: =COUNTIF(T$3:T$20,Paramètres!$C$62) -> 0 | U60: =COUNTIF(U$3:U$20,Paramètres!$C$62) -> 0 | V60: =COUNTIF(V$3:V$20,Paramètres!$C$62) -> 0 | W60: =COUNTIF(W$3:W$20,Paramètres!$C$62) -> 0 | X60: =COUNTIF(X$3:X$20,Paramètres!$C$62) -> 0 | Y60: =COUNTIF(Y$3:Y$20,Paramètres!$C$62) -> 0 | Z60: =COUNTIF(Z$3:Z$20,Paramètres!$C$62) -> 0 | AA60: =COUNTIF(AA$3:AA$20,Paramètres!$C$62) -> 0 | AB60: =COUNTIF(AB$3:AB$20,Paramètres!$C$62) -> 0 | AC60: =COUNTIF(AC$3:AC$20,Paramètres!$C$62) -> 0 | AD60: =COUNTIF(AD$3:AD$20,Paramètres!$C$62) -> 0 | AE60: =COUNTIF(AE$3:AE$20,Paramètres!$C$62) -> 0 | AF60: =COUNTIF(AF$3:AF$20,Paramètres!$C$62) -> 0 | AG60: =COUNTIF(AG$3:AG$20,Paramètres!$C$62) -> 0 | AH60: =COUNTIF(AH$3:AH$20,Paramètres!$C$62) -> 0 | AI60: =COUNTIF(AI$3:AI$20,Paramètres!$C$62) -> 0 | AJ60: 0

Sheet Août
C1: <| | D1: =Paramètres!D28 -> 22 | E1: =DATE(An_0,8,1) -> 41486 | F1: =E1+1 -> 41487 | G1: 41488 | H1: 41489 | I1: 41490 | J1: 41491 | K1: 41492 | L1: 41493 | M1: 41494 | N1: 41495 | O1: 41496 | P1: 41497 | Q1: 41498 | R1: 41499 | S1: 41500 | T1: 41501 | U1: 41502 | V1: 41503 | W1: 41504 | X1: 41505 | Y1: 41506 | Z1: 41507 | AA1: 41508 | AB1: 41509 | AC1: 41510 | AD1: 41511 | AE1: 41512 | AF1: 41513 | AG1: 41514 | AH1: 41515 | AI1: 41516 | AJ1: =D44 -> Garde | AK1: =D49 -> Formation Stagiaire | AL1: =D50 -> Formation formateur | AM1: =D51 -> Entrainement SD | AN1: =D52 -> Entrainement EPIM | AO1: =D53 -> Entrainement SAV | AP1: =D54 -> Décharge Syndicale | AQ1: =D55 -> Autorisation Syndicale | AR1: Total garde | AS1: Total heures mois | AT1: Hrs Th. À effectuer | AU1: Différence | AV1: Am + AT | AW1: =Paramètres!B58 -> GOC | AX1: =Paramètres!B59 -> Hydrant | AY1: =Paramètres!B61 -> Instance Paritaire
E2: =DATE(An_0,8,1) -> 41486 | F2: =E2+1 -> 41487 | G2: 41488 | H2: 41489 | I2: 41490 | J2: 41491 | K2: 41492 | L2: 41493 | M2: 41494 | N2: 41495 | O2: 41496 | P2: 41497 | Q2: 41498 | R2: 41499 | S2: 41500 | T2: 41501 | U2: 41502 | V2: 41503 | W2: 41504 | X2: 41505 | Y2: 41506 | Z2: 41507 | AA2: 41508 | AB2: 41509 | AC2: 41510 | AD2: 41511 | AE2: 41512 | AF2: 41513 | AG2: 41514 | AH2: 41515 | AI2: 41516 | AL2: =D50 -> Formation formateur
A3: =Paramètres!V7 -> x | B3: =IF(A3="x",Paramètres!M7,"") -> -1771 | C3: Personnel | D3: =IF(A3="x",CONCATENATE(Paramètres!D7," ",Paramètres!C7," ",Paramètres!B7),"") -> Adc Jacques Agent_1 | AJ3: =COUNTIF($E3:$AI3,Paramètres!$C$43) -> 0 | AK3: =COUNTIF($E3:$AI3,Paramètres!$C$46) -> 0 | AL3: =COUNTIF($E3:$AI3,Paramètres!$C$47) -> 0 | AM3: =COUNTIF($E3:$AI3,Paramètres!$C$48) -> 0 | AN3: =COUNTIF($E3:$AI3,Paramètres!$C$49) -> 0 | AO3: =COUNTIF($E3:$AI3,Paramètres!$C$50) -> 0 | AP3: =COUNTIF($E3:$AI3,Paramètres!$C$56) -> 0 | AQ3: =COUNTIF($E3:$AI3,Paramètres!$C$57) -> 0 | AR3: =SUM(AJ3:AQ3) -> 0 | AS3: =($AJ3*VtyJ)+($AK3*VtyFs)+($AL3*VtyFf)+($AM3*VtySD)+($AN3*VtyPI)+($AO3*VtySA)+($AP3*VtyDsy)+($AQ3*VtyAsy)+($AW3*VtyGOC)+($AX3*VtyHy)+($AY3*VtyiPA)+(AV3*VtyAm) -> 0 | AT3: =($D$1-COUNTIF(E3:AI3,TyCo))*(CoAG1) -> 137.5652174 | AU3: =AS3-AT3 -> -137.5652174 | AV3: =COUNTIF(E3:AI3,TyAm)+COUNTIF(E3:AI3,TyAt) -> 0 | AW3: =COUNTIF($E3:$AI3,TyGOC) -> 0 | AX3: =COUNTIF($E3:$AI3,TyHy) -> 0 | AY3: =COUNTIF($E3:$AI3,TySy) -> 0
A4: =Paramètres!V8 -> x | B4: =IF(A4="x",Paramètres!M8,"") -> -1582 | D4: =IF(A4="x",CONCATENATE(Paramètres!D8," ",Paramètres!C8," ",Paramètres!B8),"") -> Adj Christophe Agent_2 | AJ4: =COUNTIF($E4:$AI4,Paramètres!$C$43) -> 0 | AK4: =COUNTIF($E4:$AI4,Paramètres!$C$46) -> 0 | AL4: =COUNTIF($E4:$AI4,Paramètres!$C$47) -> 0 | AM4: =COUNTIF($E4:$AI4,Paramètres!$C$48) -> 0 | AN4: =COUNTIF($E4:$AI4,Paramètres!$C$49) -> 0 | AO4: =COUNTIF($E4:$AI4,Paramètres!$C$50) -> 0 | AP4: =COUNTIF($E4:$AI4,Paramètres!$C$56) -> 0 | AQ4: =COUNTIF($E4:$AI4,Paramètres!$C$57) -> 0 | AR4: 0 | AS4: 0 | AT4: =($D$1-COUNTIF(E4:AI4,Paramètres!$C$62))*(CoAG2) -> 137.5652174 | AU4: -137.5652174 | AV4: 0 | AW4: 0 | AX4: 0 | AY4: 0
A5: =Paramètres!V9 -> x | B5: =IF(A5="x",Paramètres!M9,"") -> -1582 | D5: =IF(A5="x",CONCATENATE(Paramètres!D9," ",Paramètres!C9," ",Paramètres!B9),"") -> Adj Christophe Agent_3 | AJ5: =COUNTIF($E5:$AI5,Paramètres!$C$43) -> 0 | AK5: =COUNTIF($E5:$AI5,Paramètres!$C$46) -> 0 | AL5: =COUNTIF($E5:$AI5,Paramètres!$C$47) -> 0 | AM5: =COUNTIF($E5:$AI5,Paramètres!$C$48) -> 0 | AN5: =COUNTIF($E5:$AI5,Paramètres!$C$49) -> 0 | AO5: =COUNTIF($E5:$AI5,Paramètres!$C$50) -> 0 | AP5: =COUNTIF($E5:$AI5,Paramètres!$C$56) -> 0 | AQ5: =COUNTIF($E5:$AI5,Paramètres!$C$57) -> 0 | AR5: 0 | AS5: 0 | AT5: =($D$1-COUNTIF(E5:AI5,Paramètres!$C$62))*(CoAG3) -> 137.5652174 | AU5: -137.5652174 | AV5: 0 | AW5: 0 | AX5: 0 | AY5: 0
A6: =Paramètres!V10 -> 0 | B6: =IF(A6="x",Paramètres!M10,"") ->  | D6: =IF(A6="x",CONCATENATE(Paramètres!D10," ",Paramètres!C10," ",Paramètres!B10),"") -> 
A7: =Paramètres!V11 -> x | B7: =IF(A7="x",Paramètres!M11,"") -> -1582 | D7: =IF(A7="x",CONCATENATE(Paramètres!D11," ",Paramètres!C11," ",Paramètres!B11),"") -> Sch Ludovic Agent_5 | AJ7: =COUNTIF($E7:$AI7,Paramètres!$C$43) -> 0 | AK7: =COUNTIF($E7:$AI7,Paramètres!$C$46) -> 0 | AL7: =COUNTIF($E7:$AI7,Paramètres!$C$47) -> 0 | AM7: =COUNTIF($E7:$AI7,Paramètres!$C$48) -> 0 | AN7: =COUNTIF($E7:$AI7,Paramètres!$C$49) -> 0 | AO7: =COUNTIF($E7:$AI7,Paramètres!$C$50) -> 0 | AP7: =COUNTIF($E7:$AI7,Paramètres!$C$56) -> 0 | AQ7: =COUNTIF($E7:$AI7,Paramètres!$C$57) -> 0 | AR7: 0 | AS7: 0 | AT7: =($D$1-COUNTIF(E7:AI7,Paramètres!$C$62))*(CoAG4) ->  | AV7: 0 | AW7: 0 | AX7: 0 | AY7: 0
A8: =Paramètres!V12 -> x | B8: =IF(A8="x",Paramètres!M12,"") -> -1582 | D8: =IF(A8="x",CONCATENATE(Paramètres!D12," ",Paramètres!C12," ",Paramètres!B12),"") -> Sch Franck Agent_6 | AJ8: =COUNTIF(E8:AI8,Paramètres!$C$43) -> 0 | AK8: =COUNTIF(F8:AJ8,Paramètres!$C$46) -> 0 | AL8: =COUNTIF(G8:AK8,Paramètres!$C$47) -> 0 | AM8: =COUNTIF($E8:$AI8,Paramètres!$C$48) -> 0 | AN8: =COUNTIF($E8:$AI8,Paramètres!$C$49) -> 0 | AO8: =COUNTIF($E8:$AI8,Paramètres!$C$50) -> 0 | AP8: =COUNTIF($E8:$AI8,Paramètres!$C$56) -> 0 | AQ8: =COUNTIF($E8:$AI8,Paramètres!$C$57) -> 0 | AR8: 0 | AS8: 0 | AT8: =($D$1-COUNTIF(E8:AI8,Paramètres!$C$62))*(CoAG5) -> 137.5652174 | AU8: -137.5652174 | AV8: 0 | AW8: 0 | AX8: 0 | AY8: 0
A9: =Paramètres!V13 -> x | B9: =IF(A9="x",Paramètres!M13,"") -> -1265.6 | D9: =IF(A9="x",CONCATENATE(Paramètres!D13," ",Paramètres!C13," ",Paramètres!B13),"") -> Sch Delphine Agent_7 | AJ9: =COUNTIF(E9:AI9,Paramètres!$C$43) -> 0 | AK9: =COUNTIF(F9:AJ9,Paramètres!$C$46) -> 0 | AL9: =COUNTIF(G9:AK9,Paramètres!$C$47) -> 0 | AM9: =COUNTIF($E9:$AI9,Paramètres!$C$48) -> 0 | AN9: =COUNTIF($E9:$AI9,Paramètres!$C$49) -> 0 | AO9: =COUNTIF($E9:$AI9,Paramètres!$C$50) -> 0 | AP9: =COUNTIF($E9:$AI9,Paramètres!$C$56) -> 0 | AQ9: =COUNTIF($E9:$AI9,Paramètres!$C$57) -> 0 | AR9: 0 | AS9: 0 | AT9: =($D$1-COUNTIF(E9:AI9,Paramètres!$C$62))*(CoAG6) -> 137.5652174 | AU9: -137.5652174 | AV9: 0 | AW9: 0 | AX9: 0 | AY9: 0
A10: =Paramètres!V14 -> x | B10: =IF(A10="x",Paramètres!M14,"") -> -1393 | D10: =IF(A10="x",CONCATENATE(Paramètres!D14," ",Paramètres!C14," ",Paramètres!B14),"") -> Sch Jean-Philippe Agent_8
A11: =Paramètres!V15 -> 0 | B11: =IF(A11="x",Paramètres!M15,"") ->  | D11: =IF(A11="x",CONCATENATE(Paramètres!D15," ",Paramètres!C15," ",Paramètres!B15),"") ->  | AJ11: =COUNTIF(E11:AI11,Paramètres!$C$43) -> 0 | AK11: =COUNTIF(F11:AI11,Paramètres!$C$46) -> 0 | AL11: =COUNTIF(G11:AK11,Paramètres!$C$47) -> 0 | AM11: =COUNTIF($E11:$AI11,Paramètres!$C$48) -> 0 | AN11: =COUNTIF($E11:$AI11,Paramètres!$C$49) -> 0 | AO11: =COUNTIF($E11:$AI11,Paramètres!$C$50) -> 0 | AP11: =COUNTIF($E11:$AI11,Paramètres!$C$56) -> 0 | AQ11: =COUNTIF($E11:$AI11,Paramètres!$C$57) -> 0 | AR11: 0 | AS11: 0 | AT11: =($D$1-COUNTIF(E11:AI11,Paramètres!$C$62))*(CoAG7) -> 110.0521739 | AU11: -110.0521739 | AV11: 0 | AW11: 0 | AX11: 0 | AY11: 0
A12: =Paramètres!V16 -> x | B12: =IF(A12="x",Paramètres!M16,"") -> -1582 | D12: =IF(A12="x",CONCATENATE(Paramètres!D16," ",Paramètres!C16," ",Paramètres!B16),"") -> Sgt Raymond Agent_10 | AJ12: =COUNTIF(E12:AI12,Paramètres!$C$43) -> 0 | AK12: =COUNTIF(F12:AJ12,Paramètres!$C$46) -> 0 | AL12: =COUNTIF(G12:AK12,Paramètres!$C$47) -> 0 | AM12: =COUNTIF($E12:$AI12,Paramètres!$C$48) -> 0 | AN12: =COUNTIF($E12:$AI12,Paramètres!$C$49) -> 0 | AO12: =COUNTIF($E12:$AI12,Paramètres!$C$50) -> 0 | AP12: =COUNTIF($E12:$AI12,Paramètres!$C$56) -> 0 | AQ12: =COUNTIF($E12:$AI12,Paramètres!$C$57) -> 0 | AR12: 0 | AS12: 0 | AT12: =($D$1-COUNTIF(E12:AI12,Paramètres!$C$62))*(CoAG8) -> 137.5652174 | AU12: -137.5652174 | AV12: 0 | AW12: 0 | AX12: 0 | AY12: 0
A13: =Paramètres!V17 -> x | B13: =IF(A13="x",Paramètres!M17,"") -> -1582 | D13: =IF(A13="x",CONCATENATE(Paramètres!D17," ",Paramètres!C17," ",Paramètres!B17),"") -> Sgt Julien Agent_11 | AJ13: =COUNTIF(E13:AI13,Paramètres!$C$43) -> 0 | AK13: =COUNTIF(F13:AJ13,Paramètres!$C$46) -> 0 | AL13: =COUNTIF(G13:AK13,Paramètres!$C$47) -> 0 | AM13: =COUNTIF($E13:$AI13,Paramètres!$C$48) -> 0 | AN13: =COUNTIF($E13:$AI13,Paramètres!$C$49) -> 0 | AO13: =COUNTIF($E13:$AI13,Paramètres!$C$50) -> 0 | AP13: =COUNTIF($E13:$AI13,Paramètres!$C$56) -> 0 | AQ13: =COUNTIF($E13:$AI13,Paramètres!$C$57) -> 0 | AR13: 0 | AS13: 0 | AT13: =($D$1-COUNTIF(E13:AI13,Paramètres!$C$62))*(CoAG9) ->  | AV13: 0 | AW13: 0 | AX13: 0 | AY13: 0
A14: =Paramètres!V18 -> x | B14: =IF(A14="x",Paramètres!M18,"") -> -1582 | D14: =IF(A14="x",CONCATENATE(Paramètres!D18," ",Paramètres!C18," ",Paramètres!B18),"") -> Cch Cyril Agent_12 | AJ14: =COUNTIF(E14:AI14,Paramètres!$C$43) -> 0 | AK14: =COUNTIF(F14:AJ14,Paramètres!$C$46) -> 0 | AL14: =COUNTIF(G14:AK14,Paramètres!$C$47) -> 0 | AM14: =COUNTIF($E14:$AI14,Paramètres!$C$48) -> 0 | AN14: =COUNTIF($E14:$AI14,Paramètres!$C$49) -> 0 | AO14: =COUNTIF($E14:$AI14,Paramètres!$C$50) -> 0 | AP14: =COUNTIF($E14:$AI14,Paramètres!$C$56) -> 0 | AQ14: =COUNTIF($E14:$AI14,Paramètres!$C$57) -> 0 | AR14: 0 | AS14: 0 | AT14: =($D$1-COUNTIF(E14:AI14,Paramètres!$C$62))*(CoAG1) -> 137.5652174 | AU14: -137.5652174 | AV14: 0 | AW14: 0 | AX14: 0 | AY14: 0
A15: =Paramètres!V19 -> x | B15: =IF(A15="x",Paramètres!M19,"") -> -1582 | D15: =IF(A15="x",CONCATENATE(Paramètres!D19," ",Paramètres!C19," ",Paramètres!B19),"") -> Cpl Stéphane Agent_13 | AJ15: =COUNTIF(E15:AI15,Paramètres!$C$43) -> 0 | AK15: =COUNTIF(F15:AJ15,Paramètres!$C$46) -> 0 | AL15: =COUNTIF(G15:AK15,Paramètres!$C$47) -> 0 | AM15: =COUNTIF($E15:$AI15,Paramètres!$C$48) -> 0 | AN15: =COUNTIF($E15:$AI15,Paramètres!$C$49) -> 0 | AO15: =COUNTIF($E15:$AI15,Paramètres!$C$50) -> 0 | AP15: =COUNTIF($E15:$AI15,Paramètres!$C$56) -> 0 | AQ15: =COUNTIF($E15:$AI15,Paramètres!$C$57) -> 0 | AR15: 0 | AS15: 0 | AT15: =($D$1-COUNTIF(E15:AI15,Paramètres!$C$62))*(CoAG10) -> 137.5652174 | AU15: -137.5652174 | AV15: 0 | AW15: 0 | AX15: 0 | AY15: 0
A16: =Paramètres!V20 -> x | B16: =IF(A16="x",Paramètres!M20,"") -> -1582 | D16: =IF(A16="x",CONCATENATE(Paramètres!D20," ",Paramètres!C20," ",Paramètres!B20),"") -> Sap 1cl Nicolas Agent_14
A17: =Paramètres!V21 -> 0 | B17: =IF(A17="x",Paramètres!M21,"") ->  | D17: =IF(A17="x",CONCATENATE(Paramètres!D21," ",Paramètres!C21," ",Paramètres!B21),"") -> 
A18: =Paramètres!V22 -> 0 | B18: =IF(A18="x",Paramètres!M22,"") ->  | D18: =IF(A18="x",CONCATENATE(Paramètres!D22," ",Paramètres!C22," ",Paramètres!B22),"") -> 
A19: =Paramètres!V23 -> 0 | B19: =IF(A19="x",Paramètres!M23,"") ->  | D19: =IF(A19="x",CONCATENATE(Paramètres!D23," ",Paramètres!C23," ",Paramètres!B23),"") -> 
A20: =Paramètres!V24 -> 0 | B20: =IF(A20="x",Paramètres!M24,"") ->  | D20: =IF(A20="x",CONCATENATE(Paramètres!D24," ",Paramètres!C24," ",Paramètres!B24),"") -> 
C21: Ast | D21: Adc Jean-Marc RICHIER
C22: Conv. | D22: Adc Yves GUIRAUD
D23: Cch Jean-Louis TOCHON
D24: Sgt Emile MONTERO
C25: Renfort | AJ25: =COUNTIF(E25:AI25,Paramètres!$C$43) -> 0
AJ26: =COUNTIF(E26:AI26,Paramètres!$C$43) -> 0
AJ27: =COUNTIF(E27:AI27,Paramètres!$C$43) -> 0
AJ28: =COUNTIF(E28:AI28,Paramètres!$C$43) -> 0
AJ29: =COUNTIF(E29:AI29,Paramètres!$C$43) -> 0
AJ30: =COUNTIF(E30:AI30,Paramètres!$C$43) -> 0
AJ31: =COUNTIF(E31:AI31,Paramètres!$C$43) -> 0
AJ32: =COUNTIF(E32:AI32,Paramètres!$C$43) -> 0
AJ33: =COUNTIF(E33:AI33,Paramètres!$C$43) -> 0
AJ37: =COUNTIF(E37:AI37,Paramètres!$C$43) -> 0
AJ38: =COUNTIF(E38:AI38,Paramètres!$C$43) -> 0
AJ39: =COUNTIF(E39:AI39,Paramètres!$C$43) -> 0
AJ40: =COUNTIF(E40:AI40,Paramètres!$C$43) -> 0
AJ41: =COUNTIF(E41:AI41,Paramètres!$C$43) -> 0
AJ42: =COUNTIF(E42:AI42,Paramètres!$C$43) -> 0
AJ43: =COUNTIF(E43:AI43,Paramètres!$C$43) -> 0
D44: =Paramètres!B43 -> Garde | E44: =COUNTIF(E$3:E$43,"J*")+E45+COUNTIF(E$3:E$43,Paramètres!$C$45) -> 0 | F44: =COUNTIF(F$3:F$43,"J*")+F45+COUNTIF(F$3:F$43,Paramètres!$C$45) -> 0 | G44: =COUNTIF(G$3:G$43,"J*")+G45+COUNTIF(G$3:G$43,Paramètres!$C$45) -> 0 | H44: =COUNTIF(H$3:H$43,"J*")+H45+COUNTIF(H$3:H$43,Paramètres!$C$45) -> 0 | I44: =COUNTIF(I$3:I$43,"J*")+I45+COUNTIF(I$3:I$43,Paramètres!$C$45) -> 0 | J44: =COUNTIF(J$3:J$43,"J*")+J45+COUNTIF(J$3:J$43,Paramètres!$C$45) -> 0 | K44: =COUNTIF(K$3:K$43,"J*")+K45+COUNTIF(K$3:K$43,Paramètres!$C$45) -> 0 | L44: =COUNTIF(L$3:L$43,"J*")+L45+COUNTIF(L$3:L$43,Paramètres!$C$45) -> 0 | M44: =COUNTIF(M$3:M$43,"J*")+M45+COUNTIF(M$3:M$43,Paramètres!$C$45) -> 0 | N44: =COUNTIF(N$3:N$43,"J*")+N45+COUNTIF(N$3:N$43,Paramètres!$C$45) -> 0 | O44: =COUNTIF(O$3:O$43,"J*")+O45+COUNTIF(O$3:O$43,Paramètres!$C$45) -> 0 | P44: =COUNTIF(P$3:P$43,"J*")+P45+COUNTIF(P$3:P$43,Paramètres!$C$45) -> 0 | Q44: =COUNTIF(Q$3:Q$43,"J*")+Q45+COUNTIF(Q$3:Q$43,Paramètres!$C$45) -> 0 | R44: =COUNTIF(R$3:R$43,"J*")+R45+COUNTIF(R$3:R$43,Paramètres!$C$45) -> 0 | S44: =COUNTIF(S$3:S$43,"J*")+S45+COUNTIF(S$3:S$43,Paramètres!$C$45) -> 0 | T44: =COUNTIF(T$3:T$43,"J*")+T45+COUNTIF(T$3:T$43,Paramètres!$C$45) -> 0 | U44: =COUNTIF(U$3:U$43,"J*")+U45+COUNTIF(U$3:U$43,Paramètres!$C$45) -> 0 | V44: =COUNTIF(V$3:V$43,"J*")+V45+COUNTIF(V$3:V$43,Paramètres!$C$45) -> 0 | W44: =COUNTIF(W$3:W$43,"J*")+W45+COUNTIF(W$3:W$43,Paramètres!$C$45) -> 0 | X44: =COUNTIF(X$3:X$43,"J*")+X45+COUNTIF(X$3:X$43,Paramètres!$C$45) -> 0 | Y44: =COUNTIF(Y$3:Y$43,"J*")+Y45+COUNTIF(Y$3:Y$43,Paramètres!$C$45) -> 0 | Z44: =COUNTIF(Z$3:Z$43,"J*")+Z45+COUNTIF(Z$3:Z$43,Paramètres!$C$45) -> 0 | AA44: =COUNTIF(AA$3:AA$43,"J*")+AA45+COUNTIF(AA$3:AA$43,Paramètres!$C$45) -> 0 | AB44: =COUNTIF(AB$3:AB$43,"J*")+AB45+COUNTIF(AB$3:AB$43,Paramètres!$C$45) -> 0 | AC44: =COUNTIF(AC$3:AC$43,"J*")+AC45+COUNTIF(AC$3:AC$43,Paramètres!$C$45) -> 0 | AD44: =COUNTIF(AD$3:AD$43,"J*")+AD45+COUNTIF(AD$3:AD$43,Paramètres!$C$45) -> 0 | AE44: =COUNTIF(AE$3:AE$43,"J*")+AE45+COUNTIF(AE$3:AE$43,Paramètres!$C$45) -> 0 | AF44: =COUNTIF(AF$3:AF$43,"J*")+AF45+COUNTIF(AF$3:AF$43,Paramètres!$C$45) -> 0 | AG44: =COUNTIF(AG$3:AG$43,"J*")+AG45+COUNTIF(AG$3:AG$43,Paramètres!$C$45) -> 0 | AH44: =COUNTIF(AH$3:AH$43,"J*")+AH45+COUNTIF(AH$3:AH$43,Paramètres!$C$45) -> 0 | AI44: =COUNTIF(AI$3:AI$43,"J*")+AI45+COUNTIF(AI$3:AI$43,Paramètres!$C$45) -> 0 | AJ44: =SUM(E44:AI44) -> 0
D45: Chef de garde | E45: =COUNTIF(E$3:E$43,"Cdg") -> 0 | F45: 0 | G45: 0 | H45: 0 | I45: 0 | J45: 0 | K45: 0 | L45: 0 | M45: 0 | N45: 0 | O45: 0 | P45: 0 | Q45: 0 | R45: 0 | S45: 0 | T45: 0 | U45: 0 | V45: 0 | W45: 0 | X45: 0 | Y45: 0 | Z45: 0 | AA45: 0 | AB45: 0 | AC45: 0 | AD45: 0 | AE45: 0 | AF45: 0 | AG45: 0 | AH45: 0 | AI45: 0
D46: SPP | E46: =COUNTIF(E$3:E$30,Paramètres!$C$43) -> 0 | F46: =COUNTIF(F$3:F$30,Paramètres!$C$43) -> 0 | G46: =COUNTIF(G$3:G$30,Paramètres!$C$43) -> 0 | H46: =COUNTIF(H$3:H$30,Paramètres!$C$43) -> 0 | I46: =COUNTIF(I$3:I$30,Paramètres!$C$43) -> 0 | J46: =COUNTIF(J$3:J$30,Paramètres!$C$43) -> 0 | K46: =COUNTIF(K$3:K$30,Paramètres!$C$43) -> 0 | L46: =COUNTIF(L$3:L$30,Paramètres!$C$43) -> 0 | M46: =COUNTIF(M$3:M$30,Paramètres!$C$43) -> 0 | N46: =COUNTIF(N$3:N$30,Paramètres!$C$43) -> 0 | O46: =COUNTIF(O$3:O$30,Paramètres!$C$43) -> 0 | P46: =COUNTIF(P$3:P$30,Paramètres!$C$43) -> 0 | Q46: =COUNTIF(Q$3:Q$30,Paramètres!$C$43) -> 0 | R46: =COUNTIF(R$3:R$30,Paramètres!$C$43) -> 0 | S46: =COUNTIF(S$3:S$30,Paramètres!$C$43) -> 0 | T46: =COUNTIF(T$3:T$30,Paramètres!$C$43) -> 0 | U46: =COUNTIF(U$3:U$30,Paramètres!$C$43) -> 0 | V46: =COUNTIF(V$3:V$30,Paramètres!$C$43) -> 0 | W46: =COUNTIF(W$3:W$30,Paramètres!$C$43) -> 0 | X46: =COUNTIF(X$3:X$30,Paramètres!$C$43) -> 0 | Y46: =COUNTIF(Y$3:Y$30,Paramètres!$C$43) -> 0 | Z46: =COUNTIF(Z$3:Z$30,Paramètres!$C$43) -> 0 | AA46: =COUNTIF(AA$3:AA$30,Paramètres!$C$43) -> 0 | AB46: =COUNTIF(AB$3:AB$30,Paramètres!$C$43) -> 0 | AC46: =COUNTIF(AC$3:AC$30,Paramètres!$C$43) -> 0 | AD46: =COUNTIF(AD$3:AD$30,Paramètres!$C$43) -> 0 | AE46: =COUNTIF(AE$3:AE$30,Paramètres!$C$43) -> 0 | AF46: =COUNTIF(AF$3:AF$30,Paramètres!$C$43) -> 0 | AG46: =COUNTIF(AG$3:AG$30,Paramètres!$C$43) -> 0 | AH46: =COUNTIF(AH$3:AH$30,Paramètres!$C$43) -> 0 | AI46: =COUNTIF(AI$3:AI$30,Paramètres!$C$43) -> 0 | AJ46: =SUM(E46:AI46) -> 0
D47: SPV | E47: =COUNTIF(E$31:E$43,Paramètres!$C$43) -> 0 | F47: =COUNTIF(F$31:F$43,Paramètres!$C$43) -> 0 | G47: =COUNTIF(G$31:G$43,Paramètres!$C$43) -> 0 | H47: =COUNTIF(H$31:H$43,Paramètres!$C$43) -> 0 | I47: =COUNTIF(I$31:I$43,Paramètres!$C$43) -> 0 | J47: =COUNTIF(J$31:J$43,Paramètres!$C$43) -> 0 | K47: =COUNTIF(K$31:K$43,Paramètres!$C$43) -> 0 | L47: =COUNTIF(L$31:L$43,Paramètres!$C$43) -> 0 | M47: =COUNTIF(M$31:M$43,Paramètres!$C$43) -> 0 | N47: =COUNTIF(N$31:N$43,Paramètres!$C$43) -> 0 | O47: =COUNTIF(O$31:O$43,Paramètres!$C$43) -> 0 | P47: =COUNTIF(P$31:P$43,Paramètres!$C$43) -> 0 | Q47: =COUNTIF(Q$31:Q$43,Paramètres!$C$43) -> 0 | R47: =COUNTIF(R$31:R$43,Paramètres!$C$43) -> 0 | S47: =COUNTIF(S$31:S$43,Paramètres!$C$43) -> 0 | T47: =COUNTIF(T$31:T$43,Paramètres!$C$43) -> 0 | U47: =COUNTIF(U$31:U$43,Paramètres!$C$43) -> 0 | V47: =COUNTIF(V$31:V$43,Paramètres!$C$43) -> 0 | W47: =COUNTIF(W$31:W$43,Paramètres!$C$43) -> 0 | X47: =COUNTIF(X$31:X$43,Paramètres!$C$43) -> 0 | Y47: =COUNTIF(Y$31:Y$43,Paramètres!$C$43) -> 0 | Z47: =COUNTIF(Z$31:Z$43,Paramètres!$C$43) -> 0 | AA47: =COUNTIF(AA$31:AA$43,Paramètres!$C$43) -> 0 | AB47: =COUNTIF(AB$31:AB$43,Paramètres!$C$43) -> 0 | AC47: =COUNTIF(AC$31:AC$43,Paramètres!$C$43) -> 0 | AD47: =COUNTIF(AD$31:AD$43,Paramètres!$C$43) -> 0 | AE47: =COUNTIF(AE$31:AE$43,Paramètres!$C$43) -> 0 | AF47: =COUNTIF(AF$31:AF$43,Paramètres!$C$43) -> 0 | AG47: =COUNTIF(AG$31:AG$43,Paramètres!$C$43) -> 0 | AH47: =COUNTIF(AH$31:AH$43,Paramètres!$C$43) -> 0 | AI47: =COUNTIF(AI$31:AI$43,Paramètres!$C$43) -> 0 | AJ47: =SUM(E47:AI47) -> 0
D48: Chef de groupe
D49: =Paramètres!B46 -> Formation Stagiaire | E49: =COUNTIF(E$3:E$20,Paramètres!$C$46) -> 0 | F49: =COUNTIF(F$3:F$20,Paramètres!$C$46) -> 0 | G49: =COUNTIF(G$3:G$20,Paramètres!$C$46) -> 0 | H49: =COUNTIF(H$3:H$20,Paramètres!$C$46) -> 0 | I49: =COUNTIF(I$3:I$20,Paramètres!$C$46) -> 0 | J49: =COUNTIF(J$3:J$20,Paramètres!$C$46) -> 0 | K49: =COUNTIF(K$3:K$20,Paramètres!$C$46) -> 0 | L49: =COUNTIF(L$3:L$20,Paramètres!$C$46) -> 0 | M49: =COUNTIF(M$3:M$20,Paramètres!$C$46) -> 0 | N49: =COUNTIF(N$3:N$20,Paramètres!$C$46) -> 0 | O49: =COUNTIF(O$3:O$20,Paramètres!$C$46) -> 0 | P49: =COUNTIF(P$3:P$20,Paramètres!$C$46) -> 0 | Q49: =COUNTIF(Q$3:Q$20,Paramètres!$C$46) -> 0 | R49: =COUNTIF(R$3:R$20,Paramètres!$C$46) -> 0 | S49: =COUNTIF(S$3:S$20,Paramètres!$C$46) -> 0 | T49: =COUNTIF(T$3:T$20,Paramètres!$C$46) -> 0 | U49: =COUNTIF(U$3:U$20,Paramètres!$C$46) -> 0 | V49: =COUNTIF(V$3:V$20,Paramètres!$C$46) -> 0 | W49: =COUNTIF(W$3:W$20,Paramètres!$C$46) -> 0 | X49: =COUNTIF(X$3:X$20,Paramètres!$C$46) -> 0 | Y49: =COUNTIF(Y$3:Y$20,Paramètres!$C$46) -> 0 | Z49: =COUNTIF(Z$3:Z$20,Paramètres!$C$46) -> 0 | AA49: =COUNTIF(AA$3:AA$20,Paramètres!$C$46) -> 0 | AB49: =COUNTIF(AB$3:AB$20,Paramètres!$C$46) -> 0 | AC49: =COUNTIF(AC$3:AC$20,Paramètres!$C$46) -> 0 | AD49: =COUNTIF(AD$3:AD$20,Paramètres!$C$46) -> 0 | AE49: =COUNTIF(AE$3:AE$20,Paramètres!$C$46) -> 0 | AF49: =COUNTIF(AF$3:AF$20,Paramètres!$C$46) -> 0 | AG49: =COUNTIF(AG$3:AG$20,Paramètres!$C$46) -> 0 | AH49: =COUNTIF(AH$3:AH$20,Paramètres!$C$46) -> 0 | AI49: =COUNTIF(AI$3:AI$20,Paramètres!$C$46) -> 0 | AJ49: =SUM(E49:AI49) -> 0
D50: =Paramètres!B47 -> Formation formateur | E50: =COUNTIF(E$3:E$20,Paramètres!$C$47) -> 0 | F50: =COUNTIF(F$3:F$20,Paramètres!$C$47) -> 0 | G50: =COUNTIF(G$3:G$20,Paramètres!$C$47) -> 0 | H50: =COUNTIF(H$3:H$20,Paramètres!$C$47) -> 0 | I50: =COUNTIF(I$3:I$20,Paramètres!$C$47) -> 0 | J50: =COUNTIF(J$3:J$20,Paramètres!$C$47) -> 0 | K50: =COUNTIF(K$3:K$20,Paramètres!$C$47) -> 0 | L50: =COUNTIF(L$3:L$20,Paramètres!$C$47) -> 0 | M50: =COUNTIF(M$3:M$20,Paramètres!$C$47) -> 0 | N50: =COUNTIF(N$3:N$20,Paramètres!$C$47) -> 0 | O50: =COUNTIF(O$3:O$20,Paramètres!$C$47) -> 0 | P50: =COUNTIF(P$3:P$20,Paramètres!$C$47) -> 0 | Q50: =COUNTIF(Q$3:Q$20,Paramètres!$C$47) -> 0 | R50: =COUNTIF(R$3:R$20,Paramètres!$C$47) -> 0 | S50: =COUNTIF(S$3:S$20,Paramètres!$C$47) -> 0 | T50: =COUNTIF(T$3:T$20,Paramètres!$C$47) -> 0 | U50: =COUNTIF(U$3:U$20,Paramètres!$C$47) -> 0 | V50: =COUNTIF(V$3:V$20,Paramètres!$C$47) -> 0 | W50: =COUNTIF(W$3:W$20,Paramètres!$C$47) -> 0 | X50: =COUNTIF(X$3:X$20,Paramètres!$C$47) -> 0 | Y50: =COUNTIF(Y$3:Y$20,Paramètres!$C$47) -> 0 | Z50: =COUNTIF(Z$3:Z$20,Paramètres!$C$47) -> 0 | AA50: =COUNTIF(AA$3:AA$20,Paramètres!$C$47) -> 0 | AB50: =COUNTIF(AB$3:AB$20,Paramètres!$C$47) -> 0 | AC50: =COUNTIF(AC$3:AC$20,Paramètres!$C$47) -> 0 | AD50: =COUNTIF(AD$3:AD$20,Paramètres!$C$47) -> 0 | AE50: =COUNTIF(AE$3:AE$20,Paramètres!$C$47) -> 0 | AF50: =COUNTIF(AF$3:AF$20,Paramètres!$C$47) -> 0 | AG50: =COUNTIF(AG$3:AG$20,Paramètres!$C$47) -> 0 | AH50: =COUNTIF(AH$3:AH$20,Paramètres!$C$47) -> 0 | AI50: =COUNTIF(AI$3:AI$20,Paramètres!$C$47) -> 0 | AJ50: 0
D51: =Paramètres!B48 -> Entrainement SD | E51: =COUNTIF(E$3:E$20,Paramètres!$C$48) -> 0 | F51: =COUNTIF(F$3:F$20,Paramètres!$C$48) -> 0 | G51: =COUNTIF(G$3:G$20,Paramètres!$C$48) -> 0 | H51: =COUNTIF(H$3:H$20,Paramètres!$C$48) -> 0 | I51: =COUNTIF(I$3:I$20,Paramètres!$C$48) -> 0 | J51: =COUNTIF(J$3:J$20,Paramètres!$C$48) -> 0 | K51: =COUNTIF(K$3:K$20,Paramètres!$C$48) -> 0 | L51: =COUNTIF(L$3:L$20,Paramètres!$C$48) -> 0 | M51: =COUNTIF(M$3:M$20,Paramètres!$C$48) -> 0 | N51: =COUNTIF(N$3:N$20,Paramètres!$C$48) -> 0 | O51: =COUNTIF(O$3:O$20,Paramètres!$C$48) -> 0 | P51: =COUNTIF(P$3:P$20,Paramètres!$C$48) -> 0 | Q51: =COUNTIF(Q$3:Q$20,Paramètres!$C$48) -> 0 | R51: =COUNTIF(R$3:R$20,Paramètres!$C$48) -> 0 | S51: =COUNTIF(S$3:S$20,Paramètres!$C$48) -> 0 | T51: =COUNTIF(T$3:T$20,Paramètres!$C$48) -> 0 | U51: =COUNTIF(U$3:U$20,Paramètres!$C$48) -> 0 | V51: =COUNTIF(V$3:V$20,Paramètres!$C$48) -> 0 | W51: =COUNTIF(W$3:W$20,Paramètres!$C$48) -> 0 | X51: =COUNTIF(X$3:X$20,Paramètres!$C$48) -> 0 | Y51: =COUNTIF(Y$3:Y$20,Paramètres!$C$48) -> 0 | Z51: =COUNTIF(Z$3:Z$20,Paramètres!$C$48) -> 0 | AA51: =COUNTIF(AA$3:AA$20,Paramètres!$C$48) -> 0 | AB51: =COUNTIF(AB$3:AB$20,Paramètres!$C$48) -> 0 | AC51: =COUNTIF(AC$3:AC$20,Paramètres!$C$48) -> 0 | AD51: =COUNTIF(AD$3:AD$20,Paramètres!$C$48) -> 0 | AE51: =COUNTIF(AE$3:AE$20,Paramètres!$C$48) -> 0 | AF51: =COUNTIF(AF$3:AF$20,Paramètres!$C$48) -> 0 | AG51: =COUNTIF(AG$3:AG$20,Paramètres!$C$48) -> 0 | AH51: =COUNTIF(AH$3:AH$20,Paramètres!$C$48) -> 0 | AI51: =COUNTIF(AI$3:AI$20,Paramètres!$C$48) -> 0 | AJ51: 0
D52: =Paramètres!B49 -> Entrainement EPIM | E52: =COUNTIF(E$3:E$20,Paramètres!$C$49) -> 0 | F52: =COUNTIF(F$3:F$20,Paramètres!$C$49) -> 0 | G52: =COUNTIF(G$3:G$20,Paramètres!$C$49) -> 0 | H52: =COUNTIF(H$3:H$20,Paramètres!$C$49) -> 0 | I52: =COUNTIF(I$3:I$20,Paramètres!$C$49) -> 0 | J52: =COUNTIF(J$3:J$20,Paramètres!$C$49) -> 0 | K52: =COUNTIF(K$3:K$20,Paramètres!$C$49) -> 0 | L52: =COUNTIF(L$3:L$20,Paramètres!$C$49) -> 0 | M52: =COUNTIF(M$3:M$20,Paramètres!$C$49) -> 0 | N52: =COUNTIF(N$3:N$20,Paramètres!$C$49) -> 0 | O52: =COUNTIF(O$3:O$20,Paramètres!$C$49) -> 0 | P52: =COUNTIF(P$3:P$20,Paramètres!$C$49) -> 0 | Q52: =COUNTIF(Q$3:Q$20,Paramètres!$C$49) -> 0 | R52: =COUNTIF(R$3:R$20,Paramètres!$C$49) -> 0 | S52: =COUNTIF(S$3:S$20,Paramètres!$C$49) -> 0 | T52: =COUNTIF(T$3:T$20,Paramètres!$C$49) -> 0 | U52: =COUNTIF(U$3:U$20,Paramètres!$C$49) -> 0 | V52: =COUNTIF(V$3:V$20,Paramètres!$C$49) -> 0 | W52: =COUNTIF(W$3:W$20,Paramètres!$C$49) -> 0 | X52: =COUNTIF(X$3:X$20,Paramètres!$C$49) -> 0 | Y52: =COUNTIF(Y$3:Y$20,Paramètres!$C$49) -> 0 | Z52: =COUNTIF(Z$3:Z$20,Paramètres!$C$49) -> 0 | AA52: =COUNTIF(AA$3:AA$20,Paramètres!$C$49) -> 0 | AB52: =COUNTIF(AB$3:AB$20,Paramètres!$C$49) -> 0 | AC52: =COUNTIF(AC$3:AC$20,Paramètres!$C$49) -> 0 | AD52: =COUNTIF(AD$3:AD$20,Paramètres!$C$49) -> 0 | AE52: =COUNTIF(AE$3:AE$20,Paramètres!$C$49) -> 0 | AF52: =COUNTIF(AF$3:AF$20,Paramètres!$C$49) -> 0 | AG52: =COUNTIF(AG$3:AG$20,Paramètres!$C$49) -> 0 | AH52: =COUNTIF(AH$3:AH$20,Paramètres!$C$49) -> 0 | AI52: =COUNTIF(AI$3:AI$20,Paramètres!$C$49) -> 0 | AJ52: 0
D53: =Paramètres!B50 -> Entrainement SAV | E53: =COUNTIF(E$3:E$20,Paramètres!$C$50) -> 0 | F53: =COUNTIF(F$3:F$20,Paramètres!$C$50) -> 0 | G53: =COUNTIF(G$3:G$20,Paramètres!$C$50) -> 0 | H53: =COUNTIF(H$3:H$20,Paramètres!$C$50) -> 0 | I53: =COUNTIF(I$3:I$20,Paramètres!$C$50) -> 0 | J53: =COUNTIF(J$3:J$20,Paramètres!$C$50) -> 0 | K53: =COUNTIF(K$3:K$20,Paramètres!$C$50) -> 0 | L53: =COUNTIF(L$3:L$20,Paramètres!$C$50) -> 0 | M53: =COUNTIF(M$3:M$20,Paramètres!$C$50) -> 0 | N53: =COUNTIF(N$3:N$20,Paramètres!$C$50) -> 0 | O53: =COUNTIF(O$3:O$20,Paramètres!$C$50) -> 0 | P53: =COUNTIF(P$3:P$20,Paramètres!$C$50) -> 0 | Q53: =COUNTIF(Q$3:Q$20,Paramètres!$C$50) -> 0 | R53: =COUNTIF(R$3:R$20,Paramètres!$C$50) -> 0 | S53: =COUNTIF(S$3:S$20,Paramètres!$C$50) -> 0 | T53: =COUNTIF(T$3:T$20,Paramètres!$C$50) -> 0 | U53: =COUNTIF(U$3:U$20,Paramètres!$C$50) -> 0 | V53: =COUNTIF(V$3:V$20,Paramètres!$C$50) -> 0 | W53: =COUNTIF(W$3:W$20,Paramètres!$C$50) -> 0 | X53: =COUNTIF(X$3:X$20,Paramètres!$C$50) -> 0 | Y53: =COUNTIF(Y$3:Y$20,Paramètres!$C$50) -> 0 | Z53: =COUNTIF(Z$3:Z$20,Paramètres!$C$50) -> 0 | AA53: =COUNTIF(AA$3:AA$20,Paramètres!$C$50) -> 0 | AB53: =COUNTIF(AB$3:AB$20,Paramètres!$C$50) -> 0 | AC53: =COUNTIF(AC$3:AC$20,Paramètres!$C$50) -> 0 | AD53: =COUNTIF(AD$3:AD$20,Paramètres!$C$50) -> 0 | AE53: =COUNTIF(AE$3:AE$20,Paramètres!$C$50) -> 0 | AF53: =COUNTIF(AF$3:AF$20,Paramètres!$C$50) -> 0 | AG53: =COUNTIF(AG$3:AG$20,Paramètres!$C$50) -> 0 | AH53: =COUNTIF(AH$3:AH$20,Paramètres!$C$50) -> 0 | AI53: =COUNTIF(AI$3:AI$20,Paramètres!$C$50) -> 0 | AJ53: 0
D54: =Paramètres!B56 -> Décharge Syndicale | E54: =COUNTIF(E$3:E$20,Paramètres!$C$56) -> 0 | F54: =COUNTIF(F$3:F$20,Paramètres!$C$56) -> 0 | G54: =COUNTIF(G$3:G$20,Paramètres!$C$56) -> 0 | H54: =COUNTIF(H$3:H$20,Paramètres!$C$56) -> 0 | I54: =COUNTIF(I$3:I$20,Paramètres!$C$56) -> 0 | J54: =COUNTIF(J$3:J$20,Paramètres!$C$56) -> 0 | K54: =COUNTIF(K$3:K$20,Paramètres!$C$56) -> 0 | L54: =COUNTIF(L$3:L$20,Paramètres!$C$56) -> 0 | M54: =COUNTIF(M$3:M$20,Paramètres!$C$56) -> 0 | N54: =COUNTIF(N$3:N$20,Paramètres!$C$56) -> 0 | O54: =COUNTIF(O$3:O$20,Paramètres!$C$56) -> 0 | P54: =COUNTIF(P$3:P$20,Paramètres!$C$56) -> 0 | Q54: =COUNTIF(Q$3:Q$20,Paramètres!$C$56) -> 0 | R54: =COUNTIF(R$3:R$20,Paramètres!$C$56) -> 0 | S54: =COUNTIF(S$3:S$20,Paramètres!$C$56) -> 0 | T54: =COUNTIF(T$3:T$20,Paramètres!$C$56) -> 0 | U54: =COUNTIF(U$3:U$20,Paramètres!$C$56) -> 0 | V54: =COUNTIF(V$3:V$20,Paramètres!$C$56) -> 0 | W54: =COUNTIF(W$3:W$20,Paramètres!$C$56) -> 0 | X54: =COUNTIF(X$3:X$20,Paramètres!$C$56) -> 0 | Y54: =COUNTIF(Y$3:Y$20,Paramètres!$C$56) -> 0 | Z54: =COUNTIF(Z$3:Z$20,Paramètres!$C$56) -> 0 | AA54: =COUNTIF(AA$3:AA$20,Paramètres!$C$56) -> 0 | AB54: =COUNTIF(AB$3:AB$20,Paramètres!$C$56) -> 0 | AC54: =COUNTIF(AC$3:AC$20,Paramètres!$C$56) -> 0 | AD54: =COUNTIF(AD$3:AD$20,Paramètres!$C$56) -> 0 | AE54: =COUNTIF(AE$3:AE$20,Paramètres!$C$56) -> 0 | AF54: =COUNTIF(AF$3:AF$20,Paramètres!$C$56) -> 0 | AG54: =COUNTIF(AG$3:AG$20,Paramètres!$C$56) -> 0 | AH54: =COUNTIF(AH$3:AH$20,Paramètres!$C$56) -> 0 | AI54: =COUNTIF(AI$3:AI$20,Paramètres!$C$56) -> 0 | AJ54: 0
D55: =Paramètres!B57 -> Autorisation Syndicale | E55: =COUNTIF(E$3:E$20,Paramètres!$C$57) -> 0 | F55: =COUNTIF(F$3:F$20,Paramètres!$C$57) -> 0 | G55: =COUNTIF(G$3:G$20,Paramètres!$C$57) -> 0 | H55: =COUNTIF(H$3:H$20,Paramètres!$C$57) -> 0 | I55: =COUNTIF(I$3:I$20,Paramètres!$C$57) -> 0 | J55: =COUNTIF(J$3:J$20,Paramètres!$C$57) -> 0 | K55: =COUNTIF(K$3:K$20,Paramètres!$C$57) -> 0 | L55: =COUNTIF(L$3:L$20,Paramètres!$C$57) -> 0 | M55: =COUNTIF(M$3:M$20,Paramètres!$C$57) -> 0 | N55: =COUNTIF(N$3:N$20,Paramètres!$C$57) -> 0 | O55: =COUNTIF(O$3:O$20,Paramètres!$C$57) -> 0 | P55: =COUNTIF(P$3:P$20,Paramètres!$C$57) -> 0 | Q55: =COUNTIF(Q$3:Q$20,Paramètres!$C$57) -> 0 | R55: =COUNTIF(R$3:R$20,Paramètres!$C$57) -> 0 | S55: =COUNTIF(S$3:S$20,Paramètres!$C$57) -> 0 | T55: =COUNTIF(T$3:T$20,Paramètres!$C$57) -> 0 | U55: =COUNTIF(U$3:U$20,Paramètres!$C$57) -> 0 | V55: =COUNTIF(V$3:V$20,Paramètres!$C$57) -> 0 | W55: =COUNTIF(W$3:W$20,Paramètres!$C$57) -> 0 | X55: =COUNTIF(X$3:X$20,Paramètres!$C$57) -> 0 | Y55: =COUNTIF(Y$3:Y$20,Paramètres!$C$57) -> 0 | Z55: =COUNTIF(Z$3:Z$20,Paramètres!$C$57) -> 0 | AA55: =COUNTIF(AA$3:AA$20,Paramètres!$C$57) -> 0 | AB55: =COUNTIF(AB$3:AB$20,Paramètres!$C$57) -> 0 | AC55: =COUNTIF(AC$3:AC$20,Paramètres!$C$57) -> 0 | AD55: =COUNTIF(AD$3:AD$20,Paramètres!$C$57) -> 0 | AE55: =COUNTIF(AE$3:AE$20,Paramètres!$C$57) -> 0 | AF55: =COUNTIF(AF$3:AF$20,Paramètres!$C$57) -> 0 | AG55: =COUNTIF(AG$3:AG$20,Paramètres!$C$57) -> 0 | AH55: =COUNTIF(AH$3:AH$20,Paramètres!$C$57) -> 0 | AI55: =COUNTIF(AI$3:AI$20,Paramètres!$C$57) -> 0 | AJ55: 0
D56: =Paramètres!B58 -> GOC | E56: =COUNTIF(E$3:E$20,Paramètres!$C$58) -> 0 | F56: =COUNTIF(F$3:F$20,Paramètres!$C$58) -> 0 | G56: =COUNTIF(G$3:G$20,Paramètres!$C$58) -> 0 | H56: =COUNTIF(H$3:H$20,Paramètres!$C$58) -> 0 | I56: =COUNTIF(I$3:I$20,Paramètres!$C$58) -> 0 | J56: =COUNTIF(J$3:J$20,Paramètres!$C$58) -> 0 | K56: =COUNTIF(K$3:K$20,Paramètres!$C$58) -> 0 | L56: =COUNTIF(L$3:L$20,Paramètres!$C$58) -> 0 | M56: =COUNTIF(M$3:M$20,Paramètres!$C$58) -> 0 | N56: =COUNTIF(N$3:N$20,Paramètres!$C$58) -> 0 | O56: =COUNTIF(O$3:O$20,Paramètres!$C$58) -> 0 | P56: =COUNTIF(P$3:P$20,Paramètres!$C$58) -> 0 | Q56: =COUNTIF(Q$3:Q$20,Paramètres!$C$58) -> 0 | R56: =COUNTIF(R$3:R$20,Paramètres!$C$58) -> 0 | S56: =COUNTIF(S$3:S$20,Paramètres!$C$58) -> 0 | T56: =COUNTIF(T$3:T$20,Paramètres!$C$58) -> 0 | U56: =COUNTIF(U$3:U$20,Paramètres!$C$58) -> 0 | V56: =COUNTIF(V$3:V$20,Paramètres!$C$58) -> 0 | W56: =COUNTIF(W$3:W$20,Paramètres!$C$58) -> 0 | X56: =COUNTIF(X$3:X$20,Paramètres!$C$58) -> 0 | Y56: =COUNTIF(Y$3:Y$20,Paramètres!$C$58) -> 0 | Z56: =COUNTIF(Z$3:Z$20,Paramètres!$C$58) -> 0 | AA56: =COUNTIF(AA$3:AA$20,Paramètres!$C$58) -> 0 | AB56: =COUNTIF(AB$3:AB$20,Paramètres!$C$58) -> 0 | AC56: =COUNTIF(AC$3:AC$20,Paramètres!$C$58) -> 0 | AD56: =COUNTIF(AD$3:AD$20,Paramètres!$C$58) -> 0 | AE56: =COUNTIF(AE$3:AE$20,Paramètres!$C$58) -> 0 | AF56: =COUNTIF(AF$3:AF$20,Paramètres!$C$58) -> 0 | AG56: =COUNTIF(AG$3:AG$20,Paramètres!$C$58) -> 0 | AH56: =COUNTIF(AH$3:AH$20,Paramètres!$C$58) -> 0 | AI56: =COUNTIF(AI$3:AI$20,Paramètres!$C$58) -> 0 | AJ56: 0
D57: =Paramètres!B59 -> Hydrant | E57: =COUNTIF(E$3:E$20,Paramètres!$C$59) -> 0 | F57: =COUNTIF(F$3:F$20,Paramètres!$C$59) -> 0 | G57: =COUNTIF(G$3:G$20,Paramètres!$C$59) -> 0 | H57: =COUNTIF(H$3:H$20,Paramètres!$C$59) -> 0 | I57: =COUNTIF(I$3:I$20,Paramètres!$C$59) -> 0 | J57: =COUNTIF(J$3:J$20,Paramètres!$C$59) -> 0 | K57: =COUNTIF(K$3:K$20,Paramètres!$C$59) -> 0 | L57: =COUNTIF(L$3:L$20,Paramètres!$C$59) -> 0 | M57: =COUNTIF(M$3:M$20,Paramètres!$C$59) -> 0 | N57: =COUNTIF(N$3:N$20,Paramètres!$C$59) -> 0 | O57: =COUNTIF(O$3:O$20,Paramètres!$C$59) -> 0 | P57: =COUNTIF(P$3:P$20,Paramètres!$C$59) -> 0 | Q57: =COUNTIF(Q$3:Q$20,Paramètres!$C$59) -> 0 | R57: =COUNTIF(R$3:R$20,Paramètres!$C$59) -> 0 | S57: =COUNTIF(S$3:S$20,Paramètres!$C$59) -> 0 | T57: =COUNTIF(T$3:T$20,Paramètres!$C$59) -> 0 | U57: =COUNTIF(U$3:U$20,Paramètres!$C$59) -> 0 | V57: =COUNTIF(V$3:V$20,Paramètres!$C$59) -> 0 | W57: =COUNTIF(W$3:W$20,Paramètres!$C$59) -> 0 | X57: =COUNTIF(X$3:X$20,Paramètres!$C$59) -> 0 | Y57: =COUNTIF(Y$3:Y$20,Paramètres!$C$59) -> 0 | Z57: =COUNTIF(Z$3:Z$20,Paramètres!$C$59) -> 0 | AA57: =COUNTIF(AA$3:AA$20,Paramètres!$C$59) -> 0 | AB57: =COUNTIF(AB$3:AB$20,Paramètres!$C$59) -> 0 | AC57: =COUNTIF(AC$3:AC$20,Paramètres!$C$59) -> 0 | AD57: =COUNTIF(AD$3:AD$20,Paramètres!$C$59) -> 0 | AE57: =COUNTIF(AE$3:AE$20,Paramètres!$C$59) -> 0 | AF57: =COUNTIF(AF$3:AF$20,Paramètres!$C$59) -> 0 | AG57: =COUNTIF(AG$3:AG$20,Paramètres!$C$59) -> 0 | AH57: =COUNTIF(AH$3:AH$20,Paramètres!$C$59) -> 0 | AI57: =COUNTIF(AI$3:AI$20,Paramètres!$C$59) -> 0 | AJ57: 0
D58: =Paramètres!B60 -> Evênement Familial | E58: =COUNTIF(E$3:E$20,Paramètres!$C$60) -> 0 | F58: =COUNTIF(F$3:F$20,Paramètres!$C$60) -> 0 | G58: =COUNTIF(G$3:G$20,Paramètres!$C$60) -> 0 | H58: =COUNTIF(H$3:H$20,Paramètres!$C$60) -> 0 | I58: =COUNTIF(I$3:I$20,Paramètres!$C$60) -> 0 | J58: =COUNTIF(J$3:J$20,Paramètres!$C$60) -> 0 | K58: =COUNTIF(K$3:K$20,Paramètres!$C$60) -> 0 | L58: =COUNTIF(L$3:L$20,Paramètres!$C$60) -> 0 | M58: =COUNTIF(M$3:M$20,Paramètres!$C$60) -> 0 | N58: =COUNTIF(N$3:N$20,Paramètres!$C$60) -> 0 | O58: =COUNTIF(O$3:O$20,Paramètres!$C$60) -> 0 | P58: =COUNTIF(P$3:P$20,Paramètres!$C$60) -> 0 | Q58: =COUNTIF(Q$3:Q$20,Paramètres!$C$60) -> 0 | R58: =COUNTIF(R$3:R$20,Paramètres!$C$60) -> 0 | S58: =COUNTIF(S$3:S$20,Paramètres!$C$60) -> 0 | T58: =COUNTIF(T$3:T$20,Paramètres!$C$60) -> 0 | U58: =COUNTIF(U$3:U$20,Paramètres!$C$60) -> 0 | V58: =COUNTIF(V$3:V$20,Paramètres!$C$60) -> 0 | W58: =COUNTIF(W$3:W$20,Paramètres!$C$60) -> 0 | X58: =COUNTIF(X$3:X$20,Paramètres!$C$60) -> 0 | Y58: =COUNTIF(Y$3:Y$20,Paramètres!$C$60) -> 0 | Z58: =COUNTIF(Z$3:Z$20,Paramètres!$C$60) -> 0 | AA58: =COUNTIF(AA$3:AA$20,Paramètres!$C$60) -> 0 | AB58: =COUNTIF(AB$3:AB$20,Paramètres!$C$60) -> 0 | AC58: =COUNTIF(AC$3:AC$20,Paramètres!$C$60) -> 0 | AD58: =COUNTIF(AD$3:AD$20,Paramètres!$C$60) -> 0 | AE58: =COUNTIF(AE$3:AE$20,Paramètres!$C$60) -> 0 | AF58: =COUNTIF(AF$3:AF$20,Paramètres!$C$60) -> 0 | AG58: =COUNTIF(AG$3:AG$20,Paramètres!$C$60) -> 0 | AH58: =COUNTIF(AH$3:AH$20,Paramètres!$C$60) -> 0 | AI58: =COUNTIF(AI$3:AI$20,Paramètres!$C$60) -> 0 | AJ58: 0
D59: =Paramètres!B61 -> Instance Paritaire | E59: =COUNTIF(E$3:E$20,Paramètres!$C$61) -> 0 | F59: =COUNTIF(F$3:F$20,Paramètres!$C$61) -> 0 | G59: =COUNTIF(G$3:G$20,Paramètres!$C$61) -> 0 | H59: =COUNTIF(H$3:H$20,Paramètres!$C$61) -> 0 | I59: =COUNTIF(I$3:I$20,Paramètres!$C$61) -> 0 | J59: =COUNTIF(J$3:J$20,Paramètres!$C$61) -> 0 | K59: =COUNTIF(K$3:K$20,Paramètres!$C$61) -> 0 | L59: =COUNTIF(L$3:L$20,Paramètres!$C$61) -> 0 | M59: =COUNTIF(M$3:M$20,Paramètres!$C$61) -> 0 | N59: =COUNTIF(N$3:N$20,Paramètres!$C$61) -> 0 | O59: =COUNTIF(O$3:O$20,Paramètres!$C$61) -> 0 | P59: =COUNTIF(P$3:P$20,Paramètres!$C$61) -> 0 | Q59: =COUNTIF(Q$3:Q$20,Paramètres!$C$61) -> 0 | R59: =COUNTIF(R$3:R$20,Paramètres!$C$61) -> 0 | S59: =COUNTIF(S$3:S$20,Paramètres!$C$61) -> 0 | T59: =COUNTIF(T$3:T$20,Paramètres!$C$61) -> 0 | U59: =COUNTIF(U$3:U$20,Paramètres!$C$61) -> 0 | V59: =COUNTIF(V$3:V$20,Paramètres!$C$61) -> 0 | W59: =COUNTIF(W$3:W$20,Paramètres!$C$61) -> 0 | X59: =COUNTIF(X$3:X$20,Paramètres!$C$61) -> 0 | Y59: =COUNTIF(Y$3:Y$20,Paramètres!$C$61) -> 0 | Z59: =COUNTIF(Z$3:Z$20,Paramètres!$C$61) -> 0 | AA59: =COUNTIF(AA$3:AA$20,Paramètres!$C$61) -> 0 | AB59: =COUNTIF(AB$3:AB$20,Paramètres!$C$61) -> 0 | AC59: =COUNTIF(AC$3:AC$20,Paramètres!$C$61) -> 0 | AD59: =COUNTIF(AD$3:AD$20,Paramètres!$C$61) -> 0 | AE59: =COUNTIF(AE$3:AE$20,Paramètres!$C$61) -> 0 | AF59: =COUNTIF(AF$3:AF$20,Paramètres!$C$61) -> 0 | AG59: =COUNTIF(AG$3:AG$20,Paramètres!$C$61) -> 0 | AH59: =COUNTIF(AH$3:AH$20,Paramètres!$C$61) -> 0 | AI59: =COUNTIF(AI$3:AI$20,Paramètres!$C$61) -> 0 | AJ59: 0
D60: =Paramètres!B62 -> Congés | E60: =COUNTIF(E$3:E$20,Paramètres!$C$62) -> 0 | F60: =COUNTIF(F$3:F$20,Paramètres!$C$62) -> 0 | G60: =COUNTIF(G$3:G$20,Paramètres!$C$62) -> 0 | H60: =COUNTIF(H$3:H$20,Paramètres!$C$62) -> 0 | I60: =COUNTIF(I$3:I$20,Paramètres!$C$62) -> 0 | J60: =COUNTIF(J$3:J$20,Paramètres!$C$62) -> 0 | K60: =COUNTIF(K$3:K$20,Paramètres!$C$62) -> 0 | L60: =COUNTIF(L$3:L$20,Paramètres!$C$62) -> 0 | M60: =COUNTIF(M$3:M$20,Paramètres!$C$62) -> 0 | N60: =COUNTIF(N$3:N$20,Paramètres!$C$62) -> 0 | O60: =COUNTIF(O$3:O$20,Paramètres!$C$62) -> 0 | P60: =COUNTIF(P$3:P$20,Paramètres!$C$62) -> 0 | Q60: =COUNTIF(Q$3:Q$20,Paramètres!$C$62) -> 0 | R60: =COUNTIF(R$3:R$20,Paramètres!$C$62) -> 0 | S60: =COUNTIF(S$3:S$20,Paramètres!$C$62) -> 0 | T60: =COUNTIF(T$3:T$20,Paramètres!$C$62) -> 0 | U60: =COUNTIF(U$3:U$20,Paramètres!$C$62) -> 0 | V60: =COUNTIF(V$3:V$20,Paramètres!$C$62) -> 0 | W60: =COUNTIF(W$3:W$20,Paramètres!$C$62) -> 0 | X60: =COUNTIF(X$3:X$20,Paramètres!$C$62) -> 0 | Y60: =COUNTIF(Y$3:Y$20,Paramètres!$C$62) -> 0 | Z60: =COUNTIF(Z$3:Z$20,Paramètres!$C$62) -> 0 | AA60: =COUNTIF(AA$3:AA$20,Paramètres!$C$62) -> 0 | AB60: =COUNTIF(AB$3:AB$20,Paramètres!$C$62) -> 0 | AC60: =COUNTIF(AC$3:AC$20,Paramètres!$C$62) -> 0 | AD60: =COUNTIF(AD$3:AD$20,Paramètres!$C$62) -> 0 | AE60: =COUNTIF(AE$3:AE$20,Paramètres!$C$62) -> 0 | AF60: =COUNTIF(AF$3:AF$20,Paramètres!$C$62) -> 0 | AG60: =COUNTIF(AG$3:AG$20,Paramètres!$C$62) -> 0 | AH60: =COUNTIF(AH$3:AH$20,Paramètres!$C$62) -> 0 | AI60: =COUNTIF(AI$3:AI$20,Paramètres!$C$62) -> 0 | AJ60: 0

Sheet Septembre

Sheet Octobre
C1: <| | D1: =Paramètres!D28 -> 22 | E1: =DATE(An_0,10,1) -> 41547 | F1: =E1+1 -> 41548 | G1: 41549 | H1: 41550 | I1: 41551 | J1: 41552 | K1: 41553 | L1: 41554 | M1: 41555 | N1: 41556 | O1: 41557 | P1: 41558 | Q1: 41559 | R1: 41560 | S1: 41561 | T1: 41562 | U1: 41563 | V1: 41564 | W1: 41565 | X1: 41566 | Y1: 41567 | Z1: 41568 | AA1: 41569 | AB1: 41570 | AC1: 41571 | AD1: 41572 | AE1: 41573 | AF1: 41574 | AG1: 41575 | AH1: 41576 | AI1: 41577 | AJ1: =D44 -> Garde | AK1: =D49 -> Formation Stagiaire | AL1: =D50 -> Formation formateur | AM1: =D51 -> Entrainement SD | AN1: =D52 -> Entrainement EPIM | AO1: =D53 -> Entrainement SAV | AP1: =D54 -> Décharge Syndicale | AQ1: =D55 -> Autorisation Syndicale | AR1: Total garde | AS1: Total heures mois | AT1: Hrs Th. À effectuer | AU1: Différence | AV1: Am + AT | AW1: =Paramètres!B58 -> GOC | AX1: =Paramètres!B59 -> Hydrant | AY1: =Paramètres!B61 -> Instance Paritaire
E2: =DATE(An_0,10,1) -> 41547 | F2: =E2+1 -> 41548 | G2: 41549 | H2: 41550 | I2: 41551 | J2: 41552 | K2: 41553 | L2: 41554 | M2: 41555 | N2: 41556 | O2: 41557 | P2: 41558 | Q2: 41559 | R2: 41560 | S2: 41561 | T2: 41562 | U2: 41563 | V2: 41564 | W2: 41565 | X2: 41566 | Y2: 41567 | Z2: 41568 | AA2: 41569 | AB2: 41570 | AC2: 41571 | AD2: 41572 | AE2: 41573 | AF2: 41574 | AG2: 41575 | AH2: 41576 | AI2: 41577 | AL2: =D50 -> Formation formateur
A3: =Paramètres!X7 -> x | B3: =IF(A3="x",Paramètres!M7,"") -> -1771 | C3: Personnel | D3: =IF(A3="x",CONCATENATE(Paramètres!D7," ",Paramètres!C7," ",Paramètres!B7),"") -> Adc Jacques Agent_1 | AJ3: =COUNTIF($E3:$AI3,Paramètres!$C$43) -> 0 | AK3: =COUNTIF($E3:$AI3,Paramètres!$C$46) -> 0 | AL3: =COUNTIF($E3:$AI3,Paramètres!$C$47) -> 0 | AM3: =COUNTIF($E3:$AI3,Paramètres!$C$48) -> 0 | AN3: =COUNTIF($E3:$AI3,Paramètres!$C$49) -> 0 | AO3: =COUNTIF($E3:$AI3,Paramètres!$C$50) -> 0 | AP3: =COUNTIF($E3:$AI3,Paramètres!$C$56) -> 0 | AQ3: =COUNTIF($E3:$AI3,Paramètres!$C$57) -> 0 | AR3: =SUM(AJ3:AQ3) -> 0 | AS3: =($AJ3*VtyJ)+($AK3*VtyFs)+($AL3*VtyFf)+($AM3*VtySD)+($AN3*VtyPI)+($AO3*VtySA)+($AP3*VtyDsy)+($AQ3*VtyAsy)+($AW3*VtyGOC)+($AX3*VtyHy)+($AY3*VtyiPA)+(AV3*VtyAm) -> 0 | AT3: =($D$1-COUNTIF(E3:AI3,TyCo))*(CoAG1) -> 137.5652174 | AU3: =AS3-AT3 -> -137.5652174 | AV3: =COUNTIF(E3:AI3,TyAm)+COUNTIF(E3:AI3,TyAt) -> 0 | AW3: =COUNTIF($E3:$AI3,TyGOC) -> 0 | AX3: =COUNTIF($E3:$AI3,TyHy) -> 0 | AY3: =COUNTIF($E3:$AI3,TySy) -> 0
A4: =Paramètres!X8 -> x | B4: =IF(A4="x",Paramètres!M8,"") -> -1582 | D4: =IF(A4="x",CONCATENATE(Paramètres!D8," ",Paramètres!C8," ",Paramètres!B8),"") -> Adj Christophe Agent_2 | AJ4: =COUNTIF($E4:$AI4,Paramètres!$C$43) -> 0 | AK4: =COUNTIF($E4:$AI4,Paramètres!$C$46) -> 0 | AL4: =COUNTIF($E4:$AI4,Paramètres!$C$47) -> 0 | AM4: =COUNTIF($E4:$AI4,Paramètres!$C$48) -> 0 | AN4: =COUNTIF($E4:$AI4,Paramètres!$C$49) -> 0 | AO4: =COUNTIF($E4:$AI4,Paramètres!$C$50) -> 0 | AP4: =COUNTIF($E4:$AI4,Paramètres!$C$56) -> 0 | AQ4: =COUNTIF($E4:$AI4,Paramètres!$C$57) -> 0 | AR4: 0 | AS4: 0 | AT4: =($D$1-COUNTIF(E4:AI4,Paramètres!$C$62))*(CoAG2) -> 137.5652174 | AU4: -137.5652174 | AV4: 0 | AW4: 0 | AX4: 0 | AY4: 0
A5: =Paramètres!X9 -> x | B5: =IF(A5="x",Paramètres!M9,"") -> -1582 | D5: =IF(A5="x",CONCATENATE(Paramètres!D9," ",Paramètres!C9," ",Paramètres!B9),"") -> Adj Christophe Agent_3 | AJ5: =COUNTIF($E5:$AI5,Paramètres!$C$43) -> 0 | AK5: =COUNTIF($E5:$AI5,Paramètres!$C$46) -> 0 | AL5: =COUNTIF($E5:$AI5,Paramètres!$C$47) -> 0 | AM5: =COUNTIF($E5:$AI5,Paramètres!$C$48) -> 0 | AN5: =COUNTIF($E5:$AI5,Paramètres!$C$49) -> 0 | AO5: =COUNTIF($E5:$AI5,Paramètres!$C$50) -> 0 | AP5: =COUNTIF($E5:$AI5,Paramètres!$C$56) -> 0 | AQ5: =COUNTIF($E5:$AI5,Paramètres!$C$57) -> 0 | AR5: 0 | AS5: 0 | AT5: =($D$1-COUNTIF(E5:AI5,Paramètres!$C$62))*(CoAG3) -> 137.5652174 | AU5: -137.5652174 | AV5: 0 | AW5: 0 | AX5: 0 | AY5: 0
A6: =Paramètres!X10 -> 0 | B6: =IF(A6="x",Paramètres!M10,"") ->  | D6: =IF(A6="x",CONCATENATE(Paramètres!D10," ",Paramètres!C10," ",Paramètres!B10),"") -> 
A7: =Paramètres!X11 -> x | B7: =IF(A7="x",Paramètres!M11,"") -> -1582 | D7: =IF(A7="x",CONCATENATE(Paramètres!D11," ",Paramètres!C11," ",Paramètres!B11),"") -> Sch Ludovic Agent_5 | AJ7: =COUNTIF($E7:$AI7,Paramètres!$C$43) -> 0 | AK7: =COUNTIF($E7:$AI7,Paramètres!$C$46) -> 0 | AL7: =COUNTIF($E7:$AI7,Paramètres!$C$47) -> 0 | AM7: =COUNTIF($E7:$AI7,Paramètres!$C$48) -> 0 | AN7: =COUNTIF($E7:$AI7,Paramètres!$C$49) -> 0 | AO7: =COUNTIF($E7:$AI7,Paramètres!$C$50) -> 0 | AP7: =COUNTIF($E7:$AI7,Paramètres!$C$56) -> 0 | AQ7: =COUNTIF($E7:$AI7,Paramètres!$C$57) -> 0 | AR7: 0 | AS7: 0 | AT7: =($D$1-COUNTIF(E7:AI7,Paramètres!$C$62))*(CoAG4) ->  | AV7: 0 | AW7: 0 | AX7: 0 | AY7: 0
A8: =Paramètres!X12 -> x | B8: =IF(A8="x",Paramètres!M12,"") -> -1582 | D8: =IF(A8="x",CONCATENATE(Paramètres!D12," ",Paramètres!C12," ",Paramètres!B12),"") -> Sch Franck Agent_6 | AJ8: =COUNTIF(E8:AI8,Paramètres!$C$43) -> 0 | AK8: =COUNTIF(F8:AJ8,Paramètres!$C$46) -> 0 | AL8: =COUNTIF(G8:AK8,Paramètres!$C$47) -> 0 | AM8: =COUNTIF($E8:$AI8,Paramètres!$C$48) -> 0 | AN8: =COUNTIF($E8:$AI8,Paramètres!$C$49) -> 0 | AO8: =COUNTIF($E8:$AI8,Paramètres!$C$50) -> 0 | AP8: =COUNTIF($E8:$AI8,Paramètres!$C$56) -> 0 | AQ8: =COUNTIF($E8:$AI8,Paramètres!$C$57) -> 0 | AR8: 0 | AS8: 0 | AT8: =($D$1-COUNTIF(E8:AI8,Paramètres!$C$62))*(CoAG5) -> 137.5652174 | AU8: -137.5652174 | AV8: 0 | AW8: 0 | AX8: 0 | AY8: 0
A9: =Paramètres!X13 -> x | B9: =IF(A9="x",Paramètres!M13,"") -> -1265.6 | D9: =IF(A9="x",CONCATENATE(Paramètres!D13," ",Paramètres!C13," ",Paramètres!B13),"") -> Sch Delphine Agent_7 | AJ9: =COUNTIF(E9:AI9,Paramètres!$C$43) -> 0 | AK9: =COUNTIF(F9:AJ9,Paramètres!$C$46) -> 0 | AL9: =COUNTIF(G9:AK9,Paramètres!$C$47) -> 0 | AM9: =COUNTIF($E9:$AI9,Paramètres!$C$48) -> 0 | AN9: =COUNTIF($E9:$AI9,Paramètres!$C$49) -> 0 | AO9: =COUNTIF($E9:$AI9,Paramètres!$C$50) -> 0 | AP9: =COUNTIF($E9:$AI9,Paramètres!$C$56) -> 0 | AQ9: =COUNTIF($E9:$AI9,Paramètres!$C$57) -> 0 | AR9: 0 | AS9: 0 | AT9: =($D$1-COUNTIF(E9:AI9,Paramètres!$C$62))*(CoAG6) -> 137.5652174 | AU9: -137.5652174 | AV9: 0 | AW9: 0 | AX9: 0 | AY9: 0
A10: =Paramètres!X14 -> x | B10: =IF(A10="x",Paramètres!M14,"") -> -1393 | D10: =IF(A10="x",CONCATENATE(Paramètres!D14," ",Paramètres!C14," ",Paramètres!B14),"") -> Sch Jean-Philippe Agent_8
A11: =Paramètres!X15 -> 0 | B11: =IF(A11="x",Paramètres!M15,"") ->  | D11: =IF(A11="x",CONCATENATE(Paramètres!D15," ",Paramètres!C15," ",Paramètres!B15),"") ->  | AJ11: =COUNTIF(E11:AI11,Paramètres!$C$43) -> 0 | AK11: =COUNTIF(F11:AI11,Paramètres!$C$46) -> 0 | AL11: =COUNTIF(G11:AK11,Paramètres!$C$47) -> 0 | AM11: =COUNTIF($E11:$AI11,Paramètres!$C$48) -> 0 | AN11: =COUNTIF($E11:$AI11,Paramètres!$C$49) -> 0 | AO11: =COUNTIF($E11:$AI11,Paramètres!$C$50) -> 0 | AP11: =COUNTIF($E11:$AI11,Paramètres!$C$56) -> 0 | AQ11: =COUNTIF($E11:$AI11,Paramètres!$C$57) -> 0 | AR11: 0 | AS11: 0 | AT11: =($D$1-COUNTIF(E11:AI11,Paramètres!$C$62))*(CoAG7) -> 110.0521739 | AU11: -110.0521739 | AV11: 0 | AW11: 0 | AX11: 0 | AY11: 0
A12: =Paramètres!X16 -> x | B12: =IF(A12="x",Paramètres!M16,"") -> -1582 | D12: =IF(A12="x",CONCATENATE(Paramètres!D16," ",Paramètres!C16," ",Paramètres!B16),"") -> Sgt Raymond Agent_10 | AJ12: =COUNTIF(E12:AI12,Paramètres!$C$43) -> 0 | AK12: =COUNTIF(F12:AJ12,Paramètres!$C$46) -> 0 | AL12: =COUNTIF(G12:AK12,Paramètres!$C$47) -> 0 | AM12: =COUNTIF($E12:$AI12,Paramètres!$C$48) -> 0 | AN12: =COUNTIF($E12:$AI12,Paramètres!$C$49) -> 0 | AO12: =COUNTIF($E12:$AI12,Paramètres!$C$50) -> 0 | AP12: =COUNTIF($E12:$AI12,Paramètres!$C$56) -> 0 | AQ12: =COUNTIF($E12:$AI12,Paramètres!$C$57) -> 0 | AR12: 0 | AS12: 0 | AT12: =($D$1-COUNTIF(E12:AI12,Paramètres!$C$62))*(CoAG8) -> 137.5652174 | AU12: -137.5652174 | AV12: 0 | AW12: 0 | AX12: 0 | AY12: 0
A13: =Paramètres!X17 -> x | B13: =IF(A13="x",Paramètres!M17,"") -> -1582 | D13: =IF(A13="x",CONCATENATE(Paramètres!D17," ",Paramètres!C17," ",Paramètres!B17),"") -> Sgt Julien Agent_11 | AJ13: =COUNTIF(E13:AI13,Paramètres!$C$43) -> 0 | AK13: =COUNTIF(F13:AJ13,Paramètres!$C$46) -> 0 | AL13: =COUNTIF(G13:AK13,Paramètres!$C$47) -> 0 | AM13: =COUNTIF($E13:$AI13,Paramètres!$C$48) -> 0 | AN13: =COUNTIF($E13:$AI13,Paramètres!$C$49) -> 0 | AO13: =COUNTIF($E13:$AI13,Paramètres!$C$50) -> 0 | AP13: =COUNTIF($E13:$AI13,Paramètres!$C$56) -> 0 | AQ13: =COUNTIF($E13:$AI13,Paramètres!$C$57) -> 0 | AR13: 0 | AS13: 0 | AT13: =($D$1-COUNTIF(E13:AI13,Paramètres!$C$62))*(CoAG9) ->  | AV13: 0 | AW13: 0 | AX13: 0 | AY13: 0
A14: =Paramètres!X18 -> x | B14: =IF(A14="x",Paramètres!M18,"") -> -1582 | D14: =IF(A14="x",CONCATENATE(Paramètres!D18," ",Paramètres!C18," ",Paramètres!B18),"") -> Cch Cyril Agent_12 | AJ14: =COUNTIF(E14:AI14,Paramètres!$C$43) -> 0 | AK14: =COUNTIF(F14:AJ14,Paramètres!$C$46) -> 0 | AL14: =COUNTIF(G14:AK14,Paramètres!$C$47) -> 0 | AM14: =COUNTIF($E14:$AI14,Paramètres!$C$48) -> 0 | AN14: =COUNTIF($E14:$AI14,Paramètres!$C$49) -> 0 | AO14: =COUNTIF($E14:$AI14,Paramètres!$C$50) -> 0 | AP14: =COUNTIF($E14:$AI14,Paramètres!$C$56) -> 0 | AQ14: =COUNTIF($E14:$AI14,Paramètres!$C$57) -> 0 | AR14: 0 | AS14: 0 | AT14: =($D$1-COUNTIF(E14:AI14,Paramètres!$C$62))*(CoAG1) -> 137.5652174 | AU14: -137.5652174 | AV14: 0 | AW14: 0 | AX14: 0 | AY14: 0
A15: =Paramètres!X19 -> x | B15: =IF(A15="x",Paramètres!M19,"") -> -1582 | D15: =IF(A15="x",CONCATENATE(Paramètres!D19," ",Paramètres!C19," ",Paramètres!B19),"") -> Cpl Stéphane Agent_13 | AJ15: =COUNTIF(E15:AI15,Paramètres!$C$43) -> 0 | AK15: =COUNTIF(F15:AJ15,Paramètres!$C$46) -> 0 | AL15: =COUNTIF(G15:AK15,Paramètres!$C$47) -> 0 | AM15: =COUNTIF($E15:$AI15,Paramètres!$C$48) -> 0 | AN15: =COUNTIF($E15:$AI15,Paramètres!$C$49) -> 0 | AO15: =COUNTIF($E15:$AI15,Paramètres!$C$50) -> 0 | AP15: =COUNTIF($E15:$AI15,Paramètres!$C$56) -> 0 | AQ15: =COUNTIF($E15:$AI15,Paramètres!$C$57) -> 0 | AR15: 0 | AS15: 0 | AT15: =($D$1-COUNTIF(E15:AI15,Paramètres!$C$62))*(CoAG10) -> 137.5652174 | AU15: -137.5652174 | AV15: 0 | AW15: 0 | AX15: 0 | AY15: 0
A16: =Paramètres!X20 -> x | B16: =IF(A16="x",Paramètres!M20,"") -> -1582 | D16: =IF(A16="x",CONCATENATE(Paramètres!D20," ",Paramètres!C20," ",Paramètres!B20),"") -> Sap 1cl Nicolas Agent_14
A17: =Paramètres!X21 -> 0 | B17: =IF(A17="x",Paramètres!M21,"") ->  | D17: =IF(A17="x",CONCATENATE(Paramètres!D21," ",Paramètres!C21," ",Paramètres!B21),"") -> 
A18: =Paramètres!X22 -> 0 | B18: =IF(A18="x",Paramètres!M22,"") ->  | D18: =IF(A18="x",CONCATENATE(Paramètres!D22," ",Paramètres!C22," ",Paramètres!B22),"") -> 
A19: =Paramètres!X23 -> 0 | B19: =IF(A19="x",Paramètres!M23,"") ->  | D19: =IF(A19="x",CONCATENATE(Paramètres!D23," ",Paramètres!C23," ",Paramètres!B23),"") -> 
A20: =Paramètres!X24 -> 0 | B20: =IF(A20="x",Paramètres!M24,"") ->  | D20: =IF(A20="x",CONCATENATE(Paramètres!D24," ",Paramètres!C24," ",Paramètres!B24),"") -> 
C21: Ast | D21: Adc Jean-Marc RICHIER
C22: Conv. | D22: Adc Yves GUIRAUD
D23: Cch Jean-Louis TOCHON
D24: Sgt Emile MONTERO
C25: Renfort | AJ25: =COUNTIF(E25:AI25,Paramètres!$C$43) -> 0
AJ26: =COUNTIF(E26:AI26,Paramètres!$C$43) -> 0
AJ27: =COUNTIF(E27:AI27,Paramètres!$C$43) -> 0
AJ28: =COUNTIF(E28:AI28,Paramètres!$C$43) -> 0
AJ29: =COUNTIF(E29:AI29,Paramètres!$C$43) -> 0
AJ30: =COUNTIF(E30:AI30,Paramètres!$C$43) -> 0
AJ31: =COUNTIF(E31:AI31,Paramètres!$C$43) -> 0
AJ32: =COUNTIF(E32:AI32,Paramètres!$C$43) -> 0
AJ36: =COUNTIF(E36:AI36,Paramètres!$C$43) -> 0
AJ37: =COUNTIF(E37:AI37,Paramètres!$C$43) -> 0
AJ38: =COUNTIF(E38:AI38,Paramètres!$C$43) -> 0
AJ39: =COUNTIF(E39:AI39,Paramètres!$C$43) -> 0
AJ40: =COUNTIF(E40:AI40,Paramètres!$C$43) -> 0
AJ41: =COUNTIF(E41:AI41,Paramètres!$C$43) -> 0
AJ42: =COUNTIF(E42:AI42,Paramètres!$C$43) -> 0
AJ43: =COUNTIF(E43:AI43,Paramètres!$C$43) -> 0
D44: =Paramètres!B43 -> Garde | E44: =COUNTIF(E$3:E$43,Paramètres!$C$43)+COUNTIF(E$3:E$43,Paramètres!$C$45)+E45 -> 0 | F44: =COUNTIF(F$3:F$43,Paramètres!$C$43)+COUNTIF(F$3:F$43,Paramètres!$C$45)+F45 -> 0 | G44: =COUNTIF(G$3:G$43,Paramètres!$C$43)+COUNTIF(G$3:G$43,Paramètres!$C$45)+G45 -> 0 | H44: =COUNTIF(H$3:H$43,Paramètres!$C$43)+COUNTIF(H$3:H$43,Paramètres!$C$45)+H45 -> 0 | I44: =COUNTIF(I$3:I$43,Paramètres!$C$43)+COUNTIF(I$3:I$43,Paramètres!$C$45)+I45 -> 0 | J44: =COUNTIF(J$3:J$43,Paramètres!$C$43)+COUNTIF(J$3:J$43,Paramètres!$C$45)+J45 -> 0 | K44: =COUNTIF(K$3:K$43,Paramètres!$C$43)+COUNTIF(K$3:K$43,Paramètres!$C$45)+K45 -> 0 | L44: =COUNTIF(L$3:L$43,Paramètres!$C$43)+COUNTIF(L$3:L$43,Paramètres!$C$45)+L45 -> 0 | M44: =COUNTIF(M$3:M$43,Paramètres!$C$43)+COUNTIF(M$3:M$43,Paramètres!$C$45)+M45 -> 0 | N44: =COUNTIF(N$3:N$43,Paramètres!$C$43)+COUNTIF(N$3:N$43,Paramètres!$C$45)+N45 -> 0 | O44: =COUNTIF(O$3:O$43,Paramètres!$C$43)+COUNTIF(O$3:O$43,Paramètres!$C$45)+O45 -> 0 | P44: =COUNTIF(P$3:P$43,Paramètres!$C$43)+COUNTIF(P$3:P$43,Paramètres!$C$45)+P45 -> 0 | Q44: =COUNTIF(Q$3:Q$43,Paramètres!$C$43)+COUNTIF(Q$3:Q$43,Paramètres!$C$45)+Q45 -> 0 | R44: =COUNTIF(R$3:R$43,Paramètres!$C$43)+COUNTIF(R$3:R$43,Paramètres!$C$45)+R45 -> 0 | S44: =COUNTIF(S$3:S$43,Paramètres!$C$43)+COUNTIF(S$3:S$43,Paramètres!$C$45)+S45 -> 0 | T44: =COUNTIF(T$3:T$43,Paramètres!$C$43)+COUNTIF(T$3:T$43,Paramètres!$C$45)+T45 -> 0 | U44: =COUNTIF(U$3:U$43,Paramètres!$C$43)+COUNTIF(U$3:U$43,Paramètres!$C$45)+U45 -> 0 | V44: =COUNTIF(V$3:V$43,Paramètres!$C$43)+COUNTIF(V$3:V$43,Paramètres!$C$45)+V45 -> 0 | W44: =COUNTIF(W$3:W$43,Paramètres!$C$43)+COUNTIF(W$3:W$43,Paramètres!$C$45)+W45 -> 0 | X44: =COUNTIF(X$3:X$43,Paramètres!$C$43)+COUNTIF(X$3:X$43,Paramètres!$C$45)+X45 -> 0 | Y44: =COUNTIF(Y$3:Y$43,Paramètres!$C$43)+COUNTIF(Y$3:Y$43,Paramètres!$C$45)+Y45 -> 0 | Z44: =COUNTIF(Z$3:Z$43,Paramètres!$C$43)+COUNTIF(Z$3:Z$43,Paramètres!$C$45)+Z45 -> 0 | AA44: =COUNTIF(AA$3:AA$43,Paramètres!$C$43)+COUNTIF(AA$3:AA$43,Paramètres!$C$45)+AA45 -> 0 | AB44: =COUNTIF(AB$3:AB$43,Paramètres!$C$43)+COUNTIF(AB$3:AB$43,Paramètres!$C$45)+AB45 -> 0 | AC44: =COUNTIF(AC$3:AC$43,Paramètres!$C$43)+COUNTIF(AC$3:AC$43,Paramètres!$C$45)+AC45 -> 0 | AD44: =COUNTIF(AD$3:AD$43,Paramètres!$C$43)+COUNTIF(AD$3:AD$43,Paramètres!$C$45)+AD45 -> 0 | AE44: =COUNTIF(AE$3:AE$43,Paramètres!$C$43)+COUNTIF(AE$3:AE$43,Paramètres!$C$45)+AE45 -> 0 | AF44: =COUNTIF(AF$3:AF$43,Paramètres!$C$43)+COUNTIF(AF$3:AF$43,Paramètres!$C$45)+AF45 -> 0 | AG44: =COUNTIF(AG$3:AG$43,Paramètres!$C$43)+COUNTIF(AG$3:AG$43,Paramètres!$C$45)+AG45 -> 0 | AH44: =COUNTIF(AH$3:AH$43,Paramètres!$C$43)+COUNTIF(AH$3:AH$43,Paramètres!$C$45)+AH45 -> 0 | AI44: =COUNTIF(AI$3:AI$43,Paramètres!$C$43)+COUNTIF(AI$3:AI$43,Paramètres!$C$45)+AI45 -> 0 | AJ44: =COUNTIF(AJ$3:AJ$43,Paramètres!$C$43)+COUNTIF(AJ$3:AJ$43,Paramètres!$C$45)+AJ45 -> 0 | AK44: =COUNTIF(AK$3:AK$43,Paramètres!$C$43)+COUNTIF(AK$3:AK$43,Paramètres!$C$45)+AK45 -> 0 | AL44: =COUNTIF(AL$3:AL$43,Paramètres!$C$43)+COUNTIF(AL$3:AL$43,Paramètres!$C$45)+AL45 -> 0 | AM44: =COUNTIF(AM$3:AM$43,Paramètres!$C$43)+COUNTIF(AM$3:AM$43,Paramètres!$C$45)+AM45 -> 0 | AN44: =COUNTIF(AN$3:AN$43,Paramètres!$C$43)+COUNTIF(AN$3:AN$43,Paramètres!$C$45)+AN45 -> 0 | AO44: =COUNTIF(AO$3:AO$43,Paramètres!$C$43)+COUNTIF(AO$3:AO$43,Paramètres!$C$45)+AO45 -> 0 | AP44: =COUNTIF(AP$3:AP$43,Paramètres!$C$43)+COUNTIF(AP$3:AP$43,Paramètres!$C$45)+AP45 -> 0 | AQ44: =COUNTIF(AQ$3:AQ$43,Paramètres!$C$43)+COUNTIF(AQ$3:AQ$43,Paramètres!$C$45)+AQ45 -> 0 | AR44: =COUNTIF(AR$3:AR$43,Paramètres!$C$43)+COUNTIF(AR$3:AR$43,Paramètres!$C$45)+AR45 -> 0 | AS44: =COUNTIF(AS$3:AS$43,Paramètres!$C$43)+COUNTIF(AS$3:AS$43,Paramètres!$C$45)+AS45 -> 0 | AT44: =COUNTIF(AT$3:AT$43,Paramètres!$C$43)+COUNTIF(AT$3:AT$43,Paramètres!$C$45)+AT45 -> 0 | AU44: =COUNTIF(AU$3:AU$43,Paramètres!$C$43)+COUNTIF(AU$3:AU$43,Paramètres!$C$45)+AU45 -> 0 | AV44: =COUNTIF(AV$3:AV$43,Paramètres!$C$43)+COUNTIF(AV$3:AV$43,Paramètres!$C$45)+AV45 -> 0 | AW44: =COUNTIF(AW$3:AW$43,Paramètres!$C$43)+COUNTIF(AW$3:AW$43,Paramètres!$C$45)+AW45 -> 0 | AX44: =COUNTIF(AX$3:AX$43,Paramètres!$C$43)+COUNTIF(AX$3:AX$43,Paramètres!$C$45)+AX45 -> 0 | AY44: =COUNTIF(AY$3:AY$43,Paramètres!$C$43)+COUNTIF(AY$3:AY$43,Paramètres!$C$45)+AY45 -> 0
D45: Chef de garde | E45: =COUNTIF(E3:E20,"Cdg") -> 0 | F45: =COUNTIF(F3:F20,"Cdg") -> 0 | G45: 0 | H45: 0 | I45: 0 | J45: 0 | K45: 0 | L45: 0 | M45: 0 | N45: 0 | O45: 0 | P45: 0 | Q45: 0 | R45: 0 | S45: 0 | T45: 0 | U45: 0 | V45: 0 | W45: 0 | X45: 0 | Y45: 0 | Z45: 0 | AA45: 0 | AB45: 0 | AC45: 0 | AD45: 0 | AE45: 0 | AF45: 0 | AG45: 0 | AH45: 0 | AI45: 0 | AJ45: 0 | AK45: 0 | AL45: 0 | AM45: 0 | AN45: 0 | AO45: 0 | AP45: 0 | AQ45: 0 | AR45: 0 | AS45: 0 | AT45: 0 | AU45: 0 | AV45: 0 | AW45: 0 | AX45: 0 | AY45: 0
D46: SPP | E46: =COUNTIF(E$3:E$30,Paramètres!$C$43) -> 0 | F46: =COUNTIF(F$3:F$30,Paramètres!$C$43) -> 0 | G46: =COUNTIF(G$3:G$30,Paramètres!$C$43) -> 0 | H46: =COUNTIF(H$3:H$30,Paramètres!$C$43) -> 0 | I46: =COUNTIF(I$3:I$30,Paramètres!$C$43) -> 0 | J46: =COUNTIF(J$3:J$30,Paramètres!$C$43) -> 0 | K46: =COUNTIF(K$3:K$30,Paramètres!$C$43) -> 0 | L46: =COUNTIF(L$3:L$30,Paramètres!$C$43) -> 0 | M46: =COUNTIF(M$3:M$30,Paramètres!$C$43) -> 0 | N46: =COUNTIF(N$3:N$30,Paramètres!$C$43) -> 0 | O46: =COUNTIF(O$3:O$30,Paramètres!$C$43) -> 0 | P46: =COUNTIF(P$3:P$30,Paramètres!$C$43) -> 0 | Q46: =COUNTIF(Q$3:Q$30,Paramètres!$C$43) -> 0 | R46: =COUNTIF(R$3:R$30,Paramètres!$C$43) -> 0 | S46: =COUNTIF(S$3:S$30,Paramètres!$C$43) -> 0 | T46: =COUNTIF(T$3:T$30,Paramètres!$C$43) -> 0 | U46: =COUNTIF(U$3:U$30,Paramètres!$C$43) -> 0 | V46: =COUNTIF(V$3:V$30,Paramètres!$C$43) -> 0 | W46: =COUNTIF(W$3:W$30,Paramètres!$C$43) -> 0 | X46: =COUNTIF(X$3:X$30,Paramètres!$C$43) -> 0 | Y46: =COUNTIF(Y$3:Y$30,Paramètres!$C$43) -> 0 | Z46: =COUNTIF(Z$3:Z$30,Paramètres!$C$43) -> 0 | AA46: =COUNTIF(AA$3:AA$30,Paramètres!$C$43) -> 0 | AB46: =COUNTIF(AB$3:AB$30,Paramètres!$C$43) -> 0 | AC46: =COUNTIF(AC$3:AC$30,Paramètres!$C$43) -> 0 | AD46: =COUNTIF(AD$3:AD$30,Paramètres!$C$43) -> 0 | AE46: =COUNTIF(AE$3:AE$30,Paramètres!$C$43) -> 0 | AF46: =COUNTIF(AF$3:AF$30,Paramètres!$C$43) -> 0 | AG46: =COUNTIF(AG$3:AG$30,Paramètres!$C$43) -> 0 | AH46: =COUNTIF(AH$3:AH$30,Paramètres!$C$43) -> 0 | AI46: =COUNTIF(AI$3:AI$30,Paramètres!$C$43) -> 0 | AJ46: =SUM(E46:AI46) -> 0
D47: SPV | E47: =COUNTIF(E$31:E$43,Paramètres!$C$43) -> 0 | F47: =COUNTIF(F$31:F$43,Paramètres!$C$43) -> 0 | G47: =COUNTIF(G$31:G$43,Paramètres!$C$43) -> 0 | H47: =COUNTIF(H$31:H$43,Paramètres!$C$43) -> 0 | I47: =COUNTIF(I$31:I$43,Paramètres!$C$43) -> 0 | J47: =COUNTIF(J$31:J$43,Paramètres!$C$43) -> 0 | K47: =COUNTIF(K$31:K$43,Paramètres!$C$43) -> 0 | L47: =COUNTIF(L$31:L$43,Paramètres!$C$43) -> 0 | M47: =COUNTIF(M$31:M$43,Paramètres!$C$43) -> 0 | N47: =COUNTIF(N$31:N$43,Paramètres!$C$43) -> 0 | O47: =COUNTIF(O$31:O$43,Paramètres!$C$43) -> 0 | P47: =COUNTIF(P$31:P$43,Paramètres!$C$43) -> 0 | Q47: =COUNTIF(Q$31:Q$43,Paramètres!$C$43) -> 0 | R47: =COUNTIF(R$31:R$43,Paramètres!$C$43) -> 0 | S47: =COUNTIF(S$31:S$43,Paramètres!$C$43) -> 0 | T47: =COUNTIF(T$31:T$43,Paramètres!$C$43) -> 0 | U47: =COUNTIF(U$31:U$43,Paramètres!$C$43) -> 0 | V47: =COUNTIF(V$31:V$43,Paramètres!$C$43) -> 0 | W47: =COUNTIF(W$31:W$43,Paramètres!$C$43) -> 0 | X47: =COUNTIF(X$31:X$43,Paramètres!$C$43) -> 0 | Y47: =COUNTIF(Y$31:Y$43,Paramètres!$C$43) -> 0 | Z47: =COUNTIF(Z$31:Z$43,Paramètres!$C$43) -> 0 | AA47: =COUNTIF(AA$31:AA$43,Paramètres!$C$43) -> 0 | AB47: =COUNTIF(AB$31:AB$43,Paramètres!$C$43) -> 0 | AC47: =COUNTIF(AC$31:AC$43,Paramètres!$C$43) -> 0 | AD47: =COUNTIF(AD$31:AD$43,Paramètres!$C$43) -> 0 | AE47: =COUNTIF(AE$31:AE$43,Paramètres!$C$43) -> 0 | AF47: =COUNTIF(AF$31:AF$43,Paramètres!$C$43) -> 0 | AG47: =COUNTIF(AG$31:AG$43,Paramètres!$C$43) -> 0 | AH47: =COUNTIF(AH$31:AH$43,Paramètres!$C$43) -> 0 | AI47: =COUNTIF(AI$31:AI$43,Paramètres!$C$43) -> 0 | AJ47: =SUM(E47:AI47) -> 0
D48: Chef de groupe | E48: HB | F48: HB | G48: HB | H48: HB | I48: MA | J48: MA | K48: TS | L48: TS | M48: DD | N48: DD | O48: DD | P48: PL | Q48: PL | R48: FD | S48: FD | T48: TS | U48: TS | V48: TS | W48: BL | X48: BL | Y48: MA | Z48: MA | AA48: FD | AB48: FD | AC48: FD | AD48: DD | AE48: DD | AF48: PL | AG48: PL | AH48: MA | AI48: ?
D49: =Paramètres!B46 -> Formation Stagiaire | E49: =COUNTIF(E$3:E$20,Paramètres!$C$46) -> 0 | F49: =COUNTIF(F$3:F$20,Paramètres!$C$46) -> 0 | G49: =COUNTIF(G$3:G$20,Paramètres!$C$46) -> 0 | H49: =COUNTIF(H$3:H$20,Paramètres!$C$46) -> 0 | I49: =COUNTIF(I$3:I$20,Paramètres!$C$46) -> 0 | J49: =COUNTIF(J$3:J$20,Paramètres!$C$46) -> 0 | K49: =COUNTIF(K$3:K$20,Paramètres!$C$46) -> 0 | L49: =COUNTIF(L$3:L$20,Paramètres!$C$46) -> 0 | M49: =COUNTIF(M$3:M$20,Paramètres!$C$46) -> 0 | N49: =COUNTIF(N$3:N$20,Paramètres!$C$46) -> 0 | O49: =COUNTIF(O$3:O$20,Paramètres!$C$46) -> 0 | P49: =COUNTIF(P$3:P$20,Paramètres!$C$46) -> 0 | Q49: =COUNTIF(Q$3:Q$20,Paramètres!$C$46) -> 0 | R49: =COUNTIF(R$3:R$20,Paramètres!$C$46) -> 0 | S49: =COUNTIF(S$3:S$20,Paramètres!$C$46) -> 0 | T49: =COUNTIF(T$3:T$20,Paramètres!$C$46) -> 0 | U49: =COUNTIF(U$3:U$20,Paramètres!$C$46) -> 0 | V49: =COUNTIF(V$3:V$20,Paramètres!$C$46) -> 0 | W49: =COUNTIF(W$3:W$20,Paramètres!$C$46) -> 0 | X49: =COUNTIF(X$3:X$20,Paramètres!$C$46) -> 0 | Y49: =COUNTIF(Y$3:Y$20,Paramètres!$C$46) -> 0 | Z49: =COUNTIF(Z$3:Z$20,Paramètres!$C$46) -> 0 | AA49: =COUNTIF(AA$3:AA$20,Paramètres!$C$46) -> 0 | AB49: =COUNTIF(AB$3:AB$20,Paramètres!$C$46) -> 0 | AC49: =COUNTIF(AC$3:AC$20,Paramètres!$C$46) -> 0 | AD49: =COUNTIF(AD$3:AD$20,Paramètres!$C$46) -> 0 | AE49: =COUNTIF(AE$3:AE$20,Paramètres!$C$46) -> 0 | AF49: =COUNTIF(AF$3:AF$20,Paramètres!$C$46) -> 0 | AG49: =COUNTIF(AG$3:AG$20,Paramètres!$C$46) -> 0 | AH49: =COUNTIF(AH$3:AH$20,Paramètres!$C$46) -> 0 | AI49: =COUNTIF(AI$3:AI$20,Paramètres!$C$46) -> 0 | AJ49: =SUM(E49:AI49) -> 0
D50: =Paramètres!B47 -> Formation formateur | E50: =COUNTIF(E$3:E$20,Paramètres!$C$47) -> 0 | F50: =COUNTIF(F$3:F$20,Paramètres!$C$47) -> 0 | G50: =COUNTIF(G$3:G$20,Paramètres!$C$47) -> 0 | H50: =COUNTIF(H$3:H$20,Paramètres!$C$47) -> 0 | I50: =COUNTIF(I$3:I$20,Paramètres!$C$47) -> 0 | J50: =COUNTIF(J$3:J$20,Paramètres!$C$47) -> 0 | K50: =COUNTIF(K$3:K$20,Paramètres!$C$47) -> 0 | L50: =COUNTIF(L$3:L$20,Paramètres!$C$47) -> 0 | M50: =COUNTIF(M$3:M$20,Paramètres!$C$47) -> 0 | N50: =COUNTIF(N$3:N$20,Paramètres!$C$47) -> 0 | O50: =COUNTIF(O$3:O$20,Paramètres!$C$47) -> 0 | P50: =COUNTIF(P$3:P$20,Paramètres!$C$47) -> 0 | Q50: =COUNTIF(Q$3:Q$20,Paramètres!$C$47) -> 0 | R50: =COUNTIF(R$3:R$20,Paramètres!$C$47) -> 0 | S50: =COUNTIF(S$3:S$20,Paramètres!$C$47) -> 0 | T50: =COUNTIF(T$3:T$20,Paramètres!$C$47) -> 0 | U50: =COUNTIF(U$3:U$20,Paramètres!$C$47) -> 0 | V50: =COUNTIF(V$3:V$20,Paramètres!$C$47) -> 0 | W50: =COUNTIF(W$3:W$20,Paramètres!$C$47) -> 0 | X50: =COUNTIF(X$3:X$20,Paramètres!$C$47) -> 0 | Y50: =COUNTIF(Y$3:Y$20,Paramètres!$C$47) -> 0 | Z50: =COUNTIF(Z$3:Z$20,Paramètres!$C$47) -> 0 | AA50: =COUNTIF(AA$3:AA$20,Paramètres!$C$47) -> 0 | AB50: =COUNTIF(AB$3:AB$20,Paramètres!$C$47) -> 0 | AC50: =COUNTIF(AC$3:AC$20,Paramètres!$C$47) -> 0 | AD50: =COUNTIF(AD$3:AD$20,Paramètres!$C$47) -> 0 | AE50: =COUNTIF(AE$3:AE$20,Paramètres!$C$47) -> 0 | AF50: =COUNTIF(AF$3:AF$20,Paramètres!$C$47) -> 0 | AG50: =COUNTIF(AG$3:AG$20,Paramètres!$C$47) -> 0 | AH50: =COUNTIF(AH$3:AH$20,Paramètres!$C$47) -> 0 | AI50: =COUNTIF(AI$3:AI$20,Paramètres!$C$47) -> 0 | AJ50: 0
D51: =Paramètres!B48 -> Entrainement SD | E51: =COUNTIF(E$3:E$20,Paramètres!$C$48) -> 0 | F51: =COUNTIF(F$3:F$20,Paramètres!$C$48) -> 0 | G51: =COUNTIF(G$3:G$20,Paramètres!$C$48) -> 0 | H51: =COUNTIF(H$3:H$20,Paramètres!$C$48) -> 0 | I51: =COUNTIF(I$3:I$20,Paramètres!$C$48) -> 0 | J51: =COUNTIF(J$3:J$20,Paramètres!$C$48) -> 0 | K51: =COUNTIF(K$3:K$20,Paramètres!$C$48) -> 0 | L51: =COUNTIF(L$3:L$20,Paramètres!$C$48) -> 0 | M51: =COUNTIF(M$3:M$20,Paramètres!$C$48) -> 0 | N51: =COUNTIF(N$3:N$20,Paramètres!$C$48) -> 0 | O51: =COUNTIF(O$3:O$20,Paramètres!$C$48) -> 0 | P51: =COUNTIF(P$3:P$20,Paramètres!$C$48) -> 0 | Q51: =COUNTIF(Q$3:Q$20,Paramètres!$C$48) -> 0 | R51: =COUNTIF(R$3:R$20,Paramètres!$C$48) -> 0 | S51: =COUNTIF(S$3:S$20,Paramètres!$C$48) -> 0 | T51: =COUNTIF(T$3:T$20,Paramètres!$C$48) -> 0 | U51: =COUNTIF(U$3:U$20,Paramètres!$C$48) -> 0 | V51: =COUNTIF(V$3:V$20,Paramètres!$C$48) -> 0 | W51: =COUNTIF(W$3:W$20,Paramètres!$C$48) -> 0 | X51: =COUNTIF(X$3:X$20,Paramètres!$C$48) -> 0 | Y51: =COUNTIF(Y$3:Y$20,Paramètres!$C$48) -> 0 | Z51: =COUNTIF(Z$3:Z$20,Paramètres!$C$48) -> 0 | AA51: =COUNTIF(AA$3:AA$20,Paramètres!$C$48) -> 0 | AB51: =COUNTIF(AB$3:AB$20,Paramètres!$C$48) -> 0 | AC51: =COUNTIF(AC$3:AC$20,Paramètres!$C$48) -> 0 | AD51: =COUNTIF(AD$3:AD$20,Paramètres!$C$48) -> 0 | AE51: =COUNTIF(AE$3:AE$20,Paramètres!$C$48) -> 0 | AF51: =COUNTIF(AF$3:AF$20,Paramètres!$C$48) -> 0 | AG51: =COUNTIF(AG$3:AG$20,Paramètres!$C$48) -> 0 | AH51: =COUNTIF(AH$3:AH$20,Paramètres!$C$48) -> 0 | AI51: =COUNTIF(AI$3:AI$20,Paramètres!$C$48) -> 0 | AJ51: 0
D52: =Paramètres!B49 -> Entrainement EPIM | E52: =COUNTIF(E$3:E$20,Paramètres!$C$49) -> 0 | F52: =COUNTIF(F$3:F$20,Paramètres!$C$49) -> 0 | G52: =COUNTIF(G$3:G$20,Paramètres!$C$49) -> 0 | H52: =COUNTIF(H$3:H$20,Paramètres!$C$49) -> 0 | I52: =COUNTIF(I$3:I$20,Paramètres!$C$49) -> 0 | J52: =COUNTIF(J$3:J$20,Paramètres!$C$49) -> 0 | K52: =COUNTIF(K$3:K$20,Paramètres!$C$49) -> 0 | L52: =COUNTIF(L$3:L$20,Paramètres!$C$49) -> 0 | M52: =COUNTIF(M$3:M$20,Paramètres!$C$49) -> 0 | N52: =COUNTIF(N$3:N$20,Paramètres!$C$49) -> 0 | O52: =COUNTIF(O$3:O$20,Paramètres!$C$49) -> 0 | P52: =COUNTIF(P$3:P$20,Paramètres!$C$49) -> 0 | Q52: =COUNTIF(Q$3:Q$20,Paramètres!$C$49) -> 0 | R52: =COUNTIF(R$3:R$20,Paramètres!$C$49) -> 0 | S52: =COUNTIF(S$3:S$20,Paramètres!$C$49) -> 0 | T52: =COUNTIF(T$3:T$20,Paramètres!$C$49) -> 0 | U52: =COUNTIF(U$3:U$20,Paramètres!$C$49) -> 0 | V52: =COUNTIF(V$3:V$20,Paramètres!$C$49) -> 0 | W52: =COUNTIF(W$3:W$20,Paramètres!$C$49) -> 0 | X52: =COUNTIF(X$3:X$20,Paramètres!$C$49) -> 0 | Y52: =COUNTIF(Y$3:Y$20,Paramètres!$C$49) -> 0 | Z52: =COUNTIF(Z$3:Z$20,Paramètres!$C$49) -> 0 | AA52: =COUNTIF(AA$3:AA$20,Paramètres!$C$49) -> 0 | AB52: =COUNTIF(AB$3:AB$20,Paramètres!$C$49) -> 0 | AC52: =COUNTIF(AC$3:AC$20,Paramètres!$C$49) -> 0 | AD52: =COUNTIF(AD$3:AD$20,Paramètres!$C$49) -> 0 | AE52: =COUNTIF(AE$3:AE$20,Paramètres!$C$49) -> 0 | AF52: =COUNTIF(AF$3:AF$20,Paramètres!$C$49) -> 0 | AG52: =COUNTIF(AG$3:AG$20,Paramètres!$C$49) -> 0 | AH52: =COUNTIF(AH$3:AH$20,Paramètres!$C$49) -> 0 | AI52: =COUNTIF(AI$3:AI$20,Paramètres!$C$49) -> 0 | AJ52: 0
D53: =Paramètres!B50 -> Entrainement SAV | E53: =COUNTIF(E$3:E$20,Paramètres!$C$50) -> 0 | F53: =COUNTIF(F$3:F$20,Paramètres!$C$50) -> 0 | G53: =COUNTIF(G$3:G$20,Paramètres!$C$50) -> 0 | H53: =COUNTIF(H$3:H$20,Paramètres!$C$50) -> 0 | I53: =COUNTIF(I$3:I$20,Paramètres!$C$50) -> 0 | J53: =COUNTIF(J$3:J$20,Paramètres!$C$50) -> 0 | K53: =COUNTIF(K$3:K$20,Paramètres!$C$50) -> 0 | L53: =COUNTIF(L$3:L$20,Paramètres!$C$50) -> 0 | M53: =COUNTIF(M$3:M$20,Paramètres!$C$50) -> 0 | N53: =COUNTIF(N$3:N$20,Paramètres!$C$50) -> 0 | O53: =COUNTIF(O$3:O$20,Paramètres!$C$50) -> 0 | P53: =COUNTIF(P$3:P$20,Paramètres!$C$50) -> 0 | Q53: =COUNTIF(Q$3:Q$20,Paramètres!$C$50) -> 0 | R53: =COUNTIF(R$3:R$20,Paramètres!$C$50) -> 0 | S53: =COUNTIF(S$3:S$20,Paramètres!$C$50) -> 0 | T53: =COUNTIF(T$3:T$20,Paramètres!$C$50) -> 0 | U53: =COUNTIF(U$3:U$20,Paramètres!$C$50) -> 0 | V53: =COUNTIF(V$3:V$20,Paramètres!$C$50) -> 0 | W53: =COUNTIF(W$3:W$20,Paramètres!$C$50) -> 0 | X53: =COUNTIF(X$3:X$20,Paramètres!$C$50) -> 0 | Y53: =COUNTIF(Y$3:Y$20,Paramètres!$C$50) -> 0 | Z53: =COUNTIF(Z$3:Z$20,Paramètres!$C$50) -> 0 | AA53: =COUNTIF(AA$3:AA$20,Paramètres!$C$50) -> 0 | AB53: =COUNTIF(AB$3:AB$20,Paramètres!$C$50) -> 0 | AC53: =COUNTIF(AC$3:AC$20,Paramètres!$C$50) -> 0 | AD53: =COUNTIF(AD$3:AD$20,Paramètres!$C$50) -> 0 | AE53: =COUNTIF(AE$3:AE$20,Paramètres!$C$50) -> 0 | AF53: =COUNTIF(AF$3:AF$20,Paramètres!$C$50) -> 0 | AG53: =COUNTIF(AG$3:AG$20,Paramètres!$C$50) -> 0 | AH53: =COUNTIF(AH$3:AH$20,Paramètres!$C$50) -> 0 | AI53: =COUNTIF(AI$3:AI$20,Paramètres!$C$50) -> 0 | AJ53: 0
D54: =Paramètres!B56 -> Décharge Syndicale | E54: =COUNTIF(E$3:E$20,Paramètres!$C$56) -> 0 | F54: =COUNTIF(F$3:F$20,Paramètres!$C$56) -> 0 | G54: =COUNTIF(G$3:G$20,Paramètres!$C$56) -> 0 | H54: =COUNTIF(H$3:H$20,Paramètres!$C$56) -> 0 | I54: =COUNTIF(I$3:I$20,Paramètres!$C$56) -> 0 | J54: =COUNTIF(J$3:J$20,Paramètres!$C$56) -> 0 | K54: =COUNTIF(K$3:K$20,Paramètres!$C$56) -> 0 | L54: =COUNTIF(L$3:L$20,Paramètres!$C$56) -> 0 | M54: =COUNTIF(M$3:M$20,Paramètres!$C$56) -> 0 | N54: =COUNTIF(N$3:N$20,Paramètres!$C$56) -> 0 | O54: =COUNTIF(O$3:O$20,Paramètres!$C$56) -> 0 | P54: =COUNTIF(P$3:P$20,Paramètres!$C$56) -> 0 | Q54: =COUNTIF(Q$3:Q$20,Paramètres!$C$56) -> 0 | R54: =COUNTIF(R$3:R$20,Paramètres!$C$56) -> 0 | S54: =COUNTIF(S$3:S$20,Paramètres!$C$56) -> 0 | T54: =COUNTIF(T$3:T$20,Paramètres!$C$56) -> 0 | U54: =COUNTIF(U$3:U$20,Paramètres!$C$56) -> 0 | V54: =COUNTIF(V$3:V$20,Paramètres!$C$56) -> 0 | W54: =COUNTIF(W$3:W$20,Paramètres!$C$56) -> 0 | X54: =COUNTIF(X$3:X$20,Paramètres!$C$56) -> 0 | Y54: =COUNTIF(Y$3:Y$20,Paramètres!$C$56) -> 0 | Z54: =COUNTIF(Z$3:Z$20,Paramètres!$C$56) -> 0 | AA54: =COUNTIF(AA$3:AA$20,Paramètres!$C$56) -> 0 | AB54: =COUNTIF(AB$3:AB$20,Paramètres!$C$56) -> 0 | AC54: =COUNTIF(AC$3:AC$20,Paramètres!$C$56) -> 0 | AD54: =COUNTIF(AD$3:AD$20,Paramètres!$C$56) -> 0 | AE54: =COUNTIF(AE$3:AE$20,Paramètres!$C$56) -> 0 | AF54: =COUNTIF(AF$3:AF$20,Paramètres!$C$56) -> 0 | AG54: =COUNTIF(AG$3:AG$20,Paramètres!$C$56) -> 0 | AH54: =COUNTIF(AH$3:AH$20,Paramètres!$C$56) -> 0 | AI54: =COUNTIF(AI$3:AI$20,Paramètres!$C$56) -> 0 | AJ54: 0
D55: =Paramètres!B57 -> Autorisation Syndicale | E55: =COUNTIF(E$3:E$20,Paramètres!$C$57) -> 0 | F55: =COUNTIF(F$3:F$20,Paramètres!$C$57) -> 0 | G55: =COUNTIF(G$3:G$20,Paramètres!$C$57) -> 0 | H55: =COUNTIF(H$3:H$20,Paramètres!$C$57) -> 0 | I55: =COUNTIF(I$3:I$20,Paramètres!$C$57) -> 0 | J55: =COUNTIF(J$3:J$20,Paramètres!$C$57) -> 0 | K55: =COUNTIF(K$3:K$20,Paramètres!$C$57) -> 0 | L55: =COUNTIF(L$3:L$20,Paramètres!$C$57) -> 0 | M55: =COUNTIF(M$3:M$20,Paramètres!$C$57) -> 0 | N55: =COUNTIF(N$3:N$20,Paramètres!$C$57) -> 0 | O55: =COUNTIF(O$3:O$20,Paramètres!$C$57) -> 0 | P55: =COUNTIF(P$3:P$20,Paramètres!$C$57) -> 0 | Q55: =COUNTIF(Q$3:Q$20,Paramètres!$C$57) -> 0 | R55: =COUNTIF(R$3:R$20,Paramètres!$C$57) -> 0 | S55: =COUNTIF(S$3:S$20,Paramètres!$C$57) -> 0 | T55: =COUNTIF(T$3:T$20,Paramètres!$C$57) -> 0 | U55: =COUNTIF(U$3:U$20,Paramètres!$C$57) -> 0 | V55: =COUNTIF(V$3:V$20,Paramètres!$C$57) -> 0 | W55: =COUNTIF(W$3:W$20,Paramètres!$C$57) -> 0 | X55: =COUNTIF(X$3:X$20,Paramètres!$C$57) -> 0 | Y55: =COUNTIF(Y$3:Y$20,Paramètres!$C$57) -> 0 | Z55: =COUNTIF(Z$3:Z$20,Paramètres!$C$57) -> 0 | AA55: =COUNTIF(AA$3:AA$20,Paramètres!$C$57) -> 0 | AB55: =COUNTIF(AB$3:AB$20,Paramètres!$C$57) -> 0 | AC55: =COUNTIF(AC$3:AC$20,Paramètres!$C$57) -> 0 | AD55: =COUNTIF(AD$3:AD$20,Paramètres!$C$57) -> 0 | AE55: =COUNTIF(AE$3:AE$20,Paramètres!$C$57) -> 0 | AF55: =COUNTIF(AF$3:AF$20,Paramètres!$C$57) -> 0 | AG55: =COUNTIF(AG$3:AG$20,Paramètres!$C$57) -> 0 | AH55: =COUNTIF(AH$3:AH$20,Paramètres!$C$57) -> 0 | AI55: =COUNTIF(AI$3:AI$20,Paramètres!$C$57) -> 0 | AJ55: 0
D56: =Paramètres!B58 -> GOC | E56: =COUNTIF(E$3:E$20,Paramètres!$C$58) -> 0 | F56: =COUNTIF(F$3:F$20,Paramètres!$C$58) -> 0 | G56: =COUNTIF(G$3:G$20,Paramètres!$C$58) -> 0 | H56: =COUNTIF(H$3:H$20,Paramètres!$C$58) -> 0 | I56: =COUNTIF(I$3:I$20,Paramètres!$C$58) -> 0 | J56: =COUNTIF(J$3:J$20,Paramètres!$C$58) -> 0 | K56: =COUNTIF(K$3:K$20,Paramètres!$C$58) -> 0 | L56: =COUNTIF(L$3:L$20,Paramètres!$C$58) -> 0 | M56: =COUNTIF(M$3:M$20,Paramètres!$C$58) -> 0 | N56: =COUNTIF(N$3:N$20,Paramètres!$C$58) -> 0 | O56: =COUNTIF(O$3:O$20,Paramètres!$C$58) -> 0 | P56: =COUNTIF(P$3:P$20,Paramètres!$C$58) -> 0 | Q56: =COUNTIF(Q$3:Q$20,Paramètres!$C$58) -> 0 | R56: =COUNTIF(R$3:R$20,Paramètres!$C$58) -> 0 | S56: =COUNTIF(S$3:S$20,Paramètres!$C$58) -> 0 | T56: =COUNTIF(T$3:T$20,Paramètres!$C$58) -> 0 | U56: =COUNTIF(U$3:U$20,Paramètres!$C$58) -> 0 | V56: =COUNTIF(V$3:V$20,Paramètres!$C$58) -> 0 | W56: =COUNTIF(W$3:W$20,Paramètres!$C$58) -> 0 | X56: =COUNTIF(X$3:X$20,Paramètres!$C$58) -> 0 | Y56: =COUNTIF(Y$3:Y$20,Paramètres!$C$58) -> 0 | Z56: =COUNTIF(Z$3:Z$20,Paramètres!$C$58) -> 0 | AA56: =COUNTIF(AA$3:AA$20,Paramètres!$C$58) -> 0 | AB56: =COUNTIF(AB$3:AB$20,Paramètres!$C$58) -> 0 | AC56: =COUNTIF(AC$3:AC$20,Paramètres!$C$58) -> 0 | AD56: =COUNTIF(AD$3:AD$20,Paramètres!$C$58) -> 0 | AE56: =COUNTIF(AE$3:AE$20,Paramètres!$C$58) -> 0 | AF56: =COUNTIF(AF$3:AF$20,Paramètres!$C$58) -> 0 | AG56: =COUNTIF(AG$3:AG$20,Paramètres!$C$58) -> 0 | AH56: =COUNTIF(AH$3:AH$20,Paramètres!$C$58) -> 0 | AI56: =COUNTIF(AI$3:AI$20,Paramètres!$C$58) -> 0 | AJ56: 0
D57: =Paramètres!B59 -> Hydrant | E57: =COUNTIF(E$3:E$20,Paramètres!$C$59) -> 0 | F57: =COUNTIF(F$3:F$20,Paramètres!$C$59) -> 0 | G57: =COUNTIF(G$3:G$20,Paramètres!$C$59) -> 0 | H57: =COUNTIF(H$3:H$20,Paramètres!$C$59) -> 0 | I57: =COUNTIF(I$3:I$20,Paramètres!$C$59) -> 0 | J57: =COUNTIF(J$3:J$20,Paramètres!$C$59) -> 0 | K57: =COUNTIF(K$3:K$20,Paramètres!$C$59) -> 0 | L57: =COUNTIF(L$3:L$20,Paramètres!$C$59) -> 0 | M57: =COUNTIF(M$3:M$20,Paramètres!$C$59) -> 0 | N57: =COUNTIF(N$3:N$20,Paramètres!$C$59) -> 0 | O57: =COUNTIF(O$3:O$20,Paramètres!$C$59) -> 0 | P57: =COUNTIF(P$3:P$20,Paramètres!$C$59) -> 0 | Q57: =COUNTIF(Q$3:Q$20,Paramètres!$C$59) -> 0 | R57: =COUNTIF(R$3:R$20,Paramètres!$C$59) -> 0 | S57: =COUNTIF(S$3:S$20,Paramètres!$C$59) -> 0 | T57: =COUNTIF(T$3:T$20,Paramètres!$C$59) -> 0 | U57: =COUNTIF(U$3:U$20,Paramètres!$C$59) -> 0 | V57: =COUNTIF(V$3:V$20,Paramètres!$C$59) -> 0 | W57: =COUNTIF(W$3:W$20,Paramètres!$C$59) -> 0 | X57: =COUNTIF(X$3:X$20,Paramètres!$C$59) -> 0 | Y57: =COUNTIF(Y$3:Y$20,Paramètres!$C$59) -> 0 | Z57: =COUNTIF(Z$3:Z$20,Paramètres!$C$59) -> 0 | AA57: =COUNTIF(AA$3:AA$20,Paramètres!$C$59) -> 0 | AB57: =COUNTIF(AB$3:AB$20,Paramètres!$C$59) -> 0 | AC57: =COUNTIF(AC$3:AC$20,Paramètres!$C$59) -> 0 | AD57: =COUNTIF(AD$3:AD$20,Paramètres!$C$59) -> 0 | AE57: =COUNTIF(AE$3:AE$20,Paramètres!$C$59) -> 0 | AF57: =COUNTIF(AF$3:AF$20,Paramètres!$C$59) -> 0 | AG57: =COUNTIF(AG$3:AG$20,Paramètres!$C$59) -> 0 | AH57: =COUNTIF(AH$3:AH$20,Paramètres!$C$59) -> 0 | AI57: =COUNTIF(AI$3:AI$20,Paramètres!$C$59) -> 0 | AJ57: 0
D58: =Paramètres!B60 -> Evênement Familial | E58: =COUNTIF(E$3:E$20,Paramètres!$C$60) -> 0 | F58: =COUNTIF(F$3:F$20,Paramètres!$C$60) -> 0 | G58: =COUNTIF(G$3:G$20,Paramètres!$C$60) -> 0 | H58: =COUNTIF(H$3:H$20,Paramètres!$C$60) -> 0 | I58: =COUNTIF(I$3:I$20,Paramètres!$C$60) -> 0 | J58: =COUNTIF(J$3:J$20,Paramètres!$C$60) -> 0 | K58: =COUNTIF(K$3:K$20,Paramètres!$C$60) -> 0 | L58: =COUNTIF(L$3:L$20,Paramètres!$C$60) -> 0 | M58: =COUNTIF(M$3:M$20,Paramètres!$C$60) -> 0 | N58: =COUNTIF(N$3:N$20,Paramètres!$C$60) -> 0 | O58: =COUNTIF(O$3:O$20,Paramètres!$C$60) -> 0 | P58: =COUNTIF(P$3:P$20,Paramètres!$C$60) -> 0 | Q58: =COUNTIF(Q$3:Q$20,Paramètres!$C$60) -> 0 | R58: =COUNTIF(R$3:R$20,Paramètres!$C$60) -> 0 | S58: =COUNTIF(S$3:S$20,Paramètres!$C$60) -> 0 | T58: =COUNTIF(T$3:T$20,Paramètres!$C$60) -> 0 | U58: =COUNTIF(U$3:U$20,Paramètres!$C$60) -> 0 | V58: =COUNTIF(V$3:V$20,Paramètres!$C$60) -> 0 | W58: =COUNTIF(W$3:W$20,Paramètres!$C$60) -> 0 | X58: =COUNTIF(X$3:X$20,Paramètres!$C$60) -> 0 | Y58: =COUNTIF(Y$3:Y$20,Paramètres!$C$60) -> 0 | Z58: =COUNTIF(Z$3:Z$20,Paramètres!$C$60) -> 0 | AA58: =COUNTIF(AA$3:AA$20,Paramètres!$C$60) -> 0 | AB58: =COUNTIF(AB$3:AB$20,Paramètres!$C$60) -> 0 | AC58: =COUNTIF(AC$3:AC$20,Paramètres!$C$60) -> 0 | AD58: =COUNTIF(AD$3:AD$20,Paramètres!$C$60) -> 0 | AE58: =COUNTIF(AE$3:AE$20,Paramètres!$C$60) -> 0 | AF58: =COUNTIF(AF$3:AF$20,Paramètres!$C$60) -> 0 | AG58: =COUNTIF(AG$3:AG$20,Paramètres!$C$60) -> 0 | AH58: =COUNTIF(AH$3:AH$20,Paramètres!$C$60) -> 0 | AI58: =COUNTIF(AI$3:AI$20,Paramètres!$C$60) -> 0 | AJ58: 0
D59: =Paramètres!B61 -> Instance Paritaire | E59: =COUNTIF(E$3:E$20,Paramètres!$C$61) -> 0 | F59: =COUNTIF(F$3:F$20,Paramètres!$C$61) -> 0 | G59: =COUNTIF(G$3:G$20,Paramètres!$C$61) -> 0 | H59: =COUNTIF(H$3:H$20,Paramètres!$C$61) -> 0 | I59: =COUNTIF(I$3:I$20,Paramètres!$C$61) -> 0 | J59: =COUNTIF(J$3:J$20,Paramètres!$C$61) -> 0 | K59: =COUNTIF(K$3:K$20,Paramètres!$C$61) -> 0 | L59: =COUNTIF(L$3:L$20,Paramètres!$C$61) -> 0 | M59: =COUNTIF(M$3:M$20,Paramètres!$C$61) -> 0 | N59: =COUNTIF(N$3:N$20,Paramètres!$C$61) -> 0 | O59: =COUNTIF(O$3:O$20,Paramètres!$C$61) -> 0 | P59: =COUNTIF(P$3:P$20,Paramètres!$C$61) -> 0 | Q59: =COUNTIF(Q$3:Q$20,Paramètres!$C$61) -> 0 | R59: =COUNTIF(R$3:R$20,Paramètres!$C$61) -> 0 | S59: =COUNTIF(S$3:S$20,Paramètres!$C$61) -> 0 | T59: =COUNTIF(T$3:T$20,Paramètres!$C$61) -> 0 | U59: =COUNTIF(U$3:U$20,Paramètres!$C$61) -> 0 | V59: =COUNTIF(V$3:V$20,Paramètres!$C$61) -> 0 | W59: =COUNTIF(W$3:W$20,Paramètres!$C$61) -> 0 | X59: =COUNTIF(X$3:X$20,Paramètres!$C$61) -> 0 | Y59: =COUNTIF(Y$3:Y$20,Paramètres!$C$61) -> 0 | Z59: =COUNTIF(Z$3:Z$20,Paramètres!$C$61) -> 0 | AA59: =COUNTIF(AA$3:AA$20,Paramètres!$C$61) -> 0 | AB59: =COUNTIF(AB$3:AB$20,Paramètres!$C$61) -> 0 | AC59: =COUNTIF(AC$3:AC$20,Paramètres!$C$61) -> 0 | AD59: =COUNTIF(AD$3:AD$20,Paramètres!$C$61) -> 0 | AE59: =COUNTIF(AE$3:AE$20,Paramètres!$C$61) -> 0 | AF59: =COUNTIF(AF$3:AF$20,Paramètres!$C$61) -> 0 | AG59: =COUNTIF(AG$3:AG$20,Paramètres!$C$61) -> 0 | AH59: =COUNTIF(AH$3:AH$20,Paramètres!$C$61) -> 0 | AI59: =COUNTIF(AI$3:AI$20,Paramètres!$C$61) -> 0 | AJ59: 0
D60: =Paramètres!B62 -> Congés | E60: =COUNTIF(E$3:E$20,Paramètres!$C$62) -> 0 | F60: =COUNTIF(F$3:F$20,Paramètres!$C$62) -> 0 | G60: =COUNTIF(G$3:G$20,Paramètres!$C$62) -> 0 | H60: =COUNTIF(H$3:H$20,Paramètres!$C$62) -> 0 | I60: =COUNTIF(I$3:I$20,Paramètres!$C$62) -> 0 | J60: =COUNTIF(J$3:J$20,Paramètres!$C$62) -> 0 | K60: =COUNTIF(K$3:K$20,Paramètres!$C$62) -> 0 | L60: =COUNTIF(L$3:L$20,Paramètres!$C$62) -> 0 | M60: =COUNTIF(M$3:M$20,Paramètres!$C$62) -> 0 | N60: =COUNTIF(N$3:N$20,Paramètres!$C$62) -> 0 | O60: =COUNTIF(O$3:O$20,Paramètres!$C$62) -> 0 | P60: =COUNTIF(P$3:P$20,Paramètres!$C$62) -> 0 | Q60: =COUNTIF(Q$3:Q$20,Paramètres!$C$62) -> 0 | R60: =COUNTIF(R$3:R$20,Paramètres!$C$62) -> 0 | S60: =COUNTIF(S$3:S$20,Paramètres!$C$62) -> 0 | T60: =COUNTIF(T$3:T$20,Paramètres!$C$62) -> 0 | U60: =COUNTIF(U$3:U$20,Paramètres!$C$62) -> 0 | V60: =COUNTIF(V$3:V$20,Paramètres!$C$62) -> 0 | W60: =COUNTIF(W$3:W$20,Paramètres!$C$62) -> 0 | X60: =COUNTIF(X$3:X$20,Paramètres!$C$62) -> 0 | Y60: =COUNTIF(Y$3:Y$20,Paramètres!$C$62) -> 0 | Z60: =COUNTIF(Z$3:Z$20,Paramètres!$C$62) -> 0 | AA60: =COUNTIF(AA$3:AA$20,Paramètres!$C$62) -> 0 | AB60: =COUNTIF(AB$3:AB$20,Paramètres!$C$62) -> 0 | AC60: =COUNTIF(AC$3:AC$20,Paramètres!$C$62) -> 0 | AD60: =COUNTIF(AD$3:AD$20,Paramètres!$C$62) -> 0 | AE60: =COUNTIF(AE$3:AE$20,Paramètres!$C$62) -> 0 | AF60: =COUNTIF(AF$3:AF$20,Paramètres!$C$62) -> 0 | AG60: =COUNTIF(AG$3:AG$20,Paramètres!$C$62) -> 0 | AH60: =COUNTIF(AH$3:AH$20,Paramètres!$C$62) -> 0 | AI60: =COUNTIF(AI$3:AI$20,Paramètres!$C$62) -> 0 | AJ60: 0

Sheet Novembre

Sheet Décembre
C1: <| | D1: =Paramètres!D28 -> 22 | E1: =DATE(An_0,12,1) -> 41608 | F1: =E1+1 -> 41609 | G1: 41610 | H1: 41611 | I1: 41612 | J1: 41613 | K1: 41614 | L1: 41615 | M1: 41616 | N1: 41617 | O1: 41618 | P1: 41619 | Q1: 41620 | R1: 41621 | S1: 41622 | T1: 41623 | U1: 41624 | V1: 41625 | W1: 41626 | X1: 41627 | Y1: 41628 | Z1: 41629 | AA1: 41630 | AB1: 41631 | AC1: 41632 | AD1: 41633 | AE1: 41634 | AF1: 41635 | AG1: 41636 | AH1: 41637 | AI1: 41638 | AJ1: =D44 -> Garde | AK1: =D49 -> Formation Stagiaire | AL1: =D50 -> Formation formateur | AM1: =D51 -> Entrainement SD | AN1: =D52 -> Entrainement EPIM | AO1: =D53 -> Entrainement SAV | AP1: =D54 -> Décharge Syndicale | AQ1: =D55 -> Autorisation Syndicale | AR1: Total garde | AS1: Total heures mois | AT1: Hrs Th. À effectuer | AU1: Différence | AV1: Am + AT | AW1: =Paramètres!B58 -> GOC | AX1: =Paramètres!B59 -> Hydrant | AY1: =Paramètres!B61 -> Instance Paritaire
E2: =DATE(An_0,12,1) -> 41608 | F2: =E2+1 -> 41609 | G2: 41610 | H2: 41611 | I2: 41612 | J2: 41613 | K2: 41614 | L2: 41615 | M2: 41616 | N2: 41617 | O2: 41618 | P2: 41619 | Q2: 41620 | R2: 41621 | S2: 41622 | T2: 41623 | U2: 41624 | V2: 41625 | W2: 41626 | X2: 41627 | Y2: 41628 | Z2: 41629 | AA2: 41630 | AB2: 41631 | AC2: 41632 | AD2: 41633 | AE2: 41634 | AF2: 41635 | AG2: 41636 | AH2: 41637 | AI2: 41638 | AL2: =D50 -> Formation formateur
A3: =Paramètres!Z7 -> x | B3: =IF(A3="x",Paramètres!M7,"") -> -1771 | C3: Personnel | D3: =IF(A3="x",CONCATENATE(Paramètres!D7," ",Paramètres!C7," ",Paramètres!B7),"") -> Adc Jacques Agent_1 | AJ3: =COUNTIF($E3:$AI3,Paramètres!$C$43) -> 0 | AK3: =COUNTIF($E3:$AI3,Paramètres!$C$46) -> 0 | AL3: =COUNTIF($E3:$AI3,Paramètres!$C$47) -> 0 | AM3: =COUNTIF($E3:$AI3,Paramètres!$C$48) -> 0 | AN3: =COUNTIF($E3:$AI3,Paramètres!$C$49) -> 0 | AO3: =COUNTIF($E3:$AI3,Paramètres!$C$50) -> 0 | AP3: =COUNTIF($E3:$AI3,Paramètres!$C$56) -> 0 | AQ3: =COUNTIF($E3:$AI3,Paramètres!$C$57) -> 0 | AR3: =SUM(AJ3:AQ3) -> 0 | AS3: =($AJ3*VtyJ)+($AK3*VtyFs)+($AL3*VtyFf)+($AM3*VtySD)+($AN3*VtyPI)+($AO3*VtySA)+($AP3*VtyDsy)+($AQ3*VtyAsy)+($AW3*VtyGOC)+($AX3*VtyHy)+($AY3*VtyiPA)+(AV3*VtyAm) -> 0 | AT3: =($D$1-COUNTIF(E3:AI3,TyCo))*(CoAG1) -> 137.5652174 | AU3: =AS3-AT3 -> -137.5652174 | AV3: =COUNTIF(E3:AI3,TyAm)+COUNTIF(E3:AI3,TyAt) -> 0 | AW3: =COUNTIF($E3:$AI3,TyGOC) -> 0 | AX3: =COUNTIF($E3:$AI3,TyHy) -> 0 | AY3: =COUNTIF($E3:$AI3,TySy) -> 0
A4: =Paramètres!Z8 -> x | B4: =IF(A4="x",Paramètres!M8,"") -> -1582 | D4: =IF(A4="x",CONCATENATE(Paramètres!D8," ",Paramètres!C8," ",Paramètres!B8),"") -> Adj Christophe Agent_2 | AJ4: =COUNTIF($E4:$AI4,Paramètres!$C$43) -> 0 | AK4: =COUNTIF($E4:$AI4,Paramètres!$C$46) -> 0 | AL4: =COUNTIF($E4:$AI4,Paramètres!$C$47) -> 0 | AM4: =COUNTIF($E4:$AI4,Paramètres!$C$48) -> 0 | AN4: =COUNTIF($E4:$AI4,Paramètres!$C$49) -> 0 | AO4: =COUNTIF($E4:$AI4,Paramètres!$C$50) -> 0 | AP4: =COUNTIF($E4:$AI4,Paramètres!$C$56) -> 0 | AQ4: =COUNTIF($E4:$AI4,Paramètres!$C$57) -> 0 | AR4: 0 | AS4: 0 | AT4: =($D$1-COUNTIF(E4:AI4,Paramètres!$C$62))*(CoAG2) -> 137.5652174 | AU4: -137.5652174 | AV4: 0 | AW4: 0 | AX4: 0 | AY4: 0
A5: =Paramètres!Z9 -> x | B5: =IF(A5="x",Paramètres!M9,"") -> -1582 | D5: =IF(A5="x",CONCATENATE(Paramètres!D9," ",Paramètres!C9," ",Paramètres!B9),"") -> Adj Christophe Agent_3 | AJ5: =COUNTIF($E5:$AI5,Paramètres!$C$43) -> 0 | AK5: =COUNTIF($E5:$AI5,Paramètres!$C$46) -> 0 | AL5: =COUNTIF($E5:$AI5,Paramètres!$C$47) -> 0 | AM5: =COUNTIF($E5:$AI5,Paramètres!$C$48) -> 0 | AN5: =COUNTIF($E5:$AI5,Paramètres!$C$49) -> 0 | AO5: =COUNTIF($E5:$AI5,Paramètres!$C$50) -> 0 | AP5: =COUNTIF($E5:$AI5,Paramètres!$C$56) -> 0 | AQ5: =COUNTIF($E5:$AI5,Paramètres!$C$57) -> 0 | AR5: 0 | AS5: 0 | AT5: =($D$1-COUNTIF(E5:AI5,Paramètres!$C$62))*(CoAG3) -> 137.5652174 | AU5: -137.5652174 | AV5: 0 | AW5: 0 | AX5: 0 | AY5: 0
A6: =Paramètres!Z10 -> 0 | B6: =IF(A6="x",Paramètres!M10,"") ->  | D6: =IF(A6="x",CONCATENATE(Paramètres!D10," ",Paramètres!C10," ",Paramètres!B10),"") -> 
A7: =Paramètres!Z11 -> x | B7: =IF(A7="x",Paramètres!M11,"") -> -1582 | D7: =IF(A7="x",CONCATENATE(Paramètres!D11," ",Paramètres!C11," ",Paramètres!B11),"") -> Sch Ludovic Agent_5 | AJ7: =COUNTIF($E7:$AI7,Paramètres!$C$43) -> 0 | AK7: =COUNTIF($E7:$AI7,Paramètres!$C$46) -> 0 | AL7: =COUNTIF($E7:$AI7,Paramètres!$C$47) -> 0 | AM7: =COUNTIF($E7:$AI7,Paramètres!$C$48) -> 0 | AN7: =COUNTIF($E7:$AI7,Paramètres!$C$49) -> 0 | AO7: =COUNTIF($E7:$AI7,Paramètres!$C$50) -> 0 | AP7: =COUNTIF($E7:$AI7,Paramètres!$C$56) -> 0 | AQ7: =COUNTIF($E7:$AI7,Paramètres!$C$57) -> 0 | AR7: 0 | AS7: 0 | AT7: =($D$1-COUNTIF(E7:AI7,Paramètres!$C$62))*(CoAG4) ->  | AV7: 0 | AW7: 0 | AX7: 0 | AY7: 0
A8: =Paramètres!Z12 -> x | B8: =IF(A8="x",Paramètres!M12,"") -> -1582 | D8: =IF(A8="x",CONCATENATE(Paramètres!D12," ",Paramètres!C12," ",Paramètres!B12),"") -> Sch Franck Agent_6 | AJ8: =COUNTIF(E8:AI8,Paramètres!$C$43) -> 0 | AK8: =COUNTIF(F8:AJ8,Paramètres!$C$46) -> 0 | AL8: =COUNTIF(G8:AK8,Paramètres!$C$47) -> 0 | AM8: =COUNTIF($E8:$AI8,Paramètres!$C$48) -> 0 | AN8: =COUNTIF($E8:$AI8,Paramètres!$C$49) -> 0 | AO8: =COUNTIF($E8:$AI8,Paramètres!$C$50) -> 0 | AP8: =COUNTIF($E8:$AI8,Paramètres!$C$56) -> 0 | AQ8: =COUNTIF($E8:$AI8,Paramètres!$C$57) -> 0 | AR8: 0 | AS8: 0 | AT8: =($D$1-COUNTIF(E8:AI8,Paramètres!$C$62))*(CoAG5) -> 137.5652174 | AU8: -137.5652174 | AV8: 0 | AW8: 0 | AX8: 0 | AY8: 0
A9: =Paramètres!Z13 -> x | B9: =IF(A9="x",Paramètres!M13,"") -> -1265.6 | D9: =IF(A9="x",CONCATENATE(Paramètres!D13," ",Paramètres!C13," ",Paramètres!B13),"") -> Sch Delphine Agent_7 | AJ9: =COUNTIF(E9:AI9,Paramètres!$C$43) -> 0 | AK9: =COUNTIF(F9:AJ9,Paramètres!$C$46) -> 0 | AL9: =COUNTIF(G9:AK9,Paramètres!$C$47) -> 0 | AM9: =COUNTIF($E9:$AI9,Paramètres!$C$48) -> 0 | AN9: =COUNTIF($E9:$AI9,Paramètres!$C$49) -> 0 | AO9: =COUNTIF($E9:$AI9,Paramètres!$C$50) -> 0 | AP9: =COUNTIF($E9:$AI9,Paramètres!$C$56) -> 0 | AQ9: =COUNTIF($E9:$AI9,Paramètres!$C$57) -> 0 | AR9: 0 | AS9: 0 | AT9: =($D$1-COUNTIF(E9:AI9,Paramètres!$C$62))*(CoAG6) -> 137.5652174 | AU9: -137.5652174 | AV9: 0 | AW9: 0 | AX9: 0 | AY9: 0
A10: =Paramètres!Z14 -> x | B10: =IF(A10="x",Paramètres!M14,"") -> -1393 | D10: =IF(A10="x",CONCATENATE(Paramètres!D14," ",Paramètres!C14," ",Paramètres!B14),"") -> Sch Jean-Philippe Agent_8
A11: =Paramètres!Z15 -> 0 | B11: =IF(A11="x",Paramètres!M15,"") ->  | D11: =IF(A11="x",CONCATENATE(Paramètres!D15," ",Paramètres!C15," ",Paramètres!B15),"") ->  | AJ11: =COUNTIF(E11:AI11,Paramètres!$C$43) -> 0 | AK11: =COUNTIF(F11:AI11,Paramètres!$C$46) -> 0 | AL11: =COUNTIF(G11:AK11,Paramètres!$C$47) -> 0 | AM11: =COUNTIF($E11:$AI11,Paramètres!$C$48) -> 0 | AN11: =COUNTIF($E11:$AI11,Paramètres!$C$49) -> 0 | AO11: =COUNTIF($E11:$AI11,Paramètres!$C$50) -> 0 | AP11: =COUNTIF($E11:$AI11,Paramètres!$C$56) -> 0 | AQ11: =COUNTIF($E11:$AI11,Paramètres!$C$57) -> 0 | AR11: 0 | AS11: 0 | AT11: =($D$1-COUNTIF(E11:AI11,Paramètres!$C$62))*(CoAG7) -> 110.0521739 | AU11: -110.0521739 | AV11: 0 | AW11: 0 | AX11: 0 | AY11: 0
A12: =Paramètres!Z16 -> x | B12: =IF(A12="x",Paramètres!M16,"") -> -1582 | D12: =IF(A12="x",CONCATENATE(Paramètres!D16," ",Paramètres!C16," ",Paramètres!B16),"") -> Sgt Raymond Agent_10 | AJ12: =COUNTIF(E12:AI12,Paramètres!$C$43) -> 0 | AK12: =COUNTIF(F12:AJ12,Paramètres!$C$46) -> 0 | AL12: =COUNTIF(G12:AK12,Paramètres!$C$47) -> 0 | AM12: =COUNTIF($E12:$AI12,Paramètres!$C$48) -> 0 | AN12: =COUNTIF($E12:$AI12,Paramètres!$C$49) -> 0 | AO12: =COUNTIF($E12:$AI12,Paramètres!$C$50) -> 0 | AP12: =COUNTIF($E12:$AI12,Paramètres!$C$56) -> 0 | AQ12: =COUNTIF($E12:$AI12,Paramètres!$C$57) -> 0 | AR12: 0 | AS12: 0 | AT12: =($D$1-COUNTIF(E12:AI12,Paramètres!$C$62))*(CoAG8) -> 137.5652174 | AU12: -137.5652174 | AV12: 0 | AW12: 0 | AX12: 0 | AY12: 0
A13: =Paramètres!Z17 -> x | B13: =IF(A13="x",Paramètres!M17,"") -> -1582 | D13: =IF(A13="x",CONCATENATE(Paramètres!D17," ",Paramètres!C17," ",Paramètres!B17),"") -> Sgt Julien Agent_11 | AJ13: =COUNTIF(E13:AI13,Paramètres!$C$43) -> 0 | AK13: =COUNTIF(F13:AJ13,Paramètres!$C$46) -> 0 | AL13: =COUNTIF(G13:AK13,Paramètres!$C$47) -> 0 | AM13: =COUNTIF($E13:$AI13,Paramètres!$C$48) -> 0 | AN13: =COUNTIF($E13:$AI13,Paramètres!$C$49) -> 0 | AO13: =COUNTIF($E13:$AI13,Paramètres!$C$50) -> 0 | AP13: =COUNTIF($E13:$AI13,Paramètres!$C$56) -> 0 | AQ13: =COUNTIF($E13:$AI13,Paramètres!$C$57) -> 0 | AR13: 0 | AS13: 0 | AT13: =($D$1-COUNTIF(E13:AI13,Paramètres!$C$62))*(CoAG9) ->  | AV13: 0 | AW13: 0 | AX13: 0 | AY13: 0
A14: =Paramètres!Z18 -> x | B14: =IF(A14="x",Paramètres!M18,"") -> -1582 | D14: =IF(A14="x",CONCATENATE(Paramètres!D18," ",Paramètres!C18," ",Paramètres!B18),"") -> Cch Cyril Agent_12 | AJ14: =COUNTIF(E14:AI14,Paramètres!$C$43) -> 0 | AK14: =COUNTIF(F14:AJ14,Paramètres!$C$46) -> 0 | AL14: =COUNTIF(G14:AK14,Paramètres!$C$47) -> 0 | AM14: =COUNTIF($E14:$AI14,Paramètres!$C$48) -> 0 | AN14: =COUNTIF($E14:$AI14,Paramètres!$C$49) -> 0 | AO14: =COUNTIF($E14:$AI14,Paramètres!$C$50) -> 0 | AP14: =COUNTIF($E14:$AI14,Paramètres!$C$56) -> 0 | AQ14: =COUNTIF($E14:$AI14,Paramètres!$C$57) -> 0 | AR14: 0 | AS14: 0 | AT14: =($D$1-COUNTIF(E14:AI14,Paramètres!$C$62))*(CoAG1) -> 137.5652174 | AU14: -137.5652174 | AV14: 0 | AW14: 0 | AX14: 0 | AY14: 0
A15: =Paramètres!Z19 -> x | B15: =IF(A15="x",Paramètres!M19,"") -> -1582 | D15: =IF(A15="x",CONCATENATE(Paramètres!D19," ",Paramètres!C19," ",Paramètres!B19),"") -> Cpl Stéphane Agent_13 | AJ15: =COUNTIF(E15:AI15,Paramètres!$C$43) -> 0 | AK15: =COUNTIF(F15:AJ15,Paramètres!$C$46) -> 0 | AL15: =COUNTIF(G15:AK15,Paramètres!$C$47) -> 0 | AM15: =COUNTIF($E15:$AI15,Paramètres!$C$48) -> 0 | AN15: =COUNTIF($E15:$AI15,Paramètres!$C$49) -> 0 | AO15: =COUNTIF($E15:$AI15,Paramètres!$C$50) -> 0 | AP15: =COUNTIF($E15:$AI15,Paramètres!$C$56) -> 0 | AQ15: =COUNTIF($E15:$AI15,Paramètres!$C$57) -> 0 | AR15: 0 | AS15: 0 | AT15: =($D$1-COUNTIF(E15:AI15,Paramètres!$C$62))*(CoAG10) -> 137.5652174 | AU15: -137.5652174 | AV15: 0 | AW15: 0 | AX15: 0 | AY15: 0
A16: =Paramètres!Z20 -> x | B16: =IF(A16="x",Paramètres!M20,"") -> -1582 | D16: =IF(A16="x",CONCATENATE(Paramètres!D20," ",Paramètres!C20," ",Paramètres!B20),"") -> Sap 1cl Nicolas Agent_14
A17: =Paramètres!Z21 -> 0 | B17: =IF(A17="x",Paramètres!M21,"") ->  | D17: =IF(A17="x",CONCATENATE(Paramètres!D21," ",Paramètres!C21," ",Paramètres!B21),"") -> 
A18: =Paramètres!Z22 -> 0 | B18: =IF(A18="x",Paramètres!M22,"") ->  | D18: =IF(A18="x",CONCATENATE(Paramètres!D22," ",Paramètres!C22," ",Paramètres!B22),"") -> 
A19: =Paramètres!Z23 -> 0 | B19: =IF(A19="x",Paramètres!M23,"") ->  | D19: =IF(A19="x",CONCATENATE(Paramètres!D23," ",Paramètres!C23," ",Paramètres!B23),"") -> 
A20: =Paramètres!Z24 -> 0 | B20: =IF(A20="x",Paramètres!M24,"") ->  | D20: =IF(A20="x",CONCATENATE(Paramètres!D24," ",Paramètres!C24," ",Paramètres!B24),"") -> 
C21: Ast | D21: Adc Jean-Marc RICHIER
C22: Conv. | D22: Adc Yves GUIRAUD
D23: Cch Jean-Louis TOCHON
D24: Sgt Emile MONTERO
C25: Renfort | AJ25: =COUNTIF(E25:AI25,Paramètres!$C$43) -> 0
AJ26: =COUNTIF(E26:AI26,Paramètres!$C$43) -> 0
AJ27: =COUNTIF(E27:AI27,Paramètres!$C$43) -> 0
AJ28: =COUNTIF(E28:AI28,Paramètres!$C$43) -> 0
AJ29: =COUNTIF(E29:AI29,Paramètres!$C$43) -> 0
AJ30: =COUNTIF(E30:AI30,Paramètres!$C$43) -> 0
AJ31: =COUNTIF(E31:AI31,Paramètres!$C$43) -> 0
AJ32: =COUNTIF(E32:AI32,Paramètres!$C$43) -> 0
AJ36: =COUNTIF(E36:AI36,Paramètres!$C$43) -> 0
AJ37: =COUNTIF(E37:AI37,Paramètres!$C$43) -> 0
AJ38: =COUNTIF(E38:AI38,Paramètres!$C$43) -> 0
AJ39: =COUNTIF(E39:AI39,Paramètres!$C$43) -> 0
AJ40: =COUNTIF(E40:AI40,Paramètres!$C$43) -> 0
AJ41: =COUNTIF(E41:AI41,Paramètres!$C$43) -> 0
AJ42: =COUNTIF(E42:AI42,Paramètres!$C$43) -> 0
AJ43: =COUNTIF(E43:AI43,Paramètres!$C$43) -> 0
D44: =Paramètres!B43 -> Garde | E44: =COUNTIF(E$3:E$43,Paramètres!$C$43)+COUNTIF(E$3:E$43,Paramètres!$C$45)+E45 -> 0 | F44: =COUNTIF(F$3:F$43,Paramètres!$C$43)+COUNTIF(F$3:F$43,Paramètres!$C$45)+F45 -> 0 | G44: =COUNTIF(G$3:G$43,Paramètres!$C$43)+COUNTIF(G$3:G$43,Paramètres!$C$45)+G45 -> 0 | H44: =COUNTIF(H$3:H$43,Paramètres!$C$43)+COUNTIF(H$3:H$43,Paramètres!$C$45)+H45 -> 0 | I44: =COUNTIF(I$3:I$43,Paramètres!$C$43)+COUNTIF(I$3:I$43,Paramètres!$C$45)+I45 -> 0 | J44: =COUNTIF(J$3:J$43,Paramètres!$C$43)+COUNTIF(J$3:J$43,Paramètres!$C$45)+J45 -> 0 | K44: =COUNTIF(K$3:K$43,Paramètres!$C$43)+COUNTIF(K$3:K$43,Paramètres!$C$45)+K45 -> 0 | L44: =COUNTIF(L$3:L$43,Paramètres!$C$43)+COUNTIF(L$3:L$43,Paramètres!$C$45)+L45 -> 0 | M44: =COUNTIF(M$3:M$43,Paramètres!$C$43)+COUNTIF(M$3:M$43,Paramètres!$C$45)+M45 -> 0 | N44: =COUNTIF(N$3:N$43,Paramètres!$C$43)+COUNTIF(N$3:N$43,Paramètres!$C$45)+N45 -> 0 | O44: =COUNTIF(O$3:O$43,Paramètres!$C$43)+COUNTIF(O$3:O$43,Paramètres!$C$45)+O45 -> 0 | P44: =COUNTIF(P$3:P$43,Paramètres!$C$43)+COUNTIF(P$3:P$43,Paramètres!$C$45)+P45 -> 0 | Q44: =COUNTIF(Q$3:Q$43,Paramètres!$C$43)+COUNTIF(Q$3:Q$43,Paramètres!$C$45)+Q45 -> 0 | R44: =COUNTIF(R$3:R$43,Paramètres!$C$43)+COUNTIF(R$3:R$43,Paramètres!$C$45)+R45 -> 0 | S44: =COUNTIF(S$3:S$43,Paramètres!$C$43)+COUNTIF(S$3:S$43,Paramètres!$C$45)+S45 -> 0 | T44: =COUNTIF(T$3:T$43,Paramètres!$C$43)+COUNTIF(T$3:T$43,Paramètres!$C$45)+T45 -> 0 | U44: =COUNTIF(U$3:U$43,Paramètres!$C$43)+COUNTIF(U$3:U$43,Paramètres!$C$45)+U45 -> 0 | V44: =COUNTIF(V$3:V$43,Paramètres!$C$43)+COUNTIF(V$3:V$43,Paramètres!$C$45)+V45 -> 0 | W44: =COUNTIF(W$3:W$43,Paramètres!$C$43)+COUNTIF(W$3:W$43,Paramètres!$C$45)+W45 -> 0 | X44: =COUNTIF(X$3:X$43,Paramètres!$C$43)+COUNTIF(X$3:X$43,Paramètres!$C$45)+X45 -> 0 | Y44: =COUNTIF(Y$3:Y$43,Paramètres!$C$43)+COUNTIF(Y$3:Y$43,Paramètres!$C$45)+Y45 -> 0 | Z44: =COUNTIF(Z$3:Z$43,Paramètres!$C$43)+COUNTIF(Z$3:Z$43,Paramètres!$C$45)+Z45 -> 0 | AA44: =COUNTIF(AA$3:AA$43,Paramètres!$C$43)+COUNTIF(AA$3:AA$43,Paramètres!$C$45)+AA45 -> 0 | AB44: =COUNTIF(AB$3:AB$43,Paramètres!$C$43)+COUNTIF(AB$3:AB$43,Paramètres!$C$45)+AB45 -> 0 | AC44: =COUNTIF(AC$3:AC$43,Paramètres!$C$43)+COUNTIF(AC$3:AC$43,Paramètres!$C$45)+AC45 -> 0 | AD44: =COUNTIF(AD$3:AD$43,Paramètres!$C$43)+COUNTIF(AD$3:AD$43,Paramètres!$C$45)+AD45 -> 0 | AE44: =COUNTIF(AE$3:AE$43,Paramètres!$C$43)+COUNTIF(AE$3:AE$43,Paramètres!$C$45)+AE45 -> 0 | AF44: =COUNTIF(AF$3:AF$43,Paramètres!$C$43)+COUNTIF(AF$3:AF$43,Paramètres!$C$45)+AF45 -> 0 | AG44: =COUNTIF(AG$3:AG$43,Paramètres!$C$43)+COUNTIF(AG$3:AG$43,Paramètres!$C$45)+AG45 -> 0 | AH44: =COUNTIF(AH$3:AH$43,Paramètres!$C$43)+COUNTIF(AH$3:AH$43,Paramètres!$C$45)+AH45 -> 0 | AI44: =COUNTIF(AI$3:AI$43,Paramètres!$C$43)+COUNTIF(AI$3:AI$43,Paramètres!$C$45)+AI45 -> 0 | AJ44: =SUM(E44:AI44) -> 0
D45: Chef de garde | E45: =COUNTIF(E3:E20,"Cdg") -> 0 | F45: =COUNTIF(F3:F20,"Cdg") -> 0 | G45: 0 | H45: 0 | I45: 0 | J45: 0 | K45: 0 | L45: 0 | M45: 0 | N45: 0 | O45: 0 | P45: 0 | Q45: 0 | R45: 0 | S45: 0 | T45: 0 | U45: 0 | V45: 0 | W45: 0 | X45: 0 | Y45: 0 | Z45: 0 | AA45: 0 | AB45: 0 | AC45: 0 | AD45: 0 | AE45: 0 | AF45: 0 | AG45: 0 | AH45: 0 | AI45: 0 | AJ45: 0 | AK45: 0 | AL45: 0 | AM45: 0 | AN45: 0 | AO45: 0 | AP45: 0 | AQ45: 0 | AR45: 0 | AS45: 0 | AT45: 0 | AU45: 0 | AV45: 0 | AW45: 0 | AX45: 0 | AY45: 0
D46: SPP | E46: =COUNTIF(E$3:E$30,Paramètres!$C$43) -> 0 | F46: =COUNTIF(F$3:F$30,Paramètres!$C$43) -> 0 | G46: =COUNTIF(G$3:G$30,Paramètres!$C$43) -> 0 | H46: =COUNTIF(H$3:H$30,Paramètres!$C$43) -> 0 | I46: =COUNTIF(I$3:I$30,Paramètres!$C$43) -> 0 | J46: =COUNTIF(J$3:J$30,Paramètres!$C$43) -> 0 | K46: =COUNTIF(K$3:K$30,Paramètres!$C$43) -> 0 | L46: =COUNTIF(L$3:L$30,Paramètres!$C$43) -> 0 | M46: =COUNTIF(M$3:M$30,Paramètres!$C$43) -> 0 | N46: =COUNTIF(N$3:N$30,Paramètres!$C$43) -> 0 | O46: =COUNTIF(O$3:O$30,Paramètres!$C$43) -> 0 | P46: =COUNTIF(P$3:P$30,Paramètres!$C$43) -> 0 | Q46: =COUNTIF(Q$3:Q$30,Paramètres!$C$43) -> 0 | R46: =COUNTIF(R$3:R$30,Paramètres!$C$43) -> 0 | S46: =COUNTIF(S$3:S$30,Paramètres!$C$43) -> 0 | T46: =COUNTIF(T$3:T$30,Paramètres!$C$43) -> 0 | U46: =COUNTIF(U$3:U$30,Paramètres!$C$43) -> 0 | V46: =COUNTIF(V$3:V$30,Paramètres!$C$43) -> 0 | W46: =COUNTIF(W$3:W$30,Paramètres!$C$43) -> 0 | X46: =COUNTIF(X$3:X$30,Paramètres!$C$43) -> 0 | Y46: =COUNTIF(Y$3:Y$30,Paramètres!$C$43) -> 0 | Z46: =COUNTIF(Z$3:Z$30,Paramètres!$C$43) -> 0 | AA46: =COUNTIF(AA$3:AA$30,Paramètres!$C$43) -> 0 | AB46: =COUNTIF(AB$3:AB$30,Paramètres!$C$43) -> 0 | AC46: =COUNTIF(AC$3:AC$30,Paramètres!$C$43) -> 0 | AD46: =COUNTIF(AD$3:AD$30,Paramètres!$C$43) -> 0 | AE46: =COUNTIF(AE$3:AE$30,Paramètres!$C$43) -> 0 | AF46: =COUNTIF(AF$3:AF$30,Paramètres!$C$43) -> 0 | AG46: =COUNTIF(AG$3:AG$30,Paramètres!$C$43) -> 0 | AH46: =COUNTIF(AH$3:AH$30,Paramètres!$C$43) -> 0 | AI46: =COUNTIF(AI$3:AI$30,Paramètres!$C$43) -> 0 | AJ46: =SUM(E46:AI46) -> 0
D47: SPV | E47: =COUNTIF(E$31:E$43,Paramètres!$C$43) -> 0 | F47: =COUNTIF(F$31:F$43,Paramètres!$C$43) -> 0 | G47: =COUNTIF(G$31:G$43,Paramètres!$C$43) -> 0 | H47: =COUNTIF(H$31:H$43,Paramètres!$C$43) -> 0 | I47: =COUNTIF(I$31:I$43,Paramètres!$C$43) -> 0 | J47: =COUNTIF(J$31:J$43,Paramètres!$C$43) -> 0 | K47: =COUNTIF(K$31:K$43,Paramètres!$C$43) -> 0 | L47: =COUNTIF(L$31:L$43,Paramètres!$C$43) -> 0 | M47: =COUNTIF(M$31:M$43,Paramètres!$C$43) -> 0 | N47: =COUNTIF(N$31:N$43,Paramètres!$C$43) -> 0 | O47: =COUNTIF(O$31:O$43,Paramètres!$C$43) -> 0 | P47: =COUNTIF(P$31:P$43,Paramètres!$C$43) -> 0 | Q47: =COUNTIF(Q$31:Q$43,Paramètres!$C$43) -> 0 | R47: =COUNTIF(R$31:R$43,Paramètres!$C$43) -> 0 | S47: =COUNTIF(S$31:S$43,Paramètres!$C$43) -> 0 | T47: =COUNTIF(T$31:T$43,Paramètres!$C$43) -> 0 | U47: =COUNTIF(U$31:U$43,Paramètres!$C$43) -> 0 | V47: =COUNTIF(V$31:V$43,Paramètres!$C$43) -> 0 | W47: =COUNTIF(W$31:W$43,Paramètres!$C$43) -> 0 | X47: =COUNTIF(X$31:X$43,Paramètres!$C$43) -> 0 | Y47: =COUNTIF(Y$31:Y$43,Paramètres!$C$43) -> 0 | Z47: =COUNTIF(Z$31:Z$43,Paramètres!$C$43) -> 0 | AA47: =COUNTIF(AA$31:AA$43,Paramètres!$C$43) -> 0 | AB47: =COUNTIF(AB$31:AB$43,Paramètres!$C$43) -> 0 | AC47: =COUNTIF(AC$31:AC$43,Paramètres!$C$43) -> 0 | AD47: =COUNTIF(AD$31:AD$43,Paramètres!$C$43) -> 0 | AE47: =COUNTIF(AE$31:AE$43,Paramètres!$C$43) -> 0 | AF47: =COUNTIF(AF$31:AF$43,Paramètres!$C$43) -> 0 | AG47: =COUNTIF(AG$31:AG$43,Paramètres!$C$43) -> 0 | AH47: =COUNTIF(AH$31:AH$43,Paramètres!$C$43) -> 0 | AI47: =COUNTIF(AI$31:AI$43,Paramètres!$C$43) -> 0 | AJ47: =SUM(E47:AI47) -> 0
D48: Chef de groupe
D49: =Paramètres!B46 -> Formation Stagiaire | E49: =COUNTIF(E$3:E$20,Paramètres!$C$46) -> 0 | F49: =COUNTIF(F$3:F$20,Paramètres!$C$46) -> 0 | G49: =COUNTIF(G$3:G$20,Paramètres!$C$46) -> 0 | H49: =COUNTIF(H$3:H$20,Paramètres!$C$46) -> 0 | I49: =COUNTIF(I$3:I$20,Paramètres!$C$46) -> 0 | J49: =COUNTIF(J$3:J$20,Paramètres!$C$46) -> 0 | K49: =COUNTIF(K$3:K$20,Paramètres!$C$46) -> 0 | L49: =COUNTIF(L$3:L$20,Paramètres!$C$46) -> 0 | M49: =COUNTIF(M$3:M$20,Paramètres!$C$46) -> 0 | N49: =COUNTIF(N$3:N$20,Paramètres!$C$46) -> 0 | O49: =COUNTIF(O$3:O$20,Paramètres!$C$46) -> 0 | P49: =COUNTIF(P$3:P$20,Paramètres!$C$46) -> 0 | Q49: =COUNTIF(Q$3:Q$20,Paramètres!$C$46) -> 0 | R49: =COUNTIF(R$3:R$20,Paramètres!$C$46) -> 0 | S49: =COUNTIF(S$3:S$20,Paramètres!$C$46) -> 0 | T49: =COUNTIF(T$3:T$20,Paramètres!$C$46) -> 0 | U49: =COUNTIF(U$3:U$20,Paramètres!$C$46) -> 0 | V49: =COUNTIF(V$3:V$20,Paramètres!$C$46) -> 0 | W49: =COUNTIF(W$3:W$20,Paramètres!$C$46) -> 0 | X49: =COUNTIF(X$3:X$20,Paramètres!$C$46) -> 0 | Y49: =COUNTIF(Y$3:Y$20,Paramètres!$C$46) -> 0 | Z49: =COUNTIF(Z$3:Z$20,Paramètres!$C$46) -> 0 | AA49: =COUNTIF(AA$3:AA$20,Paramètres!$C$46) -> 0 | AB49: =COUNTIF(AB$3:AB$20,Paramètres!$C$46) -> 0 | AC49: =COUNTIF(AC$3:AC$20,Paramètres!$C$46) -> 0 | AD49: =COUNTIF(AD$3:AD$20,Paramètres!$C$46) -> 0 | AE49: =COUNTIF(AE$3:AE$20,Paramètres!$C$46) -> 0 | AF49: =COUNTIF(AF$3:AF$20,Paramètres!$C$46) -> 0 | AG49: =COUNTIF(AG$3:AG$20,Paramètres!$C$46) -> 0 | AH49: =COUNTIF(AH$3:AH$20,Paramètres!$C$46) -> 0 | AI49: =COUNTIF(AI$3:AI$20,Paramètres!$C$46) -> 0 | AJ49: =SUM(E49:AI49) -> 0
D50: =Paramètres!B47 -> Formation formateur | E50: =COUNTIF(E$3:E$20,Paramètres!$C$47) -> 0 | F50: =COUNTIF(F$3:F$20,Paramètres!$C$47) -> 0 | G50: =COUNTIF(G$3:G$20,Paramètres!$C$47) -> 0 | H50: =COUNTIF(H$3:H$20,Paramètres!$C$47) -> 0 | I50: =COUNTIF(I$3:I$20,Paramètres!$C$47) -> 0 | J50: =COUNTIF(J$3:J$20,Paramètres!$C$47) -> 0 | K50: =COUNTIF(K$3:K$20,Paramètres!$C$47) -> 0 | L50: =COUNTIF(L$3:L$20,Paramètres!$C$47) -> 0 | M50: =COUNTIF(M$3:M$20,Paramètres!$C$47) -> 0 | N50: =COUNTIF(N$3:N$20,Paramètres!$C$47) -> 0 | O50: =COUNTIF(O$3:O$20,Paramètres!$C$47) -> 0 | P50: =COUNTIF(P$3:P$20,Paramètres!$C$47) -> 0 | Q50: =COUNTIF(Q$3:Q$20,Paramètres!$C$47) -> 0 | R50: =COUNTIF(R$3:R$20,Paramètres!$C$47) -> 0 | S50: =COUNTIF(S$3:S$20,Paramètres!$C$47) -> 0 | T50: =COUNTIF(T$3:T$20,Paramètres!$C$47) -> 0 | U50: =COUNTIF(U$3:U$20,Paramètres!$C$47) -> 0 | V50: =COUNTIF(V$3:V$20,Paramètres!$C$47) -> 0 | W50: =COUNTIF(W$3:W$20,Paramètres!$C$47) -> 0 | X50: =COUNTIF(X$3:X$20,Paramètres!$C$47) -> 0 | Y50: =COUNTIF(Y$3:Y$20,Paramètres!$C$47) -> 0 | Z50: =COUNTIF(Z$3:Z$20,Paramètres!$C$47) -> 0 | AA50: =COUNTIF(AA$3:AA$20,Paramètres!$C$47) -> 0 | AB50: =COUNTIF(AB$3:AB$20,Paramètres!$C$47) -> 0 | AC50: =COUNTIF(AC$3:AC$20,Paramètres!$C$47) -> 0 | AD50: =COUNTIF(AD$3:AD$20,Paramètres!$C$47) -> 0 | AE50: =COUNTIF(AE$3:AE$20,Paramètres!$C$47) -> 0 | AF50: =COUNTIF(AF$3:AF$20,Paramètres!$C$47) -> 0 | AG50: =COUNTIF(AG$3:AG$20,Paramètres!$C$47) -> 0 | AH50: =COUNTIF(AH$3:AH$20,Paramètres!$C$47) -> 0 | AI50: =COUNTIF(AI$3:AI$20,Paramètres!$C$47) -> 0 | AJ50: 0
D51: =Paramètres!B48 -> Entrainement SD | E51: =COUNTIF(E$3:E$20,Paramètres!$C$48) -> 0 | F51: =COUNTIF(F$3:F$20,Paramètres!$C$48) -> 0 | G51: =COUNTIF(G$3:G$20,Paramètres!$C$48) -> 0 | H51: =COUNTIF(H$3:H$20,Paramètres!$C$48) -> 0 | I51: =COUNTIF(I$3:I$20,Paramètres!$C$48) -> 0 | J51: =COUNTIF(J$3:J$20,Paramètres!$C$48) -> 0 | K51: =COUNTIF(K$3:K$20,Paramètres!$C$48) -> 0 | L51: =COUNTIF(L$3:L$20,Paramètres!$C$48) -> 0 | M51: =COUNTIF(M$3:M$20,Paramètres!$C$48) -> 0 | N51: =COUNTIF(N$3:N$20,Paramètres!$C$48) -> 0 | O51: =COUNTIF(O$3:O$20,Paramètres!$C$48) -> 0 | P51: =COUNTIF(P$3:P$20,Paramètres!$C$48) -> 0 | Q51: =COUNTIF(Q$3:Q$20,Paramètres!$C$48) -> 0 | R51: =COUNTIF(R$3:R$20,Paramètres!$C$48) -> 0 | S51: =COUNTIF(S$3:S$20,Paramètres!$C$48) -> 0 | T51: =COUNTIF(T$3:T$20,Paramètres!$C$48) -> 0 | U51: =COUNTIF(U$3:U$20,Paramètres!$C$48) -> 0 | V51: =COUNTIF(V$3:V$20,Paramètres!$C$48) -> 0 | W51: =COUNTIF(W$3:W$20,Paramètres!$C$48) -> 0 | X51: =COUNTIF(X$3:X$20,Paramètres!$C$48) -> 0 | Y51: =COUNTIF(Y$3:Y$20,Paramètres!$C$48) -> 0 | Z51: =COUNTIF(Z$3:Z$20,Paramètres!$C$48) -> 0 | AA51: =COUNTIF(AA$3:AA$20,Paramètres!$C$48) -> 0 | AB51: =COUNTIF(AB$3:AB$20,Paramètres!$C$48) -> 0 | AC51: =COUNTIF(AC$3:AC$20,Paramètres!$C$48) -> 0 | AD51: =COUNTIF(AD$3:AD$20,Paramètres!$C$48) -> 0 | AE51: =COUNTIF(AE$3:AE$20,Paramètres!$C$48) -> 0 | AF51: =COUNTIF(AF$3:AF$20,Paramètres!$C$48) -> 0 | AG51: =COUNTIF(AG$3:AG$20,Paramètres!$C$48) -> 0 | AH51: =COUNTIF(AH$3:AH$20,Paramètres!$C$48) -> 0 | AI51: =COUNTIF(AI$3:AI$20,Paramètres!$C$48) -> 0 | AJ51: 0
D52: =Paramètres!B49 -> Entrainement EPIM | E52: =COUNTIF(E$3:E$20,Paramètres!$C$49) -> 0 | F52: =COUNTIF(F$3:F$20,Paramètres!$C$49) -> 0 | G52: =COUNTIF(G$3:G$20,Paramètres!$C$49) -> 0 | H52: =COUNTIF(H$3:H$20,Paramètres!$C$49) -> 0 | I52: =COUNTIF(I$3:I$20,Paramètres!$C$49) -> 0 | J52: =COUNTIF(J$3:J$20,Paramètres!$C$49) -> 0 | K52: =COUNTIF(K$3:K$20,Paramètres!$C$49) -> 0 | L52: =COUNTIF(L$3:L$20,Paramètres!$C$49) -> 0 | M52: =COUNTIF(M$3:M$20,Paramètres!$C$49) -> 0 | N52: =COUNTIF(N$3:N$20,Paramètres!$C$49) -> 0 | O52: =COUNTIF(O$3:O$20,Paramètres!$C$49) -> 0 | P52: =COUNTIF(P$3:P$20,Paramètres!$C$49) -> 0 | Q52: =COUNTIF(Q$3:Q$20,Paramètres!$C$49) -> 0 | R52: =COUNTIF(R$3:R$20,Paramètres!$C$49) -> 0 | S52: =COUNTIF(S$3:S$20,Paramètres!$C$49) -> 0 | T52: =COUNTIF(T$3:T$20,Paramètres!$C$49) -> 0 | U52: =COUNTIF(U$3:U$20,Paramètres!$C$49) -> 0 | V52: =COUNTIF(V$3:V$20,Paramètres!$C$49) -> 0 | W52: =COUNTIF(W$3:W$20,Paramètres!$C$49) -> 0 | X52: =COUNTIF(X$3:X$20,Paramètres!$C$49) -> 0 | Y52: =COUNTIF(Y$3:Y$20,Paramètres!$C$49) -> 0 | Z52: =COUNTIF(Z$3:Z$20,Paramètres!$C$49) -> 0 | AA52: =COUNTIF(AA$3:AA$20,Paramètres!$C$49) -> 0 | AB52: =COUNTIF(AB$3:AB$20,Paramètres!$C$49) -> 0 | AC52: =COUNTIF(AC$3:AC$20,Paramètres!$C$49) -> 0 | AD52: =COUNTIF(AD$3:AD$20,Paramètres!$C$49) -> 0 | AE52: =COUNTIF(AE$3:AE$20,Paramètres!$C$49) -> 0 | AF52: =COUNTIF(AF$3:AF$20,Paramètres!$C$49) -> 0 | AG52: =COUNTIF(AG$3:AG$20,Paramètres!$C$49) -> 0 | AH52: =COUNTIF(AH$3:AH$20,Paramètres!$C$49) -> 0 | AI52: =COUNTIF(AI$3:AI$20,Paramètres!$C$49) -> 0 | AJ52: 0
D53: =Paramètres!B50 -> Entrainement SAV | E53: =COUNTIF(E$3:E$20,Paramètres!$C$50) -> 0 | F53: =COUNTIF(F$3:F$20,Paramètres!$C$50) -> 0 | G53: =COUNTIF(G$3:G$20,Paramètres!$C$50) -> 0 | H53: =COUNTIF(H$3:H$20,Paramètres!$C$50) -> 0 | I53: =COUNTIF(I$3:I$20,Paramètres!$C$50) -> 0 | J53: =COUNTIF(J$3:J$20,Paramètres!$C$50) -> 0 | K53: =COUNTIF(K$3:K$20,Paramètres!$C$50) -> 0 | L53: =COUNTIF(L$3:L$20,Paramètres!$C$50) -> 0 | M53: =COUNTIF(M$3:M$20,Paramètres!$C$50) -> 0 | N53: =COUNTIF(N$3:N$20,Paramètres!$C$50) -> 0 | O53: =COUNTIF(O$3:O$20,Paramètres!$C$50) -> 0 | P53: =COUNTIF(P$3:P$20,Paramètres!$C$50) -> 0 | Q53: =COUNTIF(Q$3:Q$20,Paramètres!$C$50) -> 0 | R53: =COUNTIF(R$3:R$20,Paramètres!$C$50) -> 0 | S53: =COUNTIF(S$3:S$20,Paramètres!$C$50) -> 0 | T53: =COUNTIF(T$3:T$20,Paramètres!$C$50) -> 0 | U53: =COUNTIF(U$3:U$20,Paramètres!$C$50) -> 0 | V53: =COUNTIF(V$3:V$20,Paramètres!$C$50) -> 0 | W53: =COUNTIF(W$3:W$20,Paramètres!$C$50) -> 0 | X53: =COUNTIF(X$3:X$20,Paramètres!$C$50) -> 0 | Y53: =COUNTIF(Y$3:Y$20,Paramètres!$C$50) -> 0 | Z53: =COUNTIF(Z$3:Z$20,Paramètres!$C$50) -> 0 | AA53: =COUNTIF(AA$3:AA$20,Paramètres!$C$50) -> 0 | AB53: =COUNTIF(AB$3:AB$20,Paramètres!$C$50) -> 0 | AC53: =COUNTIF(AC$3:AC$20,Paramètres!$C$50) -> 0 | AD53: =COUNTIF(AD$3:AD$20,Paramètres!$C$50) -> 0 | AE53: =COUNTIF(AE$3:AE$20,Paramètres!$C$50) -> 0 | AF53: =COUNTIF(AF$3:AF$20,Paramètres!$C$50) -> 0 | AG53: =COUNTIF(AG$3:AG$20,Paramètres!$C$50) -> 0 | AH53: =COUNTIF(AH$3:AH$20,Paramètres!$C$50) -> 0 | AI53: =COUNTIF(AI$3:AI$20,Paramètres!$C$50) -> 0 | AJ53: 0
D54: =Paramètres!B56 -> Décharge Syndicale | E54: =COUNTIF(E$3:E$20,Paramètres!$C$56) -> 0 | F54: =COUNTIF(F$3:F$20,Paramètres!$C$56) -> 0 | G54: =COUNTIF(G$3:G$20,Paramètres!$C$56) -> 0 | H54: =COUNTIF(H$3:H$20,Paramètres!$C$56) -> 0 | I54: =COUNTIF(I$3:I$20,Paramètres!$C$56) -> 0 | J54: =COUNTIF(J$3:J$20,Paramètres!$C$56) -> 0 | K54: =COUNTIF(K$3:K$20,Paramètres!$C$56) -> 0 | L54: =COUNTIF(L$3:L$20,Paramètres!$C$56) -> 0 | M54: =COUNTIF(M$3:M$20,Paramètres!$C$56) -> 0 | N54: =COUNTIF(N$3:N$20,Paramètres!$C$56) -> 0 | O54: =COUNTIF(O$3:O$20,Paramètres!$C$56) -> 0 | P54: =COUNTIF(P$3:P$20,Paramètres!$C$56) -> 0 | Q54: =COUNTIF(Q$3:Q$20,Paramètres!$C$56) -> 0 | R54: =COUNTIF(R$3:R$20,Paramètres!$C$56) -> 0 | S54: =COUNTIF(S$3:S$20,Paramètres!$C$56) -> 0 | T54: =COUNTIF(T$3:T$20,Paramètres!$C$56) -> 0 | U54: =COUNTIF(U$3:U$20,Paramètres!$C$56) -> 0 | V54: =COUNTIF(V$3:V$20,Paramètres!$C$56) -> 0 | W54: =COUNTIF(W$3:W$20,Paramètres!$C$56) -> 0 | X54: =COUNTIF(X$3:X$20,Paramètres!$C$56) -> 0 | Y54: =COUNTIF(Y$3:Y$20,Paramètres!$C$56) -> 0 | Z54: =COUNTIF(Z$3:Z$20,Paramètres!$C$56) -> 0 | AA54: =COUNTIF(AA$3:AA$20,Paramètres!$C$56) -> 0 | AB54: =COUNTIF(AB$3:AB$20,Paramètres!$C$56) -> 0 | AC54: =COUNTIF(AC$3:AC$20,Paramètres!$C$56) -> 0 | AD54: =COUNTIF(AD$3:AD$20,Paramètres!$C$56) -> 0 | AE54: =COUNTIF(AE$3:AE$20,Paramètres!$C$56) -> 0 | AF54: =COUNTIF(AF$3:AF$20,Paramètres!$C$56) -> 0 | AG54: =COUNTIF(AG$3:AG$20,Paramètres!$C$56) -> 0 | AH54: =COUNTIF(AH$3:AH$20,Paramètres!$C$56) -> 0 | AI54: =COUNTIF(AI$3:AI$20,Paramètres!$C$56) -> 0 | AJ54: 0
D55: =Paramètres!B57 -> Autorisation Syndicale | E55: =COUNTIF(E$3:E$20,Paramètres!$C$57) -> 0 | F55: =COUNTIF(F$3:F$20,Paramètres!$C$57) -> 0 | G55: =COUNTIF(G$3:G$20,Paramètres!$C$57) -> 0 | H55: =COUNTIF(H$3:H$20,Paramètres!$C$57) -> 0 | I55: =COUNTIF(I$3:I$20,Paramètres!$C$57) -> 0 | J55: =COUNTIF(J$3:J$20,Paramètres!$C$57) -> 0 | K55: =COUNTIF(K$3:K$20,Paramètres!$C$57) -> 0 | L55: =COUNTIF(L$3:L$20,Paramètres!$C$57) -> 0 | M55: =COUNTIF(M$3:M$20,Paramètres!$C$57) -> 0 | N55: =COUNTIF(N$3:N$20,Paramètres!$C$57) -> 0 | O55: =COUNTIF(O$3:O$20,Paramètres!$C$57) -> 0 | P55: =COUNTIF(P$3:P$20,Paramètres!$C$57) -> 0 | Q55: =COUNTIF(Q$3:Q$20,Paramètres!$C$57) -> 0 | R55: =COUNTIF(R$3:R$20,Paramètres!$C$57) -> 0 | S55: =COUNTIF(S$3:S$20,Paramètres!$C$57) -> 0 | T55: =COUNTIF(T$3:T$20,Paramètres!$C$57) -> 0 | U55: =COUNTIF(U$3:U$20,Paramètres!$C$57) -> 0 | V55: =COUNTIF(V$3:V$20,Paramètres!$C$57) -> 0 | W55: =COUNTIF(W$3:W$20,Paramètres!$C$57) -> 0 | X55: =COUNTIF(X$3:X$20,Paramètres!$C$57) -> 0 | Y55: =COUNTIF(Y$3:Y$20,Paramètres!$C$57) -> 0 | Z55: =COUNTIF(Z$3:Z$20,Paramètres!$C$57) -> 0 | AA55: =COUNTIF(AA$3:AA$20,Paramètres!$C$57) -> 0 | AB55: =COUNTIF(AB$3:AB$20,Paramètres!$C$57) -> 0 | AC55: =COUNTIF(AC$3:AC$20,Paramètres!$C$57) -> 0 | AD55: =COUNTIF(AD$3:AD$20,Paramètres!$C$57) -> 0 | AE55: =COUNTIF(AE$3:AE$20,Paramètres!$C$57) -> 0 | AF55: =COUNTIF(AF$3:AF$20,Paramètres!$C$57) -> 0 | AG55: =COUNTIF(AG$3:AG$20,Paramètres!$C$57) -> 0 | AH55: =COUNTIF(AH$3:AH$20,Paramètres!$C$57) -> 0 | AI55: =COUNTIF(AI$3:AI$20,Paramètres!$C$57) -> 0 | AJ55: 0
D56: =Paramètres!B58 -> GOC | E56: =COUNTIF(E$3:E$20,Paramètres!$C$58) -> 0 | F56: =COUNTIF(F$3:F$20,Paramètres!$C$58) -> 0 | G56: =COUNTIF(G$3:G$20,Paramètres!$C$58) -> 0 | H56: =COUNTIF(H$3:H$20,Paramètres!$C$58) -> 0 | I56: =COUNTIF(I$3:I$20,Paramètres!$C$58) -> 0 | J56: =COUNTIF(J$3:J$20,Paramètres!$C$58) -> 0 | K56: =COUNTIF(K$3:K$20,Paramètres!$C$58) -> 0 | L56: =COUNTIF(L$3:L$20,Paramètres!$C$58) -> 0 | M56: =COUNTIF(M$3:M$20,Paramètres!$C$58) -> 0 | N56: =COUNTIF(N$3:N$20,Paramètres!$C$58) -> 0 | O56: =COUNTIF(O$3:O$20,Paramètres!$C$58) -> 0 | P56: =COUNTIF(P$3:P$20,Paramètres!$C$58) -> 0 | Q56: =COUNTIF(Q$3:Q$20,Paramètres!$C$58) -> 0 | R56: =COUNTIF(R$3:R$20,Paramètres!$C$58) -> 0 | S56: =COUNTIF(S$3:S$20,Paramètres!$C$58) -> 0 | T56: =COUNTIF(T$3:T$20,Paramètres!$C$58) -> 0 | U56: =COUNTIF(U$3:U$20,Paramètres!$C$58) -> 0 | V56: =COUNTIF(V$3:V$20,Paramètres!$C$58) -> 0 | W56: =COUNTIF(W$3:W$20,Paramètres!$C$58) -> 0 | X56: =COUNTIF(X$3:X$20,Paramètres!$C$58) -> 0 | Y56: =COUNTIF(Y$3:Y$20,Paramètres!$C$58) -> 0 | Z56: =COUNTIF(Z$3:Z$20,Paramètres!$C$58) -> 0 | AA56: =COUNTIF(AA$3:AA$20,Paramètres!$C$58) -> 0 | AB56: =COUNTIF(AB$3:AB$20,Paramètres!$C$58) -> 0 | AC56: =COUNTIF(AC$3:AC$20,Paramètres!$C$58) -> 0 | AD56: =COUNTIF(AD$3:AD$20,Paramètres!$C$58) -> 0 | AE56: =COUNTIF(AE$3:AE$20,Paramètres!$C$58) -> 0 | AF56: =COUNTIF(AF$3:AF$20,Paramètres!$C$58) -> 0 | AG56: =COUNTIF(AG$3:AG$20,Paramètres!$C$58) -> 0 | AH56: =COUNTIF(AH$3:AH$20,Paramètres!$C$58) -> 0 | AI56: =COUNTIF(AI$3:AI$20,Paramètres!$C$58) -> 0 | AJ56: 0
D57: =Paramètres!B59 -> Hydrant | E57: =COUNTIF(E$3:E$20,Paramètres!$C$59) -> 0 | F57: =COUNTIF(F$3:F$20,Paramètres!$C$59) -> 0 | G57: =COUNTIF(G$3:G$20,Paramètres!$C$59) -> 0 | H57: =COUNTIF(H$3:H$20,Paramètres!$C$59) -> 0 | I57: =COUNTIF(I$3:I$20,Paramètres!$C$59) -> 0 | J57: =COUNTIF(J$3:J$20,Paramètres!$C$59) -> 0 | K57: =COUNTIF(K$3:K$20,Paramètres!$C$59) -> 0 | L57: =COUNTIF(L$3:L$20,Paramètres!$C$59) -> 0 | M57: =COUNTIF(M$3:M$20,Paramètres!$C$59) -> 0 | N57: =COUNTIF(N$3:N$20,Paramètres!$C$59) -> 0 | O57: =COUNTIF(O$3:O$20,Paramètres!$C$59) -> 0 | P57: =COUNTIF(P$3:P$20,Paramètres!$C$59) -> 0 | Q57: =COUNTIF(Q$3:Q$20,Paramètres!$C$59) -> 0 | R57: =COUNTIF(R$3:R$20,Paramètres!$C$59) -> 0 | S57: =COUNTIF(S$3:S$20,Paramètres!$C$59) -> 0 | T57: =COUNTIF(T$3:T$20,Paramètres!$C$59) -> 0 | U57: =COUNTIF(U$3:U$20,Paramètres!$C$59) -> 0 | V57: =COUNTIF(V$3:V$20,Paramètres!$C$59) -> 0 | W57: =COUNTIF(W$3:W$20,Paramètres!$C$59) -> 0 | X57: =COUNTIF(X$3:X$20,Paramètres!$C$59) -> 0 | Y57: =COUNTIF(Y$3:Y$20,Paramètres!$C$59) -> 0 | Z57: =COUNTIF(Z$3:Z$20,Paramètres!$C$59) -> 0 | AA57: =COUNTIF(AA$3:AA$20,Paramètres!$C$59) -> 0 | AB57: =COUNTIF(AB$3:AB$20,Paramètres!$C$59) -> 0 | AC57: =COUNTIF(AC$3:AC$20,Paramètres!$C$59) -> 0 | AD57: =COUNTIF(AD$3:AD$20,Paramètres!$C$59) -> 0 | AE57: =COUNTIF(AE$3:AE$20,Paramètres!$C$59) -> 0 | AF57: =COUNTIF(AF$3:AF$20,Paramètres!$C$59) -> 0 | AG57: =COUNTIF(AG$3:AG$20,Paramètres!$C$59) -> 0 | AH57: =COUNTIF(AH$3:AH$20,Paramètres!$C$59) -> 0 | AI57: =COUNTIF(AI$3:AI$20,Paramètres!$C$59) -> 0 | AJ57: 0
D58: =Paramètres!B60 -> Evênement Familial | E58: =COUNTIF(E$3:E$20,Paramètres!$C$60) -> 0 | F58: =COUNTIF(F$3:F$20,Paramètres!$C$60) -> 0 | G58: =COUNTIF(G$3:G$20,Paramètres!$C$60) -> 0 | H58: =COUNTIF(H$3:H$20,Paramètres!$C$60) -> 0 | I58: =COUNTIF(I$3:I$20,Paramètres!$C$60) -> 0 | J58: =COUNTIF(J$3:J$20,Paramètres!$C$60) -> 0 | K58: =COUNTIF(K$3:K$20,Paramètres!$C$60) -> 0 | L58: =COUNTIF(L$3:L$20,Paramètres!$C$60) -> 0 | M58: =COUNTIF(M$3:M$20,Paramètres!$C$60) -> 0 | N58: =COUNTIF(N$3:N$20,Paramètres!$C$60) -> 0 | O58: =COUNTIF(O$3:O$20,Paramètres!$C$60) -> 0 | P58: =COUNTIF(P$3:P$20,Paramètres!$C$60) -> 0 | Q58: =COUNTIF(Q$3:Q$20,Paramètres!$C$60) -> 0 | R58: =COUNTIF(R$3:R$20,Paramètres!$C$60) -> 0 | S58: =COUNTIF(S$3:S$20,Paramètres!$C$60) -> 0 | T58: =COUNTIF(T$3:T$20,Paramètres!$C$60) -> 0 | U58: =COUNTIF(U$3:U$20,Paramètres!$C$60) -> 0 | V58: =COUNTIF(V$3:V$20,Paramètres!$C$60) -> 0 | W58: =COUNTIF(W$3:W$20,Paramètres!$C$60) -> 0 | X58: =COUNTIF(X$3:X$20,Paramètres!$C$60) -> 0 | Y58: =COUNTIF(Y$3:Y$20,Paramètres!$C$60) -> 0 | Z58: =COUNTIF(Z$3:Z$20,Paramètres!$C$60) -> 0 | AA58: =COUNTIF(AA$3:AA$20,Paramètres!$C$60) -> 0 | AB58: =COUNTIF(AB$3:AB$20,Paramètres!$C$60) -> 0 | AC58: =COUNTIF(AC$3:AC$20,Paramètres!$C$60) -> 0 | AD58: =COUNTIF(AD$3:AD$20,Paramètres!$C$60) -> 0 | AE58: =COUNTIF(AE$3:AE$20,Paramètres!$C$60) -> 0 | AF58: =COUNTIF(AF$3:AF$20,Paramètres!$C$60) -> 0 | AG58: =COUNTIF(AG$3:AG$20,Paramètres!$C$60) -> 0 | AH58: =COUNTIF(AH$3:AH$20,Paramètres!$C$60) -> 0 | AI58: =COUNTIF(AI$3:AI$20,Paramètres!$C$60) -> 0 | AJ58: 0
D59: =Paramètres!B61 -> Instance Paritaire | E59: =COUNTIF(E$3:E$20,Paramètres!$C$61) -> 0 | F59: =COUNTIF(F$3:F$20,Paramètres!$C$61) -> 0 | G59: =COUNTIF(G$3:G$20,Paramètres!$C$61) -> 0 | H59: =COUNTIF(H$3:H$20,Paramètres!$C$61) -> 0 | I59: =COUNTIF(I$3:I$20,Paramètres!$C$61) -> 0 | J59: =COUNTIF(J$3:J$20,Paramètres!$C$61) -> 0 | K59: =COUNTIF(K$3:K$20,Paramètres!$C$61) -> 0 | L59: =COUNTIF(L$3:L$20,Paramètres!$C$61) -> 0 | M59: =COUNTIF(M$3:M$20,Paramètres!$C$61) -> 0 | N59: =COUNTIF(N$3:N$20,Paramètres!$C$61) -> 0 | O59: =COUNTIF(O$3:O$20,Paramètres!$C$61) -> 0 | P59: =COUNTIF(P$3:P$20,Paramètres!$C$61) -> 0 | Q59: =COUNTIF(Q$3:Q$20,Paramètres!$C$61) -> 0 | R59: =COUNTIF(R$3:R$20,Paramètres!$C$61) -> 0 | S59: =COUNTIF(S$3:S$20,Paramètres!$C$61) -> 0 | T59: =COUNTIF(T$3:T$20,Paramètres!$C$61) -> 0 | U59: =COUNTIF(U$3:U$20,Paramètres!$C$61) -> 0 | V59: =COUNTIF(V$3:V$20,Paramètres!$C$61) -> 0 | W59: =COUNTIF(W$3:W$20,Paramètres!$C$61) -> 0 | X59: =COUNTIF(X$3:X$20,Paramètres!$C$61) -> 0 | Y59: =COUNTIF(Y$3:Y$20,Paramètres!$C$61) -> 0 | Z59: =COUNTIF(Z$3:Z$20,Paramètres!$C$61) -> 0 | AA59: =COUNTIF(AA$3:AA$20,Paramètres!$C$61) -> 0 | AB59: =COUNTIF(AB$3:AB$20,Paramètres!$C$61) -> 0 | AC59: =COUNTIF(AC$3:AC$20,Paramètres!$C$61) -> 0 | AD59: =COUNTIF(AD$3:AD$20,Paramètres!$C$61) -> 0 | AE59: =COUNTIF(AE$3:AE$20,Paramètres!$C$61) -> 0 | AF59: =COUNTIF(AF$3:AF$20,Paramètres!$C$61) -> 0 | AG59: =COUNTIF(AG$3:AG$20,Paramètres!$C$61) -> 0 | AH59: =COUNTIF(AH$3:AH$20,Paramètres!$C$61) -> 0 | AI59: =COUNTIF(AI$3:AI$20,Paramètres!$C$61) -> 0 | AJ59: 0
D60: =Paramètres!B62 -> Congés | E60: =COUNTIF(E$3:E$20,Paramètres!$C$62) -> 0 | F60: =COUNTIF(F$3:F$20,Paramètres!$C$62) -> 0 | G60: =COUNTIF(G$3:G$20,Paramètres!$C$62) -> 0 | H60: =COUNTIF(H$3:H$20,Paramètres!$C$62) -> 0 | I60: =COUNTIF(I$3:I$20,Paramètres!$C$62) -> 0 | J60: =COUNTIF(J$3:J$20,Paramètres!$C$62) -> 0 | K60: =COUNTIF(K$3:K$20,Paramètres!$C$62) -> 0 | L60: =COUNTIF(L$3:L$20,Paramètres!$C$62) -> 0 | M60: =COUNTIF(M$3:M$20,Paramètres!$C$62) -> 0 | N60: =COUNTIF(N$3:N$20,Paramètres!$C$62) -> 0 | O60: =COUNTIF(O$3:O$20,Paramètres!$C$62) -> 0 | P60: =COUNTIF(P$3:P$20,Paramètres!$C$62) -> 0 | Q60: =COUNTIF(Q$3:Q$20,Paramètres!$C$62) -> 0 | R60: =COUNTIF(R$3:R$20,Paramètres!$C$62) -> 0 | S60: =COUNTIF(S$3:S$20,Paramètres!$C$62) -> 0 | T60: =COUNTIF(T$3:T$20,Paramètres!$C$62) -> 0 | U60: =COUNTIF(U$3:U$20,Paramètres!$C$62) -> 0 | V60: =COUNTIF(V$3:V$20,Paramètres!$C$62) -> 0 | W60: =COUNTIF(W$3:W$20,Paramètres!$C$62) -> 0 | X60: =COUNTIF(X$3:X$20,Paramètres!$C$62) -> 0 | Y60: =COUNTIF(Y$3:Y$20,Paramètres!$C$62) -> 0 | Z60: =COUNTIF(Z$3:Z$20,Paramètres!$C$62) -> 0 | AA60: =COUNTIF(AA$3:AA$20,Paramètres!$C$62) -> 0 | AB60: =COUNTIF(AB$3:AB$20,Paramètres!$C$62) -> 0 | AC60: =COUNTIF(AC$3:AC$20,Paramètres!$C$62) -> 0 | AD60: =COUNTIF(AD$3:AD$20,Paramètres!$C$62) -> 0 | AE60: =COUNTIF(AE$3:AE$20,Paramètres!$C$62) -> 0 | AF60: =COUNTIF(AF$3:AF$20,Paramètres!$C$62) -> 0 | AG60: =COUNTIF(AG$3:AG$20,Paramètres!$C$62) -> 0 | AH60: =COUNTIF(AH$3:AH$20,Paramètres!$C$62) -> 0 | AI60: =COUNTIF(AI$3:AI$20,Paramètres!$C$62) -> 0 | AJ60: 0

Sheet 1 - Untel
A1: =CONCATENATE(Paramètres!D7," ",Paramètres!C7," ",Paramètres!B7) -> Adc Jacques Agent_1 | AK1: Liste des heures de dépassement suite à Intervention
AO2: Date et Heure
A3: =A4 -> 41274 | D3: =D4 -> 41305 | G3: =G4 -> 41333 | J3: =J4 -> 41364 | M3: =M4 -> 41394 | P3: =P4 -> 41425 | S3: =S4 -> 41455 | V3: =V4 -> 41486 | Y3: =Y4 -> 41517 | AB3: =AB4 -> 41547 | AE3: =AE4 -> 41578 | AH3: =AH4 -> 41608 | AK3: Index | AL3: Libellé | AM3: N° Inter/libellé | AN3: Engin | AO3: Début | AP3: Fin | AQ3: Total
A4: =DATE(An_0,1,1) -> 41274 | B4: =INDIRECT(ADDRESS(MATCH($A$1,Janvier!$D$1:$D$20,0),ROW(A5),1,,TEXT(A$3,"mmmm"))) -> 0 | D4: =DATE(An_0,2,1) -> 41305 | E4: =INDIRECT(ADDRESS(MATCH($A$1,Janvier!$D$1:$D$20,0),ROW(D5),1,,TEXT(D$3,"mmmm"))) -> 0 | G4: =DATE(An_0,3,1) -> 41333 | H4: =INDIRECT(ADDRESS(MATCH($A$1,Janvier!$D$1:$D$20,0),ROW(G5),1,,TEXT(G$3,"mmmm"))) -> 0 | J4: =DATE(An_0,4,1) -> 41364 | K4: =INDIRECT(ADDRESS(MATCH($A$1,Janvier!$D$1:$D$20,0),ROW(J5),1,,TEXT(J$3,"mmmm"))) -> 0 | M4: =DATE(An_0,5,1) -> 41394 | N4: =INDIRECT(ADDRESS(MATCH($A$1,Janvier!$D$1:$D$20,0),ROW(M5),1,,TEXT(M$3,"mmmm"))) -> 0 | P4: =DATE(An_0,6,1) -> 41425 | Q4: =INDIRECT(ADDRESS(MATCH($A$1,Janvier!$D$1:$D$20,0),ROW(P5),1,,TEXT(P$3,"mmmm"))) -> 0 | S4: =DATE(An_0,7,1) -> 41455 | T4: =INDIRECT(ADDRESS(MATCH($A$1,Janvier!$D$1:$D$20,0),ROW(S5),1,,TEXT(S$3,"mmmm"))) -> 0 | V4: =DATE(An_0,8,1) -> 41486 | W4: =INDIRECT(ADDRESS(MATCH($A$1,Janvier!$D$1:$D$20,0),ROW(V5),1,,TEXT(V$3,"mmmm"))) -> 0 | Y4: =DATE(An_0,9,1) -> 41517 | Z4: =INDIRECT(ADDRESS(MATCH($A$1,Janvier!$D$1:$D$20,0),ROW(Y5),1,,TEXT(Y$3,"mmmm"))) -> 0 | AB4: =DATE(An_0,10,1) -> 41547 | AC4: =INDIRECT(ADDRESS(MATCH($A$1,Janvier!$D$1:$D$20,0),ROW(AB5),1,,TEXT(AB$3,"mmmm"))) -> 0 | AE4: =DATE(An_0,11,1) -> 41578 | AF4: =INDIRECT(ADDRESS(MATCH($A$1,Janvier!$D$1:$D$20,0),ROW(AE5),1,,TEXT(AE$3,"mmmm"))) -> 0 | AH4: =DATE(An_0,12,1) -> 41608 | AI4: =INDIRECT(ADDRESS(MATCH($A$1,Janvier!$D$1:$D$20,0),ROW(AH5),1,,TEXT(AH$3,"mmmm"))) -> 0 | AK4: =IF(AL4<>"",1,"") ->  | AQ4: =IF(AL4="ConvPerso",-(AP4-AO4),IF(AL4="Formation",AP4-AO4,IF(AL4="autre",AP4-AO4,IF(AL4="Intervention +",AP4-AO4,IF(AL4="Réunion",AP4-AO4,IF(AL4<>0,IF(AND(DAY(AP4)<=DAY(AO4),TIME(HOUR(AO4),MINUTE(AO4),0)<1/24*19,TIME(HOUR(AP4),MINUTE(AP4),0)>1/24*19),TIME(HOUR(AP4),MINUTE(AP4),0)-1/24*19,IF(TIME(HOUR(AO4),MINUTE(AO4),0)<1/24*7,1/24*7-TIME(HOUR(AO4),MINUTE(AO4),0),(DAY(AP4)>DAY(AO4))*(AP4-(DATE(YEAR(AO4),MONTH(AO4),DAY(AO4))+1/24*19)))),"")))))) -> 
A5: =A4+1 -> 41275 | B5: =INDIRECT(ADDRESS(MATCH($A$1,Janvier!$D$1:$D$20,0),ROW(A6),1,,TEXT(A$3,"mmmm"))) -> 0 | D5: =D4+1 -> 41306 | E5: =INDIRECT(ADDRESS(MATCH($A$1,Janvier!$D$1:$D$20,0),ROW(D6),1,,TEXT(D$3,"mmmm"))) -> 0 | G5: =G4+1 -> 41334 | H5: =INDIRECT(ADDRESS(MATCH($A$1,Janvier!$D$1:$D$20,0),ROW(G6),1,,TEXT(G$3,"mmmm"))) -> 0 | J5: =J4+1 -> 41365 | K5: =INDIRECT(ADDRESS(MATCH($A$1,Janvier!$D$1:$D$20,0),ROW(J6),1,,TEXT(J$3,"mmmm"))) -> 0 | M5: =M4+1 -> 41395 | N5: =INDIRECT(ADDRESS(MATCH($A$1,Janvier!$D$1:$D$20,0),ROW(M6),1,,TEXT(M$3,"mmmm"))) -> 0 | P5: =P4+1 -> 41426 | Q5: =INDIRECT(ADDRESS(MATCH($A$1,Janvier!$D$1:$D$20,0),ROW(P6),1,,TEXT(P$3,"mmmm"))) -> 0 | S5: =S4+1 -> 41456 | T5: =INDIRECT(ADDRESS(MATCH($A$1,Janvier!$D$1:$D$20,0),ROW(S6),1,,TEXT(S$3,"mmmm"))) -> 0 | V5: =V4+1 -> 41487 | W5: =INDIRECT(ADDRESS(MATCH($A$1,Janvier!$D$1:$D$20,0),ROW(V6),1,,TEXT(V$3,"mmmm"))) -> 0 | Y5: =Y4+1 -> 41518 | Z5: =INDIRECT(ADDRESS(MATCH($A$1,Janvier!$D$1:$D$20,0),ROW(Y6),1,,TEXT(Y$3,"mmmm"))) -> 0 | AB5: =AB4+1 -> 41548 | AC5: =INDIRECT(ADDRESS(MATCH($A$1,Janvier!$D$1:$D$20,0),ROW(AB6),1,,TEXT(AB$3,"mmmm"))) -> 0 | AE5: =AE4+1 -> 41579 | AF5: =INDIRECT(ADDRESS(MATCH($A$1,Janvier!$D$1:$D$20,0),ROW(AE6),1,,TEXT(AE$3,"mmmm"))) -> 0 | AH5: =AH4+1 -> 41609 | AI5: =INDIRECT(ADDRESS(MATCH($A$1,Janvier!$D$1:$D$20,0),ROW(AH6),1,,TEXT(AH$3,"mmmm"))) -> 0 | AK5: =IF(AL5<>"",AK4+1,"") ->  | AQ5: =IF(AL5="ConvPerso",-(AP5-AO5),IF(AL5="Formation",AP5-AO5,IF(AL5="autre",AP5-AO5,IF(AL5="Intervention +",AP5-AO5,IF(AL5="Réunion",AP5-AO5,IF(AL5<>0,IF(AND(DAY(AP5)<=DAY(AO5),TIME(HOUR(AO5),MINUTE(AO5),0)<1/24*19,TIME(HOUR(AP5),MINUTE(AP5),0)>1/24*19),TIME(HOUR(AP5),MINUTE(AP5),0)-1/24*19,IF(TIME(HOUR(AO5),MINUTE(AO5),0)<1/24*7,1/24*7-TIME(HOUR(AO5),MINUTE(AO5),0),(DAY(AP5)>DAY(AO5))*(AP5-(DATE(YEAR(AO5),MONTH(AO5),DAY(AO5))+1/24*19)))),"")))))) -> 
A6: 41276 | B6: =INDIRECT(ADDRESS(MATCH($A$1,Janvier!$D$1:$D$20,0),ROW(A7),1,,TEXT(A$3,"mmmm"))) -> 0 | D6: 41307 | E6: =INDIRECT(ADDRESS(MATCH($A$1,Janvier!$D$1:$D$20,0),ROW(D7),1,,TEXT(D$3,"mmmm"))) -> 0 | G6: 41335 | H6: =INDIRECT(ADDRESS(MATCH($A$1,Janvier!$D$1:$D$20,0),ROW(G7),1,,TEXT(G$3,"mmmm"))) -> 0 | J6: 41366 | K6: =INDIRECT(ADDRESS(MATCH($A$1,Janvier!$D$1:$D$20,0),ROW(J7),1,,TEXT(J$3,"mmmm"))) -> 0 | M6: 41396 | N6: =INDIRECT(ADDRESS(MATCH($A$1,Janvier!$D$1:$D$20,0),ROW(M7),1,,TEXT(M$3,"mmmm"))) -> 0 | P6: 41427 | Q6: =INDIRECT(ADDRESS(MATCH($A$1,Janvier!$D$1:$D$20,0),ROW(P7),1,,TEXT(P$3,"mmmm"))) -> 0 | S6: 41457 | T6: =INDIRECT(ADDRESS(MATCH($A$1,Janvier!$D$1:$D$20,0),ROW(S7),1,,TEXT(S$3,"mmmm"))) -> 0 | V6: 41488 | W6: =INDIRECT(ADDRESS(MATCH($A$1,Janvier!$D$1:$D$20,0),ROW(V7),1,,TEXT(V$3,"mmmm"))) -> 0 | Y6: 41519 | Z6: =INDIRECT(ADDRESS(MATCH($A$1,Janvier!$D$1:$D$20,0),ROW(Y7),1,,TEXT(Y$3,"mmmm"))) -> 0 | AB6: 41549 | AC6: =INDIRECT(ADDRESS(MATCH($A$1,Janvier!$D$1:$D$20,0),ROW(AB7),1,,TEXT(AB$3,"mmmm"))) -> 0 | AE6: 41580 | AF6: =INDIRECT(ADDRESS(MATCH($A$1,Janvier!$D$1:$D$20,0),ROW(AE7),1,,TEXT(AE$3,"mmmm"))) -> 0 | AH6: 41610 | AI6: =INDIRECT(ADDRESS(MATCH($A$1,Janvier!$D$1:$D$20,0),ROW(AH7),1,,TEXT(AH$3,"mmmm"))) -> 0 | AK6: =IF(AL6<>"",AK5+1,"") -> 
A7: 41277 | B7: =INDIRECT(ADDRESS(MATCH($A$1,Janvier!$D$1:$D$20,0),ROW(A8),1,,TEXT(A$3,"mmmm"))) -> 0 | D7: 41308 | E7: =INDIRECT(ADDRESS(MATCH($A$1,Janvier!$D$1:$D$20,0),ROW(D8),1,,TEXT(D$3,"mmmm"))) -> 0 | G7: 41336 | H7: =INDIRECT(ADDRESS(MATCH($A$1,Janvier!$D$1:$D$20,0),ROW(G8),1,,TEXT(G$3,"mmmm"))) -> 0 | J7: 41367 | K7: =INDIRECT(ADDRESS(MATCH($A$1,Janvier!$D$1:$D$20,0),ROW(J8),1,,TEXT(J$3,"mmmm"))) -> 0 | M7: 41397 | N7: =INDIRECT(ADDRESS(MATCH($A$1,Janvier!$D$1:$D$20,0),ROW(M8),1,,TEXT(M$3,"mmmm"))) -> 0 | P7: 41428 | Q7: =INDIRECT(ADDRESS(MATCH($A$1,Janvier!$D$1:$D$20,0),ROW(P8),1,,TEXT(P$3,"mmmm"))) -> 0 | S7: 41458 | T7: =INDIRECT(ADDRESS(MATCH($A$1,Janvier!$D$1:$D$20,0),ROW(S8),1,,TEXT(S$3,"mmmm"))) -> 0 | V7: 41489 | W7: =INDIRECT(ADDRESS(MATCH($A$1,Janvier!$D$1:$D$20,0),ROW(V8),1,,TEXT(V$3,"mmmm"))) -> 0 | Y7: 41520 | Z7: =INDIRECT(ADDRESS(MATCH($A$1,Janvier!$D$1:$D$20,0),ROW(Y8),1,,TEXT(Y$3,"mmmm"))) -> 0 | AB7: 41550 | AC7: =INDIRECT(ADDRESS(MATCH($A$1,Janvier!$D$1:$D$20,0),ROW(AB8),1,,TEXT(AB$3,"mmmm"))) -> 0 | AE7: 41581 | AF7: =INDIRECT(ADDRESS(MATCH($A$1,Janvier!$D$1:$D$20,0),ROW(AE8),1,,TEXT(AE$3,"mmmm"))) -> 0 | AH7: 41611 | AI7: =INDIRECT(ADDRESS(MATCH($A$1,Janvier!$D$1:$D$20,0),ROW(AH8),1,,TEXT(AH$3,"mmmm"))) -> 0
A8: 41278 | B8: =INDIRECT(ADDRESS(MATCH($A$1,Janvier!$D$1:$D$20,0),ROW(A9),1,,TEXT(A$3,"mmmm"))) -> 0 | D8: 41309 | E8: =INDIRECT(ADDRESS(MATCH($A$1,Janvier!$D$1:$D$20,0),ROW(D9),1,,TEXT(D$3,"mmmm"))) -> 0 | G8: 41337 | H8: =INDIRECT(ADDRESS(MATCH($A$1,Janvier!$D$1:$D$20,0),ROW(G9),1,,TEXT(G$3,"mmmm"))) -> 0 | J8: 41368 | K8: =INDIRECT(ADDRESS(MATCH($A$1,Janvier!$D$1:$D$20,0),ROW(J9),1,,TEXT(J$3,"mmmm"))) -> 0 | M8: 41398 | N8: =INDIRECT(ADDRESS(MATCH($A$1,Janvier!$D$1:$D$20,0),ROW(M9),1,,TEXT(M$3,"mmmm"))) -> 0 | P8: 41429 | Q8: =INDIRECT(ADDRESS(MATCH($A$1,Janvier!$D$1:$D$20,0),ROW(P9),1,,TEXT(P$3,"mmmm"))) -> 0 | S8: 41459 | T8: =INDIRECT(ADDRESS(MATCH($A$1,Janvier!$D$1:$D$20,0),ROW(S9),1,,TEXT(S$3,"mmmm"))) -> 0 | V8: 41490 | W8: =INDIRECT(ADDRESS(MATCH($A$1,Janvier!$D$1:$D$20,0),ROW(V9),1,,TEXT(V$3,"mmmm"))) -> 0 | Y8: 41521 | Z8: =INDIRECT(ADDRESS(MATCH($A$1,Janvier!$D$1:$D$20,0),ROW(Y9),1,,TEXT(Y$3,"mmmm"))) -> 0 | AB8: 41551 | AC8: =INDIRECT(ADDRESS(MATCH($A$1,Janvier!$D$1:$D$20,0),ROW(AB9),1,,TEXT(AB$3,"mmmm"))) -> 0 | AE8: 41582 | AF8: =INDIRECT(ADDRESS(MATCH($A$1,Janvier!$D$1:$D$20,0),ROW(AE9),1,,TEXT(AE$3,"mmmm"))) -> 0 | AH8: 41612 | AI8: =INDIRECT(ADDRESS(MATCH($A$1,Janvier!$D$1:$D$20,0),ROW(AH9),1,,TEXT(AH$3,"mmmm"))) -> 0
A9: 41279 | B9: =INDIRECT(ADDRESS(MATCH($A$1,Janvier!$D$1:$D$20,0),ROW(A10),1,,TEXT(A$3,"mmmm"))) -> 0 | D9: 41310 | E9: =INDIRECT(ADDRESS(MATCH($A$1,Janvier!$D$1:$D$20,0),ROW(D10),1,,TEXT(D$3,"mmmm"))) -> 0 | G9: 41338 | H9: =INDIRECT(ADDRESS(MATCH($A$1,Janvier!$D$1:$D$20,0),ROW(G10),1,,TEXT(G$3,"mmmm"))) -> 0 | J9: 41369 | K9: =INDIRECT(ADDRESS(MATCH($A$1,Janvier!$D$1:$D$20,0),ROW(J10),1,,TEXT(J$3,"mmmm"))) -> 0 | M9: 41399 | N9: =INDIRECT(ADDRESS(MATCH($A$1,Janvier!$D$1:$D$20,0),ROW(M10),1,,TEXT(M$3,"mmmm"))) -> 0 | P9: 41430 | Q9: =INDIRECT(ADDRESS(MATCH($A$1,Janvier!$D$1:$D$20,0),ROW(P10),1,,TEXT(P$3,"mmmm"))) -> 0 | S9: 41460 | T9: =INDIRECT(ADDRESS(MATCH($A$1,Janvier!$D$1:$D$20,0),ROW(S10),1,,TEXT(S$3,"mmmm"))) -> 0 | V9: 41491 | W9: =INDIRECT(ADDRESS(MATCH($A$1,Janvier!$D$1:$D$20,0),ROW(V10),1,,TEXT(V$3,"mmmm"))) -> 0 | Y9: 41522 | Z9: =INDIRECT(ADDRESS(MATCH($A$1,Janvier!$D$1:$D$20,0),ROW(Y10),1,,TEXT(Y$3,"mmmm"))) -> 0 | AB9: 41552 | AC9: =INDIRECT(ADDRESS(MATCH($A$1,Janvier!$D$1:$D$20,0),ROW(AB10),1,,TEXT(AB$3,"mmmm"))) -> 0 | AE9: 41583 | AF9: =INDIRECT(ADDRESS(MATCH($A$1,Janvier!$D$1:$D$20,0),ROW(AE10),1,,TEXT(AE$3,"mmmm"))) -> 0 | AH9: 41613 | AI9: =INDIRECT(ADDRESS(MATCH($A$1,Janvier!$D$1:$D$20,0),ROW(AH10),1,,TEXT(AH$3,"mmmm"))) -> 0
A10: 41280 | B10: =INDIRECT(ADDRESS(MATCH($A$1,Janvier!$D$1:$D$20,0),ROW(A11),1,,TEXT(A$3,"mmmm"))) -> 0 | D10: 41311 | E10: =INDIRECT(ADDRESS(MATCH($A$1,Janvier!$D$1:$D$20,0),ROW(D11),1,,TEXT(D$3,"mmmm"))) -> 0 | G10: 41339 | H10: =INDIRECT(ADDRESS(MATCH($A$1,Janvier!$D$1:$D$20,0),ROW(G11),1,,TEXT(G$3,"mmmm"))) -> 0 | J10: 41370 | K10: =INDIRECT(ADDRESS(MATCH($A$1,Janvier!$D$1:$D$20,0),ROW(J11),1,,TEXT(J$3,"mmmm"))) -> 0 | M10: 41400 | N10: =INDIRECT(ADDRESS(MATCH($A$1,Janvier!$D$1:$D$20,0),ROW(M11),1,,TEXT(M$3,"mmmm"))) -> 0 | P10: 41431 | Q10: =INDIRECT(ADDRESS(MATCH($A$1,Janvier!$D$1:$D$20,0),ROW(P11),1,,TEXT(P$3,"mmmm"))) -> 0 | S10: 41461 | T10: =INDIRECT(ADDRESS(MATCH($A$1,Janvier!$D$1:$D$20,0),ROW(S11),1,,TEXT(S$3,"mmmm"))) -> 0 | V10: 41492 | W10: =INDIRECT(ADDRESS(MATCH($A$1,Janvier!$D$1:$D$20,0),ROW(V11),1,,TEXT(V$3,"mmmm"))) -> 0 | Y10: 41523 | Z10: =INDIRECT(ADDRESS(MATCH($A$1,Janvier!$D$1:$D$20,0),ROW(Y11),1,,TEXT(Y$3,"mmmm"))) -> 0 | AB10: 41553 | AC10: =INDIRECT(ADDRESS(MATCH($A$1,Janvier!$D$1:$D$20,0),ROW(AB11),1,,TEXT(AB$3,"mmmm"))) -> 0 | AE10: 41584 | AF10: =INDIRECT(ADDRESS(MATCH($A$1,Janvier!$D$1:$D$20,0),ROW(AE11),1,,TEXT(AE$3,"mmmm"))) -> 0 | AH10: 41614 | AI10: =INDIRECT(ADDRESS(MATCH($A$1,Janvier!$D$1:$D$20,0),ROW(AH11),1,,TEXT(AH$3,"mmmm"))) -> 0
A11: 41281 | B11: =INDIRECT(ADDRESS(MATCH($A$1,Janvier!$D$1:$D$20,0),ROW(A12),1,,TEXT(A$3,"mmmm"))) -> 0 | D11: 41312 | E11: =INDIRECT(ADDRESS(MATCH($A$1,Janvier!$D$1:$D$20,0),ROW(D12),1,,TEXT(D$3,"mmmm"))) -> 0 | G11: 41340 | H11: =INDIRECT(ADDRESS(MATCH($A$1,Janvier!$D$1:$D$20,0),ROW(G12),1,,TEXT(G$3,"mmmm"))) -> 0 | J11: 41371 | K11: =INDIRECT(ADDRESS(MATCH($A$1,Janvier!$D$1:$D$20,0),ROW(J12),1,,TEXT(J$3,"mmmm"))) -> 0 | M11: 41401 | N11: =INDIRECT(ADDRESS(MATCH($A$1,Janvier!$D$1:$D$20,0),ROW(M12),1,,TEXT(M$3,"mmmm"))) -> 0 | P11: 41432 | Q11: =INDIRECT(ADDRESS(MATCH($A$1,Janvier!$D$1:$D$20,0),ROW(P12),1,,TEXT(P$3,"mmmm"))) -> 0 | S11: 41462 | T11: =INDIRECT(ADDRESS(MATCH($A$1,Janvier!$D$1:$D$20,0),ROW(S12),1,,TEXT(S$3,"mmmm"))) -> 0 | V11: 41493 | W11: =INDIRECT(ADDRESS(MATCH($A$1,Janvier!$D$1:$D$20,0),ROW(V12),1,,TEXT(V$3,"mmmm"))) -> 0 | Y11: 41524 | Z11: =INDIRECT(ADDRESS(MATCH($A$1,Janvier!$D$1:$D$20,0),ROW(Y12),1,,TEXT(Y$3,"mmmm"))) -> 0 | AB11: 41554 | AC11: =INDIRECT(ADDRESS(MATCH($A$1,Janvier!$D$1:$D$20,0),ROW(AB12),1,,TEXT(AB$3,"mmmm"))) -> 0 | AE11: 41585 | AF11: =INDIRECT(ADDRESS(MATCH($A$1,Janvier!$D$1:$D$20,0),ROW(AE12),1,,TEXT(AE$3,"mmmm"))) -> 0 | AH11: 41615 | AI11: =INDIRECT(ADDRESS(MATCH($A$1,Janvier!$D$1:$D$20,0),ROW(AH12),1,,TEXT(AH$3,"mmmm"))) -> 0
A12: 41282 | B12: =INDIRECT(ADDRESS(MATCH($A$1,Janvier!$D$1:$D$20,0),ROW(A13),1,,TEXT(A$3,"mmmm"))) -> 0 | D12: 41313 | E12: =INDIRECT(ADDRESS(MATCH($A$1,Janvier!$D$1:$D$20,0),ROW(D13),1,,TEXT(D$3,"mmmm"))) -> 0 | G12: 41341 | H12: =INDIRECT(ADDRESS(MATCH($A$1,Janvier!$D$1:$D$20,0),ROW(G13),1,,TEXT(G$3,"mmmm"))) -> 0 | J12: 41372 | K12: =INDIRECT(ADDRESS(MATCH($A$1,Janvier!$D$1:$D$20,0),ROW(J13),1,,TEXT(J$3,"mmmm"))) -> 0 | M12: 41402 | N12: =INDIRECT(ADDRESS(MATCH($A$1,Janvier!$D$1:$D$20,0),ROW(M13),1,,TEXT(M$3,"mmmm"))) -> 0 | P12: 41433 | Q12: =INDIRECT(ADDRESS(MATCH($A$1,Janvier!$D$1:$D$20,0),ROW(P13),1,,TEXT(P$3,"mmmm"))) -> 0 | S12: 41463 | T12: =INDIRECT(ADDRESS(MATCH($A$1,Janvier!$D$1:$D$20,0),ROW(S13),1,,TEXT(S$3,"mmmm"))) -> 0 | V12: 41494 | W12: =INDIRECT(ADDRESS(MATCH($A$1,Janvier!$D$1:$D$20,0),ROW(V13),1,,TEXT(V$3,"mmmm"))) -> 0 | Y12: 41525 | Z12: =INDIRECT(ADDRESS(MATCH($A$1,Janvier!$D$1:$D$20,0),ROW(Y13),1,,TEXT(Y$3,"mmmm"))) -> 0 | AB12: 41555 | AC12: =INDIRECT(ADDRESS(MATCH($A$1,Janvier!$D$1:$D$20,0),ROW(AB13),1,,TEXT(AB$3,"mmmm"))) -> 0 | AE12: 41586 | AF12: =INDIRECT(ADDRESS(MATCH($A$1,Janvier!$D$1:$D$20,0),ROW(AE13),1,,TEXT(AE$3,"mmmm"))) -> 0 | AH12: 41616 | AI12: =INDIRECT(ADDRESS(MATCH($A$1,Janvier!$D$1:$D$20,0),ROW(AH13),1,,TEXT(AH$3,"mmmm"))) -> 0
A13: 41283 | B13: =INDIRECT(ADDRESS(MATCH($A$1,Janvier!$D$1:$D$20,0),ROW(A14),1,,TEXT(A$3,"mmmm"))) -> 0 | D13: 41314 | E13: =INDIRECT(ADDRESS(MATCH($A$1,Janvier!$D$1:$D$20,0),ROW(D14),1,,TEXT(D$3,"mmmm"))) -> 0 | G13: 41342 | H13: =INDIRECT(ADDRESS(MATCH($A$1,Janvier!$D$1:$D$20,0),ROW(G14),1,,TEXT(G$3,"mmmm"))) -> 0 | J13: 41373 | K13: =INDIRECT(ADDRESS(MATCH($A$1,Janvier!$D$1:$D$20,0),ROW(J14),1,,TEXT(J$3,"mmmm"))) -> 0 | M13: 41403 | N13: =INDIRECT(ADDRESS(MATCH($A$1,Janvier!$D$1:$D$20,0),ROW(M14),1,,TEXT(M$3,"mmmm"))) -> 0 | P13: 41434 | Q13: =INDIRECT(ADDRESS(MATCH($A$1,Janvier!$D$1:$D$20,0),ROW(P14),1,,TEXT(P$3,"mmmm"))) -> 0 | S13: 41464 | T13: =INDIRECT(ADDRESS(MATCH($A$1,Janvier!$D$1:$D$20,0),ROW(S14),1,,TEXT(S$3,"mmmm"))) -> 0 | V13: 41495 | W13: =INDIRECT(ADDRESS(MATCH($A$1,Janvier!$D$1:$D$20,0),ROW(V14),1,,TEXT(V$3,"mmmm"))) -> 0 | Y13: 41526 | Z13: =INDIRECT(ADDRESS(MATCH($A$1,Janvier!$D$1:$D$20,0),ROW(Y14),1,,TEXT(Y$3,"mmmm"))) -> 0 | AB13: 41556 | AC13: =INDIRECT(ADDRESS(MATCH($A$1,Janvier!$D$1:$D$20,0),ROW(AB14),1,,TEXT(AB$3,"mmmm"))) -> 0 | AE13: 41587 | AF13: =INDIRECT(ADDRESS(MATCH($A$1,Janvier!$D$1:$D$20,0),ROW(AE14),1,,TEXT(AE$3,"mmmm"))) -> 0 | AH13: 41617 | AI13: =INDIRECT(ADDRESS(MATCH($A$1,Janvier!$D$1:$D$20,0),ROW(AH14),1,,TEXT(AH$3,"mmmm"))) -> 0
A14: 41284 | B14: =INDIRECT(ADDRESS(MATCH($A$1,Janvier!$D$1:$D$20,0),ROW(A15),1,,TEXT(A$3,"mmmm"))) -> 0 | D14: 41315 | E14: =INDIRECT(ADDRESS(MATCH($A$1,Janvier!$D$1:$D$20,0),ROW(D15),1,,TEXT(D$3,"mmmm"))) -> 0 | G14: 41343 | H14: =INDIRECT(ADDRESS(MATCH($A$1,Janvier!$D$1:$D$20,0),ROW(G15),1,,TEXT(G$3,"mmmm"))) -> 0 | J14: 41374 | K14: =INDIRECT(ADDRESS(MATCH($A$1,Janvier!$D$1:$D$20,0),ROW(J15),1,,TEXT(J$3,"mmmm"))) -> 0 | M14: 41404 | N14: =INDIRECT(ADDRESS(MATCH($A$1,Janvier!$D$1:$D$20,0),ROW(M15),1,,TEXT(M$3,"mmmm"))) -> 0 | P14: 41435 | Q14: =INDIRECT(ADDRESS(MATCH($A$1,Janvier!$D$1:$D$20,0),ROW(P15),1,,TEXT(P$3,"mmmm"))) -> 0 | S14: 41465 | T14: =INDIRECT(ADDRESS(MATCH($A$1,Janvier!$D$1:$D$20,0),ROW(S15),1,,TEXT(S$3,"mmmm"))) -> 0 | V14: 41496 | W14: =INDIRECT(ADDRESS(MATCH($A$1,Janvier!$D$1:$D$20,0),ROW(V15),1,,TEXT(V$3,"mmmm"))) -> 0 | Y14: 41527 | Z14: =INDIRECT(ADDRESS(MATCH($A$1,Janvier!$D$1:$D$20,0),ROW(Y15),1,,TEXT(Y$3,"mmmm"))) -> 0 | AB14: 41557 | AC14: =INDIRECT(ADDRESS(MATCH($A$1,Janvier!$D$1:$D$20,0),ROW(AB15),1,,TEXT(AB$3,"mmmm"))) -> 0 | AE14: 41588 | AF14: =INDIRECT(ADDRESS(MATCH($A$1,Janvier!$D$1:$D$20,0),ROW(AE15),1,,TEXT(AE$3,"mmmm"))) -> 0 | AH14: 41618 | AI14: =INDIRECT(ADDRESS(MATCH($A$1,Janvier!$D$1:$D$20,0),ROW(AH15),1,,TEXT(AH$3,"mmmm"))) -> 0
A15: 41285 | B15: =INDIRECT(ADDRESS(MATCH($A$1,Janvier!$D$1:$D$20,0),ROW(A16),1,,TEXT(A$3,"mmmm"))) -> 0 | D15: 41316 | E15: =INDIRECT(ADDRESS(MATCH($A$1,Janvier!$D$1:$D$20,0),ROW(D16),1,,TEXT(D$3,"mmmm"))) -> 0 | G15: 41344 | H15: =INDIRECT(ADDRESS(MATCH($A$1,Janvier!$D$1:$D$20,0),ROW(G16),1,,TEXT(G$3,"mmmm"))) -> 0 | J15: 41375 | K15: =INDIRECT(ADDRESS(MATCH($A$1,Janvier!$D$1:$D$20,0),ROW(J16),1,,TEXT(J$3,"mmmm"))) -> 0 | M15: 41405 | N15: =INDIRECT(ADDRESS(MATCH($A$1,Janvier!$D$1:$D$20,0),ROW(M16),1,,TEXT(M$3,"mmmm"))) -> 0 | P15: 41436 | Q15: =INDIRECT(ADDRESS(MATCH($A$1,Janvier!$D$1:$D$20,0),ROW(P16),1,,TEXT(P$3,"mmmm"))) -> 0 | S15: 41466 | T15: =INDIRECT(ADDRESS(MATCH($A$1,Janvier!$D$1:$D$20,0),ROW(S16),1,,TEXT(S$3,"mmmm"))) -> 0 | V15: 41497 | W15: =INDIRECT(ADDRESS(MATCH($A$1,Janvier!$D$1:$D$20,0),ROW(V16),1,,TEXT(V$3,"mmmm"))) -> 0 | Y15: 41528 | Z15: =INDIRECT(ADDRESS(MATCH($A$1,Janvier!$D$1:$D$20,0),ROW(Y16),1,,TEXT(Y$3,"mmmm"))) -> 0 | AB15: 41558 | AC15: =INDIRECT(ADDRESS(MATCH($A$1,Janvier!$D$1:$D$20,0),ROW(AB16),1,,TEXT(AB$3,"mmmm"))) -> 0 | AE15: 41589 | AF15: =INDIRECT(ADDRESS(MATCH($A$1,Janvier!$D$1:$D$20,0),ROW(AE16),1,,TEXT(AE$3,"mmmm"))) -> 0 | AH15: 41619 | AI15: =INDIRECT(ADDRESS(MATCH($A$1,Janvier!$D$1:$D$20,0),ROW(AH16),1,,TEXT(AH$3,"mmmm"))) -> 0
A16: 41286 | B16: =INDIRECT(ADDRESS(MATCH($A$1,Janvier!$D$1:$D$20,0),ROW(A17),1,,TEXT(A$3,"mmmm"))) -> 0 | D16: 41317 | E16: =INDIRECT(ADDRESS(MATCH($A$1,Janvier!$D$1:$D$20,0),ROW(D17),1,,TEXT(D$3,"mmmm"))) -> 0 | G16: 41345 | H16: =INDIRECT(ADDRESS(MATCH($A$1,Janvier!$D$1:$D$20,0),ROW(G17),1,,TEXT(G$3,"mmmm"))) -> 0 | J16: 41376 | K16: =INDIRECT(ADDRESS(MATCH($A$1,Janvier!$D$1:$D$20,0),ROW(J17),1,,TEXT(J$3,"mmmm"))) -> 0 | M16: 41406 | N16: =INDIRECT(ADDRESS(MATCH($A$1,Janvier!$D$1:$D$20,0),ROW(M17),1,,TEXT(M$3,"mmmm"))) -> 0 | P16: 41437 | Q16: =INDIRECT(ADDRESS(MATCH($A$1,Janvier!$D$1:$D$20,0),ROW(P17),1,,TEXT(P$3,"mmmm"))) -> 0 | S16: 41467 | T16: =INDIRECT(ADDRESS(MATCH($A$1,Janvier!$D$1:$D$20,0),ROW(S17),1,,TEXT(S$3,"mmmm"))) -> 0 | V16: 41498 | W16: =INDIRECT(ADDRESS(MATCH($A$1,Janvier!$D$1:$D$20,0),ROW(V17),1,,TEXT(V$3,"mmmm"))) -> 0 | Y16: 41529 | Z16: =INDIRECT(ADDRESS(MATCH($A$1,Janvier!$D$1:$D$20,0),ROW(Y17),1,,TEXT(Y$3,"mmmm"))) -> 0 | AB16: 41559 | AC16: =INDIRECT(ADDRESS(MATCH($A$1,Janvier!$D$1:$D$20,0),ROW(AB17),1,,TEXT(AB$3,"mmmm"))) -> 0 | AE16: 41590 | AF16: =INDIRECT(ADDRESS(MATCH($A$1,Janvier!$D$1:$D$20,0),ROW(AE17),1,,TEXT(AE$3,"mmmm"))) -> 0 | AH16: 41620 | AI16: =INDIRECT(ADDRESS(MATCH($A$1,Janvier!$D$1:$D$20,0),ROW(AH17),1,,TEXT(AH$3,"mmmm"))) -> 0
A17: 41287 | B17: =INDIRECT(ADDRESS(MATCH($A$1,Janvier!$D$1:$D$20,0),ROW(A18),1,,TEXT(A$3,"mmmm"))) -> 0 | D17: 41318 | E17: =INDIRECT(ADDRESS(MATCH($A$1,Janvier!$D$1:$D$20,0),ROW(D18),1,,TEXT(D$3,"mmmm"))) -> 0 | G17: 41346 | H17: =INDIRECT(ADDRESS(MATCH($A$1,Janvier!$D$1:$D$20,0),ROW(G18),1,,TEXT(G$3,"mmmm"))) -> 0 | J17: 41377 | K17: =INDIRECT(ADDRESS(MATCH($A$1,Janvier!$D$1:$D$20,0),ROW(J18),1,,TEXT(J$3,"mmmm"))) -> 0 | M17: 41407 | N17: =INDIRECT(ADDRESS(MATCH($A$1,Janvier!$D$1:$D$20,0),ROW(M18),1,,TEXT(M$3,"mmmm"))) -> 0 | P17: 41438 | Q17: =INDIRECT(ADDRESS(MATCH($A$1,Janvier!$D$1:$D$20,0),ROW(P18),1,,TEXT(P$3,"mmmm"))) -> 0 | S17: 41468 | T17: =INDIRECT(ADDRESS(MATCH($A$1,Janvier!$D$1:$D$20,0),ROW(S18),1,,TEXT(S$3,"mmmm"))) -> 0 | V17: 41499 | W17: =INDIRECT(ADDRESS(MATCH($A$1,Janvier!$D$1:$D$20,0),ROW(V18),1,,TEXT(V$3,"mmmm"))) -> 0 | Y17: 41530 | Z17: =INDIRECT(ADDRESS(MATCH($A$1,Janvier!$D$1:$D$20,0),ROW(Y18),1,,TEXT(Y$3,"mmmm"))) -> 0 | AB17: 41560 | AC17: =INDIRECT(ADDRESS(MATCH($A$1,Janvier!$D$1:$D$20,0),ROW(AB18),1,,TEXT(AB$3,"mmmm"))) -> 0 | AE17: 41591 | AF17: =INDIRECT(ADDRESS(MATCH($A$1,Janvier!$D$1:$D$20,0),ROW(AE18),1,,TEXT(AE$3,"mmmm"))) -> 0 | AH17: 41621 | AI17: =INDIRECT(ADDRESS(MATCH($A$1,Janvier!$D$1:$D$20,0),ROW(AH18),1,,TEXT(AH$3,"mmmm"))) -> 0
A18: 41288 | B18: =INDIRECT(ADDRESS(MATCH($A$1,Janvier!$D$1:$D$20,0),ROW(A19),1,,TEXT(A$3,"mmmm"))) -> 0 | D18: 41319 | E18: =INDIRECT(ADDRESS(MATCH($A$1,Janvier!$D$1:$D$20,0),ROW(D19),1,,TEXT(D$3,"mmmm"))) -> 0 | G18: 41347 | H18: =INDIRECT(ADDRESS(MATCH($A$1,Janvier!$D$1:$D$20,0),ROW(G19),1,,TEXT(G$3,"mmmm"))) -> 0 | J18: 41378 | K18: =INDIRECT(ADDRESS(MATCH($A$1,Janvier!$D$1:$D$20,0),ROW(J19),1,,TEXT(J$3,"mmmm"))) -> 0 | M18: 41408 | N18: =INDIRECT(ADDRESS(MATCH($A$1,Janvier!$D$1:$D$20,0),ROW(M19),1,,TEXT(M$3,"mmmm"))) -> 0 | P18: 41439 | Q18: =INDIRECT(ADDRESS(MATCH($A$1,Janvier!$D$1:$D$20,0),ROW(P19),1,,TEXT(P$3,"mmmm"))) -> 0 | S18: 41469 | T18: =INDIRECT(ADDRESS(MATCH($A$1,Janvier!$D$1:$D$20,0),ROW(S19),1,,TEXT(S$3,"mmmm"))) -> 0 | V18: 41500 | W18: =INDIRECT(ADDRESS(MATCH($A$1,Janvier!$D$1:$D$20,0),ROW(V19),1,,TEXT(V$3,"mmmm"))) -> 0 | Y18: 41531 | Z18: =INDIRECT(ADDRESS(MATCH($A$1,Janvier!$D$1:$D$20,0),ROW(Y19),1,,TEXT(Y$3,"mmmm"))) -> 0 | AB18: 41561 | AC18: =INDIRECT(ADDRESS(MATCH($A$1,Janvier!$D$1:$D$20,0),ROW(AB19),1,,TEXT(AB$3,"mmmm"))) -> 0 | AE18: 41592 | AF18: =INDIRECT(ADDRESS(MATCH($A$1,Janvier!$D$1:$D$20,0),ROW(AE19),1,,TEXT(AE$3,"mmmm"))) -> 0 | AH18: 41622 | AI18: =INDIRECT(ADDRESS(MATCH($A$1,Janvier!$D$1:$D$20,0),ROW(AH19),1,,TEXT(AH$3,"mmmm"))) -> 0
A19: 41289 | B19: =INDIRECT(ADDRESS(MATCH($A$1,Janvier!$D$1:$D$20,0),ROW(A20),1,,TEXT(A$3,"mmmm"))) -> 0 | D19: 41320 | E19: =INDIRECT(ADDRESS(MATCH($A$1,Janvier!$D$1:$D$20,0),ROW(D20),1,,TEXT(D$3,"mmmm"))) -> 0 | G19: 41348 | H19: =INDIRECT(ADDRESS(MATCH($A$1,Janvier!$D$1:$D$20,0),ROW(G20),1,,TEXT(G$3,"mmmm"))) -> 0 | J19: 41379 | K19: =INDIRECT(ADDRESS(MATCH($A$1,Janvier!$D$1:$D$20,0),ROW(J20),1,,TEXT(J$3,"mmmm"))) -> 0 | M19: 41409 | N19: =INDIRECT(ADDRESS(MATCH($A$1,Janvier!$D$1:$D$20,0),ROW(M20),1,,TEXT(M$3,"mmmm"))) -> 0 | P19: 41440 | Q19: =INDIRECT(ADDRESS(MATCH($A$1,Janvier!$D$1:$D$20,0),ROW(P20),1,,TEXT(P$3,"mmmm"))) -> 0 | S19: 41470 | T19: =INDIRECT(ADDRESS(MATCH($A$1,Janvier!$D$1:$D$20,0),ROW(S20),1,,TEXT(S$3,"mmmm"))) -> 0 | V19: 41501 | W19: =INDIRECT(ADDRESS(MATCH($A$1,Janvier!$D$1:$D$20,0),ROW(V20),1,,TEXT(V$3,"mmmm"))) -> 0 | Y19: 41532 | Z19: =INDIRECT(ADDRESS(MATCH($A$1,Janvier!$D$1:$D$20,0),ROW(Y20),1,,TEXT(Y$3,"mmmm"))) -> 0 | AB19: 41562 | AC19: =INDIRECT(ADDRESS(MATCH($A$1,Janvier!$D$1:$D$20,0),ROW(AB20),1,,TEXT(AB$3,"mmmm"))) -> 0 | AE19: 41593 | AF19: =INDIRECT(ADDRESS(MATCH($A$1,Janvier!$D$1:$D$20,0),ROW(AE20),1,,TEXT(AE$3,"mmmm"))) -> 0 | AH19: 41623 | AI19: =INDIRECT(ADDRESS(MATCH($A$1,Janvier!$D$1:$D$20,0),ROW(AH20),1,,TEXT(AH$3,"mmmm"))) -> 0
A20: 41290 | B20: =INDIRECT(ADDRESS(MATCH($A$1,Janvier!$D$1:$D$20,0),ROW(A21),1,,TEXT(A$3,"mmmm"))) -> 0 | D20: 41321 | E20: =INDIRECT(ADDRESS(MATCH($A$1,Janvier!$D$1:$D$20,0),ROW(D21),1,,TEXT(D$3,"mmmm"))) -> 0 | G20: 41349 | H20: =INDIRECT(ADDRESS(MATCH($A$1,Janvier!$D$1:$D$20,0),ROW(G21),1,,TEXT(G$3,"mmmm"))) -> 0 | J20: 41380 | K20: =INDIRECT(ADDRESS(MATCH($A$1,Janvier!$D$1:$D$20,0),ROW(J21),1,,TEXT(J$3,"mmmm"))) -> 0 | M20: 41410 | N20: =INDIRECT(ADDRESS(MATCH($A$1,Janvier!$D$1:$D$20,0),ROW(M21),1,,TEXT(M$3,"mmmm"))) -> 0 | P20: 41441 | Q20: =INDIRECT(ADDRESS(MATCH($A$1,Janvier!$D$1:$D$20,0),ROW(P21),1,,TEXT(P$3,"mmmm"))) -> 0 | S20: 41471 | T20: =INDIRECT(ADDRESS(MATCH($A$1,Janvier!$D$1:$D$20,0),ROW(S21),1,,TEXT(S$3,"mmmm"))) -> 0 | V20: 41502 | W20: =INDIRECT(ADDRESS(MATCH($A$1,Janvier!$D$1:$D$20,0),ROW(V21),1,,TEXT(V$3,"mmmm"))) -> 0 | Y20: 41533 | Z20: =INDIRECT(ADDRESS(MATCH($A$1,Janvier!$D$1:$D$20,0),ROW(Y21),1,,TEXT(Y$3,"mmmm"))) -> 0 | AB20: 41563 | AC20: =INDIRECT(ADDRESS(MATCH($A$1,Janvier!$D$1:$D$20,0),ROW(AB21),1,,TEXT(AB$3,"mmmm"))) -> 0 | AE20: 41594 | AF20: =INDIRECT(ADDRESS(MATCH($A$1,Janvier!$D$1:$D$20,0),ROW(AE21),1,,TEXT(AE$3,"mmmm"))) -> 0 | AH20: 41624 | AI20: =INDIRECT(ADDRESS(MATCH($A$1,Janvier!$D$1:$D$20,0),ROW(AH21),1,,TEXT(AH$3,"mmmm"))) -> 0
A21: 41291 | B21: =INDIRECT(ADDRESS(MATCH($A$1,Janvier!$D$1:$D$20,0),ROW(A22),1,,TEXT(A$3,"mmmm"))) -> 0 | D21: 41322 | E21: =INDIRECT(ADDRESS(MATCH($A$1,Janvier!$D$1:$D$20,0),ROW(D22),1,,TEXT(D$3,"mmmm"))) -> 0 | G21: 41350 | H21: =INDIRECT(ADDRESS(MATCH($A$1,Janvier!$D$1:$D$20,0),ROW(G22),1,,TEXT(G$3,"mmmm"))) -> 0 | J21: 41381 | K21: =INDIRECT(ADDRESS(MATCH($A$1,Janvier!$D$1:$D$20,0),ROW(J22),1,,TEXT(J$3,"mmmm"))) -> 0 | M21: 41411 | N21: =INDIRECT(ADDRESS(MATCH($A$1,Janvier!$D$1:$D$20,0),ROW(M22),1,,TEXT(M$3,"mmmm"))) -> 0 | P21: 41442 | Q21: =INDIRECT(ADDRESS(MATCH($A$1,Janvier!$D$1:$D$20,0),ROW(P22),1,,TEXT(P$3,"mmmm"))) -> 0 | S21: 41472 | T21: =INDIRECT(ADDRESS(MATCH($A$1,Janvier!$D$1:$D$20,0),ROW(S22),1,,TEXT(S$3,"mmmm"))) -> 0 | V21: 41503 | W21: =INDIRECT(ADDRESS(MATCH($A$1,Janvier!$D$1:$D$20,0),ROW(V22),1,,TEXT(V$3,"mmmm"))) -> 0 | Y21: 41534 | Z21: =INDIRECT(ADDRESS(MATCH($A$1,Janvier!$D$1:$D$20,0),ROW(Y22),1,,TEXT(Y$3,"mmmm"))) -> 0 | AB21: 41564 | AC21: =INDIRECT(ADDRESS(MATCH($A$1,Janvier!$D$1:$D$20,0),ROW(AB22),1,,TEXT(AB$3,"mmmm"))) -> 0 | AE21: 41595 | AF21: =INDIRECT(ADDRESS(MATCH($A$1,Janvier!$D$1:$D$20,0),ROW(AE22),1,,TEXT(AE$3,"mmmm"))) -> 0 | AH21: 41625 | AI21: =INDIRECT(ADDRESS(MATCH($A$1,Janvier!$D$1:$D$20,0),ROW(AH22),1,,TEXT(AH$3,"mmmm"))) -> 0
A22: 41292 | B22: =INDIRECT(ADDRESS(MATCH($A$1,Janvier!$D$1:$D$20,0),ROW(A23),1,,TEXT(A$3,"mmmm"))) -> 0 | D22: 41323 | E22: =INDIRECT(ADDRESS(MATCH($A$1,Janvier!$D$1:$D$20,0),ROW(D23),1,,TEXT(D$3,"mmmm"))) -> 0 | G22: 41351 | H22: =INDIRECT(ADDRESS(MATCH($A$1,Janvier!$D$1:$D$20,0),ROW(G23),1,,TEXT(G$3,"mmmm"))) -> 0 | J22: 41382 | K22: =INDIRECT(ADDRESS(MATCH($A$1,Janvier!$D$1:$D$20,0),ROW(J23),1,,TEXT(J$3,"mmmm"))) -> 0 | M22: 41412 | N22: =INDIRECT(ADDRESS(MATCH($A$1,Janvier!$D$1:$D$20,0),ROW(M23),1,,TEXT(M$3,"mmmm"))) -> 0 | P22: 41443 | Q22: =INDIRECT(ADDRESS(MATCH($A$1,Janvier!$D$1:$D$20,0),ROW(P23),1,,TEXT(P$3,"mmmm"))) -> 0 | S22: 41473 | T22: =INDIRECT(ADDRESS(MATCH($A$1,Janvier!$D$1:$D$20,0),ROW(S23),1,,TEXT(S$3,"mmmm"))) -> 0 | V22: 41504 | W22: =INDIRECT(ADDRESS(MATCH($A$1,Janvier!$D$1:$D$20,0),ROW(V23),1,,TEXT(V$3,"mmmm"))) -> 0 | Y22: 41535 | Z22: =INDIRECT(ADDRESS(MATCH($A$1,Janvier!$D$1:$D$20,0),ROW(Y23),1,,TEXT(Y$3,"mmmm"))) -> 0 | AB22: 41565 | AC22: =INDIRECT(ADDRESS(MATCH($A$1,Janvier!$D$1:$D$20,0),ROW(AB23),1,,TEXT(AB$3,"mmmm"))) -> 0 | AE22: 41596 | AF22: =INDIRECT(ADDRESS(MATCH($A$1,Janvier!$D$1:$D$20,0),ROW(AE23),1,,TEXT(AE$3,"mmmm"))) -> 0 | AH22: 41626 | AI22: =INDIRECT(ADDRESS(MATCH($A$1,Janvier!$D$1:$D$20,0),ROW(AH23),1,,TEXT(AH$3,"mmmm"))) -> 0
A23: 41293 | B23: =INDIRECT(ADDRESS(MATCH($A$1,Janvier!$D$1:$D$20,0),ROW(A24),1,,TEXT(A$3,"mmmm"))) -> 0 | D23: 41324 | E23: =INDIRECT(ADDRESS(MATCH($A$1,Janvier!$D$1:$D$20,0),ROW(D24),1,,TEXT(D$3,"mmmm"))) -> 0 | G23: 41352 | H23: =INDIRECT(ADDRESS(MATCH($A$1,Janvier!$D$1:$D$20,0),ROW(G24),1,,TEXT(G$3,"mmmm"))) -> 0 | J23: 41383 | K23: =INDIRECT(ADDRESS(MATCH($A$1,Janvier!$D$1:$D$20,0),ROW(J24),1,,TEXT(J$3,"mmmm"))) -> 0 | M23: 41413 | N23: =INDIRECT(ADDRESS(MATCH($A$1,Janvier!$D$1:$D$20,0),ROW(M24),1,,TEXT(M$3,"mmmm"))) -> 0 | P23: 41444 | Q23: =INDIRECT(ADDRESS(MATCH($A$1,Janvier!$D$1:$D$20,0),ROW(P24),1,,TEXT(P$3,"mmmm"))) -> 0 | S23: 41474 | T23: =INDIRECT(ADDRESS(MATCH($A$1,Janvier!$D$1:$D$20,0),ROW(S24),1,,TEXT(S$3,"mmmm"))) -> 0 | V23: 41505 | W23: =INDIRECT(ADDRESS(MATCH($A$1,Janvier!$D$1:$D$20,0),ROW(V24),1,,TEXT(V$3,"mmmm"))) -> 0 | Y23: 41536 | Z23: =INDIRECT(ADDRESS(MATCH($A$1,Janvier!$D$1:$D$20,0),ROW(Y24),1,,TEXT(Y$3,"mmmm"))) -> 0 | AB23: 41566 | AC23: =INDIRECT(ADDRESS(MATCH($A$1,Janvier!$D$1:$D$20,0),ROW(AB24),1,,TEXT(AB$3,"mmmm"))) -> 0 | AE23: 41597 | AF23: =INDIRECT(ADDRESS(MATCH($A$1,Janvier!$D$1:$D$20,0),ROW(AE24),1,,TEXT(AE$3,"mmmm"))) -> 0 | AH23: 41627 | AI23: =INDIRECT(ADDRESS(MATCH($A$1,Janvier!$D$1:$D$20,0),ROW(AH24),1,,TEXT(AH$3,"mmmm"))) -> 0
A24: 41294 | B24: =INDIRECT(ADDRESS(MATCH($A$1,Janvier!$D$1:$D$20,0),ROW(A25),1,,TEXT(A$3,"mmmm"))) -> 0 | D24: 41325 | E24: =INDIRECT(ADDRESS(MATCH($A$1,Janvier!$D$1:$D$20,0),ROW(D25),1,,TEXT(D$3,"mmmm"))) -> 0 | G24: 41353 | H24: =INDIRECT(ADDRESS(MATCH($A$1,Janvier!$D$1:$D$20,0),ROW(G25),1,,TEXT(G$3,"mmmm"))) -> 0 | J24: 41384 | K24: =INDIRECT(ADDRESS(MATCH($A$1,Janvier!$D$1:$D$20,0),ROW(J25),1,,TEXT(J$3,"mmmm"))) -> 0 | M24: 41414 | N24: =INDIRECT(ADDRESS(MATCH($A$1,Janvier!$D$1:$D$20,0),ROW(M25),1,,TEXT(M$3,"mmmm"))) -> 0 | P24: 41445 | Q24: =INDIRECT(ADDRESS(MATCH($A$1,Janvier!$D$1:$D$20,0),ROW(P25),1,,TEXT(P$3,"mmmm"))) -> 0 | S24: 41475 | T24: =INDIRECT(ADDRESS(MATCH($A$1,Janvier!$D$1:$D$20,0),ROW(S25),1,,TEXT(S$3,"mmmm"))) -> 0 | V24: 41506 | W24: =INDIRECT(ADDRESS(MATCH($A$1,Janvier!$D$1:$D$20,0),ROW(V25),1,,TEXT(V$3,"mmmm"))) -> 0 | Y24: 41537 | Z24: =INDIRECT(ADDRESS(MATCH($A$1,Janvier!$D$1:$D$20,0),ROW(Y25),1,,TEXT(Y$3,"mmmm"))) -> 0 | AB24: 41567 | AC24: =INDIRECT(ADDRESS(MATCH($A$1,Janvier!$D$1:$D$20,0),ROW(AB25),1,,TEXT(AB$3,"mmmm"))) -> 0 | AE24: 41598 | AF24: =INDIRECT(ADDRESS(MATCH($A$1,Janvier!$D$1:$D$20,0),ROW(AE25),1,,TEXT(AE$3,"mmmm"))) -> 0 | AH24: 41628 | AI24: =INDIRECT(ADDRESS(MATCH($A$1,Janvier!$D$1:$D$20,0),ROW(AH25),1,,TEXT(AH$3,"mmmm"))) -> 0
A25: 41295 | B25: =INDIRECT(ADDRESS(MATCH($A$1,Janvier!$D$1:$D$20,0),ROW(A26),1,,TEXT(A$3,"mmmm"))) -> 0 | D25: 41326 | E25: =INDIRECT(ADDRESS(MATCH($A$1,Janvier!$D$1:$D$20,0),ROW(D26),1,,TEXT(D$3,"mmmm"))) -> 0 | G25: 41354 | H25: =INDIRECT(ADDRESS(MATCH($A$1,Janvier!$D$1:$D$20,0),ROW(G26),1,,TEXT(G$3,"mmmm"))) -> 0 | J25: 41385 | K25: =INDIRECT(ADDRESS(MATCH($A$1,Janvier!$D$1:$D$20,0),ROW(J26),1,,TEXT(J$3,"mmmm"))) -> 0 | M25: 41415 | N25: =INDIRECT(ADDRESS(MATCH($A$1,Janvier!$D$1:$D$20,0),ROW(M26),1,,TEXT(M$3,"mmmm"))) -> 0 | P25: 41446 | Q25: =INDIRECT(ADDRESS(MATCH($A$1,Janvier!$D$1:$D$20,0),ROW(P26),1,,TEXT(P$3,"mmmm"))) -> 0 | S25: 41476 | T25: =INDIRECT(ADDRESS(MATCH($A$1,Janvier!$D$1:$D$20,0),ROW(S26),1,,TEXT(S$3,"mmmm"))) -> 0 | V25: 41507 | W25: =INDIRECT(ADDRESS(MATCH($A$1,Janvier!$D$1:$D$20,0),ROW(V26),1,,TEXT(V$3,"mmmm"))) -> 0 | Y25: 41538 | Z25: =INDIRECT(ADDRESS(MATCH($A$1,Janvier!$D$1:$D$20,0),ROW(Y26),1,,TEXT(Y$3,"mmmm"))) -> 0 | AB25: 41568 | AC25: =INDIRECT(ADDRESS(MATCH($A$1,Janvier!$D$1:$D$20,0),ROW(AB26),1,,TEXT(AB$3,"mmmm"))) -> 0 | AE25: 41599 | AF25: =INDIRECT(ADDRESS(MATCH($A$1,Janvier!$D$1:$D$20,0),ROW(AE26),1,,TEXT(AE$3,"mmmm"))) -> 0 | AH25: 41629 | AI25: =INDIRECT(ADDRESS(MATCH($A$1,Janvier!$D$1:$D$20,0),ROW(AH26),1,,TEXT(AH$3,"mmmm"))) -> 0
A26: 41296 | B26: =INDIRECT(ADDRESS(MATCH($A$1,Janvier!$D$1:$D$20,0),ROW(A27),1,,TEXT(A$3,"mmmm"))) -> 0 | D26: 41327 | E26: =INDIRECT(ADDRESS(MATCH($A$1,Janvier!$D$1:$D$20,0),ROW(D27),1,,TEXT(D$3,"mmmm"))) -> 0 | G26: 41355 | H26: =INDIRECT(ADDRESS(MATCH($A$1,Janvier!$D$1:$D$20,0),ROW(G27),1,,TEXT(G$3,"mmmm"))) -> 0 | J26: 41386 | K26: =INDIRECT(ADDRESS(MATCH($A$1,Janvier!$D$1:$D$20,0),ROW(J27),1,,TEXT(J$3,"mmmm"))) -> 0 | M26: 41416 | N26: =INDIRECT(ADDRESS(MATCH($A$1,Janvier!$D$1:$D$20,0),ROW(M27),1,,TEXT(M$3,"mmmm"))) -> 0 | P26: 41447 | Q26: =INDIRECT(ADDRESS(MATCH($A$1,Janvier!$D$1:$D$20,0),ROW(P27),1,,TEXT(P$3,"mmmm"))) -> 0 | S26: 41477 | T26: =INDIRECT(ADDRESS(MATCH($A$1,Janvier!$D$1:$D$20,0),ROW(S27),1,,TEXT(S$3,"mmmm"))) -> 0 | V26: 41508 | W26: =INDIRECT(ADDRESS(MATCH($A$1,Janvier!$D$1:$D$20,0),ROW(V27),1,,TEXT(V$3,"mmmm"))) -> 0 | Y26: 41539 | Z26: =INDIRECT(ADDRESS(MATCH($A$1,Janvier!$D$1:$D$20,0),ROW(Y27),1,,TEXT(Y$3,"mmmm"))) -> 0 | AB26: 41569 | AC26: =INDIRECT(ADDRESS(MATCH($A$1,Janvier!$D$1:$D$20,0),ROW(AB27),1,,TEXT(AB$3,"mmmm"))) -> 0 | AE26: 41600 | AF26: =INDIRECT(ADDRESS(MATCH($A$1,Janvier!$D$1:$D$20,0),ROW(AE27),1,,TEXT(AE$3,"mmmm"))) -> 0 | AH26: 41630 | AI26: =INDIRECT(ADDRESS(MATCH($A$1,Janvier!$D$1:$D$20,0),ROW(AH27),1,,TEXT(AH$3,"mmmm"))) -> 0
A27: 41297 | B27: =INDIRECT(ADDRESS(MATCH($A$1,Janvier!$D$1:$D$20,0),ROW(A28),1,,TEXT(A$3,"mmmm"))) -> 0 | D27: 41328 | E27: =INDIRECT(ADDRESS(MATCH($A$1,Janvier!$D$1:$D$20,0),ROW(D28),1,,TEXT(D$3,"mmmm"))) -> 0 | G27: 41356 | H27: =INDIRECT(ADDRESS(MATCH($A$1,Janvier!$D$1:$D$20,0),ROW(G28),1,,TEXT(G$3,"mmmm"))) -> 0 | J27: 41387 | K27: =INDIRECT(ADDRESS(MATCH($A$1,Janvier!$D$1:$D$20,0),ROW(J28),1,,TEXT(J$3,"mmmm"))) -> 0 | M27: 41417 | N27: =INDIRECT(ADDRESS(MATCH($A$1,Janvier!$D$1:$D$20,0),ROW(M28),1,,TEXT(M$3,"mmmm"))) -> 0 | P27: 41448 | Q27: =INDIRECT(ADDRESS(MATCH($A$1,Janvier!$D$1:$D$20,0),ROW(P28),1,,TEXT(P$3,"mmmm"))) -> 0 | S27: 41478 | T27: =INDIRECT(ADDRESS(MATCH($A$1,Janvier!$D$1:$D$20,0),ROW(S28),1,,TEXT(S$3,"mmmm"))) -> 0 | V27: 41509 | W27: =INDIRECT(ADDRESS(MATCH($A$1,Janvier!$D$1:$D$20,0),ROW(V28),1,,TEXT(V$3,"mmmm"))) -> 0 | Y27: 41540 | Z27: =INDIRECT(ADDRESS(MATCH($A$1,Janvier!$D$1:$D$20,0),ROW(Y28),1,,TEXT(Y$3,"mmmm"))) -> 0 | AB27: 41570 | AC27: =INDIRECT(ADDRESS(MATCH($A$1,Janvier!$D$1:$D$20,0),ROW(AB28),1,,TEXT(AB$3,"mmmm"))) -> 0 | AE27: 41601 | AF27: =INDIRECT(ADDRESS(MATCH($A$1,Janvier!$D$1:$D$20,0),ROW(AE28),1,,TEXT(AE$3,"mmmm"))) -> 0 | AH27: 41631 | AI27: =INDIRECT(ADDRESS(MATCH($A$1,Janvier!$D$1:$D$20,0),ROW(AH28),1,,TEXT(AH$3,"mmmm"))) -> 0
A28: 41298 | B28: =INDIRECT(ADDRESS(MATCH($A$1,Janvier!$D$1:$D$20,0),ROW(A29),1,,TEXT(A$3,"mmmm"))) -> 0 | D28: 41329 | E28: =INDIRECT(ADDRESS(MATCH($A$1,Janvier!$D$1:$D$20,0),ROW(D29),1,,TEXT(D$3,"mmmm"))) -> 0 | G28: 41357 | H28: =INDIRECT(ADDRESS(MATCH($A$1,Janvier!$D$1:$D$20,0),ROW(G29),1,,TEXT(G$3,"mmmm"))) -> 0 | J28: 41388 | K28: =INDIRECT(ADDRESS(MATCH($A$1,Janvier!$D$1:$D$20,0),ROW(J29),1,,TEXT(J$3,"mmmm"))) -> 0 | M28: 41418 | N28: =INDIRECT(ADDRESS(MATCH($A$1,Janvier!$D$1:$D$20,0),ROW(M29),1,,TEXT(M$3,"mmmm"))) -> 0 | P28: 41449 | Q28: =INDIRECT(ADDRESS(MATCH($A$1,Janvier!$D$1:$D$20,0),ROW(P29),1,,TEXT(P$3,"mmmm"))) -> 0 | S28: 41479 | T28: =INDIRECT(ADDRESS(MATCH($A$1,Janvier!$D$1:$D$20,0),ROW(S29),1,,TEXT(S$3,"mmmm"))) -> 0 | V28: 41510 | W28: =INDIRECT(ADDRESS(MATCH($A$1,Janvier!$D$1:$D$20,0),ROW(V29),1,,TEXT(V$3,"mmmm"))) -> 0 | Y28: 41541 | Z28: =INDIRECT(ADDRESS(MATCH($A$1,Janvier!$D$1:$D$20,0),ROW(Y29),1,,TEXT(Y$3,"mmmm"))) -> 0 | AB28: 41571 | AC28: =INDIRECT(ADDRESS(MATCH($A$1,Janvier!$D$1:$D$20,0),ROW(AB29),1,,TEXT(AB$3,"mmmm"))) -> 0 | AE28: 41602 | AF28: =INDIRECT(ADDRESS(MATCH($A$1,Janvier!$D$1:$D$20,0),ROW(AE29),1,,TEXT(AE$3,"mmmm"))) -> 0 | AH28: 41632 | AI28: =INDIRECT(ADDRESS(MATCH($A$1,Janvier!$D$1:$D$20,0),ROW(AH29),1,,TEXT(AH$3,"mmmm"))) -> 0
A29: 41299 | B29: =INDIRECT(ADDRESS(MATCH($A$1,Janvier!$D$1:$D$20,0),ROW(A30),1,,TEXT(A$3,"mmmm"))) -> 0 | D29: 41330 | E29: =INDIRECT(ADDRESS(MATCH($A$1,Janvier!$D$1:$D$20,0),ROW(D30),1,,TEXT(D$3,"mmmm"))) -> 0 | G29: 41358 | H29: =INDIRECT(ADDRESS(MATCH($A$1,Janvier!$D$1:$D$20,0),ROW(G30),1,,TEXT(G$3,"mmmm"))) -> 0 | J29: 41389 | K29: =INDIRECT(ADDRESS(MATCH($A$1,Janvier!$D$1:$D$20,0),ROW(J30),1,,TEXT(J$3,"mmmm"))) -> 0 | M29: 41419 | N29: =INDIRECT(ADDRESS(MATCH($A$1,Janvier!$D$1:$D$20,0),ROW(M30),1,,TEXT(M$3,"mmmm"))) -> 0 | P29: 41450 | Q29: =INDIRECT(ADDRESS(MATCH($A$1,Janvier!$D$1:$D$20,0),ROW(P30),1,,TEXT(P$3,"mmmm"))) -> 0 | S29: 41480 | T29: =INDIRECT(ADDRESS(MATCH($A$1,Janvier!$D$1:$D$20,0),ROW(S30),1,,TEXT(S$3,"mmmm"))) -> 0 | V29: 41511 | W29: =INDIRECT(ADDRESS(MATCH($A$1,Janvier!$D$1:$D$20,0),ROW(V30),1,,TEXT(V$3,"mmmm"))) -> 0 | Y29: 41542 | Z29: =INDIRECT(ADDRESS(MATCH($A$1,Janvier!$D$1:$D$20,0),ROW(Y30),1,,TEXT(Y$3,"mmmm"))) -> 0 | AB29: 41572 | AC29: =INDIRECT(ADDRESS(MATCH($A$1,Janvier!$D$1:$D$20,0),ROW(AB30),1,,TEXT(AB$3,"mmmm"))) -> 0 | AE29: 41603 | AF29: =INDIRECT(ADDRESS(MATCH($A$1,Janvier!$D$1:$D$20,0),ROW(AE30),1,,TEXT(AE$3,"mmmm"))) -> 0 | AH29: 41633 | AI29: =INDIRECT(ADDRESS(MATCH($A$1,Janvier!$D$1:$D$20,0),ROW(AH30),1,,TEXT(AH$3,"mmmm"))) -> 0
A30: 41300 | B30: =INDIRECT(ADDRESS(MATCH($A$1,Janvier!$D$1:$D$20,0),ROW(A31),1,,TEXT(A$3,"mmmm"))) -> 0 | D30: 41331 | E30: =INDIRECT(ADDRESS(MATCH($A$1,Janvier!$D$1:$D$20,0),ROW(D31),1,,TEXT(D$3,"mmmm"))) -> 0 | G30: 41359 | H30: =INDIRECT(ADDRESS(MATCH($A$1,Janvier!$D$1:$D$20,0),ROW(G31),1,,TEXT(G$3,"mmmm"))) -> 0 | J30: 41390 | K30: =INDIRECT(ADDRESS(MATCH($A$1,Janvier!$D$1:$D$20,0),ROW(J31),1,,TEXT(J$3,"mmmm"))) -> 0 | M30: 41420 | N30: =INDIRECT(ADDRESS(MATCH($A$1,Janvier!$D$1:$D$20,0),ROW(M31),1,,TEXT(M$3,"mmmm"))) -> 0 | P30: 41451 | Q30: =INDIRECT(ADDRESS(MATCH($A$1,Janvier!$D$1:$D$20,0),ROW(P31),1,,TEXT(P$3,"mmmm"))) -> 0 | S30: 41481 | T30: =INDIRECT(ADDRESS(MATCH($A$1,Janvier!$D$1:$D$20,0),ROW(S31),1,,TEXT(S$3,"mmmm"))) -> 0 | V30: 41512 | W30: =INDIRECT(ADDRESS(MATCH($A$1,Janvier!$D$1:$D$20,0),ROW(V31),1,,TEXT(V$3,"mmmm"))) -> 0 | Y30: 41543 | Z30: =INDIRECT(ADDRESS(MATCH($A$1,Janvier!$D$1:$D$20,0),ROW(Y31),1,,TEXT(Y$3,"mmmm"))) -> 0 | AB30: 41573 | AC30: =INDIRECT(ADDRESS(MATCH($A$1,Janvier!$D$1:$D$20,0),ROW(AB31),1,,TEXT(AB$3,"mmmm"))) -> 0 | AE30: 41604 | AF30: =INDIRECT(ADDRESS(MATCH($A$1,Janvier!$D$1:$D$20,0),ROW(AE31),1,,TEXT(AE$3,"mmmm"))) -> 0 | AH30: 41634 | AI30: =INDIRECT(ADDRESS(MATCH($A$1,Janvier!$D$1:$D$20,0),ROW(AH31),1,,TEXT(AH$3,"mmmm"))) -> 0
A31: 41301 | B31: =INDIRECT(ADDRESS(MATCH($A$1,Janvier!$D$1:$D$20,0),ROW(A32),1,,TEXT(A$3,"mmmm"))) -> 0 | D31: 41332 | E31: =INDIRECT(ADDRESS(MATCH($A$1,Janvier!$D$1:$D$20,0),ROW(D32),1,,TEXT(D$3,"mmmm"))) -> 0 | G31: 41360 | H31: =INDIRECT(ADDRESS(MATCH($A$1,Janvier!$D$1:$D$20,0),ROW(G32),1,,TEXT(G$3,"mmmm"))) -> 0 | J31: 41391 | K31: =INDIRECT(ADDRESS(MATCH($A$1,Janvier!$D$1:$D$20,0),ROW(J32),1,,TEXT(J$3,"mmmm"))) -> 0 | M31: 41421 | N31: =INDIRECT(ADDRESS(MATCH($A$1,Janvier!$D$1:$D$20,0),ROW(M32),1,,TEXT(M$3,"mmmm"))) -> 0 | P31: 41452 | Q31: =INDIRECT(ADDRESS(MATCH($A$1,Janvier!$D$1:$D$20,0),ROW(P32),1,,TEXT(P$3,"mmmm"))) -> 0 | S31: 41482 | T31: =INDIRECT(ADDRESS(MATCH($A$1,Janvier!$D$1:$D$20,0),ROW(S32),1,,TEXT(S$3,"mmmm"))) -> 0 | V31: 41513 | W31: =INDIRECT(ADDRESS(MATCH($A$1,Janvier!$D$1:$D$20,0),ROW(V32),1,,TEXT(V$3,"mmmm"))) -> 0 | Y31: 41544 | Z31: =INDIRECT(ADDRESS(MATCH($A$1,Janvier!$D$1:$D$20,0),ROW(Y32),1,,TEXT(Y$3,"mmmm"))) -> 0 | AB31: 41574 | AC31: =INDIRECT(ADDRESS(MATCH($A$1,Janvier!$D$1:$D$20,0),ROW(AB32),1,,TEXT(AB$3,"mmmm"))) -> 0 | AE31: 41605 | AF31: =INDIRECT(ADDRESS(MATCH($A$1,Janvier!$D$1:$D$20,0),ROW(AE32),1,,TEXT(AE$3,"mmmm"))) -> 0 | AH31: 41635 | AI31: =INDIRECT(ADDRESS(MATCH($A$1,Janvier!$D$1:$D$20,0),ROW(AH32),1,,TEXT(AH$3,"mmmm"))) -> 0
A32: 41302 | B32: =INDIRECT(ADDRESS(MATCH($A$1,Janvier!$D$1:$D$20,0),ROW(A33),1,,TEXT(A$3,"mmmm"))) -> 0 | D32: =IF(MONTH(DATE(YEAR(An_0),2,29))=2,D31+1,"") ->  | E32: =INDIRECT(ADDRESS(MATCH($A$1,Janvier!$D$1:$D$20,0),ROW(D33),1,,TEXT(D$3,"mmmm"))) -> 0 | G32: 41361 | H32: =INDIRECT(ADDRESS(MATCH($A$1,Janvier!$D$1:$D$20,0),ROW(G33),1,,TEXT(G$3,"mmmm"))) -> 0 | J32: 41392 | K32: =INDIRECT(ADDRESS(MATCH($A$1,Janvier!$D$1:$D$20,0),ROW(J33),1,,TEXT(J$3,"mmmm"))) -> 0 | M32: 41422 | N32: =INDIRECT(ADDRESS(MATCH($A$1,Janvier!$D$1:$D$20,0),ROW(M33),1,,TEXT(M$3,"mmmm"))) -> 0 | P32: 41453 | Q32: =INDIRECT(ADDRESS(MATCH($A$1,Janvier!$D$1:$D$20,0),ROW(P33),1,,TEXT(P$3,"mmmm"))) -> 0 | S32: 41483 | T32: =INDIRECT(ADDRESS(MATCH($A$1,Janvier!$D$1:$D$20,0),ROW(S33),1,,TEXT(S$3,"mmmm"))) -> 0 | V32: 41514 | W32: =INDIRECT(ADDRESS(MATCH($A$1,Janvier!$D$1:$D$20,0),ROW(V33),1,,TEXT(V$3,"mmmm"))) -> 0 | Y32: 41545 | Z32: =INDIRECT(ADDRESS(MATCH($A$1,Janvier!$D$1:$D$20,0),ROW(Y33),1,,TEXT(Y$3,"mmmm"))) -> 0 | AB32: 41575 | AC32: =INDIRECT(ADDRESS(MATCH($A$1,Janvier!$D$1:$D$20,0),ROW(AB33),1,,TEXT(AB$3,"mmmm"))) -> 0 | AE32: 41606 | AF32: =INDIRECT(ADDRESS(MATCH($A$1,Janvier!$D$1:$D$20,0),ROW(AE33),1,,TEXT(AE$3,"mmmm"))) -> 0 | AH32: 41636 | AI32: =INDIRECT(ADDRESS(MATCH($A$1,Janvier!$D$1:$D$20,0),ROW(AH33),1,,TEXT(AH$3,"mmmm"))) -> 0
A33: 41303 | B33: =INDIRECT(ADDRESS(MATCH($A$1,Janvier!$D$1:$D$20,0),ROW(A34),1,,TEXT(A$3,"mmmm"))) -> 0 | E33: =INDIRECT(ADDRESS(MATCH($A$1,Janvier!$D$1:$D$20,0),ROW(D34),1,,TEXT(D$3,"mmmm"))) -> 0 | G33: 41362 | H33: =INDIRECT(ADDRESS(MATCH($A$1,Janvier!$D$1:$D$20,0),ROW(G34),1,,TEXT(G$3,"mmmm"))) -> 0 | J33: 41393 | K33: =INDIRECT(ADDRESS(MATCH($A$1,Janvier!$D$1:$D$20,0),ROW(J34),1,,TEXT(J$3,"mmmm"))) -> 0 | M33: 41423 | N33: =INDIRECT(ADDRESS(MATCH($A$1,Janvier!$D$1:$D$20,0),ROW(M34),1,,TEXT(M$3,"mmmm"))) -> 0 | P33: 41454 | Q33: =INDIRECT(ADDRESS(MATCH($A$1,Janvier!$D$1:$D$20,0),ROW(P34),1,,TEXT(P$3,"mmmm"))) -> 0 | S33: 41484 | T33: =INDIRECT(ADDRESS(MATCH($A$1,Janvier!$D$1:$D$20,0),ROW(S34),1,,TEXT(S$3,"mmmm"))) -> 0 | V33: 41515 | W33: =INDIRECT(ADDRESS(MATCH($A$1,Janvier!$D$1:$D$20,0),ROW(V34),1,,TEXT(V$3,"mmmm"))) -> 0 | Y33: 41546 | Z33: =INDIRECT(ADDRESS(MATCH($A$1,Janvier!$D$1:$D$20,0),ROW(Y34),1,,TEXT(Y$3,"mmmm"))) -> 0 | AB33: 41576 | AC33: =INDIRECT(ADDRESS(MATCH($A$1,Janvier!$D$1:$D$20,0),ROW(AB34),1,,TEXT(AB$3,"mmmm"))) -> 0 | AE33: 41607 | AF33: =INDIRECT(ADDRESS(MATCH($A$1,Janvier!$D$1:$D$20,0),ROW(AE34),1,,TEXT(AE$3,"mmmm"))) -> 0 | AH33: 41637 | AI33: =INDIRECT(ADDRESS(MATCH($A$1,Janvier!$D$1:$D$20,0),ROW(AH34),1,,TEXT(AH$3,"mmmm"))) -> 0
A34: 41304 | B34: =INDIRECT(ADDRESS(MATCH($A$1,Janvier!$D$1:$D$20,0),ROW(A35),1,,TEXT(A$3,"mmmm"))) -> 0 | E34: =INDIRECT(ADDRESS(MATCH($A$1,Janvier!$D$1:$D$20,0),ROW(D35),1,,TEXT(D$3,"mmmm"))) -> 0 | G34: 41363 | H34: =INDIRECT(ADDRESS(MATCH($A$1,Janvier!$D$1:$D$20,0),ROW(G35),1,,TEXT(G$3,"mmmm"))) -> 0 | K34: =INDIRECT(ADDRESS(MATCH($A$1,Janvier!$D$1:$D$20,0),ROW(J35),1,,TEXT(J$3,"mmmm"))) -> 0 | M34: 41424 | N34: =INDIRECT(ADDRESS(MATCH($A$1,Janvier!$D$1:$D$20,0),ROW(M35),1,,TEXT(M$3,"mmmm"))) -> 0 | Q34: =INDIRECT(ADDRESS(MATCH($A$1,Janvier!$D$1:$D$20,0),ROW(P35),1,,TEXT(P$3,"mmmm"))) -> 0 | S34: 41485 | T34: =INDIRECT(ADDRESS(MATCH($A$1,Janvier!$D$1:$D$20,0),ROW(S35),1,,TEXT(S$3,"mmmm"))) -> 0 | V34: 41516 | W34: =INDIRECT(ADDRESS(MATCH($A$1,Janvier!$D$1:$D$20,0),ROW(V35),1,,TEXT(V$3,"mmmm"))) -> 0 | Z34: =INDIRECT(ADDRESS(MATCH($A$1,Janvier!$D$1:$D$20,0),ROW(Y35),1,,TEXT(Y$3,"mmmm"))) -> 0 | AB34: 41577 | AC34: =INDIRECT(ADDRESS(MATCH($A$1,Janvier!$D$1:$D$20,0),ROW(AB35),1,,TEXT(AB$3,"mmmm"))) -> 0 | AF34: =INDIRECT(ADDRESS(MATCH($A$1,Janvier!$D$1:$D$20,0),ROW(AE35),1,,TEXT(AE$3,"mmmm"))) -> 0 | AH34: 41638 | AI34: =INDIRECT(ADDRESS(MATCH($A$1,Janvier!$D$1:$D$20,0),ROW(AH35),1,,TEXT(AH$3,"mmmm"))) -> 0
A36: SYNTHESE ANNUELLE | AK36: Index | AL36: Libellé | AM36: N° Inter/libellé | AN36: Engin | AO36: Début | AP36: Fin | AQ36: Total
A38: =A4 -> 41274 | D38: =D4 -> 41305 | G38: =G4 -> 41333 | J38: =J4 -> 41364 | M38: =M4 -> 41394 | P38: =P4 -> 41425 | S38: =S4 -> 41455 | V38: =V4 -> 41486 | Y38: =Y4 -> 41517 | AB38: =AB4 -> 41547 | AE38: =AE4 -> 41578 | AH38: =AH4 -> 41608
A39: =Paramètres!$C$43 -> J | B39: =COUNTIF(B$4:B$34,TyJ) -> 0 | D39: =A39 -> J | E39: =COUNTIF(E$4:E$34,Paramètres!$C43)+COUNTIF(E$4:E$34,"Cdg") -> 0 | G39: =D39 -> J | H39: =COUNTIF(H$4:H$34,Paramètres!$C43)+COUNTIF(H$4:H$34,"Cdg") -> 0 | J39: =G39 -> J | K39: =COUNTIF(K$4:K$34,Paramètres!$C43)+COUNTIF(K$4:K$34,"Cdg") -> 0 | M39: =J39 -> J | N39: =COUNTIF(N$4:N$34,Paramètres!$C43)+COUNTIF(N$4:N$34,"Cdg") -> 0 | P39: =M39 -> J | Q39: =COUNTIF(Q$4:Q$34,Paramètres!$C43)+COUNTIF(Q$4:Q$34,"Cdg") -> 0 | S39: =P39 -> J | T39: =COUNTIF(T$4:T$34,Paramètres!$C43)+COUNTIF(T$4:T$34,"Cdg") -> 0 | V39: =S39 -> J | W39: =COUNTIF(W$4:W$34,Paramètres!$C43)+COUNTIF(W$4:W$34,"Cdg") -> 0 | Y39: =V39 -> J | Z39: =COUNTIF(Z$4:Z$34,Paramètres!$C43)+COUNTIF(Z$4:Z$34,"Cdg") -> 0 | AB39: =Y39 -> J | AC39: =COUNTIF(AC$4:AC$34,Paramètres!$C43)+COUNTIF(AC$4:AC$34,"Cdg") -> 0 | AE39: =AB39 -> J | AF39: =COUNTIF(AF$4:AF$34,Paramètres!$C43)+COUNTIF(AF$4:AF$34,"Cdg") -> 0 | AH39: =AE39 -> J | AI39: =COUNTIF(AI$4:AI$34,Paramètres!$C43)+COUNTIF(AI$4:AI$34,"Cdg") -> 0
A40: =Paramètres!$C$44 -> Cdg | B40: =COUNTIF(B$4:B$34,TyCdg) -> 0 | D40: =A40 -> Cdg | E40: =COUNTIF(E$4:E$34,"Cdg") -> 0 | G40: =D40 -> Cdg | H40: =COUNTIF(H$4:H$34,"Cdg") -> 0 | J40: =G40 -> Cdg | K40: =COUNTIF(K$4:K$34,"Cdg") -> 0 | M40: =J40 -> Cdg | N40: =COUNTIF(N$4:N$34,"Cdg") -> 0 | P40: =M40 -> Cdg | Q40: =COUNTIF(Q$4:Q$34,"Cdg") -> 0 | S40: =P40 -> Cdg | T40: =COUNTIF(T$4:T$34,"Cdg") -> 0 | V40: =S40 -> Cdg | W40: =COUNTIF(W$4:W$34,"Cdg") -> 0 | Y40: =V40 -> Cdg | Z40: =COUNTIF(Z$4:Z$34,"Cdg") -> 0 | AB40: =Y40 -> Cdg | AC40: =COUNTIF(AC$4:AC$34,"Cdg") -> 0 | AE40: =AB40 -> Cdg | AF40: =COUNTIF(AF$4:AF$34,"Cdg") -> 0 | AH40: =AE40 -> Cdg | AI40: =COUNTIF(AI$4:AI$34,"Cdg") -> 0
A41: =Paramètres!$C$45 -> I | B41: =COUNTIF(B$4:B$34,Paramètres!$C45) -> 0 | D41: =A41 -> I | E41: =COUNTIF(E$4:E$34,Paramètres!$C45) -> 0 | G41: =D41 -> I | H41: =COUNTIF(H$4:H$34,Paramètres!$C45) -> 0 | J41: =G41 -> I | K41: =COUNTIF(K$4:K$34,Paramètres!$C45) -> 0 | M41: =J41 -> I | N41: =COUNTIF(N$4:N$34,Paramètres!$C45) -> 0 | P41: =M41 -> I | Q41: =COUNTIF(Q$4:Q$34,Paramètres!$C45) -> 0 | S41: =P41 -> I | T41: =COUNTIF(T$4:T$34,Paramètres!$C45) -> 0 | V41: =S41 -> I | W41: =COUNTIF(W$4:W$34,Paramètres!$C45) -> 0 | Y41: =V41 -> I | Z41: =COUNTIF(Z$4:Z$34,Paramètres!$C45) -> 0 | AB41: =Y41 -> I | AC41: =COUNTIF(AC$4:AC$34,Paramètres!$C45) -> 0 | AE41: =AB41 -> I | AF41: =COUNTIF(AF$4:AF$34,Paramètres!$C45) -> 0 | AH41: =AE41 -> I | AI41: =COUNTIF(AI$4:AI$34,Paramètres!$C45) -> 0
A42: Goc | B42: =COUNTIF(B$4:B$34,Paramètres!$C58) -> 0 | D42: =A42 -> Goc | E42: =COUNTIF(E$4:E$34,Paramètres!$C58) -> 0 | G42: =D42 -> Goc | H42: =COUNTIF(H$4:H$34,Paramètres!$C58) -> 0 | J42: =G42 -> Goc | K42: =COUNTIF(K$4:K$34,Paramètres!$C58) -> 0 | M42: =J42 -> Goc | N42: =COUNTIF(N$4:N$34,Paramètres!$C58) -> 0 | P42: =M42 -> Goc | Q42: =COUNTIF(Q$4:Q$34,Paramètres!$C58) -> 0 | S42: =P42 -> Goc | T42: =COUNTIF(T$4:T$34,Paramètres!$C58) -> 0 | V42: =S42 -> Goc | W42: =COUNTIF(W$4:W$34,Paramètres!$C58) -> 0 | Y42: =V42 -> Goc | Z42: =COUNTIF(Z$4:Z$34,Paramètres!$C58) -> 0 | AB42: =Y42 -> Goc | AC42: =COUNTIF(AC$4:AC$34,Paramètres!$C58) -> 0 | AE42: =AB42 -> Goc | AF42: =COUNTIF(AF$4:AF$34,Paramètres!$C58) -> 0 | AH42: =AE42 -> Goc | AI42: =COUNTIF(AI$4:AI$34,Paramètres!$C58) -> 0
A43: =Paramètres!$C$46 -> Fs | B43: =COUNTIF(B$4:B$34,Paramètres!$C46) -> 0 | D43: =A43 -> Fs | E43: =COUNTIF(E$4:E$34,Paramètres!$C46) -> 0 | G43: =D43 -> Fs | H43: =COUNTIF(H$4:H$34,Paramètres!$C46) -> 0 | J43: =G43 -> Fs | K43: =COUNTIF(K$4:K$34,Paramètres!$C46) -> 0 | M43: =J43 -> Fs | N43: =COUNTIF(N$4:N$34,Paramètres!$C46) -> 0 | P43: =M43 -> Fs | Q43: =COUNTIF(Q$4:Q$34,Paramètres!$C46) -> 0 | S43: =P43 -> Fs | T43: =COUNTIF(T$4:T$34,Paramètres!$C46) -> 0 | V43: =S43 -> Fs | W43: =COUNTIF(W$4:W$34,Paramètres!$C46) -> 0 | Y43: =V43 -> Fs | Z43: =COUNTIF(Z$4:Z$34,Paramètres!$C46) -> 0 | AB43: =Y43 -> Fs | AC43: =COUNTIF(AC$4:AC$34,Paramètres!$C46) -> 0 | AE43: =AB43 -> Fs | AF43: =COUNTIF(AF$4:AF$34,Paramètres!$C46) -> 0 | AH43: =AE43 -> Fs | AI43: =COUNTIF(AI$4:AI$34,Paramètres!$C46) -> 0
A44: =Paramètres!$C$47 -> Ff | B44: =COUNTIF(B$4:B$34,Paramètres!$C47) -> 0 | D44: Ff | E44: =COUNTIF(E$4:E$34,Paramètres!$C47) -> 0 | G44: Ff | H44: =COUNTIF(H$4:H$34,Paramètres!$C47) -> 0 | J44: Ff | K44: =COUNTIF(K$4:K$34,Paramètres!$C47) -> 0 | M44: Ff | N44: =COUNTIF(N$4:N$34,Paramètres!$C47) -> 0 | P44: Ff | Q44: =COUNTIF(Q$4:Q$34,Paramètres!$C47) -> 0 | S44: Ff | T44: =COUNTIF(T$4:T$34,Paramètres!$C47) -> 0 | V44: Ff | W44: =COUNTIF(W$4:W$34,Paramètres!$C47) -> 0 | Y44: Ff | Z44: =COUNTIF(Z$4:Z$34,Paramètres!$C47) -> 0 | AB44: Ff | AC44: =COUNTIF(AC$4:AC$34,Paramètres!$C47) -> 0 | AE44: Ff | AF44: =COUNTIF(AF$4:AF$34,Paramètres!$C47) -> 0 | AH44: Ff | AI44: =COUNTIF(AI$4:AI$34,Paramètres!$C47) -> 0
A45: =Paramètres!$C$48 -> eSD | B45: =COUNTIF(B$4:B$34,Paramètres!$C48) -> 0 | D45: eSD | E45: =COUNTIF(E$4:E$34,Paramètres!$C48) -> 0 | G45: eSD | H45: =COUNTIF(H$4:H$34,Paramètres!$C48) -> 0 | J45: eSD | K45: =COUNTIF(K$4:K$34,Paramètres!$C48) -> 0 | M45: eSD | N45: =COUNTIF(N$4:N$34,Paramètres!$C48) -> 0 | P45: eSD | Q45: =COUNTIF(Q$4:Q$34,Paramètres!$C48) -> 0 | S45: eSD | T45: =COUNTIF(T$4:T$34,Paramètres!$C48) -> 0 | V45: eSD | W45: =COUNTIF(W$4:W$34,Paramètres!$C48) -> 0 | Y45: eSD | Z45: =COUNTIF(Z$4:Z$34,Paramètres!$C48) -> 0 | AB45: eSD | AC45: =COUNTIF(AC$4:AC$34,Paramètres!$C48) -> 0 | AE45: eSD | AF45: =COUNTIF(AF$4:AF$34,Paramètres!$C48) -> 0 | AH45: eSD | AI45: =COUNTIF(AI$4:AI$34,Paramètres!$C48) -> 0
A46: =Paramètres!$C$49 -> ePI | B46: =COUNTIF(B$4:B$34,Paramètres!$C49) -> 0 | D46: ePI | E46: =COUNTIF(E$4:E$34,Paramètres!$C49) -> 0 | G46: ePI | H46: =COUNTIF(H$4:H$34,Paramètres!$C49) -> 0 | J46: ePI | K46: =COUNTIF(K$4:K$34,Paramètres!$C49) -> 0 | M46: ePI | N46: =COUNTIF(N$4:N$34,Paramètres!$C49) -> 0 | P46: ePI | Q46: =COUNTIF(Q$4:Q$34,Paramètres!$C49) -> 0 | S46: ePI | T46: =COUNTIF(T$4:T$34,Paramètres!$C49) -> 0 | V46: ePI | W46: =COUNTIF(W$4:W$34,Paramètres!$C49) -> 0 | Y46: ePI | Z46: =COUNTIF(Z$4:Z$34,Paramètres!$C49) -> 0 | AB46: ePI | AC46: =COUNTIF(AC$4:AC$34,Paramètres!$C49) -> 0 | AE46: ePI | AF46: =COUNTIF(AF$4:AF$34,Paramètres!$C49) -> 0 | AH46: ePI | AI46: =COUNTIF(AI$4:AI$34,Paramètres!$C49) -> 0
A47: =Paramètres!$C$50 -> eSA | B47: =COUNTIF(B$4:B$34,Paramètres!$C50) -> 0 | D47: =A47 -> eSA | E47: =COUNTIF(E$4:E$34,Paramètres!$C50) -> 0 | G47: =D47 -> eSA | H47: =COUNTIF(H$4:H$34,Paramètres!$C50) -> 0 | J47: =G47 -> eSA | K47: =COUNTIF(K$4:K$34,Paramètres!$C50) -> 0 | M47: =J47 -> eSA | N47: =COUNTIF(N$4:N$34,Paramètres!$C50) -> 0 | P47: =M47 -> eSA | Q47: =COUNTIF(Q$4:Q$34,Paramètres!$C50) -> 0 | S47: =P47 -> eSA | T47: =COUNTIF(T$4:T$34,Paramètres!$C50) -> 0 | V47: =S47 -> eSA | W47: =COUNTIF(W$4:W$34,Paramètres!$C50) -> 0 | Y47: =V47 -> eSA | Z47: =COUNTIF(Z$4:Z$34,Paramètres!$C50) -> 0 | AB47: =Y47 -> eSA | AC47: =COUNTIF(AC$4:AC$34,Paramètres!$C50) -> 0 | AE47: =AB47 -> eSA | AF47: =COUNTIF(AF$4:AF$34,Paramètres!$C50) -> 0 | AH47: =AE47 -> eSA | AI47: =COUNTIF(AI$4:AI$34,Paramètres!$C50) -> 0
A48: eSE | B48: =COUNTIF(B$4:B$34,Paramètres!$C51) -> 0 | D48: =A48 -> eSE | E48: =COUNTIF(E$4:E$34,Paramètres!$C51) -> 0 | G48: =D48 -> eSE | H48: =COUNTIF(H$4:H$34,Paramètres!$C51) -> 0 | J48: =G48 -> eSE | K48: =COUNTIF(K$4:K$34,Paramètres!$C51) -> 0 | M48: =J48 -> eSE | N48: =COUNTIF(N$4:N$34,Paramètres!$C51) -> 0 | P48: =M48 -> eSE | Q48: =COUNTIF(Q$4:Q$34,Paramètres!$C51) -> 0 | S48: =P48 -> eSE | T48: =COUNTIF(T$4:T$34,Paramètres!$C51) -> 0 | V48: =S48 -> eSE | W48: =COUNTIF(W$4:W$34,Paramètres!$C51) -> 0 | Y48: =V48 -> eSE | Z48: =COUNTIF(Z$4:Z$34,Paramètres!$C51) -> 0 | AB48: =Y48 -> eSE | AC48: =COUNTIF(AC$4:AC$34,Paramètres!$C51) -> 0 | AE48: =AB48 -> eSE | AF48: =COUNTIF(AF$4:AF$34,Paramètres!$C51) -> 0 | AH48: =AE48 -> eSE | AI48: =COUNTIF(AI$4:AI$34,Paramètres!$C51) -> 0
A49: eCY | B49: =COUNTIF(B$4:B$34,Paramètres!$C52) -> 0 | D49: eCY | E49: =COUNTIF(E$4:E$34,Paramètres!$C52) -> 0 | G49: eCY | H49: =COUNTIF(H$4:H$34,Paramètres!$C52) -> 0 | J49: eCY | K49: =COUNTIF(K$4:K$34,Paramètres!$C52) -> 0 | M49: eCY | N49: =COUNTIF(N$4:N$34,Paramètres!$C52) -> 0 | P49: eCY | Q49: =COUNTIF(Q$4:Q$34,Paramètres!$C52) -> 0 | S49: eCY | T49: =COUNTIF(T$4:T$34,Paramètres!$C52) -> 0 | V49: eCY | W49: =COUNTIF(W$4:W$34,Paramètres!$C52) -> 0 | Y49: eCY | Z49: =COUNTIF(Z$4:Z$34,Paramètres!$C52) -> 0 | AB49: eCY | AC49: =COUNTIF(AC$4:AC$34,Paramètres!$C52) -> 0 | AE49: eCY | AF49: =COUNTIF(AF$4:AF$34,Paramètres!$C52) -> 0 | AH49: eCY | AI49: =COUNTIF(AI$4:AI$34,Paramètres!$C52) -> 0
A50: mCY | B50: =COUNTIF(B$4:B$34,Paramètres!$C53) -> 0 | D50: mCY | E50: =COUNTIF(E$4:E$34,Paramètres!$C53) -> 0 | G50: mCY | H50: =COUNTIF(H$4:H$34,Paramètres!$C53) -> 0 | J50: mCY | K50: =COUNTIF(K$4:K$34,Paramètres!$C53) -> 0 | M50: mCY | N50: =COUNTIF(N$4:N$34,Paramètres!$C53) -> 0 | P50: mCY | Q50: =COUNTIF(Q$4:Q$34,Paramètres!$C53) -> 0 | S50: mCY | T50: =COUNTIF(T$4:T$34,Paramètres!$C53) -> 0 | V50: mCY | W50: =COUNTIF(W$4:W$34,Paramètres!$C53) -> 0 | Y50: mCY | Z50: =COUNTIF(Z$4:Z$34,Paramètres!$C53) -> 0 | AB50: mCY | AC50: =COUNTIF(AC$4:AC$34,Paramètres!$C53) -> 0 | AE50: mCY | AF50: =COUNTIF(AF$4:AF$34,Paramètres!$C53) -> 0 | AH50: mCY | AI50: =COUNTIF(AI$4:AI$34,Paramètres!$C53) -> 0
A51: eRC | B51: =COUNTIF(B$4:B$34,Paramètres!$C54) -> 0 | D51: eRC | E51: =COUNTIF(E$4:E$34,Paramètres!$C54) -> 0 | G51: eRC | H51: =COUNTIF(H$4:H$34,Paramètres!$C54) -> 0 | J51: eRC | K51: =COUNTIF(K$4:K$34,Paramètres!$C54) -> 0 | M51: eRC | N51: =COUNTIF(N$4:N$34,Paramètres!$C54) -> 0 | P51: eRC | Q51: =COUNTIF(Q$4:Q$34,Paramètres!$C54) -> 0 | S51: eRC | T51: =COUNTIF(T$4:T$34,Paramètres!$C54) -> 0 | V51: eRC | W51: =COUNTIF(W$4:W$34,Paramètres!$C54) -> 0 | Y51: eRC | Z51: =COUNTIF(Z$4:Z$34,Paramètres!$C54) -> 0 | AB51: eRC | AC51: =COUNTIF(AC$4:AC$34,Paramètres!$C54) -> 0 | AE51: eRC | AF51: =COUNTIF(AF$4:AF$34,Paramètres!$C54) -> 0 | AH51: eRC | AI51: =COUNTIF(AI$4:AI$34,Paramètres!$C54) -> 0
A52: eAN | B52: =COUNTIF(B$4:B$34,Paramètres!$C55) -> 0 | D52: eAN | E52: =COUNTIF(E$4:E$34,Paramètres!$C55) -> 0 | G52: eAN | H52: =COUNTIF(H$4:H$34,Paramètres!$C55) -> 0 | J52: eAN | K52: =COUNTIF(K$4:K$34,Paramètres!$C55) -> 0 | M52: eAN | N52: =COUNTIF(N$4:N$34,Paramètres!$C55) -> 0 | P52: eAN | Q52: =COUNTIF(Q$4:Q$34,Paramètres!$C55) -> 0 | S52: eAN | T52: =COUNTIF(T$4:T$34,Paramètres!$C55) -> 0 | V52: eAN | W52: =COUNTIF(W$4:W$34,Paramètres!$C55) -> 0 | Y52: eAN | Z52: =COUNTIF(Z$4:Z$34,Paramètres!$C55) -> 0 | AB52: eAN | AC52: =COUNTIF(AC$4:AC$34,Paramètres!$C55) -> 0 | AE52: eAN | AF52: =COUNTIF(AF$4:AF$34,Paramètres!$C55) -> 0 | AH52: eAN | AI52: =COUNTIF(AI$4:AI$34,Paramètres!$C55) -> 0
A53: =Paramètres!$C$56 -> Dsy | B53: =COUNTIF(B$4:B$34,Paramètres!$C56) -> 0 | D53: Dsy | E53: =COUNTIF(E$4:E$34,Paramètres!$C56) -> 0 | G53: Dsy | H53: =COUNTIF(H$4:H$34,Paramètres!$C56) -> 0 | J53: Dsy | K53: =COUNTIF(K$4:K$34,Paramètres!$C56) -> 0 | M53: Dsy | N53: =COUNTIF(N$4:N$34,Paramètres!$C56) -> 0 | P53: Dsy | Q53: =COUNTIF(Q$4:Q$34,Paramètres!$C56) -> 0 | S53: Dsy | T53: =COUNTIF(T$4:T$34,Paramètres!$C56) -> 0 | V53: Dsy | W53: =COUNTIF(W$4:W$34,Paramètres!$C56) -> 0 | Y53: Dsy | Z53: =COUNTIF(Z$4:Z$34,Paramètres!$C56) -> 0 | AB53: Dsy | AC53: =COUNTIF(AC$4:AC$34,Paramètres!$C56) -> 0 | AE53: Dsy | AF53: =COUNTIF(AF$4:AF$34,Paramètres!$C56) -> 0 | AH53: Dsy | AI53: =COUNTIF(AI$4:AI$34,Paramètres!$C56) -> 0
A54: =Paramètres!$C$57 -> Asy | B54: =COUNTIF(B$4:B$34,Paramètres!$C57) -> 0 | D54: Asy | E54: =COUNTIF(E$4:E$34,Paramètres!$C57) -> 0 | G54: Asy | H54: =COUNTIF(H$4:H$34,Paramètres!$C57) -> 0 | J54: Asy | K54: =COUNTIF(K$4:K$34,Paramètres!$C57) -> 0 | M54: Asy | N54: =COUNTIF(N$4:N$34,Paramètres!$C57) -> 0 | P54: Asy | Q54: =COUNTIF(Q$4:Q$34,Paramètres!$C57) -> 0 | S54: Asy | T54: =COUNTIF(T$4:T$34,Paramètres!$C57) -> 0 | V54: Asy | W54: =COUNTIF(W$4:W$34,Paramètres!$C57) -> 0 | Y54: Asy | Z54: =COUNTIF(Z$4:Z$34,Paramètres!$C57) -> 0 | AB54: Asy | AC54: =COUNTIF(AC$4:AC$34,Paramètres!$C57) -> 0 | AE54: Asy | AF54: =COUNTIF(AF$4:AF$34,Paramètres!$C57) -> 0 | AH54: Asy | AI54: =COUNTIF(AI$4:AI$34,Paramètres!$C57) -> 0
A55: =Paramètres!$C$58 -> Goc | B55: =COUNTIF(B$4:B$34,Paramètres!$C58) -> 0 | D55: Goc | E55: =COUNTIF(E$4:E$34,Paramètres!$C58) -> 0 | G55: Goc | H55: =COUNTIF(H$4:H$34,Paramètres!$C58) -> 0 | J55: Goc | K55: =COUNTIF(K$4:K$34,Paramètres!$C58) -> 0 | M55: Goc | N55: =COUNTIF(N$4:N$34,Paramètres!$C58) -> 0 | P55: Goc | Q55: =COUNTIF(Q$4:Q$34,Paramètres!$C58) -> 0 | S55: Goc | T55: =COUNTIF(T$4:T$34,Paramètres!$C58) -> 0 | V55: Goc | W55: =COUNTIF(W$4:W$34,Paramètres!$C58) -> 0 | Y55: Goc | Z55: =COUNTIF(Z$4:Z$34,Paramètres!$C58) -> 0 | AB55: Goc | AC55: =COUNTIF(AC$4:AC$34,Paramètres!$C58) -> 0 | AE55: Goc | AF55: =COUNTIF(AF$4:AF$34,Paramètres!$C58) -> 0 | AH55: Goc | AI55: =COUNTIF(AI$4:AI$34,Paramètres!$C58) -> 0
A56: =Paramètres!$C$59 -> Hy | B56: =COUNTIF(B$4:B$34,Paramètres!$C59) -> 0 | D56: Hy | E56: =COUNTIF(E$4:E$34,Paramètres!$C59) -> 0 | G56: Hy | H56: =COUNTIF(H$4:H$34,Paramètres!$C59) -> 0 | J56: Hy | K56: =COUNTIF(K$4:K$34,Paramètres!$C59) -> 0 | M56: Hy | N56: =COUNTIF(N$4:N$34,Paramètres!$C59) -> 0 | P56: Hy | Q56: =COUNTIF(Q$4:Q$34,Paramètres!$C59) -> 0 | S56: Hy | T56: =COUNTIF(T$4:T$34,Paramètres!$C59) -> 0 | V56: Hy | W56: =COUNTIF(W$4:W$34,Paramètres!$C59) -> 0 | Y56: Hy | Z56: =COUNTIF(Z$4:Z$34,Paramètres!$C59) -> 0 | AB56: Hy | AC56: =COUNTIF(AC$4:AC$34,Paramètres!$C59) -> 0 | AE56: Hy | AF56: =COUNTIF(AF$4:AF$34,Paramètres!$C59) -> 0 | AH56: Hy | AI56: =COUNTIF(AI$4:AI$34,Paramètres!$C59) -> 0 | AK56: =IF(AL56<>"",AK55+1,"") ->  | AQ56: =IF(AL56="ConvPerso",-(AP56-AO56),IF(AL56="Formation",AP56-AO56,IF(AL56="autre",AP56-AO56,IF(AL56="Intervention +",AP56-AO56,IF(AL56="Réunion",AP56-AO56,IF(AL56<>0,IF(AND(DAY(AP56)<=DAY(AO56),TIME(HOUR(AO56),MINUTE(AO56),0)<1/24*19,TIME(HOUR(AP56),MINUTE(AP56),0)>1/24*19),TIME(HOUR(AP56),MINUTE(AP56),0)-1/24*19,IF(TIME(HOUR(AO56),MINUTE(AO56),0)<1/24*7,1/24*7-TIME(HOUR(AO56),MINUTE(AO56),0),(DAY(AP56)>DAY(AO56))*(AP56-(DATE(YEAR(AO56),MONTH(AO56),DAY(AO56))+1/24*19)))),"")))))) -> 
A57: =Paramètres!$C$60 -> eEM | B57: =COUNTIF(B$4:B$34,Paramètres!$C60) -> 0 | D57: eEM | E57: =COUNTIF(E$4:E$34,Paramètres!$C60) -> 0 | G57: eEM | H57: =COUNTIF(H$4:H$34,Paramètres!$C60) -> 0 | J57: eEM | K57: =COUNTIF(K$4:K$34,Paramètres!$C60) -> 0 | M57: eEM | N57: =COUNTIF(N$4:N$34,Paramètres!$C60) -> 0 | P57: eEM | Q57: =COUNTIF(Q$4:Q$34,Paramètres!$C60) -> 0 | S57: eEM | T57: =COUNTIF(T$4:T$34,Paramètres!$C60) -> 0 | V57: eEM | W57: =COUNTIF(W$4:W$34,Paramètres!$C60) -> 0 | Y57: eEM | Z57: =COUNTIF(Z$4:Z$34,Paramètres!$C60) -> 0 | AB57: eEM | AC57: =COUNTIF(AC$4:AC$34,Paramètres!$C60) -> 0 | AE57: eEM | AF57: =COUNTIF(AF$4:AF$34,Paramètres!$C60) -> 0 | AH57: eEM | AI57: =COUNTIF(AI$4:AI$34,Paramètres!$C60) -> 0
A58: =Paramètres!$C$61 -> iPA | B58: =COUNTIF(B$4:B$34,Paramètres!$C61) -> 0 | D58: iPA | E58: =COUNTIF(E$4:E$34,Paramètres!$C61) -> 0 | G58: iPA | H58: =COUNTIF(H$4:H$34,Paramètres!$C61) -> 0 | J58: iPA | K58: =COUNTIF(K$4:K$34,Paramètres!$C61) -> 0 | M58: iPA | N58: =COUNTIF(N$4:N$34,Paramètres!$C61) -> 0 | P58: iPA | Q58: =COUNTIF(Q$4:Q$34,Paramètres!$C61) -> 0 | S58: iPA | T58: =COUNTIF(T$4:T$34,Paramètres!$C61) -> 0 | V58: iPA | W58: =COUNTIF(W$4:W$34,Paramètres!$C61) -> 0 | Y58: iPA | Z58: =COUNTIF(Z$4:Z$34,Paramètres!$C61) -> 0 | AB58: iPA | AC58: =COUNTIF(AC$4:AC$34,Paramètres!$C61) -> 0 | AE58: iPA | AF58: =COUNTIF(AF$4:AF$34,Paramètres!$C61) -> 0 | AH58: iPA | AI58: =COUNTIF(AI$4:AI$34,Paramètres!$C61) -> 0
A59: =Paramètres!$C$63 -> Co-1 | B59: =COUNTIF(B$4:B$34,Paramètres!$C63) -> 0 | D59: Co-1 | E59: =COUNTIF(E$4:E$34,Paramètres!$C63) -> 0 | G59: Co-1 | H59: =COUNTIF(H$4:H$34,Paramètres!$C63) -> 0 | J59: Co-1 | K59: =COUNTIF(K$4:K$34,Paramètres!$C63) -> 0 | M59: Co-1 | N59: =COUNTIF(N$4:N$34,Paramètres!$C63) -> 0 | P59: Co-1 | Q59: =COUNTIF(Q$4:Q$34,Paramètres!$C63) -> 0 | S59: Co-1 | T59: =COUNTIF(T$4:T$34,Paramètres!$C63) -> 0 | V59: Co-1 | W59: =COUNTIF(W$4:W$34,Paramètres!$C63) -> 0 | Y59: Co-1 | Z59: =COUNTIF(Z$4:Z$34,Paramètres!$C63) -> 0 | AB59: Co-1 | AC59: =COUNTIF(AC$4:AC$34,Paramètres!$C63) -> 0 | AE59: Co-1 | AF59: =COUNTIF(AF$4:AF$34,Paramètres!$C63) -> 0 | AH59: Co-1 | AI59: =COUNTIF(AI$4:AI$34,Paramètres!$C63) -> 0
A60: Coo | B60: =COUNTIF(B$4:B$34,Paramètres!$C67) -> 0 | D60: =A60 -> Coo | E60: =COUNTIF(E$4:E$34,Paramètres!$C67) -> 0 | G60: =D60 -> Coo | H60: =COUNTIF(H$4:H$34,Paramètres!$C67) -> 0 | J60: =G60 -> Coo | K60: =COUNTIF(K$4:K$34,Paramètres!$C67) -> 0 | M60: =J60 -> Coo | N60: =COUNTIF(N$4:N$34,Paramètres!$C67) -> 0 | P60: =M60 -> Coo | Q60: =COUNTIF(Q$4:Q$34,Paramètres!$C67) -> 0 | S60: =P60 -> Coo | T60: =COUNTIF(T$4:T$34,Paramètres!$C67) -> 0 | V60: =S60 -> Coo | W60: =COUNTIF(W$4:W$34,Paramètres!$C67) -> 0 | Y60: =V60 -> Coo | Z60: =COUNTIF(Z$4:Z$34,Paramètres!$C67) -> 0 | AB60: =Y60 -> Coo | AC60: =COUNTIF(AC$4:AC$34,Paramètres!$C67) -> 0 | AE60: =AB60 -> Coo | AF60: =COUNTIF(AF$4:AF$34,Paramètres!$C67) -> 0 | AH60: =AE60 -> Coo | AI60: =COUNTIF(AI$4:AI$34,Paramètres!$C61) -> 0
A61: =Paramètres!$C$62 -> Co | B61: =COUNTIF(B$4:B$34,Paramètres!$C62) -> 0 | D61: Co | E61: =COUNTIF(E$4:E$34,Paramètres!$C62) -> 0 | G61: Co | H61: =COUNTIF(H$4:H$34,Paramètres!$C62) -> 0 | J61: Co | K61: =COUNTIF(K$4:K$34,Paramètres!$C62) -> 0 | M61: Co | N61: =COUNTIF(N$4:N$34,Paramètres!$C62) -> 0 | P61: Co | Q61: =COUNTIF(Q$4:Q$34,Paramètres!$C62) -> 0 | S61: Co | T61: =COUNTIF(T$4:T$34,Paramètres!$C62) -> 0 | V61: Co | W61: =COUNTIF(W$4:W$34,Paramètres!$C62) -> 0 | Y61: Co | Z61: =COUNTIF(Z$4:Z$34,Paramètres!$C62) -> 0 | AB61: Co | AC61: =COUNTIF(AC$4:AC$34,Paramètres!$C62) -> 0 | AE61: Co | AF61: =COUNTIF(AF$4:AF$34,Paramètres!$C62) -> 0 | AH61: Co | AI61: =COUNTIF(AI$4:AI$34,Paramètres!$C62) -> 0
B64: TEMPS DE TRAVAIL FAIT EN FORMATION ET ENTRAINEMENTS | W64: A faire
B65: Régulation des heures de formation | W65: =Paramètres!F14 -> 1582
B66: Date | J66: Hrs | L66: Date | T66: Hrs | W66: =Paramètres!N14 -> 0
W67: Fait
W68: =CONCATENATE("Report"," ",Paramètres!C1) -> Report 2016 | AH68: =Paramètres!G14 -> 0
W69: Volume de garde | AE69: =B39+E39+H39+K39+N39+Q39+T39+W39+Z39+AC39+AF39+AI39 -> 0 | AH69: =AE69*VtyJ -> 0 | AQ69: =IF(AL69="ConvPerso",-(AP69-AO69),IF(AL69="Formation",AP69-AO69,IF(AL69="autre",AP69-AO69,IF(AL69="Intervention +",AP69-AO69,IF(AL69="Réunion",AP69-AO69,IF(AL69<>0,IF(AND(DAY(AP69)<=DAY(AO69),TIME(HOUR(AO69),MINUTE(AO69),0)<1/24*19,TIME(HOUR(AP69),MINUTE(AP69),0)>1/24*19),TIME(HOUR(AP69),MINUTE(AP69),0)-1/24*19,IF(TIME(HOUR(AO69),MINUTE(AO69),0)<1/24*7,1/24*7-TIME(HOUR(AO69),MINUTE(AO69),0),(DAY(AP69)>DAY(AO69))*(AP69-(DATE(YEAR(AO69),MONTH(AO69),DAY(AO69))+1/24*19)))),"")))))) -> 
W70: Régularisation | AK70: =IF(AL70<>"",AK69+1,"") -> 
W71: Volume Goc | AE71: =SUM(B42,E42,H42,K42,N42,Q42,T42,W42,Z42,AC42,AF42,AI42) -> 0 | AH71: =AE71*Paramètres!$D$58 -> 0
W72: Volume de formation formateur | AE72: =B44+E44+H44+K44+N44+Q44+T44+W44+Z44+AC44+AF44+AI44 -> 0 | AH72: =AE72*VtyFf -> 0
W73: Volume formation stagiaire | AE73: =B43+E43+H43+K43+N43+Q43+T43+W43+Z43+AC43+AF43+AI43 -> 0 | AH73: =AE73*VtyFs -> 0
W74: Volume Instance Paritaire | AE74: =B58+E58+H58+K58+N58+Q58+T58+W58+Z58+AC58+AF58+AI58 -> 0 | AH74: =AE74*VtyiPA -> 0
B75: Entrainement spécialisé | W75: Volume Décharge Syndical | AE75: =(B53+E53+H53+K53+N53+Q53+T53+W53+Z53+AC53+AF53+AI53) -> 0 | AH75: =AE75*VtyDsy -> 0
B76: Date | G76: Hrs | H76: Date | M76: Hrs | P76: Nb Jour(s) | W76: Volume Autorisation Syndicale | AE76: =B54+E54+H54+K54+N54+Q54+T54+W54+Z54+AC54+AF54+AI54 -> 0 | AH76: =AE76*VtyAsy -> 0
P77: eSD | R77: =B45+E45+H45+K45+N45+Q45+T45+W45+Z45+AC45+AF45+AI45 -> 0 | W77: Volume d'intervention en Sup | AH77: =(HOUR(AQ79)*60+MINUTE(AQ79))/60 -> 0
P78: ePI | R78: =B46+E46+H46+K46+N46+Q46+T46+W46+Z46+AC46+AF46+AI46 -> 0 | W78: Volume entraînement | AE78: =SUM(R77:S84) -> 0 | AH78: =SUM(G77:G84,M77:M84) -> 0
P79: eSA | R79: =(B47+E47+H47+K47+N47+Q47+T47+W47+Z47+AC47+AF47+AI47)/2 -> 0 | W79: Volume Hydrant | AE79: =B56+E56+H56+K56+N56+Q56+T56+W56+Z56+AC56+AF56+AI56 -> 0 | AH79: =AE79*VtyHy -> 0 | AL79: Nombre d'intervention | AN79: =72-(COUNTBLANK(AL4:AL78)) -> -2 | AP79: Total | AQ79: =SUM(AQ4:AQ78) -> 0
P80: eSE | R80: 0 | W80: Volume de congés donnés | AH80: =AE80*7 -> 0
P81: eCY | R81: 0 | W81: Volume de congés reçus | AH81: =AE81*7 -> 0
P82: mCY | R82: =(B50+E50+H50+K50+N50+Q50+T50+W50+Z50+AC50+AF50+AI50)/2 -> 0 | W82: Volume de congés reçus pris | AE82: =B60+E60+H60+K60+N60+Q60+T60+W60+Z60+AC60+AF60+AI60 -> 0 | AH82: =AE82*7 -> 0 | AK82: MALADIE – AT – CONGES EXCEPTIONNELLS
P83: eRC | R83: 0 | W83: Volume IHTS | AE83: =B41+E41+H41+K41+N41+Q41+T41+W41+Z41+AC41+AF41+AI41 -> 0 | AK83: N° | AL83: Type | AM83: Début | AN83: Fin | AO83: Nb jours | AP83: Valeur | AQ83: Total hrs
P84: eAN | R84: 0 | W84: Volume de maladie
W85: Volume d'AT
W86: Volume de congés restant N-1 | AE86: =(Paramètres!K14/7)-((B59+E59+H59+K59+N59+Q59+T59+W59+Z59+AC59+AF59+AI59)) -> 0 | AH86: =AE86*7 -> 0
W87: Volume de congés restant | AE87: =(CoAgent1/7)-(B61+E61+H61+K61+N61+Q61+T61+W61+Z61+AC61+AF61+AI61+AE80) -> 27 | AH87: =CoAgent16-((B61+E61+H61+K61+N61+Q61+T61+W61+Z61+AC61+AF61+AI61+AE80)*7) -> 189
W89: Total | AH89: =(AH68+AH69+AH72+AH73+AH74+AH75+AH76+AH77+AH78+AH79+AH84+AH85+AH86+AH70+AH71)-AH87 -> -189
W90: É BILAN (Si -, vous devez des heures) Ê
W91: =AH89 -> -189

Sheet 2 - Untel
A1: =CONCATENATE(Paramètres!D8," ",Paramètres!C8," ",Paramètres!B8) -> Adj Christophe Agent_2 | AK1: Liste des heures de dépassement suite à Intervention
AO2: Date et Heure
A3: =A4 -> 41274 | D3: =D4 -> 41305 | G3: =G4 -> 41333 | J3: =J4 -> 41364 | M3: =M4 -> 41394 | P3: =P4 -> 41425 | S3: =S4 -> 41455 | V3: =V4 -> 41486 | Y3: =Y4 -> 41517 | AB3: =AB4 -> 41547 | AE3: =AE4 -> 41578 | AH3: =AH4 -> 41608 | AK3: Index | AL3: Libellé | AM3: N° Inter/libellé | AN3: Engin | AO3: Début | AP3: Fin | AQ3: Total
A4: =DATE(An_0,1,1) -> 41274 | B4: =INDIRECT(ADDRESS(MATCH($A$1,Janvier!$D$1:$D$20,0),ROW(A5),1,,TEXT(A$3,"mmmm"))) -> 0 | D4: =DATE(An_0,2,1) -> 41305 | E4: =INDIRECT(ADDRESS(MATCH($A$1,Janvier!$D$1:$D$20,0),ROW(D5),1,,TEXT(D$3,"mmmm"))) -> 0 | G4: =DATE(An_0,3,1) -> 41333 | H4: =INDIRECT(ADDRESS(MATCH($A$1,Janvier!$D$1:$D$20,0),ROW(G5),1,,TEXT(G$3,"mmmm"))) -> 0 | J4: =DATE(An_0,4,1) -> 41364 | K4: =INDIRECT(ADDRESS(MATCH($A$1,Janvier!$D$1:$D$20,0),ROW(J5),1,,TEXT(J$3,"mmmm"))) -> 0 | M4: =DATE(An_0,5,1) -> 41394 | N4: =INDIRECT(ADDRESS(MATCH($A$1,Janvier!$D$1:$D$20,0),ROW(M5),1,,TEXT(M$3,"mmmm"))) -> 0 | P4: =DATE(An_0,6,1) -> 41425 | Q4: =INDIRECT(ADDRESS(MATCH($A$1,Janvier!$D$1:$D$20,0),ROW(P5),1,,TEXT(P$3,"mmmm"))) -> 0 | S4: =DATE(An_0,7,1) -> 41455 | T4: =INDIRECT(ADDRESS(MATCH($A$1,Janvier!$D$1:$D$20,0),ROW(S5),1,,TEXT(S$3,"mmmm"))) -> 0 | V4: =DATE(An_0,8,1) -> 41486 | W4: =INDIRECT(ADDRESS(MATCH($A$1,Janvier!$D$1:$D$20,0),ROW(V5),1,,TEXT(V$3,"mmmm"))) -> 0 | Y4: =DATE(An_0,9,1) -> 41517 | Z4: =INDIRECT(ADDRESS(MATCH($A$1,Janvier!$D$1:$D$20,0),ROW(Y5),1,,TEXT(Y$3,"mmmm"))) -> 0 | AB4: =DATE(An_0,10,1) -> 41547 | AC4: =INDIRECT(ADDRESS(MATCH($A$1,Janvier!$D$1:$D$20,0),ROW(AB5),1,,TEXT(AB$3,"mmmm"))) -> 0 | AE4: =DATE(An_0,11,1) -> 41578 | AF4: =INDIRECT(ADDRESS(MATCH($A$1,Janvier!$D$1:$D$20,0),ROW(AE5),1,,TEXT(AE$3,"mmmm"))) -> 0 | AH4: =DATE(An_0,12,1) -> 41608 | AI4: =INDIRECT(ADDRESS(MATCH($A$1,Janvier!$D$1:$D$20,0),ROW(AH5),1,,TEXT(AH$3,"mmmm"))) -> 0 | AK4: =IF(AL4<>"",1,"") ->  | AQ4: =IF(AL4="ConvPerso",-(AP4-AO4),IF(AL4="Formation",AP4-AO4,IF(AL4="autre",AP4-AO4,IF(AL4="Intervention +",AP4-AO4,IF(AL4="Réunion",AP4-AO4,IF(AL4<>0,IF(AND(DAY(AP4)<=DAY(AO4),TIME(HOUR(AO4),MINUTE(AO4),0)<1/24*19,TIME(HOUR(AP4),MINUTE(AP4),0)>1/24*19),TIME(HOUR(AP4),MINUTE(AP4),0)-1/24*19,IF(TIME(HOUR(AO4),MINUTE(AO4),0)<1/24*7,1/24*7-TIME(HOUR(AO4),MINUTE(AO4),0),(DAY(AP4)>DAY(AO4))*(AP4-(DATE(YEAR(AO4),MONTH(AO4),DAY(AO4))+1/24*19)))),"")))))) -> 
A5: =A4+1 -> 41275 | B5: =INDIRECT(ADDRESS(MATCH($A$1,Janvier!$D$1:$D$20,0),ROW(A6),1,,TEXT(A$3,"mmmm"))) -> 0 | D5: =D4+1 -> 41306 | E5: =INDIRECT(ADDRESS(MATCH($A$1,Janvier!$D$1:$D$20,0),ROW(D6),1,,TEXT(D$3,"mmmm"))) -> 0 | G5: =G4+1 -> 41334 | H5: =INDIRECT(ADDRESS(MATCH($A$1,Janvier!$D$1:$D$20,0),ROW(G6),1,,TEXT(G$3,"mmmm"))) -> 0 | J5: =J4+1 -> 41365 | K5: =INDIRECT(ADDRESS(MATCH($A$1,Janvier!$D$1:$D$20,0),ROW(J6),1,,TEXT(J$3,"mmmm"))) -> 0 | M5: =M4+1 -> 41395 | N5: =INDIRECT(ADDRESS(MATCH($A$1,Janvier!$D$1:$D$20,0),ROW(M6),1,,TEXT(M$3,"mmmm"))) -> 0 | P5: =P4+1 -> 41426 | Q5: =INDIRECT(ADDRESS(MATCH($A$1,Janvier!$D$1:$D$20,0),ROW(P6),1,,TEXT(P$3,"mmmm"))) -> 0 | S5: =S4+1 -> 41456 | T5: =INDIRECT(ADDRESS(MATCH($A$1,Janvier!$D$1:$D$20,0),ROW(S6),1,,TEXT(S$3,"mmmm"))) -> 0 | V5: =V4+1 -> 41487 | W5: =INDIRECT(ADDRESS(MATCH($A$1,Janvier!$D$1:$D$20,0),ROW(V6),1,,TEXT(V$3,"mmmm"))) -> 0 | Y5: =Y4+1 -> 41518 | Z5: =INDIRECT(ADDRESS(MATCH($A$1,Janvier!$D$1:$D$20,0),ROW(Y6),1,,TEXT(Y$3,"mmmm"))) -> 0 | AB5: =AB4+1 -> 41548 | AC5: =INDIRECT(ADDRESS(MATCH($A$1,Janvier!$D$1:$D$20,0),ROW(AB6),1,,TEXT(AB$3,"mmmm"))) -> 0 | AE5: =AE4+1 -> 41579 | AF5: =INDIRECT(ADDRESS(MATCH($A$1,Janvier!$D$1:$D$20,0),ROW(AE6),1,,TEXT(AE$3,"mmmm"))) -> 0 | AH5: =AH4+1 -> 41609 | AI5: =INDIRECT(ADDRESS(MATCH($A$1,Janvier!$D$1:$D$20,0),ROW(AH6),1,,TEXT(AH$3,"mmmm"))) -> 0 | AK5: =IF(AL5<>"",AK4+1,"") ->  | AQ5: =IF(AL5="ConvPerso",-(AP5-AO5),IF(AL5="Formation",AP5-AO5,IF(AL5="autre",AP5-AO5,IF(AL5="Intervention +",AP5-AO5,IF(AL5="Réunion",AP5-AO5,IF(AL5<>0,IF(AND(DAY(AP5)<=DAY(AO5),TIME(HOUR(AO5),MINUTE(AO5),0)<1/24*19,TIME(HOUR(AP5),MINUTE(AP5),0)>1/24*19),TIME(HOUR(AP5),MINUTE(AP5),0)-1/24*19,IF(TIME(HOUR(AO5),MINUTE(AO5),0)<1/24*7,1/24*7-TIME(HOUR(AO5),MINUTE(AO5),0),(DAY(AP5)>DAY(AO5))*(AP5-(DATE(YEAR(AO5),MONTH(AO5),DAY(AO5))+1/24*19)))),"")))))) -> 
A6: 41276 | B6: =INDIRECT(ADDRESS(MATCH($A$1,Janvier!$D$1:$D$20,0),ROW(A7),1,,TEXT(A$3,"mmmm"))) -> 0 | D6: 41307 | E6: =INDIRECT(ADDRESS(MATCH($A$1,Janvier!$D$1:$D$20,0),ROW(D7),1,,TEXT(D$3,"mmmm"))) -> 0 | G6: 41335 | H6: =INDIRECT(ADDRESS(MATCH($A$1,Janvier!$D$1:$D$20,0),ROW(G7),1,,TEXT(G$3,"mmmm"))) -> 0 | J6: 41366 | K6: =INDIRECT(ADDRESS(MATCH($A$1,Janvier!$D$1:$D$20,0),ROW(J7),1,,TEXT(J$3,"mmmm"))) -> 0 | M6: 41396 | N6: =INDIRECT(ADDRESS(MATCH($A$1,Janvier!$D$1:$D$20,0),ROW(M7),1,,TEXT(M$3,"mmmm"))) -> 0 | P6: 41427 | Q6: =INDIRECT(ADDRESS(MATCH($A$1,Janvier!$D$1:$D$20,0),ROW(P7),1,,TEXT(P$3,"mmmm"))) -> 0 | S6: 41457 | T6: =INDIRECT(ADDRESS(MATCH($A$1,Janvier!$D$1:$D$20,0),ROW(S7),1,,TEXT(S$3,"mmmm"))) -> 0 | V6: 41488 | W6: =INDIRECT(ADDRESS(MATCH($A$1,Janvier!$D$1:$D$20,0),ROW(V7),1,,TEXT(V$3,"mmmm"))) -> 0 | Y6: 41519 | Z6: =INDIRECT(ADDRESS(MATCH($A$1,Janvier!$D$1:$D$20,0),ROW(Y7),1,,TEXT(Y$3,"mmmm"))) -> 0 | AB6: 41549 | AC6: =INDIRECT(ADDRESS(MATCH($A$1,Janvier!$D$1:$D$20,0),ROW(AB7),1,,TEXT(AB$3,"mmmm"))) -> 0 | AE6: 41580 | AF6: =INDIRECT(ADDRESS(MATCH($A$1,Janvier!$D$1:$D$20,0),ROW(AE7),1,,TEXT(AE$3,"mmmm"))) -> 0 | AH6: 41610 | AI6: =INDIRECT(ADDRESS(MATCH($A$1,Janvier!$D$1:$D$20,0),ROW(AH7),1,,TEXT(AH$3,"mmmm"))) -> 0 | AK6: =IF(AL6<>"",AK5+1,"") -> 
A7: 41277 | B7: =INDIRECT(ADDRESS(MATCH($A$1,Janvier!$D$1:$D$20,0),ROW(A8),1,,TEXT(A$3,"mmmm"))) -> 0 | D7: 41308 | E7: =INDIRECT(ADDRESS(MATCH($A$1,Janvier!$D$1:$D$20,0),ROW(D8),1,,TEXT(D$3,"mmmm"))) -> 0 | G7: 41336 | H7: =INDIRECT(ADDRESS(MATCH($A$1,Janvier!$D$1:$D$20,0),ROW(G8),1,,TEXT(G$3,"mmmm"))) -> 0 | J7: 41367 | K7: =INDIRECT(ADDRESS(MATCH($A$1,Janvier!$D$1:$D$20,0),ROW(J8),1,,TEXT(J$3,"mmmm"))) -> 0 | M7: 41397 | N7: =INDIRECT(ADDRESS(MATCH($A$1,Janvier!$D$1:$D$20,0),ROW(M8),1,,TEXT(M$3,"mmmm"))) -> 0 | P7: 41428 | Q7: =INDIRECT(ADDRESS(MATCH($A$1,Janvier!$D$1:$D$20,0),ROW(P8),1,,TEXT(P$3,"mmmm"))) -> 0 | S7: 41458 | T7: =INDIRECT(ADDRESS(MATCH($A$1,Janvier!$D$1:$D$20,0),ROW(S8),1,,TEXT(S$3,"mmmm"))) -> 0 | V7: 41489 | W7: =INDIRECT(ADDRESS(MATCH($A$1,Janvier!$D$1:$D$20,0),ROW(V8),1,,TEXT(V$3,"mmmm"))) -> 0 | Y7: 41520 | Z7: =INDIRECT(ADDRESS(MATCH($A$1,Janvier!$D$1:$D$20,0),ROW(Y8),1,,TEXT(Y$3,"mmmm"))) -> 0 | AB7: 41550 | AC7: =INDIRECT(ADDRESS(MATCH($A$1,Janvier!$D$1:$D$20,0),ROW(AB8),1,,TEXT(AB$3,"mmmm"))) -> 0 | AE7: 41581 | AF7: =INDIRECT(ADDRESS(MATCH($A$1,Janvier!$D$1:$D$20,0),ROW(AE8),1,,TEXT(AE$3,"mmmm"))) -> 0 | AH7: 41611 | AI7: =INDIRECT(ADDRESS(MATCH($A$1,Janvier!$D$1:$D$20,0),ROW(AH8),1,,TEXT(AH$3,"mmmm"))) -> 0
A8: 41278 | B8: =INDIRECT(ADDRESS(MATCH($A$1,Janvier!$D$1:$D$20,0),ROW(A9),1,,TEXT(A$3,"mmmm"))) -> 0 | D8: 41309 | E8: =INDIRECT(ADDRESS(MATCH($A$1,Janvier!$D$1:$D$20,0),ROW(D9),1,,TEXT(D$3,"mmmm"))) -> 0 | G8: 41337 | H8: =INDIRECT(ADDRESS(MATCH($A$1,Janvier!$D$1:$D$20,0),ROW(G9),1,,TEXT(G$3,"mmmm"))) -> 0 | J8: 41368 | K8: =INDIRECT(ADDRESS(MATCH($A$1,Janvier!$D$1:$D$20,0),ROW(J9),1,,TEXT(J$3,"mmmm"))) -> 0 | M8: 41398 | N8: =INDIRECT(ADDRESS(MATCH($A$1,Janvier!$D$1:$D$20,0),ROW(M9),1,,TEXT(M$3,"mmmm"))) -> 0 | P8: 41429 | Q8: =INDIRECT(ADDRESS(MATCH($A$1,Janvier!$D$1:$D$20,0),ROW(P9),1,,TEXT(P$3,"mmmm"))) -> 0 | S8: 41459 | T8: =INDIRECT(ADDRESS(MATCH($A$1,Janvier!$D$1:$D$20,0),ROW(S9),1,,TEXT(S$3,"mmmm"))) -> 0 | V8: 41490 | W8: =INDIRECT(ADDRESS(MATCH($A$1,Janvier!$D$1:$D$20,0),ROW(V9),1,,TEXT(V$3,"mmmm"))) -> 0 | Y8: 41521 | Z8: =INDIRECT(ADDRESS(MATCH($A$1,Janvier!$D$1:$D$20,0),ROW(Y9),1,,TEXT(Y$3,"mmmm"))) -> 0 | AB8: 41551 | AC8: =INDIRECT(ADDRESS(MATCH($A$1,Janvier!$D$1:$D$20,0),ROW(AB9),1,,TEXT(AB$3,"mmmm"))) -> 0 | AE8: 41582 | AF8: =INDIRECT(ADDRESS(MATCH($A$1,Janvier!$D$1:$D$20,0),ROW(AE9),1,,TEXT(AE$3,"mmmm"))) -> 0 | AH8: 41612 | AI8: =INDIRECT(ADDRESS(MATCH($A$1,Janvier!$D$1:$D$20,0),ROW(AH9),1,,TEXT(AH$3,"mmmm"))) -> 0
A9: 41279 | B9: =INDIRECT(ADDRESS(MATCH($A$1,Janvier!$D$1:$D$20,0),ROW(A10),1,,TEXT(A$3,"mmmm"))) -> 0 | D9: 41310 | E9: =INDIRECT(ADDRESS(MATCH($A$1,Janvier!$D$1:$D$20,0),ROW(D10),1,,TEXT(D$3,"mmmm"))) -> 0 | G9: 41338 | H9: =INDIRECT(ADDRESS(MATCH($A$1,Janvier!$D$1:$D$20,0),ROW(G10),1,,TEXT(G$3,"mmmm"))) -> 0 | J9: 41369 | K9: =INDIRECT(ADDRESS(MATCH($A$1,Janvier!$D$1:$D$20,0),ROW(J10),1,,TEXT(J$3,"mmmm"))) -> 0 | M9: 41399 | N9: =INDIRECT(ADDRESS(MATCH($A$1,Janvier!$D$1:$D$20,0),ROW(M10),1,,TEXT(M$3,"mmmm"))) -> 0 | P9: 41430 | Q9: =INDIRECT(ADDRESS(MATCH($A$1,Janvier!$D$1:$D$20,0),ROW(P10),1,,TEXT(P$3,"mmmm"))) -> 0 | S9: 41460 | T9: =INDIRECT(ADDRESS(MATCH($A$1,Janvier!$D$1:$D$20,0),ROW(S10),1,,TEXT(S$3,"mmmm"))) -> 0 | V9: 41491 | W9: =INDIRECT(ADDRESS(MATCH($A$1,Janvier!$D$1:$D$20,0),ROW(V10),1,,TEXT(V$3,"mmmm"))) -> 0 | Y9: 41522 | Z9: =INDIRECT(ADDRESS(MATCH($A$1,Janvier!$D$1:$D$20,0),ROW(Y10),1,,TEXT(Y$3,"mmmm"))) -> 0 | AB9: 41552 | AC9: =INDIRECT(ADDRESS(MATCH($A$1,Janvier!$D$1:$D$20,0),ROW(AB10),1,,TEXT(AB$3,"mmmm"))) -> 0 | AE9: 41583 | AF9: =INDIRECT(ADDRESS(MATCH($A$1,Janvier!$D$1:$D$20,0),ROW(AE10),1,,TEXT(AE$3,"mmmm"))) -> 0 | AH9: 41613 | AI9: =INDIRECT(ADDRESS(MATCH($A$1,Janvier!$D$1:$D$20,0),ROW(AH10),1,,TEXT(AH$3,"mmmm"))) -> 0
A10: 41280 | B10: =INDIRECT(ADDRESS(MATCH($A$1,Janvier!$D$1:$D$20,0),ROW(A11),1,,TEXT(A$3,"mmmm"))) -> 0 | D10: 41311 | E10: =INDIRECT(ADDRESS(MATCH($A$1,Janvier!$D$1:$D$20,0),ROW(D11),1,,TEXT(D$3,"mmmm"))) -> 0 | G10: 41339 | H10: =INDIRECT(ADDRESS(MATCH($A$1,Janvier!$D$1:$D$20,0),ROW(G11),1,,TEXT(G$3,"mmmm"))) -> 0 | J10: 41370 | K10: =INDIRECT(ADDRESS(MATCH($A$1,Janvier!$D$1:$D$20,0),ROW(J11),1,,TEXT(J$3,"mmmm"))) -> 0 | M10: 41400 | N10: =INDIRECT(ADDRESS(MATCH($A$1,Janvier!$D$1:$D$20,0),ROW(M11),1,,TEXT(M$3,"mmmm"))) -> 0 | P10: 41431 | Q10: =INDIRECT(ADDRESS(MATCH($A$1,Janvier!$D$1:$D$20,0),ROW(P11),1,,TEXT(P$3,"mmmm"))) -> 0 | S10: 41461 | T10: =INDIRECT(ADDRESS(MATCH($A$1,Janvier!$D$1:$D$20,0),ROW(S11),1,,TEXT(S$3,"mmmm"))) -> 0 | V10: 41492 | W10: =INDIRECT(ADDRESS(MATCH($A$1,Janvier!$D$1:$D$20,0),ROW(V11),1,,TEXT(V$3,"mmmm"))) -> 0 | Y10: 41523 | Z10: =INDIRECT(ADDRESS(MATCH($A$1,Janvier!$D$1:$D$20,0),ROW(Y11),1,,TEXT(Y$3,"mmmm"))) -> 0 | AB10: 41553 | AC10: =INDIRECT(ADDRESS(MATCH($A$1,Janvier!$D$1:$D$20,0),ROW(AB11),1,,TEXT(AB$3,"mmmm"))) -> 0 | AE10: 41584 | AF10: =INDIRECT(ADDRESS(MATCH($A$1,Janvier!$D$1:$D$20,0),ROW(AE11),1,,TEXT(AE$3,"mmmm"))) -> 0 | AH10: 41614 | AI10: =INDIRECT(ADDRESS(MATCH($A$1,Janvier!$D$1:$D$20,0),ROW(AH11),1,,TEXT(AH$3,"mmmm"))) -> 0
A11: 41281 | B11: =INDIRECT(ADDRESS(MATCH($A$1,Janvier!$D$1:$D$20,0),ROW(A12),1,,TEXT(A$3,"mmmm"))) -> 0 | D11: 41312 | E11: =INDIRECT(ADDRESS(MATCH($A$1,Janvier!$D$1:$D$20,0),ROW(D12),1,,TEXT(D$3,"mmmm"))) -> 0 | G11: 41340 | H11: =INDIRECT(ADDRESS(MATCH($A$1,Janvier!$D$1:$D$20,0),ROW(G12),1,,TEXT(G$3,"mmmm"))) -> 0 | J11: 41371 | K11: =INDIRECT(ADDRESS(MATCH($A$1,Janvier!$D$1:$D$20,0),ROW(J12),1,,TEXT(J$3,"mmmm"))) -> 0 | M11: 41401 | N11: =INDIRECT(ADDRESS(MATCH($A$1,Janvier!$D$1:$D$20,0),ROW(M12),1,,TEXT(M$3,"mmmm"))) -> 0 | P11: 41432 | Q11: =INDIRECT(ADDRESS(MATCH($A$1,Janvier!$D$1:$D$20,0),ROW(P12),1,,TEXT(P$3,"mmmm"))) -> 0 | S11: 41462 | T11: =INDIRECT(ADDRESS(MATCH($A$1,Janvier!$D$1:$D$20,0),ROW(S12),1,,TEXT(S$3,"mmmm"))) -> 0 | V11: 41493 | W11: =INDIRECT(ADDRESS(MATCH($A$1,Janvier!$D$1:$D$20,0),ROW(V12),1,,TEXT(V$3,"mmmm"))) -> 0 | Y11: 41524 | Z11: =INDIRECT(ADDRESS(MATCH($A$1,Janvier!$D$1:$D$20,0),ROW(Y12),1,,TEXT(Y$3,"mmmm"))) -> 0 | AB11: 41554 | AC11: =INDIRECT(ADDRESS(MATCH($A$1,Janvier!$D$1:$D$20,0),ROW(AB12),1,,TEXT(AB$3,"mmmm"))) -> 0 | AE11: 41585 | AF11: =INDIRECT(ADDRESS(MATCH($A$1,Janvier!$D$1:$D$20,0),ROW(AE12),1,,TEXT(AE$3,"mmmm"))) -> 0 | AH11: 41615 | AI11: =INDIRECT(ADDRESS(MATCH($A$1,Janvier!$D$1:$D$20,0),ROW(AH12),1,,TEXT(AH$3,"mmmm"))) -> 0
A12: 41282 | B12: =INDIRECT(ADDRESS(MATCH($A$1,Janvier!$D$1:$D$20,0),ROW(A13),1,,TEXT(A$3,"mmmm"))) -> 0 | D12: 41313 | E12: =INDIRECT(ADDRESS(MATCH($A$1,Janvier!$D$1:$D$20,0),ROW(D13),1,,TEXT(D$3,"mmmm"))) -> 0 | G12: 41341 | H12: =INDIRECT(ADDRESS(MATCH($A$1,Janvier!$D$1:$D$20,0),ROW(G13),1,,TEXT(G$3,"mmmm"))) -> 0 | J12: 41372 | K12: =INDIRECT(ADDRESS(MATCH($A$1,Janvier!$D$1:$D$20,0),ROW(J13),1,,TEXT(J$3,"mmmm"))) -> 0 | M12: 41402 | N12: =INDIRECT(ADDRESS(MATCH($A$1,Janvier!$D$1:$D$20,0),ROW(M13),1,,TEXT(M$3,"mmmm"))) -> 0 | P12: 41433 | Q12: =INDIRECT(ADDRESS(MATCH($A$1,Janvier!$D$1:$D$20,0),ROW(P13),1,,TEXT(P$3,"mmmm"))) -> 0 | S12: 41463 | T12: =INDIRECT(ADDRESS(MATCH($A$1,Janvier!$D$1:$D$20,0),ROW(S13),1,,TEXT(S$3,"mmmm"))) -> 0 | V12: 41494 | W12: =INDIRECT(ADDRESS(MATCH($A$1,Janvier!$D$1:$D$20,0),ROW(V13),1,,TEXT(V$3,"mmmm"))) -> 0 | Y12: 41525 | Z12: =INDIRECT(ADDRESS(MATCH($A$1,Janvier!$D$1:$D$20,0),ROW(Y13),1,,TEXT(Y$3,"mmmm"))) -> 0 | AB12: 41555 | AC12: =INDIRECT(ADDRESS(MATCH($A$1,Janvier!$D$1:$D$20,0),ROW(AB13),1,,TEXT(AB$3,"mmmm"))) -> 0 | AE12: 41586 | AF12: =INDIRECT(ADDRESS(MATCH($A$1,Janvier!$D$1:$D$20,0),ROW(AE13),1,,TEXT(AE$3,"mmmm"))) -> 0 | AH12: 41616 | AI12: =INDIRECT(ADDRESS(MATCH($A$1,Janvier!$D$1:$D$20,0),ROW(AH13),1,,TEXT(AH$3,"mmmm"))) -> 0
